Workbook

Sheet SUIVI_REGION
G1: PARTS SOCIALES Du 01/05/2024 au 30/06/2024 | Q1: ELAN JUILLET 2024 Du 08/04/2024 au 25/07/2024 | X1: EMPRUNT sur Assurance Vie et CTO Du 22/05/2024 au 04/07/2024 | AG1: FAF GP
C4: AU | D4: =TODAY()-1 -> 2024-06-26 | G4: Saisonnalité : | I4: =VLOOKUP(D4,'JOURS ECOULES'!A:E,5,FALSE) -> 93.2% | Q4: Saisonnalité : | S4: =VLOOKUP(D4,'JOURS ECOULES'!J:N,5,FALSE) -> 71.4% | X4: Saisonnalité : | Z4: =VLOOKUP(D4,'JOURS ECOULES'!S:W,5,FALSE) -> 81.0%
C6: REGIONS | G6: OBJ | H6: REALISATION EN MTT | I6: dont Réal. Portefeuilles Premium | J6: % REALISE | K6: Reste à faire | L6: Production attendue p/r au temps écoulé | M6: Ecart p/r à la production attendue | N6: Demandes de rachat ordinaires exécutées | O6: Demandes de rachat dérogatoires | Q6: OBJ | R6: REALISATION EN MTT | S6: % REALISE | T6: Reste à faire | U6: Production attendue p/r au temps écoulé | V6: Ecart p/r à la production attendue | X6: OBJ Assurance Vie | Y6: REALISATION EN MTT | Z6: % Réal. | AA6: Reste à faire | AB6: Production attendue | AC6: Ecart p/r à la production attendue | AD6: Taux moyen frais d'entrée | AE6: Réalisation emprunt en CTO | AG6: Réal. | AH6: dont Alizé Conviction | AI6: dont Coralium Juin 2024 | AJ6: dont PARMA PEA Novembre 2024
B7: Total AUBE HAUTE MARNE | C7: AUBE HAUTE MARNE | G7: =SUIVI_PDV!I69 -> 3,447,600 € | H7: =SUIVI_PDV!J69 -> 900,560 € | I7: =SUIVI_PDV!K69 -> 350,980 € | J7: =IFERROR(H7/G7," ") -> 26.1% | K7: =IF(H7>G7," ",G7-H7) -> 2,547,040 € | L7: =G7*$I$4 -> 3,211,463 € | M7: =H7-L7 -> -2,310,903 € | N7: =SUIVI_PDV!P69 -> 3,721,400 € | O7: =SUIVI_PDV!Q69 -> 107,200 € | Q7: =SUIVI_PDV!S69 -> 1,120,200 € | R7: =SUIVI_PDV!T69 -> 619,486 € | S7: =IFERROR(R7/Q7," ") -> 55.3% | T7: =IF(R7>Q7," ",Q7-R7) -> 500,714 € | U7: =Q7*$S$4 -> 800,143 € | V7: =R7-U7 -> -180,657 € | X7: =SUIVI_PDV!Z69 -> 12,000,000 € | Y7: =SUIVI_PDV!AA69 -> 11,720,538 € | Z7: =IFERROR(Y7/X7," ") -> 97.7% | AA7: =IF(Y7>X7," ",X7-Y7) -> 279,462 € | AB7: =X7*$Z$4 -> 9,724,138 € | AC7: =Y7-AB7 -> 1,996,400 € | AD7: =SUIVI_PDV!AF69 -> 0.43% | AE7: =SUIVI_PDV!AG69 -> 260,000 € | AG7: =SUIVI_PDV!AJ69 -> 261,217 € | AH7: =SUIVI_PDV!AK69 -> 225,647 € | AI7: =SUIVI_PDV!AL69 -> 18,283 € | AJ7: =SUIVI_PDV!AM69 -> 17,287 €
B8: Total BAS RHIN | C8: BAS RHIN | G8: =SUIVI_PDV!I259 -> 7,458,600 € | H8: =SUIVI_PDV!J259 -> 1,943,600 € | I8: =SUIVI_PDV!K259 -> 330,380 € | J8: =IFERROR(H8/G8," ") -> 26.1% | K8: 5,515,000 € | L8: 6,947,737 € | M8: -5,004,137 € | N8: =SUIVI_PDV!P259 -> 11,000,440 € | O8: =SUIVI_PDV!Q259 -> 365,040 € | Q8: =SUIVI_PDV!S259 -> 2,423,800 € | R8: =SUIVI_PDV!T259 -> 923,989 € | S8: 38.1% | T8: =IF(R8>Q8," ",Q8-R8) -> 1,499,811 € | U8: =Q8*$S$4 -> 1,731,286 € | V8: =R8-U8 -> -807,297 € | X8: =SUIVI_PDV!Z259 -> 23,000,000 € | Y8: =SUIVI_PDV!AA259 -> 13,949,785 € | Z8: =IFERROR(Y8/X8," ") -> 60.7% | AA8: 9,050,215 € | AB8: 18,637,931 € | AC8: -4,688,146 € | AD8: =SUIVI_PDV!AF259 -> 0.42% | AE8: =SUIVI_PDV!AG259 -> 79,500 € | AG8: =SUIVI_PDV!AJ259 -> 1,308,472 € | AH8: =SUIVI_PDV!AK259 -> 1,196,522 € | AI8: =SUIVI_PDV!AL259 -> 49,548 € | AJ8: =SUIVI_PDV!AM259 -> 62,402 €
B9: Total HAUT RHIN | C9: HAUT RHIN | G9: =SUIVI_PDV!I297 -> 4,563,500 € | H9: =SUIVI_PDV!J297 -> 1,008,240 € | I9: =SUIVI_PDV!K297 -> 115,420 € | J9: 22.1% | K9: 3,555,260 € | L9: 4,250,932 € | M9: -3,242,692 € | N9: =SUIVI_PDV!P297 -> 6,720,040 € | O9: =SUIVI_PDV!Q297 -> 123,320 € | Q9: =SUIVI_PDV!S297 -> 1,482,800 € | R9: =SUIVI_PDV!T297 -> 491,127 € | S9: 33.1% | T9: 991,673 € | U9: 1,059,143 € | V9: -568,016 € | X9: =SUIVI_PDV!Z297 -> 15,000,000 € | Y9: =SUIVI_PDV!AA297 -> 12,437,091 € | Z9: 82.9% | AA9: 2,562,909 € | AB9: 12,155,172 € | AC9: 281,919 € | AD9: =SUIVI_PDV!AF297 -> 0.45% | AE9: =SUIVI_PDV!AG297 -> 370,500 € | AG9: =SUIVI_PDV!AJ297 -> 448,972 € | AH9: =SUIVI_PDV!AK297 -> 374,611 € | AI9: =SUIVI_PDV!AL297 -> 74,360 € | AJ9: =SUIVI_PDV!AM297 -> 0 €
B10: Total MARNE ARDENNES | C10: MARNE ARDENNES | G10: =SUIVI_PDV!I42 -> 6,631,000 € | H10: =SUIVI_PDV!J42 -> 2,270,440 € | I10: =SUIVI_PDV!K42 -> 330,960 € | J10: 34.2% | K10: 4,360,560 € | L10: 6,176,822 € | M10: -3,906,382 € | N10: =SUIVI_PDV!P42 -> 8,776,420 € | O10: =SUIVI_PDV!Q42 -> 173,420 € | Q10: =SUIVI_PDV!S42 -> 2,155,700 € | R10: =SUIVI_PDV!T42 -> 528,961 € | S10: 24.5% | T10: 1,626,739 € | U10: 1,539,786 € | V10: -1,010,825 € | X10: =SUIVI_PDV!Z42 -> 25,000,000 € | Y10: =SUIVI_PDV!AA42 -> 16,189,560 € | Z10: 64.8% | AA10: 8,810,440 € | AB10: 20,258,621 € | AC10: -4,069,061 € | AD10: =SUIVI_PDV!AF42 -> 0.42% | AE10: =SUIVI_PDV!AG42 -> 47,200 € | AG10: =SUIVI_PDV!AJ42 -> 906,100 € | AH10: =SUIVI_PDV!AK42 -> 759,034 € | AI10: =SUIVI_PDV!AL42 -> 102,807 € | AJ10: =SUIVI_PDV!AM42 -> 44,259 €
B11: Total MEURTHE ET MOSELLE MEUSE | C11: MEURTHE ET MOSELLE MEUSE | G11: =SUIVI_PDV!I143 -> 6,619,600 € | H11: =SUIVI_PDV!J143 -> 3,067,680 € | I11: =SUIVI_PDV!K143 -> 292,260 € | J11: 46.3% | K11: 3,551,920 € | L11: 6,166,203 € | M11: -3,098,523 € | N11: =SUIVI_PDV!P143 -> 9,126,360 € | O11: =SUIVI_PDV!Q143 -> 105,800 € | Q11: =SUIVI_PDV!S143 -> 2,151,200 € | R11: =SUIVI_PDV!T143 -> 629,156 € | S11: 29.2% | T11: 1,522,044 € | U11: 1,536,571 € | V11: -907,415 € | X11: =SUIVI_PDV!Z143 -> 28,000,000 € | Y11: =SUIVI_PDV!AA143 -> 17,984,071 € | Z11: 64.2% | AA11: 10,015,929 € | AB11: 22,689,655 € | AC11: -4,705,584 € | AD11: =SUIVI_PDV!AF143 -> 0.47% | AE11: =SUIVI_PDV!AG143 -> 316,000 € | AG11: =SUIVI_PDV!AJ143 -> 219,926 € | AH11: =SUIVI_PDV!AK143 -> 160,873 € | AI11: =SUIVI_PDV!AL143 -> 59,053 € | AJ11: =SUIVI_PDV!AM143 -> 0 €
B12: Total MOSELLE | C12: MOSELLE | G12: =SUIVI_PDV!I202 -> 7,551,300 € | H12: =SUIVI_PDV!J202 -> 2,944,120 € | I12: =SUIVI_PDV!K202 -> 407,540 € | J12: 39.0% | K12: 4,607,180 € | L12: 7,034,088 € | M12: -4,089,968 € | N12: =SUIVI_PDV!P202 -> 9,411,260 € | O12: =SUIVI_PDV!Q202 -> 273,760 € | Q12: =SUIVI_PDV!S202 -> 2,454,200 € | R12: =SUIVI_PDV!T202 -> 972,152 € | S12: 39.6% | T12: 1,482,048 € | U12: 1,753,000 € | V12: -780,848 € | X12: =SUIVI_PDV!Z202 -> 25,000,000 € | Y12: =SUIVI_PDV!AA202 -> 15,926,382 € | Z12: 63.7% | AA12: 9,073,618 € | AB12: 20,258,621 € | AC12: -4,332,238 € | AD12: =SUIVI_PDV!AF202 -> 0.42% | AE12: =SUIVI_PDV!AG202 -> 309,600 € | AG12: =SUIVI_PDV!AJ202 -> 341,725 € | AH12: =SUIVI_PDV!AK202 -> 216,782 € | AI12: =SUIVI_PDV!AL202 -> 70,353 € | AJ12: =SUIVI_PDV!AM202 -> 54,590 €
B13: Total VOSGES | C13: VOSGES | G13: =SUIVI_PDV!I96 -> 3,728,400 € | H13: =SUIVI_PDV!J96 -> 1,578,180 € | I13: =SUIVI_PDV!K96 -> 500,920 € | J13: 42.3% | K13: 2,150,220 € | L13: 3,473,030 € | M13: -1,894,850 € | N13: =SUIVI_PDV!P96 -> 5,501,600 € | O13: =SUIVI_PDV!Q96 -> 154,920 € | Q13: =SUIVI_PDV!S96 -> 1,212,100 € | R13: =SUIVI_PDV!T96 -> 507,832 € | S13: 41.9% | T13: =IF(R13>Q13," ",Q13-R13) -> 704,268 € | U13: 865,786 € | V13: -357,954 € | X13: =SUIVI_PDV!Z96 -> 12,500,000 € | Y13: =SUIVI_PDV!AA96 -> 7,626,627 € | Z13: =IFERROR(Y13/X13," ") -> 61.0% | AA13: 4,873,373 € | AB13: 10,129,310 € | AC13: -2,502,683 € | AD13: =SUIVI_PDV!AF96 -> 0.40% | AE13: =SUIVI_PDV!AG96 -> 3,000 € | AG13: =SUIVI_PDV!AJ96 -> 223,589 € | AH13: =SUIVI_PDV!AK96 -> 157,434 € | AI13: =SUIVI_PDV!AL96 -> 46,691 € | AJ13: =SUIVI_PDV!AM96 -> 19,464 €
C14: BANQUE PRIVEE | H14: =(SUMIFS(SOURCE_PARTS_SOC!G:G,SOURCE_PARTS_SOC!D:D,"BANQUE PRIVEE"))+(SUMIFS(ORCA_CARNET!E:E,ORCA_CARNET!D:D,"BANQUE PRIVEE")) -> 220 € | N14: =(SUMIFS(SOURCE_PARTS_SOC_0506!$I:$I,SOURCE_PARTS_SOC_0506!$D:$D,"BANQUE PRIVEE")) -> 42,800 € | O14: =(SUMIFS(SOURCE_PARTS_SOC!$I:$I,SOURCE_PARTS_SOC!$D:$D,"BANQUE PRIVEE"))-N14 -> 0 € | Y14: 50,000 € | AE14: 425,000 €
A15: Multimédia | C15: DIR DEV Digital | H15: =(SUMIFS(SOURCE_PARTS_SOC!G:G,SOURCE_PARTS_SOC!B:B,"DISTRIBUTION DEVELOPPEMENT DIGIT"))+(SUMIFS(ORCA_CARNET!E:E,ORCA_CARNET!D:D,"BANQUE PRIVEE")) -> 484,700 € | I15: =(SUMIFS(SOURCE_PARTS_SOC!H:H,SOURCE_PARTS_SOC!B:B,"DISTRIBUTION DEVELOPPEMENT DIGIT")) -> 0 € | N15: =(SUMIFS(SOURCE_PARTS_SOC_0506!$I:$I,SOURCE_PARTS_SOC_0506!$B:$B,"DISTRIBUTION DEVELOPPEMENT DIGIT")) -> 200,680 € | O15: =(SUMIFS(SOURCE_PARTS_SOC!$I:$I,SOURCE_PARTS_SOC!$B:$B,"DISTRIBUTION DEVELOPPEMENT DIGIT"))-N15 -> 10,340 € | R15: =(SUMIFS(PILCOT_ELAN!P:P,PILCOT_ELAN!E:E,"GROUPE MULTIMEDIA")) -> 0 € | Y15: =(SUMIFS(SOURCE_EMP_ASV!J:J,SOURCE_EMP_ASV!A:A,"Multimédia")) -> 1,020,586 € | AE15: 10,000 € | AG15: =AH15+AI15+AJ15 -> 22,202 € | AH15: =(SUMIFS(ALIZE!P:P,ALIZE!E:E,"GROUPE MULTIMEDIA"))-(SUMIFS(ALIZE_2105!P:P,ALIZE_2105!E:E,"GROUPE MULTIMEDIA")) -> 7,446 € | AI15: =(SUMIFS(CORALIUM!P:P,CORALIUM!E:E,"GROUPE MULTIMEDIA"))-(SUMIFS(CORALIUM_2105!P:P,CORALIUM_2105!E:E,"GROUPE MULTIMEDIA")) -> 14,755 €
C16: non affectés aux DR | H16: =SUM(SOURCE_PARTS_SOC!G:G)-SUM(H7:H15) -> 120 € | N16: =SUM(SOURCE_PARTS_SOC_0506!I:I)-SUM(N7:N15) -> 900 € | O16: =SUM(SOURCE_PARTS_SOC!I:I)-SUM(O7:O15)-N17 -> 200 € | Y16: =(SUMIFS(SOURCE_EMP_ASV!J:J,SOURCE_EMP_ASV!A:A,"NC"))+21000 -> 1,739,609 € | AG16: =AH16+AI16+AJ16 -> 0 €
C17: TOTAL BDD | G17: =SUM(G7:G13) -> 40,000,000 € | H17: =SUM(H7:H16) -> 14,197,860 € | I17: =SUM(I7:I16) -> 2,328,460 € | J17: =IFERROR(H17/G17," ") -> 35.5% | K17: =IF(H17>G17," ",G17-H17) -> 25,802,140 € | L17: =G17*$I$4 -> 37,260,274 € | M17: =SUM(M7:M13) -> -23,547,454 € | N17: =SUM(N7:N16) -> 54,501,900 € | O17: =SUM(O7:O16) -> 1,314,000 € | Q17: =SUM(Q7:Q13) -> 13,000,000 € | R17: =SUM(R7:R16) -> 4,672,703 € | S17: 35.9% | T17: =IF(R17>Q17," ",Q17-R17) -> 8,327,297 € | U17: =Q17*$S$4 -> 9,285,714 € | V17: =SUM(V7:V13) -> -4,613,011 € | X17: =SUM(X7:X13) -> 140,500,000 € | Y17: =SUM(Y7:Y16) -> 98,644,249 € | Z17: =IFERROR(Y17/X17," ") -> 70.2% | AA17: =IF(Y17>X17," ",X17-Y17) -> 41,855,751 € | AB17: =X17*$Z$4 -> 113,853,448 € | AC17: =SUM(AC4:AC10) -> -6,478,889 € | AD17: =SUIVI_PDV!AF298 -> 0.43% | AE17: =SUM(AE7:AE15) -> 1,820,800 € | AG17: =AH17+AI17+AJ17 -> 3,732,203 € | AH17: =SUM(AH7:AH16) -> 3,098,350 € | AI17: =SUM(AI7:AI16) -> 435,851 € | AJ17: 198,002 €
C19: TOTAL BDR
C21: TOTAL CEGEE

Sheet SUIVI_PDV
A1: N° REGION | B1: REGION | C1: TERRITOIRE | D1: ES Pilcot | E1: ES GEDEL | F1: EDS PDV | G1: PDV | I1: PARTS SOCIALES | S1: ELAN JUILLET 2024 | Z1: Emprunt Assurance Vie | AG1: Emprunt CTO | AH1: Emprunt sur CTO | AJ1: FAF GP
I2: OBJ | J2: Réalisation | K2: dont réal. Portefeuilles Premium | L2: % Réal. | M2: Reste à faire | N2: Production att p/r au temps écoulé | O2: Ecart p/r à la production attendue | P2: Demandes de rachat ordinaires exécutées | Q2: Demandes de rachat dérogatoires exécutées | S2: OBJ | T2: Réalisation | U2: % Réal. | V2: Reste à faire | W2: Production att p/r au temps écoulé | X2: Ecart p/r à la production attendue | Z2: OBJ | AA2: Réal. emprunt en Assurance Vie | AB2: % Réal. | AC2: Reste à faire | AD2: Production attendue | AE2: Ecart p/r à production attendue | AF2: Taux moyen frais d'entrée | AG2: Réal. emprunt en CTO | AH2: Réal. emprunt en CTO | AJ2: Réal. | AK2: dont Alizé Conviction | AL2: dont Coralium Juin 2024 | AM2: dont PARMA PEA Novembre 2024
A3: 30 | B3: MARNE ARDENNES | C3: CHALONS EN CHAMPAGNE | D3: 201 | E3: 151350000201 | F3: 51101 | G3: =VLOOKUP(F3,Objectifs!G:H,2,FALSE) -> CHALONS VIVIERS | I3: =VLOOKUP(F3,Objectifs!G:L,6,FALSE) -> 378,000 | J3: =(SUMIFS(SOURCE_PARTS_SOC!G:G,SOURCE_PARTS_SOC!E:E,F3))+(SUMIFS(ORCA_CARNET!E:E,ORCA_CARNET!C:C,F3)) -> 80,280 | K3: =(SUMIFS(SOURCE_PARTS_SOC!H:H,SOURCE_PARTS_SOC!E:E,F3))+(SUMIFS(ORCA_CARNET!F:F,ORCA_CARNET!C:C,F3)) -> 1,240 | L3: =IFERROR(J3/I3," ") -> 21% | M3: =IF(J3>I3," ",I3-J3) -> 297,720 | N3: =I3*SUIVI_REGION!$I$4 -> 352,110 | O3: =J3-N3 -> -271,830 | P3: =(SUMIFS(SOURCE_PARTS_SOC_0506!$I:$I,SOURCE_PARTS_SOC_0506!$E:$E,F3)) -> 460,540 | Q3: =(SUMIFS(SOURCE_PARTS_SOC!$I:$I,SOURCE_PARTS_SOC!$E:$E,F3))-P3 -> 120 | S3: =VLOOKUP(F3,Objectifs!G:K,5,FALSE) -> 122,900 | T3: =(SUMIFS(PILCOT_ELAN!$P:$P,PILCOT_ELAN!$H:$H,$D3)) -> 8,085 | U3: =IFERROR(T3/S3," ") -> 7% | V3: =IF(T3>S3," ",S3-T3) -> 114,815 | W3: =S3*SUIVI_REGION!$S$4 -> 87,786 | X3: =IFERROR(T3-W3," ") -> -79,701 | Z3: =VLOOKUP(F3,Objectifs!G:M,7,FALSE) -> 1,425,100 | AA3: =(SUMIF(SOURCE_EMP_ASV!D:D,SUIVI_PDV!E3,SOURCE_EMP_ASV!J:J)) -> 1,299,909 | AB3: =IFERROR(AA3/Z3," ") -> 91% | AC3: =IF(AA3>Z3," ",Z3-AA3) -> 125,191 | AD3: =Z3*SUIVI_REGION!$Z$4 -> 1,154,822 | AE3: =AA3-AD3 -> 145,086 | AF3: =IF(SUMIF(SOURCE_EMP_ASV!D:D,SUIVI_PDV!E3,SOURCE_EMP_ASV!K:K)=0,"",(SUMIF(SOURCE_EMP_ASV!D:D,SUIVI_PDV!E3,SOURCE_EMP_ASV!L:L))/SUMIF(SOURCE_EMP_ASV!D:D,SUIVI_PDV!E3,SOURCE_EMP_ASV!K:K)) -> 0.46% | AG3: =AH3*100 -> 0 € | AH3: =(SUMIF(EMPRUNT_CTO!H:H,SUIVI_PDV!D3,EMPRUNT_CTO!K:K)) -> 0 | AJ3: =AK3+AL3+AM3 -> 0 | AK3: =(SUMIFS(ALIZE!P:P,ALIZE!H:H,D3))-(SUMIFS(ALIZE_2105!P:P,ALIZE_2105!H:H,D3)) -> 0 | AL3: =(SUMIFS(CORALIUM!P:P,CORALIUM!H:H,D3))-(SUMIFS(CORALIUM_2105!P:P,CORALIUM_2105!H:H,D3)) -> 0 | AM3: =(SUMIFS(PARMA_PEA!$N:$N,PARMA_PEA!$H:$H,$D3)) -> 0
A4: 30 | B4: MARNE ARDENNES | C4: CHALONS EN CHAMPAGNE | D4: 203 | E4: 151350000203 | F4: 51103 | G4: =VLOOKUP(F4,Objectifs!G:H,2,FALSE) -> FAGNIERES LECLERC | I4: =VLOOKUP(F4,Objectifs!G:L,6,FALSE) -> 101,000 | J4: =(SUMIFS(SOURCE_PARTS_SOC!G:G,SOURCE_PARTS_SOC!E:E,F4))+(SUMIFS(ORCA_CARNET!E:E,ORCA_CARNET!C:C,F4)) -> 43,780 | K4: =(SUMIFS(SOURCE_PARTS_SOC!H:H,SOURCE_PARTS_SOC!E:E,F4))+(SUMIFS(ORCA_CARNET!F:F,ORCA_CARNET!C:C,F4)) -> 39,280 | L4: 43% | M4: =IF(J4>I4," ",I4-J4) -> 57,220 | N4: =I4*SUIVI_REGION!$I$4 -> 94,082 | O4: -50,302 | P4: =(SUMIFS(SOURCE_PARTS_SOC_0506!$I:$I,SOURCE_PARTS_SOC_0506!$E:$E,F4)) -> 143,580 | Q4: =(SUMIFS(SOURCE_PARTS_SOC!$I:$I,SOURCE_PARTS_SOC!$E:$E,F4))-P4 -> 2,020 | S4: =VLOOKUP(F4,Objectifs!G:K,5,FALSE) -> 32,800 | T4: =(SUMIFS(PILCOT_ELAN!$P:$P,PILCOT_ELAN!$H:$H,$D4)) -> 0 | U4: 0% | V4: =IF(T4>S4," ",S4-T4) -> 32,800 | W4: =S4*SUIVI_REGION!$S$4 -> 23,429 | X4: =IFERROR(T4-W4," ") -> -23,429 | Z4: =VLOOKUP(F4,Objectifs!G:M,7,FALSE) -> 380,900 | AA4: =(SUMIF(SOURCE_EMP_ASV!D:D,SUIVI_PDV!E4,SOURCE_EMP_ASV!J:J)) -> 267,077 | AB4: 70% | AC4: 113,823 | AD4: =Z4*SUIVI_REGION!$Z$4 -> 308,660 | AE4: -41,583 | AF4: =IF(SUMIF(SOURCE_EMP_ASV!D:D,SUIVI_PDV!E4,SOURCE_EMP_ASV!K:K)=0,"",(SUMIF(SOURCE_EMP_ASV!D:D,SUIVI_PDV!E4,SOURCE_EMP_ASV!L:L))/SUMIF(SOURCE_EMP_ASV!D:D,SUIVI_PDV!E4,SOURCE_EMP_ASV!K:K)) -> 0.43% | AG4: =AH4*100 -> 0 € | AH4: =(SUMIF(EMPRUNT_CTO!H:H,SUIVI_PDV!D4,EMPRUNT_CTO!K:K)) -> 0 | AJ4: =AK4+AL4+AM4 -> 210,171 | AK4: =(SUMIFS(ALIZE!P:P,ALIZE!H:H,D4))-(SUMIFS(ALIZE_2105!P:P,ALIZE_2105!H:H,D4)) -> 185,689 | AL4: =(SUMIFS(CORALIUM!P:P,CORALIUM!H:H,D4))-(SUMIFS(CORALIUM_2105!P:P,CORALIUM_2105!H:H,D4)) -> 0 | AM4: =(SUMIFS(PARMA_PEA!$N:$N,PARMA_PEA!$H:$H,$D4)) -> 24,482
A5: 30 | B5: MARNE ARDENNES | C5: CHALONS EN CHAMPAGNE | D5: 210 | E5: 151350000210 | F5: 51110 | G5: =VLOOKUP(F5,Objectifs!G:H,2,FALSE) -> CHALONS ROOSEVELT | I5: =VLOOKUP(F5,Objectifs!G:L,6,FALSE) -> 165,500 | J5: =(SUMIFS(SOURCE_PARTS_SOC!G:G,SOURCE_PARTS_SOC!E:E,F5))+(SUMIFS(ORCA_CARNET!E:E,ORCA_CARNET!C:C,F5)) -> 37,160 | K5: =(SUMIFS(SOURCE_PARTS_SOC!H:H,SOURCE_PARTS_SOC!E:E,F5))+(SUMIFS(ORCA_CARNET!F:F,ORCA_CARNET!C:C,F5)) -> 0 | L5: 22% | M5: 128,340 | N5: =I5*SUIVI_REGION!$I$4 -> 154,164 | O5: -117,004 | P5: =(SUMIFS(SOURCE_PARTS_SOC_0506!$I:$I,SOURCE_PARTS_SOC_0506!$E:$E,F5)) -> 117,540 | Q5: =(SUMIFS(SOURCE_PARTS_SOC!$I:$I,SOURCE_PARTS_SOC!$E:$E,F5))-P5 -> 20 | S5: =VLOOKUP(F5,Objectifs!G:K,5,FALSE) -> 53,800 | T5: =(SUMIFS(PILCOT_ELAN!$P:$P,PILCOT_ELAN!$H:$H,$D5)) -> 13,700 | U5: 25% | V5: 40,100 | W5: =S5*SUIVI_REGION!$S$4 -> 38,429 | X5: -24,729 | Z5: =VLOOKUP(F5,Objectifs!G:M,7,FALSE) -> 623,900 | AA5: =(SUMIF(SOURCE_EMP_ASV!D:D,SUIVI_PDV!E5,SOURCE_EMP_ASV!J:J)) -> 456,851 | AB5: 73% | AC5: 167,049 | AD5: =Z5*SUIVI_REGION!$Z$4 -> 505,574 | AE5: -48,723 | AF5: =IF(SUMIF(SOURCE_EMP_ASV!D:D,SUIVI_PDV!E5,SOURCE_EMP_ASV!K:K)=0,"",(SUMIF(SOURCE_EMP_ASV!D:D,SUIVI_PDV!E5,SOURCE_EMP_ASV!L:L))/SUMIF(SOURCE_EMP_ASV!D:D,SUIVI_PDV!E5,SOURCE_EMP_ASV!K:K)) -> 0.48% | AG5: 0 € | AH5: =(SUMIF(EMPRUNT_CTO!H:H,SUIVI_PDV!D5,EMPRUNT_CTO!K:K)) -> 0 | AJ5: 39,477 | AK5: =(SUMIFS(ALIZE!P:P,ALIZE!H:H,D5))-(SUMIFS(ALIZE_2105!P:P,ALIZE_2105!H:H,D5)) -> 39,477 | AL5: =(SUMIFS(CORALIUM!P:P,CORALIUM!H:H,D5))-(SUMIFS(CORALIUM_2105!P:P,CORALIUM_2105!H:H,D5)) -> 0 | AM5: =(SUMIFS(PARMA_PEA!$N:$N,PARMA_PEA!$H:$H,$D5)) -> 0
A6: 30 | B6: MARNE ARDENNES | C6: CHALONS EN CHAMPAGNE | D6: 215 | E6: 151350000215 | F6: 51115 | G6: =VLOOKUP(F6,Objectifs!G:H,2,FALSE) -> MOURMELON LE GRAND | I6: =VLOOKUP(F6,Objectifs!G:L,6,FALSE) -> 101,000 | J6: =(SUMIFS(SOURCE_PARTS_SOC!G:G,SOURCE_PARTS_SOC!E:E,F6))+(SUMIFS(SOURCE_PARTS_SOC!G:G,SOURCE_PARTS_SOC!E:E,51114))+(SUMIFS(ORCA_CARNET!E:E,ORCA_CARNET!C:C,F6))+(SUMIFS(ORCA_CARNET!E:E,ORCA_CARNET!C:C,51114)) -> 1,500 | K6: =(SUMIFS(SOURCE_PARTS_SOC!H:H,SOURCE_PARTS_SOC!E:E,F6))+(SUMIFS(SOURCE_PARTS_SOC!H:H,SOURCE_PARTS_SOC!E:E,51114))+(SUMIFS(ORCA_CARNET!F:F,ORCA_CARNET!C:C,F6))+(SUMIFS(ORCA_CARNET!F:F,ORCA_CARNET!C:C,51114)) -> 0 | L6: 1% | M6: 99,500 | N6: =I6*SUIVI_REGION!$I$4 -> 94,082 | O6: -92,582 | P6: =(SUMIFS(SOURCE_PARTS_SOC_0506!$I:$I,SOURCE_PARTS_SOC_0506!$E:$E,F6))+(SUMIFS(SOURCE_PARTS_SOC_0506!$I:$I,SOURCE_PARTS_SOC_0506!$E:$E,51114)) -> 56,200 | Q6: =(SUMIFS(SOURCE_PARTS_SOC!$I:$I,SOURCE_PARTS_SOC!$E:$E,F6))+(SUMIFS(SOURCE_PARTS_SOC!$I:$I,SOURCE_PARTS_SOC!$E:$E,51114))-P6 -> 10,240 | S6: =VLOOKUP(F6,Objectifs!G:K,5,FALSE) -> 32,800 | T6: =(SUMIFS(PILCOT_ELAN!$P:$P,PILCOT_ELAN!$H:$H,$D6))+(SUMIFS(PILCOT_ELAN!$P:$P,PILCOT_ELAN!$H:$H,214)) -> 0 | U6: 0% | V6: 32,800 | W6: =S6*SUIVI_REGION!$S$4 -> 23,429 | X6: -23,429 | Z6: =VLOOKUP(F6,Objectifs!G:M,7,FALSE) -> 380,900 | AA6: =(SUMIF(SOURCE_EMP_ASV!D:D,SUIVI_PDV!E6,SOURCE_EMP_ASV!J:J))+(SUMIF(SOURCE_EMP_ASV!D:D,151350000214,SOURCE_EMP_ASV!J:J)) -> 118,700 | AB6: 31% | AC6: 262,200 | AD6: =Z6*SUIVI_REGION!$Z$4 -> 308,660 | AE6: -189,960 | AF6: =IF(SUMIF(SOURCE_EMP_ASV!D:D,SUIVI_PDV!E6,SOURCE_EMP_ASV!K:K)=0,"",(SUMIF(SOURCE_EMP_ASV!D:D,SUIVI_PDV!E6,SOURCE_EMP_ASV!L:L))/SUMIF(SOURCE_EMP_ASV!D:D,SUIVI_PDV!E6,SOURCE_EMP_ASV!K:K)) -> 0.50% | AG6: 0 € | AH6: =(SUMIF(EMPRUNT_CTO!H:H,SUIVI_PDV!D6,EMPRUNT_CTO!K:K))+(SUMIF(EMPRUNT_CTO!H:H,214,EMPRUNT_CTO!K:K)) -> 0 | AJ6: 0 | AK6: =(SUMIFS(ALIZE!P:P,ALIZE!H:H,D6))-(SUMIFS(ALIZE_2105!P:P,ALIZE_2105!H:H,D6)) -> 0 | AL6: =(SUMIFS(CORALIUM!P:P,CORALIUM!H:H,D6))-(SUMIFS(CORALIUM_2105!P:P,CORALIUM_2105!H:H,D6)) -> 0 | AM6: =(SUMIFS(PARMA_PEA!$N:$N,PARMA_PEA!$H:$H,$D6))+(SUMIFS(PARMA_PEA!$N:$N,PARMA_PEA!$H:$H,214)) -> 0
A7: 30 | B7: MARNE ARDENNES | C7: CHALONS EN CHAMPAGNE | D7: 220 | E7: 151350000220 | F7: 51120 | G7: =VLOOKUP(F7,Objectifs!G:H,2,FALSE) -> SARRY | I7: =VLOOKUP(F7,Objectifs!G:L,6,FALSE) -> 69,700 | J7: =(SUMIFS(SOURCE_PARTS_SOC!G:G,SOURCE_PARTS_SOC!E:E,F7))+(SUMIFS(ORCA_CARNET!E:E,ORCA_CARNET!C:C,F7)) -> 98,080 | K7: =(SUMIFS(SOURCE_PARTS_SOC!H:H,SOURCE_PARTS_SOC!E:E,F7))+(SUMIFS(ORCA_CARNET!F:F,ORCA_CARNET!C:C,F7)) -> 0 | L7: 141% | N7: =I7*SUIVI_REGION!$I$4 -> 64,926 | O7: 33,154 | P7: =(SUMIFS(SOURCE_PARTS_SOC_0506!$I:$I,SOURCE_PARTS_SOC_0506!$E:$E,F7)) -> 34,540 | Q7: =(SUMIFS(SOURCE_PARTS_SOC!$I:$I,SOURCE_PARTS_SOC!$E:$E,F7))-P7 -> 60 | S7: =VLOOKUP(F7,Objectifs!G:K,5,FALSE) -> 22,600 | T7: =(SUMIFS(PILCOT_ELAN!$P:$P,PILCOT_ELAN!$H:$H,$D7)) -> 0 | U7: 0% | V7: 22,600 | W7: =S7*SUIVI_REGION!$S$4 -> 16,143 | X7: -16,143 | Z7: =VLOOKUP(F7,Objectifs!G:M,7,FALSE) -> 262,700 | AA7: =(SUMIF(SOURCE_EMP_ASV!D:D,SUIVI_PDV!E7,SOURCE_EMP_ASV!J:J)) -> 418,164 | AB7: 159% | AD7: =Z7*SUIVI_REGION!$Z$4 -> 212,878 | AE7: 205,286 | AF7: =IF(SUMIF(SOURCE_EMP_ASV!D:D,SUIVI_PDV!E7,SOURCE_EMP_ASV!K:K)=0,"",(SUMIF(SOURCE_EMP_ASV!D:D,SUIVI_PDV!E7,SOURCE_EMP_ASV!L:L))/SUMIF(SOURCE_EMP_ASV!D:D,SUIVI_PDV!E7,SOURCE_EMP_ASV!K:K)) -> 0.50% | AG7: 0 € | AH7: =(SUMIF(EMPRUNT_CTO!H:H,SUIVI_PDV!D7,EMPRUNT_CTO!K:K)) -> 0 | AJ7: 0 | AK7: =(SUMIFS(ALIZE!P:P,ALIZE!H:H,D7))-(SUMIFS(ALIZE_2105!P:P,ALIZE_2105!H:H,D7)) -> 0 | AL7: =(SUMIFS(CORALIUM!P:P,CORALIUM!H:H,D7))-(SUMIFS(CORALIUM_2105!P:P,CORALIUM_2105!H:H,D7)) -> 0 | AM7: =(SUMIFS(PARMA_PEA!$N:$N,PARMA_PEA!$H:$H,$D7)) -> 0
A8: 30 | B8: MARNE ARDENNES | C8: CHALONS EN CHAMPAGNE | D8: 330 | E8: 151350000330 | F8: 51330 | G8: =VLOOKUP(F8,Objectifs!G:H,2,FALSE) -> MONTMIRAIL | I8: =VLOOKUP(F8,Objectifs!G:L,6,FALSE) -> 101,000 | J8: =(SUMIFS(SOURCE_PARTS_SOC!G:G,SOURCE_PARTS_SOC!E:E,F8))+(SUMIFS(ORCA_CARNET!E:E,ORCA_CARNET!C:C,F8)) -> 22,640 | K8: =(SUMIFS(SOURCE_PARTS_SOC!H:H,SOURCE_PARTS_SOC!E:E,F8))+(SUMIFS(ORCA_CARNET!F:F,ORCA_CARNET!C:C,F8)) -> 40 | L8: 22% | M8: 78,360 | N8: =I8*SUIVI_REGION!$I$4 -> 94,082 | O8: -71,442 | P8: =(SUMIFS(SOURCE_PARTS_SOC_0506!$I:$I,SOURCE_PARTS_SOC_0506!$E:$E,F8)) -> 42,340 | Q8: =(SUMIFS(SOURCE_PARTS_SOC!$I:$I,SOURCE_PARTS_SOC!$E:$E,F8))-P8 -> 40 | S8: =VLOOKUP(F8,Objectifs!G:K,5,FALSE) -> 32,800 | T8: =(SUMIFS(PILCOT_ELAN!$P:$P,PILCOT_ELAN!$H:$H,$D8)) -> 0 | U8: 0% | V8: 32,800 | W8: =S8*SUIVI_REGION!$S$4 -> 23,429 | X8: -23,429 | Z8: =VLOOKUP(F8,Objectifs!G:M,7,FALSE) -> 380,900 | AA8: =(SUMIF(SOURCE_EMP_ASV!D:D,SUIVI_PDV!E8,SOURCE_EMP_ASV!J:J)) -> 138,500 | AB8: 36% | AC8: 242,400 | AD8: =Z8*SUIVI_REGION!$Z$4 -> 308,660 | AE8: -170,160 | AF8: =IF(SUMIF(SOURCE_EMP_ASV!D:D,SUIVI_PDV!E8,SOURCE_EMP_ASV!K:K)=0,"",(SUMIF(SOURCE_EMP_ASV!D:D,SUIVI_PDV!E8,SOURCE_EMP_ASV!L:L))/SUMIF(SOURCE_EMP_ASV!D:D,SUIVI_PDV!E8,SOURCE_EMP_ASV!K:K)) -> 0.50% | AG8: 0 € | AH8: =(SUMIF(EMPRUNT_CTO!H:H,SUIVI_PDV!D8,EMPRUNT_CTO!K:K)) -> 0 | AJ8: 0 | AK8: =(SUMIFS(ALIZE!P:P,ALIZE!H:H,D8))-(SUMIFS(ALIZE_2105!P:P,ALIZE_2105!H:H,D8)) -> 0 | AL8: =(SUMIFS(CORALIUM!P:P,CORALIUM!H:H,D8))-(SUMIFS(CORALIUM_2105!P:P,CORALIUM_2105!H:H,D8)) -> 0 | AM8: =(SUMIFS(PARMA_PEA!$N:$N,PARMA_PEA!$H:$H,$D8)) -> 0
A9: 30 | B9: MARNE ARDENNES | C9: CHALONS EN CHAMPAGNE | D9: 354 | E9: 151350000354 | F9: 51354 | G9: =VLOOKUP(F9,Objectifs!G:H,2,FALSE) -> VERTUS | I9: =VLOOKUP(F9,Objectifs!G:L,6,FALSE) -> 82,400 | J9: =(SUMIFS(SOURCE_PARTS_SOC!G:G,SOURCE_PARTS_SOC!E:E,F9))+(SUMIFS(ORCA_CARNET!E:E,ORCA_CARNET!C:C,F9)) -> 68,440 | K9: =(SUMIFS(SOURCE_PARTS_SOC!H:H,SOURCE_PARTS_SOC!E:E,F9))+(SUMIFS(ORCA_CARNET!F:F,ORCA_CARNET!C:C,F9)) -> 14,040 | L9: 83% | M9: 13,960 | N9: =I9*SUIVI_REGION!$I$4 -> 76,756 | O9: -8,316 | P9: =(SUMIFS(SOURCE_PARTS_SOC_0506!$I:$I,SOURCE_PARTS_SOC_0506!$E:$E,F9)) -> 137,960 | Q9: =(SUMIFS(SOURCE_PARTS_SOC!$I:$I,SOURCE_PARTS_SOC!$E:$E,F9))-P9 -> 260 | S9: =VLOOKUP(F9,Objectifs!G:K,5,FALSE) -> 26,800 | T9: =(SUMIFS(PILCOT_ELAN!$P:$P,PILCOT_ELAN!$H:$H,$D9)) -> 36,956 | U9: 138% | W9: =S9*SUIVI_REGION!$S$4 -> 19,143 | X9: 17,813 | Z9: =VLOOKUP(F9,Objectifs!G:M,7,FALSE) -> 310,600 | AA9: =(SUMIF(SOURCE_EMP_ASV!D:D,SUIVI_PDV!E9,SOURCE_EMP_ASV!J:J)) -> 650,182 | AB9: 209% | AD9: =Z9*SUIVI_REGION!$Z$4 -> 251,693 | AE9: 398,489 | AF9: =IF(SUMIF(SOURCE_EMP_ASV!D:D,SUIVI_PDV!E9,SOURCE_EMP_ASV!K:K)=0,"",(SUMIF(SOURCE_EMP_ASV!D:D,SUIVI_PDV!E9,SOURCE_EMP_ASV!L:L))/SUMIF(SOURCE_EMP_ASV!D:D,SUIVI_PDV!E9,SOURCE_EMP_ASV!K:K)) -> 0.50% | AG9: 0 € | AH9: =(SUMIF(EMPRUNT_CTO!H:H,SUIVI_PDV!D9,EMPRUNT_CTO!K:K)) -> 0 | AJ9: 0 | AK9: =(SUMIFS(ALIZE!P:P,ALIZE!H:H,D9))-(SUMIFS(ALIZE_2105!P:P,ALIZE_2105!H:H,D9)) -> 0 | AL9: =(SUMIFS(CORALIUM!P:P,CORALIUM!H:H,D9))-(SUMIFS(CORALIUM_2105!P:P,CORALIUM_2105!H:H,D9)) -> 0 | AM9: =(SUMIFS(PARMA_PEA!$N:$N,PARMA_PEA!$H:$H,$D9)) -> 0
A10: 30 | B10: MARNE ARDENNES | C10: CHALONS EN CHAMPAGNE | D10: 381 | E10: 151350000381 | F10: 51381 | G10: =VLOOKUP(F10,Objectifs!G:H,2,FALSE) -> SEZANNE | I10: =VLOOKUP(F10,Objectifs!G:L,6,FALSE) -> 244,500 | J10: =(SUMIFS(SOURCE_PARTS_SOC!G:G,SOURCE_PARTS_SOC!E:E,F10))+(SUMIFS(ORCA_CARNET!E:E,ORCA_CARNET!C:C,F10)) -> 66,340 | K10: =(SUMIFS(SOURCE_PARTS_SOC!H:H,SOURCE_PARTS_SOC!E:E,F10))+(SUMIFS(ORCA_CARNET!F:F,ORCA_CARNET!C:C,F10)) -> 0 | L10: 27% | M10: 178,160 | N10: =I10*SUIVI_REGION!$I$4 -> 227,753 | O10: -161,413 | P10: =(SUMIFS(SOURCE_PARTS_SOC_0506!$I:$I,SOURCE_PARTS_SOC_0506!$E:$E,F10)) -> 88,040 | Q10: =(SUMIFS(SOURCE_PARTS_SOC!$I:$I,SOURCE_PARTS_SOC!$E:$E,F10))-P10 -> 220 | S10: =VLOOKUP(F10,Objectifs!G:K,5,FALSE) -> 79,500 | T10: =(SUMIFS(PILCOT_ELAN!$P:$P,PILCOT_ELAN!$H:$H,$D10)) -> 82,139 | U10: 103% | W10: =S10*SUIVI_REGION!$S$4 -> 56,786 | X10: 25,354 | Z10: =VLOOKUP(F10,Objectifs!G:M,7,FALSE) -> 921,800 | AA10: =(SUMIF(SOURCE_EMP_ASV!D:D,SUIVI_PDV!E10,SOURCE_EMP_ASV!J:J)) -> 423,816 | AB10: 46% | AC10: 497,984 | AD10: =Z10*SUIVI_REGION!$Z$4 -> 746,976 | AE10: -323,160 | AF10: =IF(SUMIF(SOURCE_EMP_ASV!D:D,SUIVI_PDV!E10,SOURCE_EMP_ASV!K:K)=0,"",(SUMIF(SOURCE_EMP_ASV!D:D,SUIVI_PDV!E10,SOURCE_EMP_ASV!L:L))/SUMIF(SOURCE_EMP_ASV!D:D,SUIVI_PDV!E10,SOURCE_EMP_ASV!K:K)) -> 0.50% | AG10: 0 € | AH10: =(SUMIF(EMPRUNT_CTO!H:H,SUIVI_PDV!D10,EMPRUNT_CTO!K:K)) -> 0 | AJ10: 0 | AK10: =(SUMIFS(ALIZE!P:P,ALIZE!H:H,D10))-(SUMIFS(ALIZE_2105!P:P,ALIZE_2105!H:H,D10)) -> 0 | AL10: =(SUMIFS(CORALIUM!P:P,CORALIUM!H:H,D10))-(SUMIFS(CORALIUM_2105!P:P,CORALIUM_2105!H:H,D10)) -> 0 | AM10: =(SUMIFS(PARMA_PEA!$N:$N,PARMA_PEA!$H:$H,$D10)) -> 0
A11: 30 | B11: MARNE ARDENNES | C11: CHALONS EN CHAMPAGNE | D11: 228 | E11: 151350000228 | F11: 51128 | G11: =VLOOKUP(F11,Objectifs!G:H,2,FALSE) -> SAINTE MENEHOULD | I11: =VLOOKUP(F11,Objectifs!G:L,6,FALSE) -> 132,400 | J11: =(SUMIFS(SOURCE_PARTS_SOC!G:G,SOURCE_PARTS_SOC!E:E,F11))+(SUMIFS(ORCA_CARNET!E:E,ORCA_CARNET!C:C,F11)) -> 16,260 | K11: =(SUMIFS(SOURCE_PARTS_SOC!H:H,SOURCE_PARTS_SOC!E:E,F11))+(SUMIFS(ORCA_CARNET!F:F,ORCA_CARNET!C:C,F11)) -> 0 | L11: 12% | M11: 116,140 | N11: =I11*SUIVI_REGION!$I$4 -> 123,332 | O11: -107,072 | P11: =(SUMIFS(SOURCE_PARTS_SOC_0506!$I:$I,SOURCE_PARTS_SOC_0506!$E:$E,F11)) -> 103,280 | Q11: =(SUMIFS(SOURCE_PARTS_SOC!$I:$I,SOURCE_PARTS_SOC!$E:$E,F11))-P11 -> 5,240 | S11: =VLOOKUP(F11,Objectifs!G:K,5,FALSE) -> 43,000 | T11: =(SUMIFS(PILCOT_ELAN!$P:$P,PILCOT_ELAN!$H:$H,$D11)) -> 3,806 | U11: 9% | V11: 39,194 | W11: =S11*SUIVI_REGION!$S$4 -> 30,714 | X11: -26,908 | Z11: =VLOOKUP(F11,Objectifs!G:M,7,FALSE) -> 499,100 | AA11: =(SUMIF(SOURCE_EMP_ASV!D:D,SUIVI_PDV!E11,SOURCE_EMP_ASV!J:J)) -> 138,462 | AB11: 28% | AC11: 360,638 | AD11: =Z11*SUIVI_REGION!$Z$4 -> 404,443 | AE11: -265,981 | AF11: =IF(SUMIF(SOURCE_EMP_ASV!D:D,SUIVI_PDV!E11,SOURCE_EMP_ASV!K:K)=0,"",(SUMIF(SOURCE_EMP_ASV!D:D,SUIVI_PDV!E11,SOURCE_EMP_ASV!L:L))/SUMIF(SOURCE_EMP_ASV!D:D,SUIVI_PDV!E11,SOURCE_EMP_ASV!K:K)) -> 0.50% | AG11: 0 € | AH11: =(SUMIF(EMPRUNT_CTO!H:H,SUIVI_PDV!D11,EMPRUNT_CTO!K:K)) -> 0 | AJ11: 72,698 | AK11: =(SUMIFS(ALIZE!P:P,ALIZE!H:H,D11))-(SUMIFS(ALIZE_2105!P:P,ALIZE_2105!H:H,D11)) -> 72,698 | AL11: =(SUMIFS(CORALIUM!P:P,CORALIUM!H:H,D11))-(SUMIFS(CORALIUM_2105!P:P,CORALIUM_2105!H:H,D11)) -> 0 | AM11: =(SUMIFS(PARMA_PEA!$N:$N,PARMA_PEA!$H:$H,$D11)) -> 0
A12: 30 | B12: MARNE ARDENNES | C12: CHALONS EN CHAMPAGNE | D12: 266 | E12: 151350000266 | F12: 51166 | G12: =VLOOKUP(F12,Objectifs!G:H,2,FALSE) -> VITRY LE FRANCOIS | I12: =VLOOKUP(F12,Objectifs!G:L,6,FALSE) -> 226,500 | J12: =(SUMIFS(SOURCE_PARTS_SOC!G:G,SOURCE_PARTS_SOC!E:E,F12))+(SUMIFS(ORCA_CARNET!E:E,ORCA_CARNET!C:C,F12)) -> 57,120 | K12: =(SUMIFS(SOURCE_PARTS_SOC!H:H,SOURCE_PARTS_SOC!E:E,F12))+(SUMIFS(ORCA_CARNET!F:F,ORCA_CARNET!C:C,F12)) -> 1,500 | L12: 25% | M12: 169,380 | N12: =I12*SUIVI_REGION!$I$4 -> 210,986 | O12: -153,866 | P12: =(SUMIFS(SOURCE_PARTS_SOC_0506!$I:$I,SOURCE_PARTS_SOC_0506!$E:$E,F12)) -> 242,780 | Q12: =(SUMIFS(SOURCE_PARTS_SOC!$I:$I,SOURCE_PARTS_SOC!$E:$E,F12))-P12 -> 20 | S12: =VLOOKUP(F12,Objectifs!G:K,5,FALSE) -> 73,600 | T12: =(SUMIFS(PILCOT_ELAN!$P:$P,PILCOT_ELAN!$H:$H,$D12)) -> 5,349 | U12: 7% | V12: 68,251 | W12: =S12*SUIVI_REGION!$S$4 -> 52,571 | X12: -47,223 | Z12: =VLOOKUP(F12,Objectifs!G:M,7,FALSE) -> 853,800 | AA12: =(SUMIF(SOURCE_EMP_ASV!D:D,SUIVI_PDV!E12,SOURCE_EMP_ASV!J:J)) -> 355,161 | AB12: 42% | AC12: 498,639 | AD12: =Z12*SUIVI_REGION!$Z$4 -> 691,872 | AE12: -336,712 | AF12: =IF(SUMIF(SOURCE_EMP_ASV!D:D,SUIVI_PDV!E12,SOURCE_EMP_ASV!K:K)=0,"",(SUMIF(SOURCE_EMP_ASV!D:D,SUIVI_PDV!E12,SOURCE_EMP_ASV!L:L))/SUMIF(SOURCE_EMP_ASV!D:D,SUIVI_PDV!E12,SOURCE_EMP_ASV!K:K)) -> 0.41% | AG12: 0 € | AH12: =(SUMIF(EMPRUNT_CTO!H:H,SUIVI_PDV!D12,EMPRUNT_CTO!K:K)) -> 0 | AJ12: 0 | AK12: =(SUMIFS(ALIZE!P:P,ALIZE!H:H,D12))-(SUMIFS(ALIZE_2105!P:P,ALIZE_2105!H:H,D12)) -> 0 | AL12: =(SUMIFS(CORALIUM!P:P,CORALIUM!H:H,D12))-(SUMIFS(CORALIUM_2105!P:P,CORALIUM_2105!H:H,D12)) -> 0 | AM12: =(SUMIFS(PARMA_PEA!$N:$N,PARMA_PEA!$H:$H,$D12)) -> 0
A13: 30 | C13: Total Territoire CHALONS EN CHAMPAGNE | G13: CHALONS EN CHAMPAGNE | I13: =SUBTOTAL(9,I3:I12) -> 1,602,000 | J13: =SUBTOTAL(9,J3:J12) -> 491,600 | K13: =SUBTOTAL(9,K3:K12) -> 56,100 | L13: 31% | M13: 1,110,400 | N13: =I13*SUIVI_REGION!$I$4 -> 1,492,274 | O13: -1,000,674 | P13: =SUBTOTAL(9,P3:P12) -> 1,426,800 | Q13: =SUBTOTAL(9,Q3:Q12) -> 18,240 | S13: =SUBTOTAL(9,S3:S12) -> 520,600 | T13: =SUBTOTAL(9,T3:T12) -> 150,035 | U13: 29% | V13: 370,565 | W13: =S13*SUIVI_REGION!$S$4 -> 371,857 | X13: =IFERROR(T13-W13," ") -> -221,822 | Z13: =SUBTOTAL(9,Z3:Z12) -> 6,039,700 | AA13: =SUBTOTAL(9,AA3:AA12) -> 4,266,821 | AB13: 71% | AC13: 1,772,879 | AD13: =Z13*SUIVI_REGION!$Z$4 -> 4,894,240 | AE13: -627,418 | AF13: =IF(SUMIF(SOURCE_EMP_ASV!B:B,G13,SOURCE_EMP_ASV!K:K)=0,"",(SUMIF(SOURCE_EMP_ASV!B:B,G13,SOURCE_EMP_ASV!L:L))/(SUMIF(SOURCE_EMP_ASV!B:B,G13,SOURCE_EMP_ASV!K:K))) -> 0.47% | AG13: 0 € | AH13: =SUBTOTAL(9,AH3:AH12) -> 0 | AJ13: 322,346 | AK13: =SUBTOTAL(9,AK3:AK12) -> 297,864 | AL13: =SUBTOTAL(9,AL3:AL12) -> 0 | AM13: =SUBTOTAL(9,AM3:AM12) -> 24,482
A14: 30 | B14: MARNE ARDENNES | C14: CHARLEVILLE MEZIERES | D14: 120 | E14: 151350000120 | F14: 8820 | G14: =VLOOKUP(F14,Objectifs!G:H,2,FALSE) -> VOUZIERS | I14: =VLOOKUP(F14,Objectifs!G:L,6,FALSE) -> 104,500 | J14: =(SUMIFS(SOURCE_PARTS_SOC!G:G,SOURCE_PARTS_SOC!E:E,F14))+(SUMIFS(ORCA_CARNET!E:E,ORCA_CARNET!C:C,F14)) -> 17,200 | K14: =(SUMIFS(SOURCE_PARTS_SOC!H:H,SOURCE_PARTS_SOC!E:E,F14))+(SUMIFS(ORCA_CARNET!F:F,ORCA_CARNET!C:C,F14)) -> 0 | L14: 16% | M14: 87,300 | N14: =I14*SUIVI_REGION!$I$4 -> 97,342 | O14: -80,142 | P14: =(SUMIFS(SOURCE_PARTS_SOC_0506!$I:$I,SOURCE_PARTS_SOC_0506!$E:$E,F14)) -> 100,060 | Q14: =(SUMIFS(SOURCE_PARTS_SOC!$I:$I,SOURCE_PARTS_SOC!$E:$E,F14))-P14 -> 480 | S14: =VLOOKUP(F14,Objectifs!G:K,5,FALSE) -> 34,000 | T14: =(SUMIFS(PILCOT_ELAN!$P:$P,PILCOT_ELAN!$H:$H,$D14)) -> 51,175 | U14: 151% | W14: =S14*SUIVI_REGION!$S$4 -> 24,286 | X14: =IFERROR(T14-W14," ") -> 26,889 | Z14: =VLOOKUP(F14,Objectifs!G:M,7,FALSE) -> 394,000 | AA14: =(SUMIF(SOURCE_EMP_ASV!D:D,SUIVI_PDV!E14,SOURCE_EMP_ASV!J:J)) -> 552,204 | AB14: 140% | AD14: =Z14*SUIVI_REGION!$Z$4 -> 319,276 | AE14: 232,928 | AF14: =IF(SUMIF(SOURCE_EMP_ASV!D:D,SUIVI_PDV!E14,SOURCE_EMP_ASV!K:K)=0,"",(SUMIF(SOURCE_EMP_ASV!D:D,SUIVI_PDV!E14,SOURCE_EMP_ASV!L:L))/SUMIF(SOURCE_EMP_ASV!D:D,SUIVI_PDV!E14,SOURCE_EMP_ASV!K:K)) -> 0.42% | AG14: 0 € | AH14: =(SUMIF(EMPRUNT_CTO!H:H,SUIVI_PDV!D14,EMPRUNT_CTO!K:K)) -> 0 | AJ14: 12,291 | AK14: =(SUMIFS(ALIZE!P:P,ALIZE!H:H,D14))-(SUMIFS(ALIZE_2105!P:P,ALIZE_2105!H:H,D14)) -> 12,291 | AL14: =(SUMIFS(CORALIUM!P:P,CORALIUM!H:H,D14))-(SUMIFS(CORALIUM_2105!P:P,CORALIUM_2105!H:H,D14)) -> 0 | AM14: =(SUMIFS(PARMA_PEA!$N:$N,PARMA_PEA!$H:$H,$D14)) -> 0
A15: 30 | B15: MARNE ARDENNES | C15: CHARLEVILLE MEZIERES | D15: 140 | E15: 151350000140 | F15: 8840 | G15: =VLOOKUP(F15,Objectifs!G:H,2,FALSE) -> RETHEL | I15: =VLOOKUP(F15,Objectifs!G:L,6,FALSE) -> 167,200 | J15: =(SUMIFS(SOURCE_PARTS_SOC!G:G,SOURCE_PARTS_SOC!E:E,F15))+(SUMIFS(ORCA_CARNET!E:E,ORCA_CARNET!C:C,F15)) -> 10,080 | K15: =(SUMIFS(SOURCE_PARTS_SOC!H:H,SOURCE_PARTS_SOC!E:E,F15))+(SUMIFS(ORCA_CARNET!F:F,ORCA_CARNET!C:C,F15)) -> 2,100 | L15: 6% | M15: 157,120 | N15: =I15*SUIVI_REGION!$I$4 -> 155,748 | O15: -145,668 | P15: =(SUMIFS(SOURCE_PARTS_SOC_0506!$I:$I,SOURCE_PARTS_SOC_0506!$E:$E,F15)) -> 180,600 | Q15: =(SUMIFS(SOURCE_PARTS_SOC!$I:$I,SOURCE_PARTS_SOC!$E:$E,F15))-P15 -> 2,500 | S15: =VLOOKUP(F15,Objectifs!G:K,5,FALSE) -> 54,300 | T15: =(SUMIFS(PILCOT_ELAN!$P:$P,PILCOT_ELAN!$H:$H,$D15)) -> 21,744 | U15: 40% | V15: 32,556 | W15: =S15*SUIVI_REGION!$S$4 -> 38,786 | X15: -17,042 | Z15: =VLOOKUP(F15,Objectifs!G:M,7,FALSE) -> 630,500 | AA15: =(SUMIF(SOURCE_EMP_ASV!D:D,SUIVI_PDV!E15,SOURCE_EMP_ASV!J:J)) -> 487,946 | AB15: 77% | AC15: 142,554 | AD15: =Z15*SUIVI_REGION!$Z$4 -> 510,922 | AE15: -22,977 | AF15: =IF(SUMIF(SOURCE_EMP_ASV!D:D,SUIVI_PDV!E15,SOURCE_EMP_ASV!K:K)=0,"",(SUMIF(SOURCE_EMP_ASV!D:D,SUIVI_PDV!E15,SOURCE_EMP_ASV!L:L))/SUMIF(SOURCE_EMP_ASV!D:D,SUIVI_PDV!E15,SOURCE_EMP_ASV!K:K)) -> 0.47% | AG15: 12,200 € | AH15: =(SUMIF(EMPRUNT_CTO!H:H,SUIVI_PDV!D15,EMPRUNT_CTO!K:K)) -> 122 | AJ15: 25,475 | AK15: =(SUMIFS(ALIZE!P:P,ALIZE!H:H,D15))-(SUMIFS(ALIZE_2105!P:P,ALIZE_2105!H:H,D15)) -> 22,952 | AL15: =(SUMIFS(CORALIUM!P:P,CORALIUM!H:H,D15))-(SUMIFS(CORALIUM_2105!P:P,CORALIUM_2105!H:H,D15)) -> 2,523 | AM15: =(SUMIFS(PARMA_PEA!$N:$N,PARMA_PEA!$H:$H,$D15)) -> 0
A16: 30 | B16: MARNE ARDENNES | C16: CHARLEVILLE MEZIERES | D16: 139 | E16: 151350000139 | F16: 8839 | G16: =VLOOKUP(F16,Objectifs!G:H,2,FALSE) -> GIVET | I16: =VLOOKUP(F16,Objectifs!G:L,6,FALSE) -> 101,000 | J16: =(SUMIFS(SOURCE_PARTS_SOC!G:G,SOURCE_PARTS_SOC!E:E,F16))+(SUMIFS(ORCA_CARNET!E:E,ORCA_CARNET!C:C,F16)) -> 61,620 | K16: =(SUMIFS(SOURCE_PARTS_SOC!H:H,SOURCE_PARTS_SOC!E:E,F16))+(SUMIFS(ORCA_CARNET!F:F,ORCA_CARNET!C:C,F16)) -> 0 | L16: 61% | M16: 39,380 | N16: =I16*SUIVI_REGION!$I$4 -> 94,082 | O16: -32,462 | P16: =(SUMIFS(SOURCE_PARTS_SOC_0506!$I:$I,SOURCE_PARTS_SOC_0506!$E:$E,F16)) -> 116,880 | Q16: =(SUMIFS(SOURCE_PARTS_SOC!$I:$I,SOURCE_PARTS_SOC!$E:$E,F16))-P16 -> 7,880 | S16: =VLOOKUP(F16,Objectifs!G:K,5,FALSE) -> 32,800 | T16: =(SUMIFS(PILCOT_ELAN!$P:$P,PILCOT_ELAN!$H:$H,$D16)) -> 3,527 | U16: 11% | V16: 29,273 | W16: =S16*SUIVI_REGION!$S$4 -> 23,429 | X16: -19,901 | Z16: =VLOOKUP(F16,Objectifs!G:M,7,FALSE) -> 380,900 | AA16: =(SUMIF(SOURCE_EMP_ASV!D:D,SUIVI_PDV!E16,SOURCE_EMP_ASV!J:J)) -> 217,673 | AB16: 57% | AC16: 163,227 | AD16: =Z16*SUIVI_REGION!$Z$4 -> 308,660 | AE16: -90,987 | AF16: =IF(SUMIF(SOURCE_EMP_ASV!D:D,SUIVI_PDV!E16,SOURCE_EMP_ASV!K:K)=0,"",(SUMIF(SOURCE_EMP_ASV!D:D,SUIVI_PDV!E16,SOURCE_EMP_ASV!L:L))/SUMIF(SOURCE_EMP_ASV!D:D,SUIVI_PDV!E16,SOURCE_EMP_ASV!K:K)) -> 0.49% | AG16: 0 € | AH16: =(SUMIF(EMPRUNT_CTO!H:H,SUIVI_PDV!D16,EMPRUNT_CTO!K:K)) -> 0 | AJ16: 0 | AK16: =(SUMIFS(ALIZE!P:P,ALIZE!H:H,D16))-(SUMIFS(ALIZE_2105!P:P,ALIZE_2105!H:H,D16)) -> 0 | AL16: =(SUMIFS(CORALIUM!P:P,CORALIUM!H:H,D16))-(SUMIFS(CORALIUM_2105!P:P,CORALIUM_2105!H:H,D16)) -> 0 | AM16: =(SUMIFS(PARMA_PEA!$N:$N,PARMA_PEA!$H:$H,$D16)) -> 0
A17: 30 | B17: MARNE ARDENNES | C17: CHARLEVILLE MEZIERES | D17: 160 | E17: 151350000160 | F17: 8860 | G17: =VLOOKUP(F17,Objectifs!G:H,2,FALSE) -> ROCROI | I17: =VLOOKUP(F17,Objectifs!G:L,6,FALSE) -> 104,500 | J17: =(SUMIFS(SOURCE_PARTS_SOC!G:G,SOURCE_PARTS_SOC!E:E,F17))+(SUMIFS(ORCA_CARNET!E:E,ORCA_CARNET!C:C,F17)) -> 20,840 | K17: =(SUMIFS(SOURCE_PARTS_SOC!H:H,SOURCE_PARTS_SOC!E:E,F17))+(SUMIFS(ORCA_CARNET!F:F,ORCA_CARNET!C:C,F17)) -> 10,000 | L17: 20% | M17: 83,660 | N17: =I17*SUIVI_REGION!$I$4 -> 97,342 | O17: -76,502 | P17: =(SUMIFS(SOURCE_PARTS_SOC_0506!$I:$I,SOURCE_PARTS_SOC_0506!$E:$E,F17)) -> 101,820 | Q17: =(SUMIFS(SOURCE_PARTS_SOC!$I:$I,SOURCE_PARTS_SOC!$E:$E,F17))-P17 -> 200 | S17: =VLOOKUP(F17,Objectifs!G:K,5,FALSE) -> 34,000 | T17: =(SUMIFS(PILCOT_ELAN!$P:$P,PILCOT_ELAN!$H:$H,$D17)) -> 26,653 | U17: 78% | V17: 7,347 | W17: =S17*SUIVI_REGION!$S$4 -> 24,286 | X17: 2,368 | Z17: =VLOOKUP(F17,Objectifs!G:M,7,FALSE) -> 394,000 | AA17: =(SUMIF(SOURCE_EMP_ASV!D:D,SUIVI_PDV!E17,SOURCE_EMP_ASV!J:J)) -> 103,792 | AB17: 26% | AC17: 290,208 | AD17: =Z17*SUIVI_REGION!$Z$4 -> 319,276 | AE17: -215,484 | AF17: =IF(SUMIF(SOURCE_EMP_ASV!D:D,SUIVI_PDV!E17,SOURCE_EMP_ASV!K:K)=0,"",(SUMIF(SOURCE_EMP_ASV!D:D,SUIVI_PDV!E17,SOURCE_EMP_ASV!L:L))/SUMIF(SOURCE_EMP_ASV!D:D,SUIVI_PDV!E17,SOURCE_EMP_ASV!K:K)) -> 0.50% | AG17: 0 € | AH17: =(SUMIF(EMPRUNT_CTO!H:H,SUIVI_PDV!D17,EMPRUNT_CTO!K:K)) -> 0 | AJ17: 0 | AK17: =(SUMIFS(ALIZE!P:P,ALIZE!H:H,D17))-(SUMIFS(ALIZE_2105!P:P,ALIZE_2105!H:H,D17)) -> 0 | AL17: =(SUMIFS(CORALIUM!P:P,CORALIUM!H:H,D17))-(SUMIFS(CORALIUM_2105!P:P,CORALIUM_2105!H:H,D17)) -> 0 | AM17: =(SUMIFS(PARMA_PEA!$N:$N,PARMA_PEA!$H:$H,$D17)) -> 0
A18: 30 | B18: MARNE ARDENNES | C18: CHARLEVILLE MEZIERES | D18: 162 | E18: 151350000162 | F18: 8862 | G18: =VLOOKUP(F18,Objectifs!G:H,2,FALSE) -> REVIN | I18: =VLOOKUP(F18,Objectifs!G:L,6,FALSE) -> 135,900 | J18: =(SUMIFS(SOURCE_PARTS_SOC!G:G,SOURCE_PARTS_SOC!E:E,F18))+(SUMIFS(ORCA_CARNET!E:E,ORCA_CARNET!C:C,F18)) -> 34,980 | K18: =(SUMIFS(SOURCE_PARTS_SOC!H:H,SOURCE_PARTS_SOC!E:E,F18))+(SUMIFS(ORCA_CARNET!F:F,ORCA_CARNET!C:C,F18)) -> 0 | L18: 26% | M18: 100,920 | N18: =I18*SUIVI_REGION!$I$4 -> 126,592 | O18: -91,612 | P18: =(SUMIFS(SOURCE_PARTS_SOC_0506!$I:$I,SOURCE_PARTS_SOC_0506!$E:$E,F18)) -> 95,580 | Q18: =(SUMIFS(SOURCE_PARTS_SOC!$I:$I,SOURCE_PARTS_SOC!$E:$E,F18))-P18 -> 0 | S18: =VLOOKUP(F18,Objectifs!G:K,5,FALSE) -> 44,200 | T18: =(SUMIFS(PILCOT_ELAN!$P:$P,PILCOT_ELAN!$H:$H,$D18)) -> 0 | U18: 0% | V18: 44,200 | W18: =S18*SUIVI_REGION!$S$4 -> 31,571 | X18: -31,571 | Z18: =VLOOKUP(F18,Objectifs!G:M,7,FALSE) -> 512,300 | AA18: =(SUMIF(SOURCE_EMP_ASV!D:D,SUIVI_PDV!E18,SOURCE_EMP_ASV!J:J)) -> 29,000 | AB18: 6% | AC18: 483,300 | AD18: =Z18*SUIVI_REGION!$Z$4 -> 415,140 | AE18: -386,140 | AF18: =IF(SUMIF(SOURCE_EMP_ASV!D:D,SUIVI_PDV!E18,SOURCE_EMP_ASV!K:K)=0,"",(SUMIF(SOURCE_EMP_ASV!D:D,SUIVI_PDV!E18,SOURCE_EMP_ASV!L:L))/SUMIF(SOURCE_EMP_ASV!D:D,SUIVI_PDV!E18,SOURCE_EMP_ASV!K:K)) -> 0.50% | AG18: 0 € | AH18: =(SUMIF(EMPRUNT_CTO!H:H,SUIVI_PDV!D18,EMPRUNT_CTO!K:K)) -> 0 | AJ18: 0 | AK18: =(SUMIFS(ALIZE!P:P,ALIZE!H:H,D18))-(SUMIFS(ALIZE_2105!P:P,ALIZE_2105!H:H,D18)) -> 0 | AL18: =(SUMIFS(CORALIUM!P:P,CORALIUM!H:H,D18))-(SUMIFS(CORALIUM_2105!P:P,CORALIUM_2105!H:H,D18)) -> 0 | AM18: =(SUMIFS(PARMA_PEA!$N:$N,PARMA_PEA!$H:$H,$D18)) -> 0
A19: 30 | B19: MARNE ARDENNES | C19: CHARLEVILLE MEZIERES | D19: 106 | E19: 151350000106 | F19: 8806 | G19: =VLOOKUP(F19,Objectifs!G:H,2,FALSE) -> SEDAN | I19: =VLOOKUP(F19,Objectifs!G:L,6,FALSE) -> 341,400 | J19: =(SUMIFS(SOURCE_PARTS_SOC!G:G,SOURCE_PARTS_SOC!E:E,F19))+(SUMIFS(ORCA_CARNET!E:E,ORCA_CARNET!C:C,F19)) -> 140,780 | K19: =(SUMIFS(SOURCE_PARTS_SOC!H:H,SOURCE_PARTS_SOC!E:E,F19))+(SUMIFS(ORCA_CARNET!F:F,ORCA_CARNET!C:C,F19)) -> 76,380 | L19: 41% | M19: 200,620 | N19: =I19*SUIVI_REGION!$I$4 -> 318,016 | O19: -177,236 | P19: =(SUMIFS(SOURCE_PARTS_SOC_0506!$I:$I,SOURCE_PARTS_SOC_0506!$E:$E,F19)) -> 383,080 | Q19: =(SUMIFS(SOURCE_PARTS_SOC!$I:$I,SOURCE_PARTS_SOC!$E:$E,F19))-P19 -> 8,340 | S19: =VLOOKUP(F19,Objectifs!G:K,5,FALSE) -> 111,000 | T19: =(SUMIFS(PILCOT_ELAN!$P:$P,PILCOT_ELAN!$H:$H,$D19)) -> 67,339 | U19: 61% | V19: 43,661 | W19: =S19*SUIVI_REGION!$S$4 -> 79,286 | X19: -11,946 | Z19: =VLOOKUP(F19,Objectifs!G:M,7,FALSE) -> 1,287,200 | AA19: =(SUMIF(SOURCE_EMP_ASV!D:D,SUIVI_PDV!E19,SOURCE_EMP_ASV!J:J)) -> 1,255,912 | AB19: 98% | AC19: 31,288 | AD19: =Z19*SUIVI_REGION!$Z$4 -> 1,043,076 | AE19: 212,836 | AF19: =IF(SUMIF(SOURCE_EMP_ASV!D:D,SUIVI_PDV!E19,SOURCE_EMP_ASV!K:K)=0,"",(SUMIF(SOURCE_EMP_ASV!D:D,SUIVI_PDV!E19,SOURCE_EMP_ASV!L:L))/SUMIF(SOURCE_EMP_ASV!D:D,SUIVI_PDV!E19,SOURCE_EMP_ASV!K:K)) -> 0.48% | AG19: 0 € | AH19: =(SUMIF(EMPRUNT_CTO!H:H,SUIVI_PDV!D19,EMPRUNT_CTO!K:K)) -> 0 | AJ19: 18,133 | AK19: =(SUMIFS(ALIZE!P:P,ALIZE!H:H,D19))-(SUMIFS(ALIZE_2105!P:P,ALIZE_2105!H:H,D19)) -> 10,000 | AL19: =(SUMIFS(CORALIUM!P:P,CORALIUM!H:H,D19))-(SUMIFS(CORALIUM_2105!P:P,CORALIUM_2105!H:H,D19)) -> 0 | AM19: =(SUMIFS(PARMA_PEA!$N:$N,PARMA_PEA!$H:$H,$D19)) -> 8,133
A20: 30 | B20: MARNE ARDENNES | C20: CHARLEVILLE MEZIERES | D20: 115 | E20: 151350000115 | F20: 8815 | G20: =VLOOKUP(F20,Objectifs!G:H,2,FALSE) -> CARIGNAN | I20: =VLOOKUP(F20,Objectifs!G:L,6,FALSE) -> 104,500 | J20: =(SUMIFS(SOURCE_PARTS_SOC!G:G,SOURCE_PARTS_SOC!E:E,F20))+(SUMIFS(ORCA_CARNET!E:E,ORCA_CARNET!C:C,F20)) -> 220 | K20: =(SUMIFS(SOURCE_PARTS_SOC!H:H,SOURCE_PARTS_SOC!E:E,F20))+(SUMIFS(ORCA_CARNET!F:F,ORCA_CARNET!C:C,F20)) -> 0 | L20: 0% | M20: 104,280 | N20: =I20*SUIVI_REGION!$I$4 -> 97,342 | O20: -97,122 | P20: =(SUMIFS(SOURCE_PARTS_SOC_0506!$I:$I,SOURCE_PARTS_SOC_0506!$E:$E,F20)) -> 188,280 | Q20: =(SUMIFS(SOURCE_PARTS_SOC!$I:$I,SOURCE_PARTS_SOC!$E:$E,F20))-P20 -> 88,660 | S20: =VLOOKUP(F20,Objectifs!G:K,5,FALSE) -> 34,000 | T20: =(SUMIFS(PILCOT_ELAN!$P:$P,PILCOT_ELAN!$H:$H,$D20)) -> 0 | U20: 0% | V20: 34,000 | W20: =S20*SUIVI_REGION!$S$4 -> 24,286 | X20: -24,286 | Z20: =VLOOKUP(F20,Objectifs!G:M,7,FALSE) -> 394,000 | AA20: =(SUMIF(SOURCE_EMP_ASV!D:D,SUIVI_PDV!E20,SOURCE_EMP_ASV!J:J)) -> 432,300 | AB20: 110% | AD20: =Z20*SUIVI_REGION!$Z$4 -> 319,276 | AE20: 113,024 | AF20: =IF(SUMIF(SOURCE_EMP_ASV!D:D,SUIVI_PDV!E20,SOURCE_EMP_ASV!K:K)=0,"",(SUMIF(SOURCE_EMP_ASV!D:D,SUIVI_PDV!E20,SOURCE_EMP_ASV!L:L))/SUMIF(SOURCE_EMP_ASV!D:D,SUIVI_PDV!E20,SOURCE_EMP_ASV!K:K)) -> 0.30% | AG20: 0 € | AH20: =(SUMIF(EMPRUNT_CTO!H:H,SUIVI_PDV!D20,EMPRUNT_CTO!K:K)) -> 0 | AJ20: 0 | AK20: =(SUMIFS(ALIZE!P:P,ALIZE!H:H,D20))-(SUMIFS(ALIZE_2105!P:P,ALIZE_2105!H:H,D20)) -> 0 | AL20: =(SUMIFS(CORALIUM!P:P,CORALIUM!H:H,D20))-(SUMIFS(CORALIUM_2105!P:P,CORALIUM_2105!H:H,D20)) -> 0 | AM20: =(SUMIFS(PARMA_PEA!$N:$N,PARMA_PEA!$H:$H,$D20)) -> 0
A21: 30 | B21: MARNE ARDENNES | C21: CHARLEVILLE MEZIERES | D21: 119 | E21: 151350000119 | F21: 8819 | G21: =VLOOKUP(F21,Objectifs!G:H,2,FALSE) -> MOUZON | I21: =VLOOKUP(F21,Objectifs!G:L,6,FALSE) -> 67,900 | J21: =(SUMIFS(SOURCE_PARTS_SOC!G:G,SOURCE_PARTS_SOC!E:E,F21))+(SUMIFS(ORCA_CARNET!E:E,ORCA_CARNET!C:C,F21)) -> 21,460 | K21: =(SUMIFS(SOURCE_PARTS_SOC!H:H,SOURCE_PARTS_SOC!E:E,F21))+(SUMIFS(ORCA_CARNET!F:F,ORCA_CARNET!C:C,F21)) -> 0 | L21: 32% | M21: 46,440 | N21: =I21*SUIVI_REGION!$I$4 -> 63,249 | O21: -41,789 | P21: =(SUMIFS(SOURCE_PARTS_SOC_0506!$I:$I,SOURCE_PARTS_SOC_0506!$E:$E,F21)) -> 85,040 | Q21: =(SUMIFS(SOURCE_PARTS_SOC!$I:$I,SOURCE_PARTS_SOC!$E:$E,F21))-P21 -> 820 | S21: =VLOOKUP(F21,Objectifs!G:K,5,FALSE) -> 22,100 | T21: =(SUMIFS(PILCOT_ELAN!$P:$P,PILCOT_ELAN!$H:$H,$D21)) -> 12,568 | U21: 57% | V21: 9,532 | W21: =S21*SUIVI_REGION!$S$4 -> 15,786 | X21: -3,218 | Z21: =VLOOKUP(F21,Objectifs!G:M,7,FALSE) -> 256,100 | AA21: =(SUMIF(SOURCE_EMP_ASV!D:D,SUIVI_PDV!E21,SOURCE_EMP_ASV!J:J)) -> 96,300 | AB21: 38% | AC21: 159,800 | AD21: =Z21*SUIVI_REGION!$Z$4 -> 207,529 | AE21: -111,229 | AF21: =IF(SUMIF(SOURCE_EMP_ASV!D:D,SUIVI_PDV!E21,SOURCE_EMP_ASV!K:K)=0,"",(SUMIF(SOURCE_EMP_ASV!D:D,SUIVI_PDV!E21,SOURCE_EMP_ASV!L:L))/SUMIF(SOURCE_EMP_ASV!D:D,SUIVI_PDV!E21,SOURCE_EMP_ASV!K:K)) -> 0.72% | AG21: 0 € | AH21: =(SUMIF(EMPRUNT_CTO!H:H,SUIVI_PDV!D21,EMPRUNT_CTO!K:K)) -> 0 | AJ21: 0 | AK21: =(SUMIFS(ALIZE!P:P,ALIZE!H:H,D21))-(SUMIFS(ALIZE_2105!P:P,ALIZE_2105!H:H,D21)) -> 0 | AL21: =(SUMIFS(CORALIUM!P:P,CORALIUM!H:H,D21))-(SUMIFS(CORALIUM_2105!P:P,CORALIUM_2105!H:H,D21)) -> 0 | AM21: =(SUMIFS(PARMA_PEA!$N:$N,PARMA_PEA!$H:$H,$D21)) -> 0
A22: 30 | B22: MARNE ARDENNES | C22: CHARLEVILLE MEZIERES | D22: 101 | E22: 151350000101 | F22: 8801 | G22: =VLOOKUP(F22,Objectifs!G:H,2,FALSE) -> CHARLEVILLE JEAN JAURES | I22: =VLOOKUP(F22,Objectifs!G:L,6,FALSE) -> 418,100 | J22: =(SUMIFS(SOURCE_PARTS_SOC!G:G,SOURCE_PARTS_SOC!E:E,F22))+(SUMIFS(SOURCE_PARTS_SOC!G:G,SOURCE_PARTS_SOC!E:E,8802))+(SUMIFS(ORCA_CARNET!E:E,ORCA_CARNET!C:C,F22))+(SUMIFS(ORCA_CARNET!E:E,ORCA_CARNET!C:C,8802)) -> 115,600 | K22: =(SUMIFS(SOURCE_PARTS_SOC!H:H,SOURCE_PARTS_SOC!E:E,F22))+(SUMIFS(SOURCE_PARTS_SOC!H:H,SOURCE_PARTS_SOC!E:E,8802))+(SUMIFS(ORCA_CARNET!F:F,ORCA_CARNET!C:C,F22))+(SUMIFS(ORCA_CARNET!F:F,ORCA_CARNET!C:C,8802)) -> 0 | L22: 28% | M22: 302,500 | N22: =I22*SUIVI_REGION!$I$4 -> 389,463 | O22: -273,863 | P22: =(SUMIFS(SOURCE_PARTS_SOC_0506!$I:$I,SOURCE_PARTS_SOC_0506!$E:$E,F22))+(SUMIFS(SOURCE_PARTS_SOC_0506!$I:$I,SOURCE_PARTS_SOC_0506!$E:$E,8802)) -> 213,500 | Q22: =(SUMIFS(SOURCE_PARTS_SOC!$I:$I,SOURCE_PARTS_SOC!$E:$E,F22))+(SUMIFS(SOURCE_PARTS_SOC!$I:$I,SOURCE_PARTS_SOC!$E:$E,8802))-P22 -> 1,320 | S22: =VLOOKUP(F22,Objectifs!G:K,5,FALSE)+VLOOKUP(8802,Objectifs!G:K,5,FALSE) -> 136,000 | T22: =(SUMIFS(PILCOT_ELAN!$P:$P,PILCOT_ELAN!$H:$H,$D22))+(SUMIFS(PILCOT_ELAN!$P:$P,PILCOT_ELAN!$H:$H,102)) -> 33,314 | U22: 24% | V22: 102,686 | W22: =S22*SUIVI_REGION!$S$4 -> 97,143 | X22: -63,829 | Z22: =VLOOKUP(F22,Objectifs!G:M,7,FALSE) -> 1,576,500 | AA22: =(SUMIF(SOURCE_EMP_ASV!D:D,SUIVI_PDV!E22,SOURCE_EMP_ASV!J:J))+(SUMIF(SOURCE_EMP_ASV!D:D,151350000102,SOURCE_EMP_ASV!J:J)) -> 736,345 | AB22: 47% | AC22: 840,155 | AD22: =Z22*SUIVI_REGION!$Z$4 -> 1,277,509 | AE22: -541,164 | AF22: =IF(SUMIF(SOURCE_EMP_ASV!D:D,SUIVI_PDV!E22,SOURCE_EMP_ASV!K:K)=0,"",(SUMIF(SOURCE_EMP_ASV!D:D,SUIVI_PDV!E22,SOURCE_EMP_ASV!L:L))/SUMIF(SOURCE_EMP_ASV!D:D,SUIVI_PDV!E22,SOURCE_EMP_ASV!K:K)) -> 0.51% | AG22: 0 € | AH22: =(SUMIF(EMPRUNT_CTO!H:H,SUIVI_PDV!D22,EMPRUNT_CTO!K:K))+(SUMIF(EMPRUNT_CTO!H:H,102,EMPRUNT_CTO!K:K)) -> 0 | AJ22: 14,782 | AK22: =(SUMIFS(ALIZE!P:P,ALIZE!H:H,D22))-(SUMIFS(ALIZE_2105!P:P,ALIZE_2105!H:H,D22)) -> 14,782 | AL22: =(SUMIFS(CORALIUM!P:P,CORALIUM!H:H,D22))-(SUMIFS(CORALIUM_2105!P:P,CORALIUM_2105!H:H,D22)) -> 0 | AM22: =(SUMIFS(PARMA_PEA!$N:$N,PARMA_PEA!$H:$H,$D22))+(SUMIFS(PARMA_PEA!$N:$N,PARMA_PEA!$H:$H,102)) -> 0
A23: 30 | B23: MARNE ARDENNES | C23: CHARLEVILLE MEZIERES | D23: 122 | E23: 151350000122 | F23: 8822 | G23: =VLOOKUP(F23,Objectifs!G:H,2,FALSE) -> CHARLEVILLE MEZIERES | I23: =VLOOKUP(F23,Objectifs!G:L,6,FALSE) -> 202,100 | J23: =(SUMIFS(SOURCE_PARTS_SOC!G:G,SOURCE_PARTS_SOC!E:E,F23))+(SUMIFS(ORCA_CARNET!E:E,ORCA_CARNET!C:C,F23)) -> 6,260 | K23: =(SUMIFS(SOURCE_PARTS_SOC!H:H,SOURCE_PARTS_SOC!E:E,F23))+(SUMIFS(ORCA_CARNET!F:F,ORCA_CARNET!C:C,F23)) -> 600 | L23: 3% | M23: 195,840 | N23: =I23*SUIVI_REGION!$I$4 -> 188,258 | O23: -181,998 | P23: =(SUMIFS(SOURCE_PARTS_SOC_0506!$I:$I,SOURCE_PARTS_SOC_0506!$E:$E,F23)) -> 201,180 | Q23: =(SUMIFS(SOURCE_PARTS_SOC!$I:$I,SOURCE_PARTS_SOC!$E:$E,F23))-P23 -> 300 | S23: =VLOOKUP(F23,Objectifs!G:K,5,FALSE) -> 65,700 | T23: =(SUMIFS(PILCOT_ELAN!$P:$P,PILCOT_ELAN!$H:$H,$D23)) -> 0 | U23: 0% | V23: 65,700 | W23: =S23*SUIVI_REGION!$S$4 -> 46,929 | X23: -46,929 | Z23: =VLOOKUP(F23,Objectifs!G:M,7,FALSE) -> 761,800 | AA23: =(SUMIF(SOURCE_EMP_ASV!D:D,SUIVI_PDV!E23,SOURCE_EMP_ASV!J:J)) -> 413,024 | AB23: 54% | AC23: 348,776 | AD23: =Z23*SUIVI_REGION!$Z$4 -> 617,321 | AE23: -204,297 | AF23: =IF(SUMIF(SOURCE_EMP_ASV!D:D,SUIVI_PDV!E23,SOURCE_EMP_ASV!K:K)=0,"",(SUMIF(SOURCE_EMP_ASV!D:D,SUIVI_PDV!E23,SOURCE_EMP_ASV!L:L))/SUMIF(SOURCE_EMP_ASV!D:D,SUIVI_PDV!E23,SOURCE_EMP_ASV!K:K)) -> 0.33% | AG23: 0 € | AH23: =(SUMIF(EMPRUNT_CTO!H:H,SUIVI_PDV!D23,EMPRUNT_CTO!K:K)) -> 0 | AJ23: 87,516 | AK23: =(SUMIFS(ALIZE!P:P,ALIZE!H:H,D23))-(SUMIFS(ALIZE_2105!P:P,ALIZE_2105!H:H,D23)) -> 61,545 | AL23: =(SUMIFS(CORALIUM!P:P,CORALIUM!H:H,D23))-(SUMIFS(CORALIUM_2105!P:P,CORALIUM_2105!H:H,D23)) -> 19,971 | AM23: =(SUMIFS(PARMA_PEA!$N:$N,PARMA_PEA!$H:$H,$D23)) -> 6,000
A24: 30 | B24: MARNE ARDENNES | C24: CHARLEVILLE MEZIERES | D24: 133 | E24: 151350000133 | F24: 8833 | G24: =VLOOKUP(F24,Objectifs!G:H,2,FALSE) -> VILLERS SEMEUSE CORA | I24: =VLOOKUP(F24,Objectifs!G:L,6,FALSE) -> 132,400 | J24: =(SUMIFS(SOURCE_PARTS_SOC!G:G,SOURCE_PARTS_SOC!E:E,F24))+(SUMIFS(ORCA_CARNET!E:E,ORCA_CARNET!C:C,F24)) -> 22,720 | K24: =(SUMIFS(SOURCE_PARTS_SOC!H:H,SOURCE_PARTS_SOC!E:E,F24))+(SUMIFS(ORCA_CARNET!F:F,ORCA_CARNET!C:C,F24)) -> 0 | L24: 17% | M24: 109,680 | N24: =I24*SUIVI_REGION!$I$4 -> 123,332 | O24: -100,612 | P24: =(SUMIFS(SOURCE_PARTS_SOC_0506!$I:$I,SOURCE_PARTS_SOC_0506!$E:$E,F24)) -> 206,220 | Q24: =(SUMIFS(SOURCE_PARTS_SOC!$I:$I,SOURCE_PARTS_SOC!$E:$E,F24))-P24 -> 80 | S24: =VLOOKUP(F24,Objectifs!G:K,5,FALSE) -> 43,000 | T24: =(SUMIFS(PILCOT_ELAN!$P:$P,PILCOT_ELAN!$H:$H,$D24)) -> 2,932 | U24: 7% | V24: 40,068 | W24: =S24*SUIVI_REGION!$S$4 -> 30,714 | X24: -27,782 | Z24: =VLOOKUP(F24,Objectifs!G:M,7,FALSE) -> 499,100 | AA24: =(SUMIF(SOURCE_EMP_ASV!D:D,SUIVI_PDV!E24,SOURCE_EMP_ASV!J:J)) -> 447,688 | AB24: 90% | AC24: 51,412 | AD24: =Z24*SUIVI_REGION!$Z$4 -> 404,443 | AE24: 43,245 | AF24: =IF(SUMIF(SOURCE_EMP_ASV!D:D,SUIVI_PDV!E24,SOURCE_EMP_ASV!K:K)=0,"",(SUMIF(SOURCE_EMP_ASV!D:D,SUIVI_PDV!E24,SOURCE_EMP_ASV!L:L))/SUMIF(SOURCE_EMP_ASV!D:D,SUIVI_PDV!E24,SOURCE_EMP_ASV!K:K)) -> 0.39% | AG24: 0 € | AH24: =(SUMIF(EMPRUNT_CTO!H:H,SUIVI_PDV!D24,EMPRUNT_CTO!K:K)) -> 0 | AJ24: 7,463 | AK24: =(SUMIFS(ALIZE!P:P,ALIZE!H:H,D24))-(SUMIFS(ALIZE_2105!P:P,ALIZE_2105!H:H,D24)) -> 7,463 | AL24: =(SUMIFS(CORALIUM!P:P,CORALIUM!H:H,D24))-(SUMIFS(CORALIUM_2105!P:P,CORALIUM_2105!H:H,D24)) -> 0 | AM24: =(SUMIFS(PARMA_PEA!$N:$N,PARMA_PEA!$H:$H,$D24)) -> 0
A25: 30 | C25: Total Territoire CHARLEVILLE MEZIERES | G25: CHARLEVILLE MEZIERES | I25: =SUBTOTAL(9,I14:I24) -> 1,879,500 | J25: =SUBTOTAL(9,J14:J24) -> 451,760 | K25: =SUBTOTAL(9,K14:K24) -> 89,080 | L25: 24% | M25: 1,427,740 | N25: =I25*SUIVI_REGION!$I$4 -> 1,750,767 | O25: -1,299,007 | P25: =SUBTOTAL(9,P14:P24) -> 1,872,240 | Q25: =SUBTOTAL(9,Q14:Q24) -> 110,580 | S25: =SUBTOTAL(9,S14:S24) -> 611,100 | T25: =SUBTOTAL(9,T14:T24) -> 219,254 | U25: 36% | V25: =IF(T25>S25," ",S25-T25) -> 391,846 | W25: =S25*SUIVI_REGION!$S$4 -> 436,500 | X25: -217,246 | Z25: =SUBTOTAL(9,Z14:Z24) -> 7,086,400 | AA25: =SUBTOTAL(9,AA14:AA24) -> 4,772,184 | AB25: 67% | AC25: 2,314,216 | AD25: =Z25*SUIVI_REGION!$Z$4 -> 5,742,428 | AE25: -970,244 | AF25: =IF(SUMIF(SOURCE_EMP_ASV!B:B,G25,SOURCE_EMP_ASV!K:K)=0,"",(SUMIF(SOURCE_EMP_ASV!B:B,G25,SOURCE_EMP_ASV!L:L))/(SUMIF(SOURCE_EMP_ASV!B:B,G25,SOURCE_EMP_ASV!K:K))) -> 0.44% | AG25: 12,200 € | AH25: =SUBTOTAL(9,AH14:AH24) -> 122 | AJ25: 165,660 | AK25: =SUBTOTAL(9,AK14:AK24) -> 129,032 | AL25: =SUBTOTAL(9,AL14:AL24) -> 22,495 | AM25: =SUBTOTAL(9,AM14:AM24) -> 14,133
A26: 30 | B26: MARNE ARDENNES | C26: REIMS | D26: 361 | E26: 151350000361 | F26: 51361 | G26: =VLOOKUP(F26,Objectifs!G:H,2,FALSE) -> PIERRY LECLERC | I26: =VLOOKUP(F26,Objectifs!G:L,6,FALSE) -> 71,000 | J26: =(SUMIFS(SOURCE_PARTS_SOC!G:G,SOURCE_PARTS_SOC!E:E,F26))+(SUMIFS(ORCA_CARNET!E:E,ORCA_CARNET!C:C,F26)) -> 42,100 | K26: =(SUMIFS(SOURCE_PARTS_SOC!H:H,SOURCE_PARTS_SOC!E:E,F26))+(SUMIFS(ORCA_CARNET!F:F,ORCA_CARNET!C:C,F26)) -> 5,460 | L26: 59% | M26: 28,900 | N26: =I26*SUIVI_REGION!$I$4 -> 66,137 | O26: -24,037 | P26: =(SUMIFS(SOURCE_PARTS_SOC_0506!$I:$I,SOURCE_PARTS_SOC_0506!$E:$E,F26)) -> 47,780 | Q26: =(SUMIFS(SOURCE_PARTS_SOC!$I:$I,SOURCE_PARTS_SOC!$E:$E,F26))-P26 -> 4,140 | S26: =VLOOKUP(F26,Objectifs!G:K,5,FALSE) -> 23,100 | T26: =(SUMIFS(PILCOT_ELAN!$P:$P,PILCOT_ELAN!$H:$H,$D26)) -> 0 | U26: 0% | V26: =IF(T26>S26," ",S26-T26) -> 23,100 | W26: =S26*SUIVI_REGION!$S$4 -> 16,500 | X26: -16,500 | Z26: =VLOOKUP(F26,Objectifs!G:M,7,FALSE) -> 267,600 | AA26: =(SUMIF(SOURCE_EMP_ASV!D:D,SUIVI_PDV!E26,SOURCE_EMP_ASV!J:J)) -> 188,351 | AB26: 70% | AC26: 79,249 | AD26: =Z26*SUIVI_REGION!$Z$4 -> 216,848 | AE26: -28,497 | AF26: =IF(SUMIF(SOURCE_EMP_ASV!D:D,SUIVI_PDV!E26,SOURCE_EMP_ASV!K:K)=0,"",(SUMIF(SOURCE_EMP_ASV!D:D,SUIVI_PDV!E26,SOURCE_EMP_ASV!L:L))/SUMIF(SOURCE_EMP_ASV!D:D,SUIVI_PDV!E26,SOURCE_EMP_ASV!K:K)) -> 0.31% | AG26: 0 € | AH26: =(SUMIF(EMPRUNT_CTO!H:H,SUIVI_PDV!D26,EMPRUNT_CTO!K:K)) -> 0 | AJ26: 0 | AK26: =(SUMIFS(ALIZE!P:P,ALIZE!H:H,D26))-(SUMIFS(ALIZE_2105!P:P,ALIZE_2105!H:H,D26)) -> 0 | AL26: =(SUMIFS(CORALIUM!P:P,CORALIUM!H:H,D26))-(SUMIFS(CORALIUM_2105!P:P,CORALIUM_2105!H:H,D26)) -> 0 | AM26: =(SUMIFS(PARMA_PEA!$N:$N,PARMA_PEA!$H:$H,$D26)) -> 0
A27: 30 | B27: MARNE ARDENNES | C27: REIMS | D27: 365 | E27: 151350000365 | F27: 51365 | G27: =VLOOKUP(F27,Objectifs!G:H,2,FALSE) -> DORMANS | I27: =VLOOKUP(F27,Objectifs!G:L,6,FALSE) -> 97,600 | J27: =(SUMIFS(SOURCE_PARTS_SOC!G:G,SOURCE_PARTS_SOC!E:E,F27))+(SUMIFS(ORCA_CARNET!E:E,ORCA_CARNET!C:C,F27)) -> 28,260 | K27: =(SUMIFS(SOURCE_PARTS_SOC!H:H,SOURCE_PARTS_SOC!E:E,F27))+(SUMIFS(ORCA_CARNET!F:F,ORCA_CARNET!C:C,F27)) -> 0 | L27: 29% | M27: 69,340 | N27: =I27*SUIVI_REGION!$I$4 -> 90,915 | O27: -62,655 | P27: =(SUMIFS(SOURCE_PARTS_SOC_0506!$I:$I,SOURCE_PARTS_SOC_0506!$E:$E,F27)) -> 49,140 | Q27: =(SUMIFS(SOURCE_PARTS_SOC!$I:$I,SOURCE_PARTS_SOC!$E:$E,F27))-P27 -> 11,060 | S27: =VLOOKUP(F27,Objectifs!G:K,5,FALSE) -> 31,700 | T27: =(SUMIFS(PILCOT_ELAN!$P:$P,PILCOT_ELAN!$H:$H,$D27)) -> 0 | U27: 0% | V27: 31,700 | W27: =S27*SUIVI_REGION!$S$4 -> 22,643 | X27: -22,643 | Z27: =VLOOKUP(F27,Objectifs!G:M,7,FALSE) -> 367,800 | AA27: =(SUMIF(SOURCE_EMP_ASV!D:D,SUIVI_PDV!E27,SOURCE_EMP_ASV!J:J)) -> 199,766 | AB27: 54% | AC27: 168,034 | AD27: =Z27*SUIVI_REGION!$Z$4 -> 298,045 | AE27: -98,279 | AF27: =IF(SUMIF(SOURCE_EMP_ASV!D:D,SUIVI_PDV!E27,SOURCE_EMP_ASV!K:K)=0,"",(SUMIF(SOURCE_EMP_ASV!D:D,SUIVI_PDV!E27,SOURCE_EMP_ASV!L:L))/SUMIF(SOURCE_EMP_ASV!D:D,SUIVI_PDV!E27,SOURCE_EMP_ASV!K:K)) -> 0.42% | AG27: 0 € | AH27: =(SUMIF(EMPRUNT_CTO!H:H,SUIVI_PDV!D27,EMPRUNT_CTO!K:K)) -> 0 | AJ27: 0 | AK27: =(SUMIFS(ALIZE!P:P,ALIZE!H:H,D27))-(SUMIFS(ALIZE_2105!P:P,ALIZE_2105!H:H,D27)) -> 0 | AL27: =(SUMIFS(CORALIUM!P:P,CORALIUM!H:H,D27))-(SUMIFS(CORALIUM_2105!P:P,CORALIUM_2105!H:H,D27)) -> 0 | AM27: =(SUMIFS(PARMA_PEA!$N:$N,PARMA_PEA!$H:$H,$D27)) -> 0
A28: 30 | B28: MARNE ARDENNES | C28: REIMS | D28: 367 | E28: 151350000367 | F28: 51367 | G28: =VLOOKUP(F28,Objectifs!G:H,2,FALSE) -> AY CHAMPAGNE | I28: =VLOOKUP(F28,Objectifs!G:L,6,FALSE) -> 115,300 | J28: =(SUMIFS(SOURCE_PARTS_SOC!G:G,SOURCE_PARTS_SOC!E:E,F28))+(SUMIFS(ORCA_CARNET!E:E,ORCA_CARNET!C:C,F28)) -> 4,720 | K28: =(SUMIFS(SOURCE_PARTS_SOC!H:H,SOURCE_PARTS_SOC!E:E,F28))+(SUMIFS(ORCA_CARNET!F:F,ORCA_CARNET!C:C,F28)) -> 0 | L28: 4% | M28: 110,580 | N28: =I28*SUIVI_REGION!$I$4 -> 107,403 | O28: -102,683 | P28: =(SUMIFS(SOURCE_PARTS_SOC_0506!$I:$I,SOURCE_PARTS_SOC_0506!$E:$E,F28)) -> 2,175,380 | Q28: =(SUMIFS(SOURCE_PARTS_SOC!$I:$I,SOURCE_PARTS_SOC!$E:$E,F28))-P28 -> 18,260 | S28: =VLOOKUP(F28,Objectifs!G:K,5,FALSE) -> 37,500 | T28: =(SUMIFS(PILCOT_ELAN!$P:$P,PILCOT_ELAN!$H:$H,$D28)) -> 956 | U28: 3% | V28: 36,544 | W28: =S28*SUIVI_REGION!$S$4 -> 26,786 | X28: -25,829 | Z28: =VLOOKUP(F28,Objectifs!G:M,7,FALSE) -> 434,700 | AA28: =(SUMIF(SOURCE_EMP_ASV!D:D,SUIVI_PDV!E28,SOURCE_EMP_ASV!J:J)) -> 243,958 | AB28: 56% | AC28: 190,742 | AD28: =Z28*SUIVI_REGION!$Z$4 -> 352,257 | AE28: -108,299 | AF28: =IF(SUMIF(SOURCE_EMP_ASV!D:D,SUIVI_PDV!E28,SOURCE_EMP_ASV!K:K)=0,"",(SUMIF(SOURCE_EMP_ASV!D:D,SUIVI_PDV!E28,SOURCE_EMP_ASV!L:L))/SUMIF(SOURCE_EMP_ASV!D:D,SUIVI_PDV!E28,SOURCE_EMP_ASV!K:K)) -> 0.39% | AG28: 0 € | AH28: =(SUMIF(EMPRUNT_CTO!H:H,SUIVI_PDV!D28,EMPRUNT_CTO!K:K)) -> 0 | AJ28: 0 | AK28: =(SUMIFS(ALIZE!P:P,ALIZE!H:H,D28))-(SUMIFS(ALIZE_2105!P:P,ALIZE_2105!H:H,D28)) -> 0 | AL28: =(SUMIFS(CORALIUM!P:P,CORALIUM!H:H,D28))-(SUMIFS(CORALIUM_2105!P:P,CORALIUM_2105!H:H,D28)) -> 0 | AM28: =(SUMIFS(PARMA_PEA!$N:$N,PARMA_PEA!$H:$H,$D28)) -> 0
A29: 30 | B29: MARNE ARDENNES | C29: REIMS | D29: 369 | E29: 151350000369 | F29: 51369 | G29: =VLOOKUP(F29,Objectifs!G:H,2,FALSE) -> DAMERY | I29: =VLOOKUP(F29,Objectifs!G:L,6,FALSE) -> 63,100 | J29: =(SUMIFS(SOURCE_PARTS_SOC!G:G,SOURCE_PARTS_SOC!E:E,F29))+(SUMIFS(ORCA_CARNET!E:E,ORCA_CARNET!C:C,F29)) -> 91,060 | K29: =(SUMIFS(SOURCE_PARTS_SOC!H:H,SOURCE_PARTS_SOC!E:E,F29))+(SUMIFS(ORCA_CARNET!F:F,ORCA_CARNET!C:C,F29)) -> 50,000 | L29: 144% | N29: =I29*SUIVI_REGION!$I$4 -> 58,778 | O29: 32,282 | P29: =(SUMIFS(SOURCE_PARTS_SOC_0506!$I:$I,SOURCE_PARTS_SOC_0506!$E:$E,F29)) -> 52,900 | Q29: =(SUMIFS(SOURCE_PARTS_SOC!$I:$I,SOURCE_PARTS_SOC!$E:$E,F29))-P29 -> 0 | S29: =VLOOKUP(F29,Objectifs!G:K,5,FALSE) -> 20,500 | T29: =(SUMIFS(PILCOT_ELAN!$P:$P,PILCOT_ELAN!$H:$H,$D29)) -> 0 | U29: 0% | V29: 20,500 | W29: =S29*SUIVI_REGION!$S$4 -> 14,643 | X29: -14,643 | Z29: =VLOOKUP(F29,Objectifs!G:M,7,FALSE) -> 237,700 | AA29: =(SUMIF(SOURCE_EMP_ASV!D:D,SUIVI_PDV!E29,SOURCE_EMP_ASV!J:J)) -> 192,146 | AB29: 81% | AC29: 45,554 | AD29: =Z29*SUIVI_REGION!$Z$4 -> 192,619 | AE29: -473 | AF29: =IF(SUMIF(SOURCE_EMP_ASV!D:D,SUIVI_PDV!E29,SOURCE_EMP_ASV!K:K)=0,"",(SUMIF(SOURCE_EMP_ASV!D:D,SUIVI_PDV!E29,SOURCE_EMP_ASV!L:L))/SUMIF(SOURCE_EMP_ASV!D:D,SUIVI_PDV!E29,SOURCE_EMP_ASV!K:K)) -> 0.49% | AG29: 0 € | AH29: =(SUMIF(EMPRUNT_CTO!H:H,SUIVI_PDV!D29,EMPRUNT_CTO!K:K)) -> 0 | AJ29: 0 | AK29: =(SUMIFS(ALIZE!P:P,ALIZE!H:H,D29))-(SUMIFS(ALIZE_2105!P:P,ALIZE_2105!H:H,D29)) -> 0 | AL29: =(SUMIFS(CORALIUM!P:P,CORALIUM!H:H,D29))-(SUMIFS(CORALIUM_2105!P:P,CORALIUM_2105!H:H,D29)) -> 0 | AM29: =(SUMIFS(PARMA_PEA!$N:$N,PARMA_PEA!$H:$H,$D29)) -> 0
A30: 30 | B30: MARNE ARDENNES | C30: REIMS | D30: 370 | E30: 151350000370 | F30: 51370 | G30: =VLOOKUP(F30,Objectifs!G:H,2,FALSE) -> EPERNAY | I30: =VLOOKUP(F30,Objectifs!G:L,6,FALSE) -> 451,600 | J30: =(SUMIFS(SOURCE_PARTS_SOC!G:G,SOURCE_PARTS_SOC!E:E,F30))+(SUMIFS(SOURCE_PARTS_SOC!G:G,SOURCE_PARTS_SOC!E:E,51318))+(SUMIFS(ORCA_CARNET!E:E,ORCA_CARNET!C:C,F30))+(SUMIFS(ORCA_CARNET!E:E,ORCA_CARNET!C:C,51318)) -> 231,000 | K30: =(SUMIFS(SOURCE_PARTS_SOC!H:H,SOURCE_PARTS_SOC!E:E,F30))+(SUMIFS(SOURCE_PARTS_SOC!H:H,SOURCE_PARTS_SOC!E:E,51318))+(SUMIFS(ORCA_CARNET!F:F,ORCA_CARNET!C:C,F30))+(SUMIFS(ORCA_CARNET!F:F,ORCA_CARNET!C:C,51318)) -> 5,040 | L30: 51% | M30: 220,600 | N30: =I30*SUIVI_REGION!$I$4 -> 420,668 | O30: -189,668 | P30: =(SUMIFS(SOURCE_PARTS_SOC_0506!$I:$I,SOURCE_PARTS_SOC_0506!$E:$E,F30))+(SUMIFS(SOURCE_PARTS_SOC_0506!$I:$I,SOURCE_PARTS_SOC_0506!$E:$E,51318)) -> 296,160 | Q30: =(SUMIFS(SOURCE_PARTS_SOC!$I:$I,SOURCE_PARTS_SOC!$E:$E,F30))+(SUMIFS(SOURCE_PARTS_SOC!$I:$I,SOURCE_PARTS_SOC!$E:$E,51318))-P30 -> 4,980 | S30: =VLOOKUP(F30,Objectifs!G:K,5,FALSE)+VLOOKUP(51318,Objectifs!G:K,5,FALSE) -> 147,000 | T30: =(SUMIFS(PILCOT_ELAN!$P:$P,PILCOT_ELAN!$H:$H,$D30))+(SUMIFS(PILCOT_ELAN!$P:$P,PILCOT_ELAN!$H:$H,318)) -> 119,579 | U30: 81% | V30: 27,421 | W30: =S30*SUIVI_REGION!$S$4 -> 105,000 | X30: 14,579 | Z30: =VLOOKUP(F30,Objectifs!G:M,7,FALSE) -> 1,702,500 | AA30: =(SUMIF(SOURCE_EMP_ASV!D:D,SUIVI_PDV!E30,SOURCE_EMP_ASV!J:J))+(SUMIF(SOURCE_EMP_ASV!D:D,151350000318,SOURCE_EMP_ASV!J:J)) -> 1,863,666 | AB30: 109% | AD30: =Z30*SUIVI_REGION!$Z$4 -> 1,379,612 | AE30: 484,054 | AF30: =IF(SUMIF(SOURCE_EMP_ASV!D:D,SUIVI_PDV!E30,SOURCE_EMP_ASV!K:K)=0,"",(SUMIF(SOURCE_EMP_ASV!D:D,SUIVI_PDV!E30,SOURCE_EMP_ASV!L:L))/SUMIF(SOURCE_EMP_ASV!D:D,SUIVI_PDV!E30,SOURCE_EMP_ASV!K:K)) -> 0.32% | AG30: 0 € | AH30: =(SUMIF(EMPRUNT_CTO!H:H,SUIVI_PDV!D30,EMPRUNT_CTO!K:K))+(SUMIF(EMPRUNT_CTO!H:H,318,EMPRUNT_CTO!K:K)) -> 0 | AJ30: 187,615 | AK30: =(SUMIFS(ALIZE!P:P,ALIZE!H:H,D30))-(SUMIFS(ALIZE_2105!P:P,ALIZE_2105!H:H,D30)) -> 110,249 | AL30: =(SUMIFS(CORALIUM!P:P,CORALIUM!H:H,D30))-(SUMIFS(CORALIUM_2105!P:P,CORALIUM_2105!H:H,D30)) -> 77,366 | AM30: =(SUMIFS(PARMA_PEA!$N:$N,PARMA_PEA!$H:$H,$D30))+(SUMIFS(PARMA_PEA!$N:$N,PARMA_PEA!$H:$H,318)) -> 0
A31: 30 | B31: MARNE ARDENNES | C31: REIMS | D31: 310 | E31: 151350000310 | F31: 51310 | G31: =VLOOKUP(F31,Objectifs!G:H,2,FALSE) -> REIMS CHATILLONS | I31: =VLOOKUP(F31,Objectifs!G:L,6,FALSE) -> 167,200 | J31: =(SUMIFS(SOURCE_PARTS_SOC!G:G,SOURCE_PARTS_SOC!E:E,F31))+(SUMIFS(ORCA_CARNET!E:E,ORCA_CARNET!C:C,F31)) -> 56,640 | K31: =(SUMIFS(SOURCE_PARTS_SOC!H:H,SOURCE_PARTS_SOC!E:E,F31))+(SUMIFS(ORCA_CARNET!F:F,ORCA_CARNET!C:C,F31)) -> 240 | L31: 34% | M31: 110,560 | N31: =I31*SUIVI_REGION!$I$4 -> 155,748 | O31: -99,108 | P31: =(SUMIFS(SOURCE_PARTS_SOC_0506!$I:$I,SOURCE_PARTS_SOC_0506!$E:$E,F31)) -> 84,800 | Q31: =(SUMIFS(SOURCE_PARTS_SOC!$I:$I,SOURCE_PARTS_SOC!$E:$E,F31))-P31 -> 20 | S31: =VLOOKUP(F31,Objectifs!G:K,5,FALSE) -> 54,300 | T31: =(SUMIFS(PILCOT_ELAN!$P:$P,PILCOT_ELAN!$H:$H,$D31)) -> 0 | U31: 0% | V31: 54,300 | W31: =S31*SUIVI_REGION!$S$4 -> 38,786 | X31: -38,786 | Z31: =VLOOKUP(F31,Objectifs!G:M,7,FALSE) -> 630,500 | AA31: =(SUMIF(SOURCE_EMP_ASV!D:D,SUIVI_PDV!E31,SOURCE_EMP_ASV!J:J)) -> 246,053 | AB31: 39% | AC31: 384,447 | AD31: =Z31*SUIVI_REGION!$Z$4 -> 510,922 | AE31: -264,869 | AF31: =IF(SUMIF(SOURCE_EMP_ASV!D:D,SUIVI_PDV!E31,SOURCE_EMP_ASV!K:K)=0,"",(SUMIF(SOURCE_EMP_ASV!D:D,SUIVI_PDV!E31,SOURCE_EMP_ASV!L:L))/SUMIF(SOURCE_EMP_ASV!D:D,SUIVI_PDV!E31,SOURCE_EMP_ASV!K:K)) -> 0.85% | AG31: 0 € | AH31: =(SUMIF(EMPRUNT_CTO!H:H,SUIVI_PDV!D31,EMPRUNT_CTO!K:K)) -> 0 | AJ31: 0 | AK31: =(SUMIFS(ALIZE!P:P,ALIZE!H:H,D31))-(SUMIFS(ALIZE_2105!P:P,ALIZE_2105!H:H,D31)) -> 0 | AL31: =(SUMIFS(CORALIUM!P:P,CORALIUM!H:H,D31))-(SUMIFS(CORALIUM_2105!P:P,CORALIUM_2105!H:H,D31)) -> 0 | AM31: =(SUMIFS(PARMA_PEA!$N:$N,PARMA_PEA!$H:$H,$D31)) -> 0
A32: 30 | B32: MARNE ARDENNES | C32: REIMS | D32: 349 | E32: 151350000349 | F32: 51349 | G32: =VLOOKUP(F32,Objectifs!G:H,2,FALSE) -> REIMS SAINT REMI | I32: =VLOOKUP(F32,Objectifs!G:L,6,FALSE) -> 104,500 | J32: =(SUMIFS(SOURCE_PARTS_SOC!G:G,SOURCE_PARTS_SOC!E:E,F32))+(SUMIFS(ORCA_CARNET!E:E,ORCA_CARNET!C:C,F32)) -> 46,800 | K32: =(SUMIFS(SOURCE_PARTS_SOC!H:H,SOURCE_PARTS_SOC!E:E,F32))+(SUMIFS(ORCA_CARNET!F:F,ORCA_CARNET!C:C,F32)) -> 0 | L32: 45% | M32: 57,700 | N32: =I32*SUIVI_REGION!$I$4 -> 97,342 | O32: -50,542 | P32: =(SUMIFS(SOURCE_PARTS_SOC_0506!$I:$I,SOURCE_PARTS_SOC_0506!$E:$E,F32)) -> 255,240 | Q32: =(SUMIFS(SOURCE_PARTS_SOC!$I:$I,SOURCE_PARTS_SOC!$E:$E,F32))-P32 -> 20 | S32: =VLOOKUP(F32,Objectifs!G:K,5,FALSE) -> 34,000 | T32: =(SUMIFS(PILCOT_ELAN!$P:$P,PILCOT_ELAN!$H:$H,$D32)) -> 0 | U32: 0% | V32: 34,000 | W32: =S32*SUIVI_REGION!$S$4 -> 24,286 | X32: -24,286 | Z32: =VLOOKUP(F32,Objectifs!G:M,7,FALSE) -> 394,000 | AA32: =(SUMIF(SOURCE_EMP_ASV!D:D,SUIVI_PDV!E32,SOURCE_EMP_ASV!J:J)) -> 236,892 | AB32: 60% | AC32: 157,108 | AD32: =Z32*SUIVI_REGION!$Z$4 -> 319,276 | AE32: -82,384 | AF32: =IF(SUMIF(SOURCE_EMP_ASV!D:D,SUIVI_PDV!E32,SOURCE_EMP_ASV!K:K)=0,"",(SUMIF(SOURCE_EMP_ASV!D:D,SUIVI_PDV!E32,SOURCE_EMP_ASV!L:L))/SUMIF(SOURCE_EMP_ASV!D:D,SUIVI_PDV!E32,SOURCE_EMP_ASV!K:K)) -> 0.25% | AG32: 0 € | AH32: =(SUMIF(EMPRUNT_CTO!H:H,SUIVI_PDV!D32,EMPRUNT_CTO!K:K)) -> 0 | AJ32: 0 | AK32: =(SUMIFS(ALIZE!P:P,ALIZE!H:H,D32))-(SUMIFS(ALIZE_2105!P:P,ALIZE_2105!H:H,D32)) -> 0 | AL32: =(SUMIFS(CORALIUM!P:P,CORALIUM!H:H,D32))-(SUMIFS(CORALIUM_2105!P:P,CORALIUM_2105!H:H,D32)) -> 0 | AM32: =(SUMIFS(PARMA_PEA!$N:$N,PARMA_PEA!$H:$H,$D32)) -> 0
A33: 30 | B33: MARNE ARDENNES | C33: REIMS | D33: 350 | E33: 151350000350 | F33: 51350 | G33: =VLOOKUP(F33,Objectifs!G:H,2,FALSE) -> REIMS CENTRE VILLE | I33: =VLOOKUP(F33,Objectifs!G:L,6,FALSE) -> 282,000 | J33: =(SUMIFS(SOURCE_PARTS_SOC!G:G,SOURCE_PARTS_SOC!E:E,F33))+(SUMIFS(ORCA_CARNET!E:E,ORCA_CARNET!C:C,F33)) -> 51,460 | K33: =(SUMIFS(SOURCE_PARTS_SOC!H:H,SOURCE_PARTS_SOC!E:E,F33))+(SUMIFS(ORCA_CARNET!F:F,ORCA_CARNET!C:C,F33)) -> 100 | L33: 18% | M33: 230,540 | N33: =I33*SUIVI_REGION!$I$4 -> 262,685 | O33: -211,225 | P33: =(SUMIFS(SOURCE_PARTS_SOC_0506!$I:$I,SOURCE_PARTS_SOC_0506!$E:$E,F33)) -> 128,480 | Q33: =(SUMIFS(SOURCE_PARTS_SOC!$I:$I,SOURCE_PARTS_SOC!$E:$E,F33))-P33 -> 2,280 | S33: =VLOOKUP(F33,Objectifs!G:K,5,FALSE) -> 91,700 | T33: =(SUMIFS(PILCOT_ELAN!$P:$P,PILCOT_ELAN!$H:$H,$D33)) -> 0 | U33: 0% | V33: 91,700 | W33: =S33*SUIVI_REGION!$S$4 -> 65,500 | X33: -65,500 | Z33: =VLOOKUP(F33,Objectifs!G:M,7,FALSE) -> 1,063,200 | AA33: =(SUMIF(SOURCE_EMP_ASV!D:D,SUIVI_PDV!E33,SOURCE_EMP_ASV!J:J)) -> 360,506 | AB33: 34% | AC33: 702,694 | AD33: =Z33*SUIVI_REGION!$Z$4 -> 861,559 | AE33: -501,053 | AF33: =IF(SUMIF(SOURCE_EMP_ASV!D:D,SUIVI_PDV!E33,SOURCE_EMP_ASV!K:K)=0,"",(SUMIF(SOURCE_EMP_ASV!D:D,SUIVI_PDV!E33,SOURCE_EMP_ASV!L:L))/SUMIF(SOURCE_EMP_ASV!D:D,SUIVI_PDV!E33,SOURCE_EMP_ASV!K:K)) -> 0.48% | AG33: 0 € | AH33: =(SUMIF(EMPRUNT_CTO!H:H,SUIVI_PDV!D33,EMPRUNT_CTO!K:K)) -> 0 | AJ33: 139,340 | AK33: =(SUMIFS(ALIZE!P:P,ALIZE!H:H,D33))-(SUMIFS(ALIZE_2105!P:P,ALIZE_2105!H:H,D33)) -> 139,340 | AL33: =(SUMIFS(CORALIUM!P:P,CORALIUM!H:H,D33))-(SUMIFS(CORALIUM_2105!P:P,CORALIUM_2105!H:H,D33)) -> 0 | AM33: =(SUMIFS(PARMA_PEA!$N:$N,PARMA_PEA!$H:$H,$D33)) -> 0
A34: 30 | B34: MARNE ARDENNES | C34: REIMS | D34: 301 | E34: 151350000301 | F34: 51301 | G34: =VLOOKUP(F34,Objectifs!G:H,2,FALSE) -> REIMS HOTEL DE VILLE | I34: =VLOOKUP(F34,Objectifs!G:L,6,FALSE) -> 362,200 | J34: =(SUMIFS(SOURCE_PARTS_SOC!G:G,SOURCE_PARTS_SOC!E:E,F34))+(SUMIFS(ORCA_CARNET!E:E,ORCA_CARNET!C:C,F34)) -> 166,800 | K34: =(SUMIFS(SOURCE_PARTS_SOC!H:H,SOURCE_PARTS_SOC!E:E,F34))+(SUMIFS(ORCA_CARNET!F:F,ORCA_CARNET!C:C,F34)) -> 50,800 | L34: 46% | M34: 195,400 | N34: =I34*SUIVI_REGION!$I$4 -> 337,392 | O34: -170,592 | P34: =(SUMIFS(SOURCE_PARTS_SOC_0506!$I:$I,SOURCE_PARTS_SOC_0506!$E:$E,F34)) -> 464,340 | Q34: =(SUMIFS(SOURCE_PARTS_SOC!$I:$I,SOURCE_PARTS_SOC!$E:$E,F34))-P34 -> 2,240 | S34: =VLOOKUP(F34,Objectifs!G:K,5,FALSE) -> 117,700 | T34: =(SUMIFS(PILCOT_ELAN!$P:$P,PILCOT_ELAN!$H:$H,$D34)) -> 0 | U34: 0% | V34: 117,700 | W34: =S34*SUIVI_REGION!$S$4 -> 84,071 | X34: -84,071 | Z34: =VLOOKUP(F34,Objectifs!G:M,7,FALSE) -> 1,365,600 | AA34: =(SUMIF(SOURCE_EMP_ASV!D:D,SUIVI_PDV!E34,SOURCE_EMP_ASV!J:J)) -> 511,824 | AB34: 37% | AC34: 853,776 | AD34: =Z34*SUIVI_REGION!$Z$4 -> 1,106,607 | AE34: -594,783 | AF34: =IF(SUMIF(SOURCE_EMP_ASV!D:D,SUIVI_PDV!E34,SOURCE_EMP_ASV!K:K)=0,"",(SUMIF(SOURCE_EMP_ASV!D:D,SUIVI_PDV!E34,SOURCE_EMP_ASV!L:L))/SUMIF(SOURCE_EMP_ASV!D:D,SUIVI_PDV!E34,SOURCE_EMP_ASV!K:K)) -> 0.37% | AG34: 15,000 € | AH34: =(SUMIF(EMPRUNT_CTO!H:H,SUIVI_PDV!D34,EMPRUNT_CTO!K:K)) -> 150 | AJ34: 19,970 | AK34: =(SUMIFS(ALIZE!P:P,ALIZE!H:H,D34))-(SUMIFS(ALIZE_2105!P:P,ALIZE_2105!H:H,D34)) -> 19,970 | AL34: =(SUMIFS(CORALIUM!P:P,CORALIUM!H:H,D34))-(SUMIFS(CORALIUM_2105!P:P,CORALIUM_2105!H:H,D34)) -> 0 | AM34: =(SUMIFS(PARMA_PEA!$N:$N,PARMA_PEA!$H:$H,$D34)) -> 0
A35: 30 | B35: MARNE ARDENNES | C35: REIMS | D35: 341 | E35: 151350000341 | F35: 51341 | G35: =VLOOKUP(F35,Objectifs!G:H,2,FALSE) -> REIMS JEAN JAURES | I35: =VLOOKUP(F35,Objectifs!G:L,6,FALSE) -> 411,100 | J35: =(SUMIFS(SOURCE_PARTS_SOC!G:G,SOURCE_PARTS_SOC!E:E,F35))+(SUMIFS(ORCA_CARNET!E:E,ORCA_CARNET!C:C,F35)) -> 94,740 | K35: =(SUMIFS(SOURCE_PARTS_SOC!H:H,SOURCE_PARTS_SOC!E:E,F35))+(SUMIFS(ORCA_CARNET!F:F,ORCA_CARNET!C:C,F35)) -> 6,280 | L35: 23% | M35: 316,360 | N35: =I35*SUIVI_REGION!$I$4 -> 382,942 | O35: -288,202 | P35: =(SUMIFS(SOURCE_PARTS_SOC_0506!$I:$I,SOURCE_PARTS_SOC_0506!$E:$E,F35)) -> 337,140 | Q35: =(SUMIFS(SOURCE_PARTS_SOC!$I:$I,SOURCE_PARTS_SOC!$E:$E,F35))-P35 -> 220 | S35: =VLOOKUP(F35,Objectifs!G:K,5,FALSE) -> 133,800 | T35: =(SUMIFS(PILCOT_ELAN!$P:$P,PILCOT_ELAN!$H:$H,$D35)) -> 197 | U35: 0% | V35: 133,603 | W35: =S35*SUIVI_REGION!$S$4 -> 95,571 | X35: -95,374 | Z35: =VLOOKUP(F35,Objectifs!G:M,7,FALSE) -> 1,550,000 | AA35: =(SUMIF(SOURCE_EMP_ASV!D:D,SUIVI_PDV!E35,SOURCE_EMP_ASV!J:J)) -> 465,802 | AB35: 30% | AC35: 1,084,198 | AD35: =Z35*SUIVI_REGION!$Z$4 -> 1,256,034 | AE35: -790,232 | AF35: =IF(SUMIF(SOURCE_EMP_ASV!D:D,SUIVI_PDV!E35,SOURCE_EMP_ASV!K:K)=0,"",(SUMIF(SOURCE_EMP_ASV!D:D,SUIVI_PDV!E35,SOURCE_EMP_ASV!L:L))/SUMIF(SOURCE_EMP_ASV!D:D,SUIVI_PDV!E35,SOURCE_EMP_ASV!K:K)) -> 0.48% | AG35: 0 € | AH35: =(SUMIF(EMPRUNT_CTO!H:H,SUIVI_PDV!D35,EMPRUNT_CTO!K:K)) -> 0 | AJ35: 41,326 | AK35: =(SUMIFS(ALIZE!P:P,ALIZE!H:H,D35))-(SUMIFS(ALIZE_2105!P:P,ALIZE_2105!H:H,D35)) -> 38,377 | AL35: =(SUMIFS(CORALIUM!P:P,CORALIUM!H:H,D35))-(SUMIFS(CORALIUM_2105!P:P,CORALIUM_2105!H:H,D35)) -> 2,949 | AM35: =(SUMIFS(PARMA_PEA!$N:$N,PARMA_PEA!$H:$H,$D35)) -> 0
A36: 30 | B36: MARNE ARDENNES | C36: REIMS | D36: 308 | E36: 151350000308 | F36: 51308 | G36: =VLOOKUP(F36,Objectifs!G:H,2,FALSE) -> REIMS SAINT THOMAS | I36: =VLOOKUP(F36,Objectifs!G:L,6,FALSE) -> 341,400 | J36: =(SUMIFS(SOURCE_PARTS_SOC!G:G,SOURCE_PARTS_SOC!E:E,F36))+(SUMIFS(ORCA_CARNET!E:E,ORCA_CARNET!C:C,F36)) -> 166,180 | K36: =(SUMIFS(SOURCE_PARTS_SOC!H:H,SOURCE_PARTS_SOC!E:E,F36))+(SUMIFS(ORCA_CARNET!F:F,ORCA_CARNET!C:C,F36)) -> 2,700 | L36: 49% | M36: 175,220 | N36: =I36*SUIVI_REGION!$I$4 -> 318,016 | O36: -151,836 | P36: =(SUMIFS(SOURCE_PARTS_SOC_0506!$I:$I,SOURCE_PARTS_SOC_0506!$E:$E,F36)) -> 845,460 | Q36: =(SUMIFS(SOURCE_PARTS_SOC!$I:$I,SOURCE_PARTS_SOC!$E:$E,F36))-P36 -> 20 | S36: =VLOOKUP(F36,Objectifs!G:K,5,FALSE) -> 111,000 | T36: =(SUMIFS(PILCOT_ELAN!$P:$P,PILCOT_ELAN!$H:$H,$D36)) -> 9,440 | U36: 9% | V36: 101,560 | W36: =S36*SUIVI_REGION!$S$4 -> 79,286 | X36: -69,846 | Z36: =VLOOKUP(F36,Objectifs!G:M,7,FALSE) -> 1,287,200 | AA36: =(SUMIF(SOURCE_EMP_ASV!D:D,SUIVI_PDV!E36,SOURCE_EMP_ASV!J:J)) -> 768,279 | AB36: 60% | AC36: 518,921 | AD36: =Z36*SUIVI_REGION!$Z$4 -> 1,043,076 | AE36: -274,797 | AF36: =IF(SUMIF(SOURCE_EMP_ASV!D:D,SUIVI_PDV!E36,SOURCE_EMP_ASV!K:K)=0,"",(SUMIF(SOURCE_EMP_ASV!D:D,SUIVI_PDV!E36,SOURCE_EMP_ASV!L:L))/SUMIF(SOURCE_EMP_ASV!D:D,SUIVI_PDV!E36,SOURCE_EMP_ASV!K:K)) -> 0.44% | AG36: 0 € | AH36: =(SUMIF(EMPRUNT_CTO!H:H,SUIVI_PDV!D36,EMPRUNT_CTO!K:K)) -> 0 | AJ36: 5,644 | AK36: =(SUMIFS(ALIZE!P:P,ALIZE!H:H,D36))-(SUMIFS(ALIZE_2105!P:P,ALIZE_2105!H:H,D36)) -> 0 | AL36: =(SUMIFS(CORALIUM!P:P,CORALIUM!H:H,D36))-(SUMIFS(CORALIUM_2105!P:P,CORALIUM_2105!H:H,D36)) -> 0 | AM36: =(SUMIFS(PARMA_PEA!$N:$N,PARMA_PEA!$H:$H,$D36)) -> 5,644
A37: 30 | B37: MARNE ARDENNES | C37: REIMS | D37: 340 | E37: 151350000340 | F37: 51340 | G37: =VLOOKUP(F37,Objectifs!G:H,2,FALSE) -> BETHENY | I37: =VLOOKUP(F37,Objectifs!G:L,6,FALSE) -> 97,700 | J37: =(SUMIFS(SOURCE_PARTS_SOC!G:G,SOURCE_PARTS_SOC!E:E,F37))+(SUMIFS(ORCA_CARNET!E:E,ORCA_CARNET!C:C,F37)) -> 142,200 | K37: =(SUMIFS(SOURCE_PARTS_SOC!H:H,SOURCE_PARTS_SOC!E:E,F37))+(SUMIFS(ORCA_CARNET!F:F,ORCA_CARNET!C:C,F37)) -> 80 | L37: 146% | N37: =I37*SUIVI_REGION!$I$4 -> 91,008 | O37: 51,192 | P37: =(SUMIFS(SOURCE_PARTS_SOC_0506!$I:$I,SOURCE_PARTS_SOC_0506!$E:$E,F37)) -> 94,080 | Q37: =(SUMIFS(SOURCE_PARTS_SOC!$I:$I,SOURCE_PARTS_SOC!$E:$E,F37))-P37 -> 1,100 | S37: =VLOOKUP(F37,Objectifs!G:K,5,FALSE) -> 31,700 | T37: =(SUMIFS(PILCOT_ELAN!$P:$P,PILCOT_ELAN!$H:$H,$D37)) -> 29,000 | U37: 91% | V37: 2,700 | W37: =S37*SUIVI_REGION!$S$4 -> 22,643 | X37: 6,357 | Z37: =VLOOKUP(F37,Objectifs!G:M,7,FALSE) -> 368,200 | AA37: =(SUMIF(SOURCE_EMP_ASV!D:D,SUIVI_PDV!E37,SOURCE_EMP_ASV!J:J)) -> 337,438 | AB37: 92% | AC37: 30,762 | AD37: =Z37*SUIVI_REGION!$Z$4 -> 298,369 | AE37: 39,069 | AF37: =IF(SUMIF(SOURCE_EMP_ASV!D:D,SUIVI_PDV!E37,SOURCE_EMP_ASV!K:K)=0,"",(SUMIF(SOURCE_EMP_ASV!D:D,SUIVI_PDV!E37,SOURCE_EMP_ASV!L:L))/SUMIF(SOURCE_EMP_ASV!D:D,SUIVI_PDV!E37,SOURCE_EMP_ASV!K:K)) -> 0.41% | AG37: 0 € | AH37: =(SUMIF(EMPRUNT_CTO!H:H,SUIVI_PDV!D37,EMPRUNT_CTO!K:K)) -> 0 | AJ37: 0 | AK37: =(SUMIFS(ALIZE!P:P,ALIZE!H:H,D37))-(SUMIFS(ALIZE_2105!P:P,ALIZE_2105!H:H,D37)) -> 0 | AL37: =(SUMIFS(CORALIUM!P:P,CORALIUM!H:H,D37))-(SUMIFS(CORALIUM_2105!P:P,CORALIUM_2105!H:H,D37)) -> 0 | AM37: =(SUMIFS(PARMA_PEA!$N:$N,PARMA_PEA!$H:$H,$D37)) -> 0
A38: 30 | B38: MARNE ARDENNES | C38: REIMS | D38: 305 | E38: 151350000305 | F38: 51305 | G38: =VLOOKUP(F38,Objectifs!G:H,2,FALSE) -> REIMS HIPPODROME | I38: =VLOOKUP(F38,Objectifs!G:L,6,FALSE) -> 226,500 | J38: =(SUMIFS(SOURCE_PARTS_SOC!G:G,SOURCE_PARTS_SOC!E:E,F38))+(SUMIFS(ORCA_CARNET!E:E,ORCA_CARNET!C:C,F38)) -> 120,320 | K38: =(SUMIFS(SOURCE_PARTS_SOC!H:H,SOURCE_PARTS_SOC!E:E,F38))+(SUMIFS(ORCA_CARNET!F:F,ORCA_CARNET!C:C,F38)) -> 50,000 | L38: 53% | M38: 106,180 | N38: =I38*SUIVI_REGION!$I$4 -> 210,986 | O38: -90,666 | P38: =(SUMIFS(SOURCE_PARTS_SOC_0506!$I:$I,SOURCE_PARTS_SOC_0506!$E:$E,F38)) -> 230,800 | Q38: =(SUMIFS(SOURCE_PARTS_SOC!$I:$I,SOURCE_PARTS_SOC!$E:$E,F38))-P38 -> 240 | S38: =VLOOKUP(F38,Objectifs!G:K,5,FALSE) -> 73,600 | T38: =(SUMIFS(PILCOT_ELAN!$P:$P,PILCOT_ELAN!$H:$H,$D38)) -> 0 | U38: 0% | V38: 73,600 | W38: =S38*SUIVI_REGION!$S$4 -> 52,571 | X38: -52,571 | Z38: =VLOOKUP(F38,Objectifs!G:M,7,FALSE) -> 853,800 | AA38: =(SUMIF(SOURCE_EMP_ASV!D:D,SUIVI_PDV!E38,SOURCE_EMP_ASV!J:J)) -> 600,856 | AB38: 70% | AC38: 252,944 | AD38: =Z38*SUIVI_REGION!$Z$4 -> 691,872 | AE38: -91,017 | AF38: =IF(SUMIF(SOURCE_EMP_ASV!D:D,SUIVI_PDV!E38,SOURCE_EMP_ASV!K:K)=0,"",(SUMIF(SOURCE_EMP_ASV!D:D,SUIVI_PDV!E38,SOURCE_EMP_ASV!L:L))/SUMIF(SOURCE_EMP_ASV!D:D,SUIVI_PDV!E38,SOURCE_EMP_ASV!K:K)) -> 0.22% | AG38: 20,000 € | AH38: =(SUMIF(EMPRUNT_CTO!H:H,SUIVI_PDV!D38,EMPRUNT_CTO!K:K)) -> 200 | AJ38: 15,949 | AK38: =(SUMIFS(ALIZE!P:P,ALIZE!H:H,D38))-(SUMIFS(ALIZE_2105!P:P,ALIZE_2105!H:H,D38)) -> 15,952 | AL38: =(SUMIFS(CORALIUM!P:P,CORALIUM!H:H,D38))-(SUMIFS(CORALIUM_2105!P:P,CORALIUM_2105!H:H,D38)) -> -3 | AM38: =(SUMIFS(PARMA_PEA!$N:$N,PARMA_PEA!$H:$H,$D38)) -> 0
A39: 30 | B39: MARNE ARDENNES | C39: REIMS | D39: 314 | E39: 151350000314 | F39: 51314 | G39: =VLOOKUP(F39,Objectifs!G:H,2,FALSE) -> FISMES | I39: =VLOOKUP(F39,Objectifs!G:L,6,FALSE) -> 101,000 | J39: =(SUMIFS(SOURCE_PARTS_SOC!G:G,SOURCE_PARTS_SOC!E:E,F39))+(SUMIFS(ORCA_CARNET!E:E,ORCA_CARNET!C:C,F39)) -> 63,520 | K39: =(SUMIFS(SOURCE_PARTS_SOC!H:H,SOURCE_PARTS_SOC!E:E,F39))+(SUMIFS(ORCA_CARNET!F:F,ORCA_CARNET!C:C,F39)) -> 0 | L39: 63% | M39: 37,480 | N39: =I39*SUIVI_REGION!$I$4 -> 94,082 | O39: -30,562 | P39: =(SUMIFS(SOURCE_PARTS_SOC_0506!$I:$I,SOURCE_PARTS_SOC_0506!$E:$E,F39)) -> 55,680 | Q39: =(SUMIFS(SOURCE_PARTS_SOC!$I:$I,SOURCE_PARTS_SOC!$E:$E,F39))-P39 -> 0 | S39: =VLOOKUP(F39,Objectifs!G:K,5,FALSE) -> 32,800 | T39: =(SUMIFS(PILCOT_ELAN!$P:$P,PILCOT_ELAN!$H:$H,$D39)) -> 101 | U39: 0% | V39: 32,699 | W39: =S39*SUIVI_REGION!$S$4 -> 23,429 | X39: -23,328 | Z39: =VLOOKUP(F39,Objectifs!G:M,7,FALSE) -> 380,900 | AA39: =(SUMIF(SOURCE_EMP_ASV!D:D,SUIVI_PDV!E39,SOURCE_EMP_ASV!J:J)) -> 145,593 | AB39: 38% | AC39: 235,307 | AD39: =Z39*SUIVI_REGION!$Z$4 -> 308,660 | AE39: -163,068 | AF39: =IF(SUMIF(SOURCE_EMP_ASV!D:D,SUIVI_PDV!E39,SOURCE_EMP_ASV!K:K)=0,"",(SUMIF(SOURCE_EMP_ASV!D:D,SUIVI_PDV!E39,SOURCE_EMP_ASV!L:L))/SUMIF(SOURCE_EMP_ASV!D:D,SUIVI_PDV!E39,SOURCE_EMP_ASV!K:K)) -> 0.36% | AG39: 0 € | AH39: =(SUMIF(EMPRUNT_CTO!H:H,SUIVI_PDV!D39,EMPRUNT_CTO!K:K)) -> 0 | AJ39: 8,250 | AK39: =(SUMIFS(ALIZE!P:P,ALIZE!H:H,D39))-(SUMIFS(ALIZE_2105!P:P,ALIZE_2105!H:H,D39)) -> 8,250 | AL39: =(SUMIFS(CORALIUM!P:P,CORALIUM!H:H,D39))-(SUMIFS(CORALIUM_2105!P:P,CORALIUM_2105!H:H,D39)) -> 0 | AM39: =(SUMIFS(PARMA_PEA!$N:$N,PARMA_PEA!$H:$H,$D39)) -> 0
A40: 30 | B40: MARNE ARDENNES | C40: REIMS | D40: 336 | E40: 151350000336 | F40: 51336 | G40: =VLOOKUP(F40,Objectifs!G:H,2,FALSE) -> TINQUEUX | I40: =VLOOKUP(F40,Objectifs!G:L,6,FALSE) -> 257,300 | J40: =(SUMIFS(SOURCE_PARTS_SOC!G:G,SOURCE_PARTS_SOC!E:E,F40))+(SUMIFS(ORCA_CARNET!E:E,ORCA_CARNET!C:C,F40)) -> 21,280 | K40: =(SUMIFS(SOURCE_PARTS_SOC!H:H,SOURCE_PARTS_SOC!E:E,F40))+(SUMIFS(ORCA_CARNET!F:F,ORCA_CARNET!C:C,F40)) -> 15,080 | L40: 8% | M40: 236,020 | N40: =I40*SUIVI_REGION!$I$4 -> 239,677 | O40: -218,397 | P40: =(SUMIFS(SOURCE_PARTS_SOC_0506!$I:$I,SOURCE_PARTS_SOC_0506!$E:$E,F40)) -> 360,000 | Q40: =(SUMIFS(SOURCE_PARTS_SOC!$I:$I,SOURCE_PARTS_SOC!$E:$E,F40))-P40 -> 20 | S40: =VLOOKUP(F40,Objectifs!G:K,5,FALSE) -> 83,600 | T40: =(SUMIFS(PILCOT_ELAN!$P:$P,PILCOT_ELAN!$H:$H,$D40)) -> 400 | U40: 0% | V40: 83,200 | W40: =S40*SUIVI_REGION!$S$4 -> 59,714 | X40: -59,314 | Z40: =VLOOKUP(F40,Objectifs!G:M,7,FALSE) -> 970,200 | AA40: =(SUMIF(SOURCE_EMP_ASV!D:D,SUIVI_PDV!E40,SOURCE_EMP_ASV!J:J)) -> 789,425 | AB40: 81% | AC40: 180,775 | AD40: =Z40*SUIVI_REGION!$Z$4 -> 786,197 | AE40: 3,228 | AF40: =IF(SUMIF(SOURCE_EMP_ASV!D:D,SUIVI_PDV!E40,SOURCE_EMP_ASV!K:K)=0,"",(SUMIF(SOURCE_EMP_ASV!D:D,SUIVI_PDV!E40,SOURCE_EMP_ASV!L:L))/SUMIF(SOURCE_EMP_ASV!D:D,SUIVI_PDV!E40,SOURCE_EMP_ASV!K:K)) -> 0.20% | AG40: 0 € | AH40: =(SUMIF(EMPRUNT_CTO!H:H,SUIVI_PDV!D40,EMPRUNT_CTO!K:K)) -> 0 | AJ40: 0 | AK40: =(SUMIFS(ALIZE!P:P,ALIZE!H:H,D40))-(SUMIFS(ALIZE_2105!P:P,ALIZE_2105!H:H,D40)) -> 0 | AL40: =(SUMIFS(CORALIUM!P:P,CORALIUM!H:H,D40))-(SUMIFS(CORALIUM_2105!P:P,CORALIUM_2105!H:H,D40)) -> 0 | AM40: =(SUMIFS(PARMA_PEA!$N:$N,PARMA_PEA!$H:$H,$D40)) -> 0
A41: 30 | C41: Total Territoire REIMS | G41: REIMS | I41: =SUBTOTAL(9,I26:I40) -> 3,149,500 | J41: =SUBTOTAL(9,J26:J40) -> 1,327,080 | K41: =SUBTOTAL(9,K26:K40) -> 185,780 | L41: 42% | M41: 1,822,420 | N41: =I41*SUIVI_REGION!$I$4 -> 2,933,781 | O41: -1,606,701 | P41: =SUBTOTAL(9,P26:P40) -> 5,477,380 | Q41: =SUBTOTAL(9,Q26:Q40) -> 44,600 | S41: =SUBTOTAL(9,S26:S40) -> 1,024,000 | T41: =SUBTOTAL(9,T26:T40) -> 159,673 | U41: 16% | V41: 864,327 | W41: =S41*SUIVI_REGION!$S$4 -> 731,429 | X41: -571,756 | Z41: =SUBTOTAL(9,Z26:Z40) -> 11,873,900 | AA41: =SUBTOTAL(9,AA26:AA40) -> 7,150,555 | AB41: 60% | AC41: 4,723,345 | AD41: =Z41*SUIVI_REGION!$Z$4 -> 9,621,953 | AE41: -2,471,399 | AF41: =IF(SUMIF(SOURCE_EMP_ASV!B:B,G41,SOURCE_EMP_ASV!K:K)=0,"",(SUMIF(SOURCE_EMP_ASV!B:B,G41,SOURCE_EMP_ASV!L:L))/(SUMIF(SOURCE_EMP_ASV!B:B,G41,SOURCE_EMP_ASV!K:K))) -> 0.38% | AG41: 35,000 € | AH41: =SUBTOTAL(9,AH26:AH40) -> 350 | AJ41: 418,095 | AK41: =SUBTOTAL(9,AK26:AK40) -> 332,139 | AL41: =SUBTOTAL(9,AL26:AL40) -> 80,312 | AM41: =SUBTOTAL(9,AM26:AM40) -> 5,644
A42: 30 | B42: Total MARNE ARDENNES | G42: MARNE-ARDENNES | I42: =SUBTOTAL(9,I3:I41) -> 6,631,000 | J42: =SUBTOTAL(9,J3:J41) -> 2,270,440 | K42: =SUBTOTAL(9,K3:K41) -> 330,960 | L42: 34% | M42: 4,360,560 | N42: =I42*SUIVI_REGION!$I$4 -> 6,176,822 | O42: -3,906,382 | P42: =SUBTOTAL(9,P3:P41) -> 8,776,420 | Q42: =SUBTOTAL(9,Q3:Q41) -> 173,420 | S42: =SUBTOTAL(9,S3:S41) -> 2,155,700 | T42: =SUBTOTAL(9,T3:T41) -> 528,961 | U42: 25% | V42: 1,626,739 | W42: =S42*SUIVI_REGION!$S$4 -> 1,539,786 | X42: -1,010,825 | Z42: =SUBTOTAL(9,Z3:Z41) -> 25,000,000 | AA42: =SUBTOTAL(9,AA3:AA41) -> 16,189,560 | AB42: 65% | AC42: 8,810,440 | AD42: =Z42*SUIVI_REGION!$Z$4 -> 20,258,621 | AE42: -4,069,061 | AF42: =IF(SUMIF(SOURCE_EMP_ASV!A:A,G42,SOURCE_EMP_ASV!K:K)=0,"",(SUMIF(SOURCE_EMP_ASV!A:A,G42,SOURCE_EMP_ASV!L:L))/(SUMIF(SOURCE_EMP_ASV!A:A,G42,SOURCE_EMP_ASV!K:K))) -> 0.42% | AG42: 47,200 € | AH42: =SUBTOTAL(9,AH3:AH41) -> 472 | AJ42: 906,100 | AK42: =SUBTOTAL(9,AK3:AK41) -> 759,034 | AL42: =SUBTOTAL(9,AL3:AL41) -> 102,807 | AM42: =SUBTOTAL(9,AM3:AM41) -> 44,259
A43: 50 | B43: AUBE HAUTE MARNE | C43: CHAUMONT | D43: 466 | E43: 151350000466 | F43: 10566 | G43: =VLOOKUP(F43,Objectifs!G:H,2,FALSE) -> CHAUMONT HOTEL DE VILLE | I43: =VLOOKUP(F43,Objectifs!G:L,6,FALSE) -> 296,100 | J43: =(SUMIFS(SOURCE_PARTS_SOC!G:G,SOURCE_PARTS_SOC!E:E,F43))+(SUMIFS(ORCA_CARNET!E:E,ORCA_CARNET!C:C,F43)) -> 62,480 | K43: =(SUMIFS(SOURCE_PARTS_SOC!H:H,SOURCE_PARTS_SOC!E:E,F43))+(SUMIFS(ORCA_CARNET!F:F,ORCA_CARNET!C:C,F43)) -> 10,420 | L43: 21% | M43: 233,620 | N43: =I43*SUIVI_REGION!$I$4 -> 275,819 | O43: -213,339 | P43: =(SUMIFS(SOURCE_PARTS_SOC_0506!$I:$I,SOURCE_PARTS_SOC_0506!$E:$E,F43)) -> 365,360 | Q43: =(SUMIFS(SOURCE_PARTS_SOC!$I:$I,SOURCE_PARTS_SOC!$E:$E,F43))-P43 -> 20 | S43: =VLOOKUP(F43,Objectifs!G:K,5,FALSE) -> 96,200 | T43: =(SUMIFS(PILCOT_ELAN!$P:$P,PILCOT_ELAN!$H:$H,$D43)) -> 0 | U43: 0% | V43: 96,200 | W43: =S43*SUIVI_REGION!$S$4 -> 68,714 | X43: -68,714 | Z43: =VLOOKUP(F43,Objectifs!G:M,7,FALSE) -> 1,031,000 | AA43: =(SUMIF(SOURCE_EMP_ASV!D:D,SUIVI_PDV!E43,SOURCE_EMP_ASV!J:J)) -> 571,200 | AB43: 55% | AC43: 459,800 | AD43: =Z43*SUIVI_REGION!$Z$4 -> 835,466 | AE43: -264,265 | AF43: =IF(SUMIF(SOURCE_EMP_ASV!D:D,SUIVI_PDV!E43,SOURCE_EMP_ASV!K:K)=0,"",(SUMIF(SOURCE_EMP_ASV!D:D,SUIVI_PDV!E43,SOURCE_EMP_ASV!L:L))/SUMIF(SOURCE_EMP_ASV!D:D,SUIVI_PDV!E43,SOURCE_EMP_ASV!K:K)) -> 0.48% | AG43: 0 € | AH43: =(SUMIF(EMPRUNT_CTO!H:H,SUIVI_PDV!D43,EMPRUNT_CTO!K:K)) -> 0 | AJ43: 0 | AK43: =(SUMIFS(ALIZE!P:P,ALIZE!H:H,D43))-(SUMIFS(ALIZE_2105!P:P,ALIZE_2105!H:H,D43)) -> 0 | AL43: =(SUMIFS(CORALIUM!P:P,CORALIUM!H:H,D43))-(SUMIFS(CORALIUM_2105!P:P,CORALIUM_2105!H:H,D43)) -> 0 | AM43: =(SUMIFS(PARMA_PEA!$N:$N,PARMA_PEA!$H:$H,$D43)) -> 0
A44: 50 | B44: AUBE HAUTE MARNE | C44: CHAUMONT | D44: 490 | E44: 151350000490 | F44: 10590 | G44: =VLOOKUP(F44,Objectifs!G:H,2,FALSE) -> CHAUMONT REPUBLIQUE | I44: =VLOOKUP(F44,Objectifs!G:L,6,FALSE) -> 104,500 | J44: =(SUMIFS(SOURCE_PARTS_SOC!G:G,SOURCE_PARTS_SOC!E:E,F44))+(SUMIFS(ORCA_CARNET!E:E,ORCA_CARNET!C:C,F44)) -> 22,580 | K44: =(SUMIFS(SOURCE_PARTS_SOC!H:H,SOURCE_PARTS_SOC!E:E,F44))+(SUMIFS(ORCA_CARNET!F:F,ORCA_CARNET!C:C,F44)) -> 0 | L44: 22% | M44: 81,920 | N44: =I44*SUIVI_REGION!$I$4 -> 97,342 | O44: -74,762 | P44: =(SUMIFS(SOURCE_PARTS_SOC_0506!$I:$I,SOURCE_PARTS_SOC_0506!$E:$E,F44)) -> 90,240 | Q44: =(SUMIFS(SOURCE_PARTS_SOC!$I:$I,SOURCE_PARTS_SOC!$E:$E,F44))-P44 -> 40 | S44: =VLOOKUP(F44,Objectifs!G:K,5,FALSE) -> 34,000 | T44: =(SUMIFS(PILCOT_ELAN!$P:$P,PILCOT_ELAN!$H:$H,$D44)) -> 32,507 | U44: 96% | V44: 1,493 | W44: =S44*SUIVI_REGION!$S$4 -> 24,286 | X44: 8,221 | Z44: =VLOOKUP(F44,Objectifs!G:M,7,FALSE) -> 363,800 | AA44: =(SUMIF(SOURCE_EMP_ASV!D:D,SUIVI_PDV!E44,SOURCE_EMP_ASV!J:J)) -> 430,783 | AB44: 118% | AD44: =Z44*SUIVI_REGION!$Z$4 -> 294,803 | AE44: 135,980 | AF44: =IF(SUMIF(SOURCE_EMP_ASV!D:D,SUIVI_PDV!E44,SOURCE_EMP_ASV!K:K)=0,"",(SUMIF(SOURCE_EMP_ASV!D:D,SUIVI_PDV!E44,SOURCE_EMP_ASV!L:L))/SUMIF(SOURCE_EMP_ASV!D:D,SUIVI_PDV!E44,SOURCE_EMP_ASV!K:K)) -> 0.37% | AG44: 0 € | AH44: =(SUMIF(EMPRUNT_CTO!H:H,SUIVI_PDV!D44,EMPRUNT_CTO!K:K)) -> 0 | AJ44: 23,867 | AK44: =(SUMIFS(ALIZE!P:P,ALIZE!H:H,D44))-(SUMIFS(ALIZE_2105!P:P,ALIZE_2105!H:H,D44)) -> 23,867 | AL44: =(SUMIFS(CORALIUM!P:P,CORALIUM!H:H,D44))-(SUMIFS(CORALIUM_2105!P:P,CORALIUM_2105!H:H,D44)) -> 0 | AM44: =(SUMIFS(PARMA_PEA!$N:$N,PARMA_PEA!$H:$H,$D44)) -> 0
A45: 50 | B45: AUBE HAUTE MARNE | C45: CHAUMONT | D45: 251 | E45: 151350000251 | F45: 51151 | G45: =VLOOKUP(F45,Objectifs!G:H,2,FALSE) -> WASSY | I45: =VLOOKUP(F45,Objectifs!G:L,6,FALSE) -> 34,800 | J45: =(SUMIFS(SOURCE_PARTS_SOC!G:G,SOURCE_PARTS_SOC!E:E,F45))+(SUMIFS(ORCA_CARNET!E:E,ORCA_CARNET!C:C,F45)) -> 2,900 | K45: =(SUMIFS(SOURCE_PARTS_SOC!H:H,SOURCE_PARTS_SOC!E:E,F45))+(SUMIFS(ORCA_CARNET!F:F,ORCA_CARNET!C:C,F45)) -> 0 | L45: 8% | M45: 31,900 | N45: =I45*SUIVI_REGION!$I$4 -> 32,416 | O45: -29,516 | P45: =(SUMIFS(SOURCE_PARTS_SOC_0506!$I:$I,SOURCE_PARTS_SOC_0506!$E:$E,F45)) -> 71,620 | Q45: =(SUMIFS(SOURCE_PARTS_SOC!$I:$I,SOURCE_PARTS_SOC!$E:$E,F45))-P45 -> 10,080 | S45: =VLOOKUP(F45,Objectifs!G:K,5,FALSE) -> 11,300 | T45: =(SUMIFS(PILCOT_ELAN!$P:$P,PILCOT_ELAN!$H:$H,$D45)) -> 12,953 | U45: 115% | W45: =S45*SUIVI_REGION!$S$4 -> 8,071 | X45: 4,882 | Z45: =VLOOKUP(F45,Objectifs!G:M,7,FALSE) -> 121,300 | AA45: =(SUMIF(SOURCE_EMP_ASV!D:D,SUIVI_PDV!E45,SOURCE_EMP_ASV!J:J)) -> 233,538 | AB45: 193% | AD45: =Z45*SUIVI_REGION!$Z$4 -> 98,295 | AE45: 135,244 | AF45: =IF(SUMIF(SOURCE_EMP_ASV!D:D,SUIVI_PDV!E45,SOURCE_EMP_ASV!K:K)=0,"",(SUMIF(SOURCE_EMP_ASV!D:D,SUIVI_PDV!E45,SOURCE_EMP_ASV!L:L))/SUMIF(SOURCE_EMP_ASV!D:D,SUIVI_PDV!E45,SOURCE_EMP_ASV!K:K)) -> 0.50% | AG45: 0 € | AH45: =(SUMIF(EMPRUNT_CTO!H:H,SUIVI_PDV!D45,EMPRUNT_CTO!K:K)) -> 0 | AJ45: 0 | AK45: =(SUMIFS(ALIZE!P:P,ALIZE!H:H,D45))-(SUMIFS(ALIZE_2105!P:P,ALIZE_2105!H:H,D45)) -> 0 | AL45: =(SUMIFS(CORALIUM!P:P,CORALIUM!H:H,D45))-(SUMIFS(CORALIUM_2105!P:P,CORALIUM_2105!H:H,D45)) -> 0 | AM45: =(SUMIFS(PARMA_PEA!$N:$N,PARMA_PEA!$H:$H,$D45)) -> 0
A46: 50 | B46: AUBE HAUTE MARNE | C46: CHAUMONT | D46: 254 | E46: 151350000254 | F46: 51154 | G46: =VLOOKUP(F46,Objectifs!G:H,2,FALSE) -> JOINVILLE | I46: =VLOOKUP(F46,Objectifs!G:L,6,FALSE) -> 69,700 | J46: =(SUMIFS(SOURCE_PARTS_SOC!G:G,SOURCE_PARTS_SOC!E:E,F46))+(SUMIFS(ORCA_CARNET!E:E,ORCA_CARNET!C:C,F46)) -> 1,520 | K46: =(SUMIFS(SOURCE_PARTS_SOC!H:H,SOURCE_PARTS_SOC!E:E,F46))+(SUMIFS(ORCA_CARNET!F:F,ORCA_CARNET!C:C,F46)) -> 0 | L46: 2% | M46: 68,180 | N46: =I46*SUIVI_REGION!$I$4 -> 64,926 | O46: -63,406 | P46: =(SUMIFS(SOURCE_PARTS_SOC_0506!$I:$I,SOURCE_PARTS_SOC_0506!$E:$E,F46)) -> 27,400 | Q46: =(SUMIFS(SOURCE_PARTS_SOC!$I:$I,SOURCE_PARTS_SOC!$E:$E,F46))-P46 -> 20 | S46: =VLOOKUP(F46,Objectifs!G:K,5,FALSE) -> 22,600 | T46: =(SUMIFS(PILCOT_ELAN!$P:$P,PILCOT_ELAN!$H:$H,$D46)) -> 0 | U46: 0% | V46: 22,600 | W46: =S46*SUIVI_REGION!$S$4 -> 16,143 | X46: -16,143 | Z46: =VLOOKUP(F46,Objectifs!G:M,7,FALSE) -> 242,500 | AA46: =(SUMIF(SOURCE_EMP_ASV!D:D,SUIVI_PDV!E46,SOURCE_EMP_ASV!J:J)) -> 10,752 | AB46: 4% | AC46: 231,748 | AD46: =Z46*SUIVI_REGION!$Z$4 -> 196,509 | AE46: -185,756 | AF46: =IF(SUMIF(SOURCE_EMP_ASV!D:D,SUIVI_PDV!E46,SOURCE_EMP_ASV!K:K)=0,"",(SUMIF(SOURCE_EMP_ASV!D:D,SUIVI_PDV!E46,SOURCE_EMP_ASV!L:L))/SUMIF(SOURCE_EMP_ASV!D:D,SUIVI_PDV!E46,SOURCE_EMP_ASV!K:K)) -> 0.50% | AG46: 0 € | AH46: =(SUMIF(EMPRUNT_CTO!H:H,SUIVI_PDV!D46,EMPRUNT_CTO!K:K)) -> 0 | AJ46: 0 | AK46: =(SUMIFS(ALIZE!P:P,ALIZE!H:H,D46))-(SUMIFS(ALIZE_2105!P:P,ALIZE_2105!H:H,D46)) -> 0 | AL46: =(SUMIFS(CORALIUM!P:P,CORALIUM!H:H,D46))-(SUMIFS(CORALIUM_2105!P:P,CORALIUM_2105!H:H,D46)) -> 0 | AM46: =(SUMIFS(PARMA_PEA!$N:$N,PARMA_PEA!$H:$H,$D46)) -> 0
A47: 50 | B47: AUBE HAUTE MARNE | C47: CHAUMONT | D47: 441 | E47: 151350000441 | F47: 10541 | G47: =VLOOKUP(F47,Objectifs!G:H,2,FALSE) -> LANGRES | I47: =VLOOKUP(F47,Objectifs!G:L,6,FALSE) -> 174,200 | J47: =(SUMIFS(SOURCE_PARTS_SOC!G:G,SOURCE_PARTS_SOC!E:E,F47))+(SUMIFS(ORCA_CARNET!E:E,ORCA_CARNET!C:C,F47)) -> 71,360 | K47: =(SUMIFS(SOURCE_PARTS_SOC!H:H,SOURCE_PARTS_SOC!E:E,F47))+(SUMIFS(ORCA_CARNET!F:F,ORCA_CARNET!C:C,F47)) -> 30,000 | L47: 41% | M47: 102,840 | N47: =I47*SUIVI_REGION!$I$4 -> 162,268 | O47: -90,908 | P47: =(SUMIFS(SOURCE_PARTS_SOC_0506!$I:$I,SOURCE_PARTS_SOC_0506!$E:$E,F47)) -> 282,240 | Q47: =(SUMIFS(SOURCE_PARTS_SOC!$I:$I,SOURCE_PARTS_SOC!$E:$E,F47))-P47 -> 0 | S47: =VLOOKUP(F47,Objectifs!G:K,5,FALSE) -> 56,600 | T47: =(SUMIFS(PILCOT_ELAN!$P:$P,PILCOT_ELAN!$H:$H,$D47)) -> 14,366 | U47: 25% | V47: 42,234 | W47: =S47*SUIVI_REGION!$S$4 -> 40,429 | X47: -26,063 | Z47: =VLOOKUP(F47,Objectifs!G:M,7,FALSE) -> 606,400 | AA47: =(SUMIF(SOURCE_EMP_ASV!D:D,SUIVI_PDV!E47,SOURCE_EMP_ASV!J:J)) -> 996,514 | AB47: 164% | AD47: =Z47*SUIVI_REGION!$Z$4 -> 491,393 | AE47: 505,121 | AF47: =IF(SUMIF(SOURCE_EMP_ASV!D:D,SUIVI_PDV!E47,SOURCE_EMP_ASV!K:K)=0,"",(SUMIF(SOURCE_EMP_ASV!D:D,SUIVI_PDV!E47,SOURCE_EMP_ASV!L:L))/SUMIF(SOURCE_EMP_ASV!D:D,SUIVI_PDV!E47,SOURCE_EMP_ASV!K:K)) -> 0.42% | AG47: 0 € | AH47: =(SUMIF(EMPRUNT_CTO!H:H,SUIVI_PDV!D47,EMPRUNT_CTO!K:K)) -> 0 | AJ47: 0 | AK47: =(SUMIFS(ALIZE!P:P,ALIZE!H:H,D47))-(SUMIFS(ALIZE_2105!P:P,ALIZE_2105!H:H,D47)) -> 0 | AL47: =(SUMIFS(CORALIUM!P:P,CORALIUM!H:H,D47))-(SUMIFS(CORALIUM_2105!P:P,CORALIUM_2105!H:H,D47)) -> 0 | AM47: =(SUMIFS(PARMA_PEA!$N:$N,PARMA_PEA!$H:$H,$D47)) -> 0
A48: 50 | B48: AUBE HAUTE MARNE | C48: CHAUMONT | D48: 458 | E48: 151350000458 | F48: 10558 | G48: =VLOOKUP(F48,Objectifs!G:H,2,FALSE) -> CHALINDREY | I48: =VLOOKUP(F48,Objectifs!G:L,6,FALSE) -> 69,700 | J48: =(SUMIFS(SOURCE_PARTS_SOC!G:G,SOURCE_PARTS_SOC!E:E,F48))+(SUMIFS(ORCA_CARNET!E:E,ORCA_CARNET!C:C,F48)) -> 22,140 | K48: =(SUMIFS(SOURCE_PARTS_SOC!H:H,SOURCE_PARTS_SOC!E:E,F48))+(SUMIFS(ORCA_CARNET!F:F,ORCA_CARNET!C:C,F48)) -> 0 | L48: 32% | M48: 47,560 | N48: =I48*SUIVI_REGION!$I$4 -> 64,926 | O48: -42,786 | P48: =(SUMIFS(SOURCE_PARTS_SOC_0506!$I:$I,SOURCE_PARTS_SOC_0506!$E:$E,F48)) -> 62,260 | Q48: =(SUMIFS(SOURCE_PARTS_SOC!$I:$I,SOURCE_PARTS_SOC!$E:$E,F48))-P48 -> 0 | S48: =VLOOKUP(F48,Objectifs!G:K,5,FALSE) -> 22,600 | T48: =(SUMIFS(PILCOT_ELAN!$P:$P,PILCOT_ELAN!$H:$H,$D48)) -> 0 | U48: 0% | V48: 22,600 | W48: =S48*SUIVI_REGION!$S$4 -> 16,143 | X48: -16,143 | Z48: =VLOOKUP(F48,Objectifs!G:M,7,FALSE) -> 242,500 | AA48: =(SUMIF(SOURCE_EMP_ASV!D:D,SUIVI_PDV!E48,SOURCE_EMP_ASV!J:J)) -> 318,401 | AB48: 131% | AD48: =Z48*SUIVI_REGION!$Z$4 -> 196,509 | AE48: 121,892 | AF48: =IF(SUMIF(SOURCE_EMP_ASV!D:D,SUIVI_PDV!E48,SOURCE_EMP_ASV!K:K)=0,"",(SUMIF(SOURCE_EMP_ASV!D:D,SUIVI_PDV!E48,SOURCE_EMP_ASV!L:L))/SUMIF(SOURCE_EMP_ASV!D:D,SUIVI_PDV!E48,SOURCE_EMP_ASV!K:K)) -> 0.43% | AG48: 0 € | AH48: =(SUMIF(EMPRUNT_CTO!H:H,SUIVI_PDV!D48,EMPRUNT_CTO!K:K)) -> 0 | AJ48: 0 | AK48: =(SUMIFS(ALIZE!P:P,ALIZE!H:H,D48))-(SUMIFS(ALIZE_2105!P:P,ALIZE_2105!H:H,D48)) -> 0 | AL48: =(SUMIFS(CORALIUM!P:P,CORALIUM!H:H,D48))-(SUMIFS(CORALIUM_2105!P:P,CORALIUM_2105!H:H,D48)) -> 0 | AM48: =(SUMIFS(PARMA_PEA!$N:$N,PARMA_PEA!$H:$H,$D48)) -> 0
A49: 50 | B49: AUBE HAUTE MARNE | C49: CHAUMONT | D49: 460 | E49: 151350000460 | F49: 10560 | G49: =VLOOKUP(F49,Objectifs!G:H,2,FALSE) -> BOURBONNE LES BAINS | I49: =VLOOKUP(F49,Objectifs!G:L,6,FALSE) -> 69,700 | J49: =(SUMIFS(SOURCE_PARTS_SOC!G:G,SOURCE_PARTS_SOC!E:E,F49))+(SUMIFS(ORCA_CARNET!E:E,ORCA_CARNET!C:C,F49)) -> 23,460 | K49: =(SUMIFS(SOURCE_PARTS_SOC!H:H,SOURCE_PARTS_SOC!E:E,F49))+(SUMIFS(ORCA_CARNET!F:F,ORCA_CARNET!C:C,F49)) -> 0 | L49: 34% | M49: 46,240 | N49: =I49*SUIVI_REGION!$I$4 -> 64,926 | O49: -41,466 | P49: =(SUMIFS(SOURCE_PARTS_SOC_0506!$I:$I,SOURCE_PARTS_SOC_0506!$E:$E,F49)) -> 7,260 | Q49: =(SUMIFS(SOURCE_PARTS_SOC!$I:$I,SOURCE_PARTS_SOC!$E:$E,F49))-P49 -> 0 | S49: =VLOOKUP(F49,Objectifs!G:K,5,FALSE) -> 22,600 | T49: =(SUMIFS(PILCOT_ELAN!$P:$P,PILCOT_ELAN!$H:$H,$D49)) -> 1,750 | U49: 8% | V49: 20,850 | W49: =S49*SUIVI_REGION!$S$4 -> 16,143 | X49: -14,393 | Z49: =VLOOKUP(F49,Objectifs!G:M,7,FALSE) -> 242,500 | AA49: =(SUMIF(SOURCE_EMP_ASV!D:D,SUIVI_PDV!E49,SOURCE_EMP_ASV!J:J)) -> 123,349 | AB49: 51% | AC49: 119,151 | AD49: =Z49*SUIVI_REGION!$Z$4 -> 196,509 | AE49: -73,160 | AF49: =IF(SUMIF(SOURCE_EMP_ASV!D:D,SUIVI_PDV!E49,SOURCE_EMP_ASV!K:K)=0,"",(SUMIF(SOURCE_EMP_ASV!D:D,SUIVI_PDV!E49,SOURCE_EMP_ASV!L:L))/SUMIF(SOURCE_EMP_ASV!D:D,SUIVI_PDV!E49,SOURCE_EMP_ASV!K:K)) -> 0.29% | AG49: 0 € | AH49: =(SUMIF(EMPRUNT_CTO!H:H,SUIVI_PDV!D49,EMPRUNT_CTO!K:K)) -> 0 | AJ49: 0 | AK49: =(SUMIFS(ALIZE!P:P,ALIZE!H:H,D49))-(SUMIFS(ALIZE_2105!P:P,ALIZE_2105!H:H,D49)) -> 0 | AL49: =(SUMIFS(CORALIUM!P:P,CORALIUM!H:H,D49))-(SUMIFS(CORALIUM_2105!P:P,CORALIUM_2105!H:H,D49)) -> 0 | AM49: =(SUMIFS(PARMA_PEA!$N:$N,PARMA_PEA!$H:$H,$D49)) -> 0
A50: 50 | B50: AUBE HAUTE MARNE | C50: CHAUMONT | D50: 482 | E50: 151350000482 | F50: 10582 | G50: =VLOOKUP(F50,Objectifs!G:H,2,FALSE) -> NOGENT | I50: =VLOOKUP(F50,Objectifs!G:L,6,FALSE) -> 52,300 | J50: =(SUMIFS(SOURCE_PARTS_SOC!G:G,SOURCE_PARTS_SOC!E:E,F50))+(SUMIFS(ORCA_CARNET!E:E,ORCA_CARNET!C:C,F50)) -> 7,560 | K50: =(SUMIFS(SOURCE_PARTS_SOC!H:H,SOURCE_PARTS_SOC!E:E,F50))+(SUMIFS(ORCA_CARNET!F:F,ORCA_CARNET!C:C,F50)) -> 0 | L50: 14% | M50: 44,740 | N50: =I50*SUIVI_REGION!$I$4 -> 48,718 | O50: -41,158 | P50: =(SUMIFS(SOURCE_PARTS_SOC_0506!$I:$I,SOURCE_PARTS_SOC_0506!$E:$E,F50)) -> 44,160 | Q50: =(SUMIFS(SOURCE_PARTS_SOC!$I:$I,SOURCE_PARTS_SOC!$E:$E,F50))-P50 -> 28,300 | S50: =VLOOKUP(F50,Objectifs!G:K,5,FALSE) -> 17,000 | T50: =(SUMIFS(PILCOT_ELAN!$P:$P,PILCOT_ELAN!$H:$H,$D50)) -> 19,752 | U50: 116% | W50: =S50*SUIVI_REGION!$S$4 -> 12,143 | X50: 7,609 | Z50: =VLOOKUP(F50,Objectifs!G:M,7,FALSE) -> 181,900 | AA50: =(SUMIF(SOURCE_EMP_ASV!D:D,SUIVI_PDV!E50,SOURCE_EMP_ASV!J:J)) -> 233,041 | AB50: 128% | AD50: =Z50*SUIVI_REGION!$Z$4 -> 147,402 | AE50: 85,639 | AF50: =IF(SUMIF(SOURCE_EMP_ASV!D:D,SUIVI_PDV!E50,SOURCE_EMP_ASV!K:K)=0,"",(SUMIF(SOURCE_EMP_ASV!D:D,SUIVI_PDV!E50,SOURCE_EMP_ASV!L:L))/SUMIF(SOURCE_EMP_ASV!D:D,SUIVI_PDV!E50,SOURCE_EMP_ASV!K:K)) -> 0.48% | AG50: 0 € | AH50: =(SUMIF(EMPRUNT_CTO!H:H,SUIVI_PDV!D50,EMPRUNT_CTO!K:K)) -> 0 | AJ50: 0 | AK50: =(SUMIFS(ALIZE!P:P,ALIZE!H:H,D50))-(SUMIFS(ALIZE_2105!P:P,ALIZE_2105!H:H,D50)) -> 0 | AL50: =(SUMIFS(CORALIUM!P:P,CORALIUM!H:H,D50))-(SUMIFS(CORALIUM_2105!P:P,CORALIUM_2105!H:H,D50)) -> 0 | AM50: =(SUMIFS(PARMA_PEA!$N:$N,PARMA_PEA!$H:$H,$D50)) -> 0
A51: 50 | B51: AUBE HAUTE MARNE | C51: CHAUMONT | D51: 256 | E51: 151350000256 | F51: 51156 | G51: =VLOOKUP(F51,Objectifs!G:H,2,FALSE) -> SAINT DIZIER CENTRE | I51: =VLOOKUP(F51,Objectifs!G:L,6,FALSE) -> 209,000 | J51: =(SUMIFS(SOURCE_PARTS_SOC!G:G,SOURCE_PARTS_SOC!E:E,F51))+(SUMIFS(ORCA_CARNET!E:E,ORCA_CARNET!C:C,F51)) -> 4,940 | K51: =(SUMIFS(SOURCE_PARTS_SOC!H:H,SOURCE_PARTS_SOC!E:E,F51))+(SUMIFS(ORCA_CARNET!F:F,ORCA_CARNET!C:C,F51)) -> 100 | L51: 2% | M51: 204,060 | N51: =I51*SUIVI_REGION!$I$4 -> 194,685 | O51: -189,745 | P51: =(SUMIFS(SOURCE_PARTS_SOC_0506!$I:$I,SOURCE_PARTS_SOC_0506!$E:$E,F51)) -> 192,860 | Q51: =(SUMIFS(SOURCE_PARTS_SOC!$I:$I,SOURCE_PARTS_SOC!$E:$E,F51))-P51 -> 9,220 | S51: =VLOOKUP(F51,Objectifs!G:K,5,FALSE) -> 67,900 | T51: =(SUMIFS(PILCOT_ELAN!$P:$P,PILCOT_ELAN!$H:$H,$D51)) -> 23,030 | U51: 34% | V51: 44,870 | W51: =S51*SUIVI_REGION!$S$4 -> 48,500 | X51: -25,470 | Z51: =VLOOKUP(F51,Objectifs!G:M,7,FALSE) -> 727,600 | AA51: =(SUMIF(SOURCE_EMP_ASV!D:D,SUIVI_PDV!E51,SOURCE_EMP_ASV!J:J)) -> 1,085,322 | AB51: 149% | AD51: =Z51*SUIVI_REGION!$Z$4 -> 589,607 | AE51: 495,715 | AF51: =IF(SUMIF(SOURCE_EMP_ASV!D:D,SUIVI_PDV!E51,SOURCE_EMP_ASV!K:K)=0,"",(SUMIF(SOURCE_EMP_ASV!D:D,SUIVI_PDV!E51,SOURCE_EMP_ASV!L:L))/SUMIF(SOURCE_EMP_ASV!D:D,SUIVI_PDV!E51,SOURCE_EMP_ASV!K:K)) -> 0.28% | AG51: 8,000 € | AH51: =(SUMIF(EMPRUNT_CTO!H:H,SUIVI_PDV!D51,EMPRUNT_CTO!K:K)) -> 80 | AJ51: 116,956 | AK51: =(SUMIFS(ALIZE!P:P,ALIZE!H:H,D51))-(SUMIFS(ALIZE_2105!P:P,ALIZE_2105!H:H,D51)) -> 115,634 | AL51: =(SUMIFS(CORALIUM!P:P,CORALIUM!H:H,D51))-(SUMIFS(CORALIUM_2105!P:P,CORALIUM_2105!H:H,D51)) -> 1,322 | AM51: =(SUMIFS(PARMA_PEA!$N:$N,PARMA_PEA!$H:$H,$D51)) -> 0
A52: 50 | B52: AUBE HAUTE MARNE | C52: CHAUMONT | D52: 257 | E52: 151350000257 | F52: 51157 | G52: =VLOOKUP(F52,Objectifs!G:H,2,FALSE) -> SAINT DIZIER EUROPE | I52: =VLOOKUP(F52,Objectifs!G:L,6,FALSE) -> 69,700 | J52: =(SUMIFS(SOURCE_PARTS_SOC!G:G,SOURCE_PARTS_SOC!E:E,F52))+(SUMIFS(ORCA_CARNET!E:E,ORCA_CARNET!C:C,F52)) -> 8,000 | K52: =(SUMIFS(SOURCE_PARTS_SOC!H:H,SOURCE_PARTS_SOC!E:E,F52))+(SUMIFS(ORCA_CARNET!F:F,ORCA_CARNET!C:C,F52)) -> 100 | L52: 11% | M52: 61,700 | N52: =I52*SUIVI_REGION!$I$4 -> 64,926 | O52: -56,926 | P52: =(SUMIFS(SOURCE_PARTS_SOC_0506!$I:$I,SOURCE_PARTS_SOC_0506!$E:$E,F52)) -> 116,040 | Q52: =(SUMIFS(SOURCE_PARTS_SOC!$I:$I,SOURCE_PARTS_SOC!$E:$E,F52))-P52 -> 0 | S52: =VLOOKUP(F52,Objectifs!G:K,5,FALSE) -> 22,600 | T52: =(SUMIFS(PILCOT_ELAN!$P:$P,PILCOT_ELAN!$H:$H,$D52)) -> 4,388 | U52: 19% | V52: 18,212 | W52: =S52*SUIVI_REGION!$S$4 -> 16,143 | X52: -11,755 | Z52: =VLOOKUP(F52,Objectifs!G:M,7,FALSE) -> 242,500 | AA52: =(SUMIF(SOURCE_EMP_ASV!D:D,SUIVI_PDV!E52,SOURCE_EMP_ASV!J:J)) -> 87,000 | AB52: 36% | AC52: 155,500 | AD52: =Z52*SUIVI_REGION!$Z$4 -> 196,509 | AE52: -109,509 | AF52: =IF(SUMIF(SOURCE_EMP_ASV!D:D,SUIVI_PDV!E52,SOURCE_EMP_ASV!K:K)=0,"",(SUMIF(SOURCE_EMP_ASV!D:D,SUIVI_PDV!E52,SOURCE_EMP_ASV!L:L))/SUMIF(SOURCE_EMP_ASV!D:D,SUIVI_PDV!E52,SOURCE_EMP_ASV!K:K)) -> 0.72% | AG52: 0 € | AH52: =(SUMIF(EMPRUNT_CTO!H:H,SUIVI_PDV!D52,EMPRUNT_CTO!K:K)) -> 0 | AJ52: 0 | AK52: =(SUMIFS(ALIZE!P:P,ALIZE!H:H,D52))-(SUMIFS(ALIZE_2105!P:P,ALIZE_2105!H:H,D52)) -> 0 | AL52: =(SUMIFS(CORALIUM!P:P,CORALIUM!H:H,D52))-(SUMIFS(CORALIUM_2105!P:P,CORALIUM_2105!H:H,D52)) -> 0 | AM52: =(SUMIFS(PARMA_PEA!$N:$N,PARMA_PEA!$H:$H,$D52)) -> 0
A53: 50 | C53: Total Territoire CHAUMONT | G53: CHAUMONT | I53: =SUBTOTAL(9,I43:I52) -> 1,149,700 | J53: =SUBTOTAL(9,J43:J52) -> 226,940 | K53: 40,620 | L53: 20% | M53: 922,760 | N53: =I53*SUIVI_REGION!$I$4 -> 1,070,953 | O53: -844,013 | P53: =SUBTOTAL(9,P43:P52) -> 1,259,440 | Q53: =SUBTOTAL(9,Q43:Q52) -> 47,680 | S53: =SUBTOTAL(9,S43:S52) -> 373,400 | T53: =SUBTOTAL(9,T43:T52) -> 108,746 | U53: 29% | V53: 264,654 | W53: =S53*SUIVI_REGION!$S$4 -> 266,714 | X53: -157,968 | Z53: =SUBTOTAL(9,Z43:Z52) -> 4,002,000 | AA53: =SUBTOTAL(9,AA43:AA52) -> 4,089,900 | AB53: 102% | AD53: =Z53*SUIVI_REGION!$Z$4 -> 3,243,000 | AE53: 846,900 | AF53: =IF(SUMIF(SOURCE_EMP_ASV!B:B,G53,SOURCE_EMP_ASV!K:K)=0,"",(SUMIF(SOURCE_EMP_ASV!B:B,G53,SOURCE_EMP_ASV!L:L))/(SUMIF(SOURCE_EMP_ASV!B:B,G53,SOURCE_EMP_ASV!K:K))) -> 0.39% | AG53: 8,000 € | AH53: =SUBTOTAL(9,AH43:AH52) -> 80 | AJ53: 140,823 | AK53: =SUBTOTAL(9,AK43:AK52) -> 139,501 | AL53: =SUBTOTAL(9,AL43:AL52) -> 1,322 | AM53: =SUBTOTAL(9,AM43:AM52) -> 0
A54: 50 | B54: AUBE HAUTE MARNE | C54: TROYES | D54: 450 | E54: 151350000450 | F54: 10550 | G54: =VLOOKUP(F54,Objectifs!G:H,2,FALSE) -> BAR SUR AUBE | I54: =VLOOKUP(F54,Objectifs!G:L,6,FALSE) -> 121,900 | J54: =(SUMIFS(SOURCE_PARTS_SOC!G:G,SOURCE_PARTS_SOC!E:E,F54))+(SUMIFS(ORCA_CARNET!E:E,ORCA_CARNET!C:C,F54)) -> 66,100 | K54: =(SUMIFS(SOURCE_PARTS_SOC!H:H,SOURCE_PARTS_SOC!E:E,F54))+(SUMIFS(ORCA_CARNET!F:F,ORCA_CARNET!C:C,F54)) -> 10,000 | L54: 54% | M54: 55,800 | N54: =I54*SUIVI_REGION!$I$4 -> 113,551 | O54: -47,451 | P54: =(SUMIFS(SOURCE_PARTS_SOC_0506!$I:$I,SOURCE_PARTS_SOC_0506!$E:$E,F54)) -> 200,880 | Q54: =(SUMIFS(SOURCE_PARTS_SOC!$I:$I,SOURCE_PARTS_SOC!$E:$E,F54))-P54 -> 200 | S54: =VLOOKUP(F54,Objectifs!G:K,5,FALSE) -> 39,600 | T54: =(SUMIFS(PILCOT_ELAN!$P:$P,PILCOT_ELAN!$H:$H,$D54)) -> 36,545 | U54: 92% | V54: 3,055 | W54: =S54*SUIVI_REGION!$S$4 -> 28,286 | X54: 8,259 | Z54: =VLOOKUP(F54,Objectifs!G:M,7,FALSE) -> 424,500 | AA54: =(SUMIF(SOURCE_EMP_ASV!D:D,SUIVI_PDV!E54,SOURCE_EMP_ASV!J:J)) -> 644,193 | AB54: 152% | AD54: =Z54*SUIVI_REGION!$Z$4 -> 343,991 | AE54: 300,201 | AF54: =IF(SUMIF(SOURCE_EMP_ASV!D:D,SUIVI_PDV!E54,SOURCE_EMP_ASV!K:K)=0,"",(SUMIF(SOURCE_EMP_ASV!D:D,SUIVI_PDV!E54,SOURCE_EMP_ASV!L:L))/SUMIF(SOURCE_EMP_ASV!D:D,SUIVI_PDV!E54,SOURCE_EMP_ASV!K:K)) -> 0.41% | AG54: 0 € | AH54: =(SUMIF(EMPRUNT_CTO!H:H,SUIVI_PDV!D54,EMPRUNT_CTO!K:K)) -> 0 | AJ54: 30,594 | AK54: =(SUMIFS(ALIZE!P:P,ALIZE!H:H,D54))-(SUMIFS(ALIZE_2105!P:P,ALIZE_2105!H:H,D54)) -> 30,594 | AL54: =(SUMIFS(CORALIUM!P:P,CORALIUM!H:H,D54))-(SUMIFS(CORALIUM_2105!P:P,CORALIUM_2105!H:H,D54)) -> 0 | AM54: =(SUMIFS(PARMA_PEA!$N:$N,PARMA_PEA!$H:$H,$D54)) -> 0
A55: 50 | B55: AUBE HAUTE MARNE | C55: TROYES | D55: 451 | E55: 151350000451 | F55: 10551 | G55: =VLOOKUP(F55,Objectifs!G:H,2,FALSE) -> BRIENNE LE CHATEAU | I55: =VLOOKUP(F55,Objectifs!G:L,6,FALSE) -> 52,300 | J55: =(SUMIFS(SOURCE_PARTS_SOC!G:G,SOURCE_PARTS_SOC!E:E,F55))+(SUMIFS(ORCA_CARNET!E:E,ORCA_CARNET!C:C,F55)) -> 5,980 | K55: =(SUMIFS(SOURCE_PARTS_SOC!H:H,SOURCE_PARTS_SOC!E:E,F55))+(SUMIFS(ORCA_CARNET!F:F,ORCA_CARNET!C:C,F55)) -> 0 | L55: 11% | M55: 46,320 | N55: =I55*SUIVI_REGION!$I$4 -> 48,718 | O55: -42,738 | P55: =(SUMIFS(SOURCE_PARTS_SOC_0506!$I:$I,SOURCE_PARTS_SOC_0506!$E:$E,F55)) -> 89,160 | Q55: =(SUMIFS(SOURCE_PARTS_SOC!$I:$I,SOURCE_PARTS_SOC!$E:$E,F55))-P55 -> 520 | S55: =VLOOKUP(F55,Objectifs!G:K,5,FALSE) -> 17,000 | T55: =(SUMIFS(PILCOT_ELAN!$P:$P,PILCOT_ELAN!$H:$H,$D55)) -> 12,561 | U55: 74% | V55: 4,439 | W55: =S55*SUIVI_REGION!$S$4 -> 12,143 | X55: 418 | Z55: =VLOOKUP(F55,Objectifs!G:M,7,FALSE) -> 181,900 | AA55: =(SUMIF(SOURCE_EMP_ASV!D:D,SUIVI_PDV!E55,SOURCE_EMP_ASV!J:J)) -> 136,833 | AB55: 75% | AC55: 45,067 | AD55: =Z55*SUIVI_REGION!$Z$4 -> 147,402 | AE55: -10,569 | AF55: =IF(SUMIF(SOURCE_EMP_ASV!D:D,SUIVI_PDV!E55,SOURCE_EMP_ASV!K:K)=0,"",(SUMIF(SOURCE_EMP_ASV!D:D,SUIVI_PDV!E55,SOURCE_EMP_ASV!L:L))/SUMIF(SOURCE_EMP_ASV!D:D,SUIVI_PDV!E55,SOURCE_EMP_ASV!K:K)) -> 0.54% | AG55: 0 € | AH55: =(SUMIF(EMPRUNT_CTO!H:H,SUIVI_PDV!D55,EMPRUNT_CTO!K:K)) -> 0 | AJ55: 0 | AK55: =(SUMIFS(ALIZE!P:P,ALIZE!H:H,D55))-(SUMIFS(ALIZE_2105!P:P,ALIZE_2105!H:H,D55)) -> 0 | AL55: =(SUMIFS(CORALIUM!P:P,CORALIUM!H:H,D55))-(SUMIFS(CORALIUM_2105!P:P,CORALIUM_2105!H:H,D55)) -> 0 | AM55: =(SUMIFS(PARMA_PEA!$N:$N,PARMA_PEA!$H:$H,$D55)) -> 0
A56: 50 | B56: AUBE HAUTE MARNE | C56: TROYES | D56: 456 | E56: 151350000456 | F56: 10556 | G56: =VLOOKUP(F56,Objectifs!G:H,2,FALSE) -> BAR SUR SEINE | I56: =VLOOKUP(F56,Objectifs!G:L,6,FALSE) -> 139,400 | J56: =(SUMIFS(SOURCE_PARTS_SOC!G:G,SOURCE_PARTS_SOC!E:E,F56))+(SUMIFS(ORCA_CARNET!E:E,ORCA_CARNET!C:C,F56)) -> 13,940 | K56: =(SUMIFS(SOURCE_PARTS_SOC!H:H,SOURCE_PARTS_SOC!E:E,F56))+(SUMIFS(ORCA_CARNET!F:F,ORCA_CARNET!C:C,F56)) -> 0 | L56: 10% | M56: 125,460 | N56: =I56*SUIVI_REGION!$I$4 -> 129,852 | O56: -115,912 | P56: =(SUMIFS(SOURCE_PARTS_SOC_0506!$I:$I,SOURCE_PARTS_SOC_0506!$E:$E,F56)) -> 82,140 | Q56: =(SUMIFS(SOURCE_PARTS_SOC!$I:$I,SOURCE_PARTS_SOC!$E:$E,F56))-P56 -> 23,080 | S56: =VLOOKUP(F56,Objectifs!G:K,5,FALSE) -> 45,300 | T56: =(SUMIFS(PILCOT_ELAN!$P:$P,PILCOT_ELAN!$H:$H,$D56)) -> 10,218 | U56: 23% | V56: 35,082 | W56: =S56*SUIVI_REGION!$S$4 -> 32,357 | X56: -22,139 | Z56: =VLOOKUP(F56,Objectifs!G:M,7,FALSE) -> 485,100 | AA56: =(SUMIF(SOURCE_EMP_ASV!D:D,SUIVI_PDV!E56,SOURCE_EMP_ASV!J:J)) -> 574,419 | AB56: 118% | AD56: =Z56*SUIVI_REGION!$Z$4 -> 393,098 | AE56: 181,321 | AF56: =IF(SUMIF(SOURCE_EMP_ASV!D:D,SUIVI_PDV!E56,SOURCE_EMP_ASV!K:K)=0,"",(SUMIF(SOURCE_EMP_ASV!D:D,SUIVI_PDV!E56,SOURCE_EMP_ASV!L:L))/SUMIF(SOURCE_EMP_ASV!D:D,SUIVI_PDV!E56,SOURCE_EMP_ASV!K:K)) -> 0.48% | AG56: 0 € | AH56: =(SUMIF(EMPRUNT_CTO!H:H,SUIVI_PDV!D56,EMPRUNT_CTO!K:K)) -> 0 | AJ56: 10,868 | AK56: =(SUMIFS(ALIZE!P:P,ALIZE!H:H,D56))-(SUMIFS(ALIZE_2105!P:P,ALIZE_2105!H:H,D56)) -> 10,868 | AL56: =(SUMIFS(CORALIUM!P:P,CORALIUM!H:H,D56))-(SUMIFS(CORALIUM_2105!P:P,CORALIUM_2105!H:H,D56)) -> 0 | AM56: =(SUMIFS(PARMA_PEA!$N:$N,PARMA_PEA!$H:$H,$D56)) -> 0
A57: 50 | B57: AUBE HAUTE MARNE | C57: TROYES | D57: 430 | E57: 151350000430 | F57: 10530 | G57: =VLOOKUP(F57,Objectifs!G:H,2,FALSE) -> ARCIS SUR AUBE | I57: =VLOOKUP(F57,Objectifs!G:L,6,FALSE) -> 139,400 | J57: =(SUMIFS(SOURCE_PARTS_SOC!G:G,SOURCE_PARTS_SOC!E:E,F57))+(SUMIFS(ORCA_CARNET!E:E,ORCA_CARNET!C:C,F57)) -> 30,380 | K57: =(SUMIFS(SOURCE_PARTS_SOC!H:H,SOURCE_PARTS_SOC!E:E,F57))+(SUMIFS(ORCA_CARNET!F:F,ORCA_CARNET!C:C,F57)) -> 14,460 | L57: 22% | M57: 109,020 | N57: =I57*SUIVI_REGION!$I$4 -> 129,852 | O57: -99,472 | P57: =(SUMIFS(SOURCE_PARTS_SOC_0506!$I:$I,SOURCE_PARTS_SOC_0506!$E:$E,F57)) -> 118,340 | Q57: =(SUMIFS(SOURCE_PARTS_SOC!$I:$I,SOURCE_PARTS_SOC!$E:$E,F57))-P57 -> 0 | S57: =VLOOKUP(F57,Objectifs!G:K,5,FALSE) -> 45,300 | T57: =(SUMIFS(PILCOT_ELAN!$P:$P,PILCOT_ELAN!$H:$H,$D57)) -> 54,324 | U57: 120% | W57: =S57*SUIVI_REGION!$S$4 -> 32,357 | X57: 21,967 | Z57: =VLOOKUP(F57,Objectifs!G:M,7,FALSE) -> 485,100 | AA57: =(SUMIF(SOURCE_EMP_ASV!D:D,SUIVI_PDV!E57,SOURCE_EMP_ASV!J:J)) -> 585,309 | AB57: 121% | AD57: =Z57*SUIVI_REGION!$Z$4 -> 393,098 | AE57: 192,211 | AF57: =IF(SUMIF(SOURCE_EMP_ASV!D:D,SUIVI_PDV!E57,SOURCE_EMP_ASV!K:K)=0,"",(SUMIF(SOURCE_EMP_ASV!D:D,SUIVI_PDV!E57,SOURCE_EMP_ASV!L:L))/SUMIF(SOURCE_EMP_ASV!D:D,SUIVI_PDV!E57,SOURCE_EMP_ASV!K:K)) -> 0.42% | AG57: 0 € | AH57: =(SUMIF(EMPRUNT_CTO!H:H,SUIVI_PDV!D57,EMPRUNT_CTO!K:K)) -> 0 | AJ57: 4,956 | AK57: =(SUMIFS(ALIZE!P:P,ALIZE!H:H,D57))-(SUMIFS(ALIZE_2105!P:P,ALIZE_2105!H:H,D57)) -> 0 | AL57: =(SUMIFS(CORALIUM!P:P,CORALIUM!H:H,D57))-(SUMIFS(CORALIUM_2105!P:P,CORALIUM_2105!H:H,D57)) -> 0 | AM57: =(SUMIFS(PARMA_PEA!$N:$N,PARMA_PEA!$H:$H,$D57)) -> 4,956
A58: 50 | B58: AUBE HAUTE MARNE | C58: TROYES | D58: 470 | E58: 151350000470 | F58: 10570 | G58: =VLOOKUP(F58,Objectifs!G:H,2,FALSE) -> NOGENT SUR SEINE | I58: =VLOOKUP(F58,Objectifs!G:L,6,FALSE) -> 174,200 | J58: =(SUMIFS(SOURCE_PARTS_SOC!G:G,SOURCE_PARTS_SOC!E:E,F58))+(SUMIFS(ORCA_CARNET!E:E,ORCA_CARNET!C:C,F58)) -> 114,220 | K58: =(SUMIFS(SOURCE_PARTS_SOC!H:H,SOURCE_PARTS_SOC!E:E,F58))+(SUMIFS(ORCA_CARNET!F:F,ORCA_CARNET!C:C,F58)) -> 88,040 | L58: 66% | M58: 59,980 | N58: =I58*SUIVI_REGION!$I$4 -> 162,268 | O58: -48,048 | P58: =(SUMIFS(SOURCE_PARTS_SOC_0506!$I:$I,SOURCE_PARTS_SOC_0506!$E:$E,F58)) -> 121,100 | Q58: =(SUMIFS(SOURCE_PARTS_SOC!$I:$I,SOURCE_PARTS_SOC!$E:$E,F58))-P58 -> 0 | S58: =VLOOKUP(F58,Objectifs!G:K,5,FALSE) -> 56,600 | T58: =(SUMIFS(PILCOT_ELAN!$P:$P,PILCOT_ELAN!$H:$H,$D58)) -> 102,117 | U58: 180% | W58: =S58*SUIVI_REGION!$S$4 -> 40,429 | X58: 61,688 | Z58: =VLOOKUP(F58,Objectifs!G:M,7,FALSE) -> 606,400 | AA58: =(SUMIF(SOURCE_EMP_ASV!D:D,SUIVI_PDV!E58,SOURCE_EMP_ASV!J:J)) -> 836,214 | AB58: 138% | AD58: =Z58*SUIVI_REGION!$Z$4 -> 491,393 | AE58: 344,821 | AF58: =IF(SUMIF(SOURCE_EMP_ASV!D:D,SUIVI_PDV!E58,SOURCE_EMP_ASV!K:K)=0,"",(SUMIF(SOURCE_EMP_ASV!D:D,SUIVI_PDV!E58,SOURCE_EMP_ASV!L:L))/SUMIF(SOURCE_EMP_ASV!D:D,SUIVI_PDV!E58,SOURCE_EMP_ASV!K:K)) -> 0.27% | AG58: 0 € | AH58: =(SUMIF(EMPRUNT_CTO!H:H,SUIVI_PDV!D58,EMPRUNT_CTO!K:K)) -> 0 | AJ58: 0 | AK58: =(SUMIFS(ALIZE!P:P,ALIZE!H:H,D58))-(SUMIFS(ALIZE_2105!P:P,ALIZE_2105!H:H,D58)) -> 0 | AL58: =(SUMIFS(CORALIUM!P:P,CORALIUM!H:H,D58))-(SUMIFS(CORALIUM_2105!P:P,CORALIUM_2105!H:H,D58)) -> 0 | AM58: =(SUMIFS(PARMA_PEA!$N:$N,PARMA_PEA!$H:$H,$D58)) -> 0
A59: 50 | B59: AUBE HAUTE MARNE | C59: TROYES | D59: 471 | E59: 151350000471 | F59: 10571 | G59: =VLOOKUP(F59,Objectifs!G:H,2,FALSE) -> ROMILLY SUR SEINE | I59: =VLOOKUP(F59,Objectifs!G:L,6,FALSE) -> 243,900 | J59: =(SUMIFS(SOURCE_PARTS_SOC!G:G,SOURCE_PARTS_SOC!E:E,F59))+(SUMIFS(ORCA_CARNET!E:E,ORCA_CARNET!C:C,F59)) -> 33,820 | K59: =(SUMIFS(SOURCE_PARTS_SOC!H:H,SOURCE_PARTS_SOC!E:E,F59))+(SUMIFS(ORCA_CARNET!F:F,ORCA_CARNET!C:C,F59)) -> 17,080 | L59: 14% | M59: 210,080 | N59: =I59*SUIVI_REGION!$I$4 -> 227,195 | O59: -193,375 | P59: =(SUMIFS(SOURCE_PARTS_SOC_0506!$I:$I,SOURCE_PARTS_SOC_0506!$E:$E,F59)) -> 311,940 | Q59: =(SUMIFS(SOURCE_PARTS_SOC!$I:$I,SOURCE_PARTS_SOC!$E:$E,F59))-P59 -> 0 | S59: =VLOOKUP(F59,Objectifs!G:K,5,FALSE) -> 79,300 | T59: =(SUMIFS(PILCOT_ELAN!$P:$P,PILCOT_ELAN!$H:$H,$D59)) -> 102,592 | U59: 129% | W59: =S59*SUIVI_REGION!$S$4 -> 56,643 | X59: 45,949 | Z59: =VLOOKUP(F59,Objectifs!G:M,7,FALSE) -> 848,900 | AA59: =(SUMIF(SOURCE_EMP_ASV!D:D,SUIVI_PDV!E59,SOURCE_EMP_ASV!J:J)) -> 346,299 | AB59: 41% | AC59: 502,601 | AD59: =Z59*SUIVI_REGION!$Z$4 -> 687,902 | AE59: -341,603 | AF59: =IF(SUMIF(SOURCE_EMP_ASV!D:D,SUIVI_PDV!E59,SOURCE_EMP_ASV!K:K)=0,"",(SUMIF(SOURCE_EMP_ASV!D:D,SUIVI_PDV!E59,SOURCE_EMP_ASV!L:L))/SUMIF(SOURCE_EMP_ASV!D:D,SUIVI_PDV!E59,SOURCE_EMP_ASV!K:K)) -> 0.50% | AG59: 52,000 € | AH59: =(SUMIF(EMPRUNT_CTO!H:H,SUIVI_PDV!D59,EMPRUNT_CTO!K:K)) -> 520 | AJ59: 0 | AK59: =(SUMIFS(ALIZE!P:P,ALIZE!H:H,D59))-(SUMIFS(ALIZE_2105!P:P,ALIZE_2105!H:H,D59)) -> 0 | AL59: =(SUMIFS(CORALIUM!P:P,CORALIUM!H:H,D59))-(SUMIFS(CORALIUM_2105!P:P,CORALIUM_2105!H:H,D59)) -> 0 | AM59: =(SUMIFS(PARMA_PEA!$N:$N,PARMA_PEA!$H:$H,$D59)) -> 0
A60: 50 | B60: AUBE HAUTE MARNE | C60: TROYES | D60: 420 | E60: 151350000420 | F60: 10520 | G60: =VLOOKUP(F60,Objectifs!G:H,2,FALSE) -> SAINT ANDRE LES VERGERS | I60: =VLOOKUP(F60,Objectifs!G:L,6,FALSE) -> 174,200 | J60: =(SUMIFS(SOURCE_PARTS_SOC!G:G,SOURCE_PARTS_SOC!E:E,F60))+(SUMIFS(ORCA_CARNET!E:E,ORCA_CARNET!C:C,F60)) -> 27,700 | K60: =(SUMIFS(SOURCE_PARTS_SOC!H:H,SOURCE_PARTS_SOC!E:E,F60))+(SUMIFS(ORCA_CARNET!F:F,ORCA_CARNET!C:C,F60)) -> 24,840 | L60: 16% | M60: 146,500 | N60: =I60*SUIVI_REGION!$I$4 -> 162,268 | O60: -134,568 | P60: =(SUMIFS(SOURCE_PARTS_SOC_0506!$I:$I,SOURCE_PARTS_SOC_0506!$E:$E,F60)) -> 147,600 | Q60: =(SUMIFS(SOURCE_PARTS_SOC!$I:$I,SOURCE_PARTS_SOC!$E:$E,F60))-P60 -> 0 | S60: =VLOOKUP(F60,Objectifs!G:K,5,FALSE) -> 56,600 | T60: =(SUMIFS(PILCOT_ELAN!$P:$P,PILCOT_ELAN!$H:$H,$D60)) -> 54,782 | U60: 97% | V60: 1,818 | W60: =S60*SUIVI_REGION!$S$4 -> 40,429 | X60: 14,353 | Z60: =VLOOKUP(F60,Objectifs!G:M,7,FALSE) -> 606,400 | AA60: =(SUMIF(SOURCE_EMP_ASV!D:D,SUIVI_PDV!E60,SOURCE_EMP_ASV!J:J)) -> 468,179 | AB60: 77% | AC60: 138,221 | AD60: =Z60*SUIVI_REGION!$Z$4 -> 491,393 | AE60: -23,214 | AF60: =IF(SUMIF(SOURCE_EMP_ASV!D:D,SUIVI_PDV!E60,SOURCE_EMP_ASV!K:K)=0,"",(SUMIF(SOURCE_EMP_ASV!D:D,SUIVI_PDV!E60,SOURCE_EMP_ASV!L:L))/SUMIF(SOURCE_EMP_ASV!D:D,SUIVI_PDV!E60,SOURCE_EMP_ASV!K:K)) -> 0.48% | AG60: 0 € | AH60: =(SUMIF(EMPRUNT_CTO!H:H,SUIVI_PDV!D60,EMPRUNT_CTO!K:K)) -> 0 | AJ60: 0 | AK60: =(SUMIFS(ALIZE!P:P,ALIZE!H:H,D60))-(SUMIFS(ALIZE_2105!P:P,ALIZE_2105!H:H,D60)) -> 0 | AL60: =(SUMIFS(CORALIUM!P:P,CORALIUM!H:H,D60))-(SUMIFS(CORALIUM_2105!P:P,CORALIUM_2105!H:H,D60)) -> 0 | AM60: =(SUMIFS(PARMA_PEA!$N:$N,PARMA_PEA!$H:$H,$D60)) -> 0
A61: 50 | B61: AUBE HAUTE MARNE | C61: TROYES | D61: 424 | E61: 151350000424 | F61: 10524 | G61: =VLOOKUP(F61,Objectifs!G:H,2,FALSE) -> SAINT JULIEN LES VILLAS | I61: =VLOOKUP(F61,Objectifs!G:L,6,FALSE) -> 175,100 | J61: =(SUMIFS(SOURCE_PARTS_SOC!G:G,SOURCE_PARTS_SOC!E:E,F61))+(SUMIFS(ORCA_CARNET!E:E,ORCA_CARNET!C:C,F61)) -> 54,620 | K61: =(SUMIFS(SOURCE_PARTS_SOC!H:H,SOURCE_PARTS_SOC!E:E,F61))+(SUMIFS(ORCA_CARNET!F:F,ORCA_CARNET!C:C,F61)) -> 10,300 | L61: 31% | M61: 120,480 | N61: =I61*SUIVI_REGION!$I$4 -> 163,107 | O61: -108,487 | P61: =(SUMIFS(SOURCE_PARTS_SOC_0506!$I:$I,SOURCE_PARTS_SOC_0506!$E:$E,F61)) -> 166,840 | Q61: =(SUMIFS(SOURCE_PARTS_SOC!$I:$I,SOURCE_PARTS_SOC!$E:$E,F61))-P61 -> 5,060 | S61: =VLOOKUP(F61,Objectifs!G:K,5,FALSE) -> 56,900 | T61: =(SUMIFS(PILCOT_ELAN!$P:$P,PILCOT_ELAN!$H:$H,$D61)) -> 30,578 | U61: 54% | V61: 26,322 | W61: =S61*SUIVI_REGION!$S$4 -> 40,643 | X61: -10,065 | Z61: =VLOOKUP(F61,Objectifs!G:M,7,FALSE) -> 609,600 | AA61: =(SUMIF(SOURCE_EMP_ASV!D:D,SUIVI_PDV!E61,SOURCE_EMP_ASV!J:J)) -> 780,612 | AB61: 128% | AD61: =Z61*SUIVI_REGION!$Z$4 -> 493,986 | AE61: 286,626 | AF61: =IF(SUMIF(SOURCE_EMP_ASV!D:D,SUIVI_PDV!E61,SOURCE_EMP_ASV!K:K)=0,"",(SUMIF(SOURCE_EMP_ASV!D:D,SUIVI_PDV!E61,SOURCE_EMP_ASV!L:L))/SUMIF(SOURCE_EMP_ASV!D:D,SUIVI_PDV!E61,SOURCE_EMP_ASV!K:K)) -> 0.58% | AG61: 0 € | AH61: =(SUMIF(EMPRUNT_CTO!H:H,SUIVI_PDV!D61,EMPRUNT_CTO!K:K)) -> 0 | AJ61: 31,141 | AK61: =(SUMIFS(ALIZE!P:P,ALIZE!H:H,D61))-(SUMIFS(ALIZE_2105!P:P,ALIZE_2105!H:H,D61)) -> 23,211 | AL61: =(SUMIFS(CORALIUM!P:P,CORALIUM!H:H,D61))-(SUMIFS(CORALIUM_2105!P:P,CORALIUM_2105!H:H,D61)) -> 0 | AM61: =(SUMIFS(PARMA_PEA!$N:$N,PARMA_PEA!$H:$H,$D61)) -> 7,930
A62: 50 | B62: AUBE HAUTE MARNE | C62: TROYES | D62: 421 | E62: 151350000421 | F62: 10521 | G62: =VLOOKUP(F62,Objectifs!G:H,2,FALSE) -> SAINTE SAVINE | I62: =VLOOKUP(F62,Objectifs!G:L,6,FALSE) -> 184,500 | J62: =(SUMIFS(SOURCE_PARTS_SOC!G:G,SOURCE_PARTS_SOC!E:E,F62))+(SUMIFS(ORCA_CARNET!E:E,ORCA_CARNET!C:C,F62)) -> 63,160 | K62: =(SUMIFS(SOURCE_PARTS_SOC!H:H,SOURCE_PARTS_SOC!E:E,F62))+(SUMIFS(ORCA_CARNET!F:F,ORCA_CARNET!C:C,F62)) -> 55,040 | L62: 34% | M62: 121,340 | N62: =I62*SUIVI_REGION!$I$4 -> 171,863 | O62: -108,703 | P62: =(SUMIFS(SOURCE_PARTS_SOC_0506!$I:$I,SOURCE_PARTS_SOC_0506!$E:$E,F62)) -> 173,340 | Q62: =(SUMIFS(SOURCE_PARTS_SOC!$I:$I,SOURCE_PARTS_SOC!$E:$E,F62))-P62 -> 11,980 | S62: =VLOOKUP(F62,Objectifs!G:K,5,FALSE) -> 60,000 | T62: =(SUMIFS(PILCOT_ELAN!$P:$P,PILCOT_ELAN!$H:$H,$D62)) -> 22,453 | U62: 37% | V62: 37,547 | W62: =S62*SUIVI_REGION!$S$4 -> 42,857 | X62: -20,404 | Z62: =VLOOKUP(F62,Objectifs!G:M,7,FALSE) -> 642,200 | AA62: =(SUMIF(SOURCE_EMP_ASV!D:D,SUIVI_PDV!E62,SOURCE_EMP_ASV!J:J)) -> 669,755 | AB62: 104% | AD62: =Z62*SUIVI_REGION!$Z$4 -> 520,403 | AE62: 149,352 | AF62: =IF(SUMIF(SOURCE_EMP_ASV!D:D,SUIVI_PDV!E62,SOURCE_EMP_ASV!K:K)=0,"",(SUMIF(SOURCE_EMP_ASV!D:D,SUIVI_PDV!E62,SOURCE_EMP_ASV!L:L))/SUMIF(SOURCE_EMP_ASV!D:D,SUIVI_PDV!E62,SOURCE_EMP_ASV!K:K)) -> 0.41% | AG62: 200,000 € | AH62: =(SUMIF(EMPRUNT_CTO!H:H,SUIVI_PDV!D62,EMPRUNT_CTO!K:K)) -> 2,000 | AJ62: 16,960 | AK62: =(SUMIFS(ALIZE!P:P,ALIZE!H:H,D62))-(SUMIFS(ALIZE_2105!P:P,ALIZE_2105!H:H,D62)) -> 0 | AL62: =(SUMIFS(CORALIUM!P:P,CORALIUM!H:H,D62))-(SUMIFS(CORALIUM_2105!P:P,CORALIUM_2105!H:H,D62)) -> 16,960 | AM62: =(SUMIFS(PARMA_PEA!$N:$N,PARMA_PEA!$H:$H,$D62)) -> 0
A63: 50 | B63: AUBE HAUTE MARNE | C63: TROYES | D63: 483 | E63: 151350000483 | F63: 10583 | G63: =VLOOKUP(F63,Objectifs!G:H,2,FALSE) -> AIX EN OTHE | I63: =VLOOKUP(F63,Objectifs!G:L,6,FALSE) -> 69,700 | J63: =(SUMIFS(SOURCE_PARTS_SOC!G:G,SOURCE_PARTS_SOC!E:E,F63))+(SUMIFS(ORCA_CARNET!E:E,ORCA_CARNET!C:C,F63)) -> 2,480 | K63: =(SUMIFS(SOURCE_PARTS_SOC!H:H,SOURCE_PARTS_SOC!E:E,F63))+(SUMIFS(ORCA_CARNET!F:F,ORCA_CARNET!C:C,F63)) -> 1,600 | L63: 4% | M63: 67,220 | N63: =I63*SUIVI_REGION!$I$4 -> 64,926 | O63: -62,446 | P63: =(SUMIFS(SOURCE_PARTS_SOC_0506!$I:$I,SOURCE_PARTS_SOC_0506!$E:$E,F63)) -> 42,300 | Q63: =(SUMIFS(SOURCE_PARTS_SOC!$I:$I,SOURCE_PARTS_SOC!$E:$E,F63))-P63 -> 20 | S63: =VLOOKUP(F63,Objectifs!G:K,5,FALSE) -> 22,600 | T63: =(SUMIFS(PILCOT_ELAN!$P:$P,PILCOT_ELAN!$H:$H,$D63)) -> 2,986 | U63: 13% | V63: 19,614 | W63: =S63*SUIVI_REGION!$S$4 -> 16,143 | X63: -13,157 | Z63: =VLOOKUP(F63,Objectifs!G:M,7,FALSE) -> 242,500 | AA63: =(SUMIF(SOURCE_EMP_ASV!D:D,SUIVI_PDV!E63,SOURCE_EMP_ASV!J:J)) -> 211,661 | AB63: 87% | AC63: 30,839 | AD63: =Z63*SUIVI_REGION!$Z$4 -> 196,509 | AE63: 15,153 | AF63: =IF(SUMIF(SOURCE_EMP_ASV!D:D,SUIVI_PDV!E63,SOURCE_EMP_ASV!K:K)=0,"",(SUMIF(SOURCE_EMP_ASV!D:D,SUIVI_PDV!E63,SOURCE_EMP_ASV!L:L))/SUMIF(SOURCE_EMP_ASV!D:D,SUIVI_PDV!E63,SOURCE_EMP_ASV!K:K)) -> 0.50% | AG63: 0 € | AH63: =(SUMIF(EMPRUNT_CTO!H:H,SUIVI_PDV!D63,EMPRUNT_CTO!K:K)) -> 0 | AJ63: 0 | AK63: =(SUMIFS(ALIZE!P:P,ALIZE!H:H,D63))-(SUMIFS(ALIZE_2105!P:P,ALIZE_2105!H:H,D63)) -> 0 | AL63: =(SUMIFS(CORALIUM!P:P,CORALIUM!H:H,D63))-(SUMIFS(CORALIUM_2105!P:P,CORALIUM_2105!H:H,D63)) -> 0 | AM63: =(SUMIFS(PARMA_PEA!$N:$N,PARMA_PEA!$H:$H,$D63)) -> 0
A64: 50 | B64: AUBE HAUTE MARNE | C64: TROYES | D64: 410 | E64: 151350000410 | F64: 10510 | G64: =VLOOKUP(F64,Objectifs!G:H,2,FALSE) -> TROYES GAMBETTA | I64: =VLOOKUP(F64,Objectifs!G:L,6,FALSE) -> 332,300 | J64: =(SUMIFS(SOURCE_PARTS_SOC!G:G,SOURCE_PARTS_SOC!E:E,F64))+(SUMIFS(ORCA_CARNET!E:E,ORCA_CARNET!C:C,F64)) -> 86,840 | K64: =(SUMIFS(SOURCE_PARTS_SOC!H:H,SOURCE_PARTS_SOC!E:E,F64))+(SUMIFS(ORCA_CARNET!F:F,ORCA_CARNET!C:C,F64)) -> 15,600 | L64: 26% | M64: 245,460 | N64: =I64*SUIVI_REGION!$I$4 -> 309,540 | O64: -222,700 | P64: =(SUMIFS(SOURCE_PARTS_SOC_0506!$I:$I,SOURCE_PARTS_SOC_0506!$E:$E,F64)) -> 437,600 | Q64: =(SUMIFS(SOURCE_PARTS_SOC!$I:$I,SOURCE_PARTS_SOC!$E:$E,F64))-P64 -> 11,180 | S64: =VLOOKUP(F64,Objectifs!G:K,5,FALSE) -> 108,000 | T64: =(SUMIFS(PILCOT_ELAN!$P:$P,PILCOT_ELAN!$H:$H,$D64)) -> 43,300 | U64: 40% | V64: 64,700 | W64: =S64*SUIVI_REGION!$S$4 -> 77,143 | X64: -33,843 | Z64: =VLOOKUP(F64,Objectifs!G:M,7,FALSE) -> 1,156,600 | AA64: =(SUMIF(SOURCE_EMP_ASV!D:D,SUIVI_PDV!E64,SOURCE_EMP_ASV!J:J)) -> 871,438 | AB64: 75% | AC64: 285,162 | AD64: =Z64*SUIVI_REGION!$Z$4 -> 937,245 | AE64: -65,807 | AF64: =IF(SUMIF(SOURCE_EMP_ASV!D:D,SUIVI_PDV!E64,SOURCE_EMP_ASV!K:K)=0,"",(SUMIF(SOURCE_EMP_ASV!D:D,SUIVI_PDV!E64,SOURCE_EMP_ASV!L:L))/SUMIF(SOURCE_EMP_ASV!D:D,SUIVI_PDV!E64,SOURCE_EMP_ASV!K:K)) -> 0.46% | AG64: 0 € | AH64: =(SUMIF(EMPRUNT_CTO!H:H,SUIVI_PDV!D64,EMPRUNT_CTO!K:K)) -> 0 | AJ64: 4,401 | AK64: =(SUMIFS(ALIZE!P:P,ALIZE!H:H,D64))-(SUMIFS(ALIZE_2105!P:P,ALIZE_2105!H:H,D64)) -> 0 | AL64: =(SUMIFS(CORALIUM!P:P,CORALIUM!H:H,D64))-(SUMIFS(CORALIUM_2105!P:P,CORALIUM_2105!H:H,D64)) -> 0 | AM64: =(SUMIFS(PARMA_PEA!$N:$N,PARMA_PEA!$H:$H,$D64)) -> 4,401
A65: 50 | B65: AUBE HAUTE MARNE | C65: TROYES | D65: 413 | E65: 151350000413 | F65: 10513 | G65: =VLOOKUP(F65,Objectifs!G:H,2,FALSE) -> SAINT PARRES AUX TERTRES | I65: =VLOOKUP(F65,Objectifs!G:L,6,FALSE) -> 139,400 | J65: =(SUMIFS(SOURCE_PARTS_SOC!G:G,SOURCE_PARTS_SOC!E:E,F65))+(SUMIFS(ORCA_CARNET!E:E,ORCA_CARNET!C:C,F65)) -> 79,160 | K65: =(SUMIFS(SOURCE_PARTS_SOC!H:H,SOURCE_PARTS_SOC!E:E,F65))+(SUMIFS(ORCA_CARNET!F:F,ORCA_CARNET!C:C,F65)) -> 48,460 | L65: =IFERROR(J65/I65," ") -> 57% | M65: =IF(J65>I65," ",I65-J65) -> 60,240 | N65: =I65*SUIVI_REGION!$I$4 -> 129,852 | O65: =J65-N65 -> -50,692 | P65: =(SUMIFS(SOURCE_PARTS_SOC_0506!$I:$I,SOURCE_PARTS_SOC_0506!$E:$E,F65)) -> 118,100 | Q65: =(SUMIFS(SOURCE_PARTS_SOC!$I:$I,SOURCE_PARTS_SOC!$E:$E,F65))-P65 -> 6,140 | S65: =VLOOKUP(F65,Objectifs!G:K,5,FALSE) -> 45,300 | T65: =(SUMIFS(PILCOT_ELAN!$P:$P,PILCOT_ELAN!$H:$H,$D65)) -> 14,106 | U65: =IFERROR(T65/S65," ") -> 31% | V65: 31,194 | W65: =S65*SUIVI_REGION!$S$4 -> 32,357 | X65: -18,251 | Z65: =VLOOKUP(F65,Objectifs!G:M,7,FALSE) -> 485,100 | AA65: =(SUMIF(SOURCE_EMP_ASV!D:D,SUIVI_PDV!E65,SOURCE_EMP_ASV!J:J)) -> 481,618 | AB65: 99% | AC65: 3,482 | AD65: =Z65*SUIVI_REGION!$Z$4 -> 393,098 | AE65: 88,519 | AF65: =IF(SUMIF(SOURCE_EMP_ASV!D:D,SUIVI_PDV!E65,SOURCE_EMP_ASV!K:K)=0,"",(SUMIF(SOURCE_EMP_ASV!D:D,SUIVI_PDV!E65,SOURCE_EMP_ASV!L:L))/SUMIF(SOURCE_EMP_ASV!D:D,SUIVI_PDV!E65,SOURCE_EMP_ASV!K:K)) -> 0.60% | AG65: 0 € | AH65: =(SUMIF(EMPRUNT_CTO!H:H,SUIVI_PDV!D65,EMPRUNT_CTO!K:K)) -> 0 | AJ65: 21,473 | AK65: =(SUMIFS(ALIZE!P:P,ALIZE!H:H,D65))-(SUMIFS(ALIZE_2105!P:P,ALIZE_2105!H:H,D65)) -> 21,473 | AL65: =(SUMIFS(CORALIUM!P:P,CORALIUM!H:H,D65))-(SUMIFS(CORALIUM_2105!P:P,CORALIUM_2105!H:H,D65)) -> 0 | AM65: =(SUMIFS(PARMA_PEA!$N:$N,PARMA_PEA!$H:$H,$D65)) -> 0
A66: 50 | B66: AUBE HAUTE MARNE | C66: TROYES | D66: 423 | E66: 151350000423 | F66: 10523 | G66: =VLOOKUP(F66,Objectifs!G:H,2,FALSE) -> LA CHAPELLE ST LUC | I66: =VLOOKUP(F66,Objectifs!G:L,6,FALSE) -> 139,400 | J66: =(SUMIFS(SOURCE_PARTS_SOC!G:G,SOURCE_PARTS_SOC!E:E,F66))+(SUMIFS(ORCA_CARNET!E:E,ORCA_CARNET!C:C,F66)) -> 71,320 | K66: =(SUMIFS(SOURCE_PARTS_SOC!H:H,SOURCE_PARTS_SOC!E:E,F66))+(SUMIFS(ORCA_CARNET!F:F,ORCA_CARNET!C:C,F66)) -> 19,500 | L66: 51% | M66: 68,080 | N66: =I66*SUIVI_REGION!$I$4 -> 129,852 | O66: -58,532 | P66: =(SUMIFS(SOURCE_PARTS_SOC_0506!$I:$I,SOURCE_PARTS_SOC_0506!$E:$E,F66)) -> 154,340 | Q66: =(SUMIFS(SOURCE_PARTS_SOC!$I:$I,SOURCE_PARTS_SOC!$E:$E,F66))-P66 -> 1,340 | S66: =VLOOKUP(F66,Objectifs!G:K,5,FALSE) -> 45,300 | T66: =(SUMIFS(PILCOT_ELAN!$P:$P,PILCOT_ELAN!$H:$H,$D66)) -> 0 | U66: 0% | V66: 45,300 | W66: =S66*SUIVI_REGION!$S$4 -> 32,357 | X66: -32,357 | Z66: =VLOOKUP(F66,Objectifs!G:M,7,FALSE) -> 485,100 | AA66: =(SUMIF(SOURCE_EMP_ASV!D:D,SUIVI_PDV!E66,SOURCE_EMP_ASV!J:J)) -> 226,946 | AB66: 47% | AC66: 258,154 | AD66: =Z66*SUIVI_REGION!$Z$4 -> 393,098 | AE66: -166,152 | AF66: =IF(SUMIF(SOURCE_EMP_ASV!D:D,SUIVI_PDV!E66,SOURCE_EMP_ASV!K:K)=0,"",(SUMIF(SOURCE_EMP_ASV!D:D,SUIVI_PDV!E66,SOURCE_EMP_ASV!L:L))/SUMIF(SOURCE_EMP_ASV!D:D,SUIVI_PDV!E66,SOURCE_EMP_ASV!K:K)) -> 0.54% | AG66: 0 € | AH66: =(SUMIF(EMPRUNT_CTO!H:H,SUIVI_PDV!D66,EMPRUNT_CTO!K:K)) -> 0 | AJ66: 0 | AK66: =(SUMIFS(ALIZE!P:P,ALIZE!H:H,D66))-(SUMIFS(ALIZE_2105!P:P,ALIZE_2105!H:H,D66)) -> 0 | AL66: =(SUMIFS(CORALIUM!P:P,CORALIUM!H:H,D66))-(SUMIFS(CORALIUM_2105!P:P,CORALIUM_2105!H:H,D66)) -> 0 | AM66: =(SUMIFS(PARMA_PEA!$N:$N,PARMA_PEA!$H:$H,$D66)) -> 0
A67: 50 | B67: AUBE HAUTE MARNE | C67: TROYES | D67: 412 | E67: 151350000412 | F67: 10512 | G67: =VLOOKUP(F67,Objectifs!G:H,2,FALSE) -> TROYES ZOLA | I67: =VLOOKUP(F67,Objectifs!G:L,6,FALSE) -> 212,200 | J67: =(SUMIFS(SOURCE_PARTS_SOC!G:G,SOURCE_PARTS_SOC!E:E,F67))+(SUMIFS(ORCA_CARNET!E:E,ORCA_CARNET!C:C,F67)) -> 23,900 | K67: =(SUMIFS(SOURCE_PARTS_SOC!H:H,SOURCE_PARTS_SOC!E:E,F67))+(SUMIFS(ORCA_CARNET!F:F,ORCA_CARNET!C:C,F67)) -> 5,440 | L67: 11% | M67: 188,300 | N67: =I67*SUIVI_REGION!$I$4 -> 197,666 | O67: -173,766 | P67: =(SUMIFS(SOURCE_PARTS_SOC_0506!$I:$I,SOURCE_PARTS_SOC_0506!$E:$E,F67)) -> 298,280 | Q67: =(SUMIFS(SOURCE_PARTS_SOC!$I:$I,SOURCE_PARTS_SOC!$E:$E,F67))-P67 -> 0 | S67: =VLOOKUP(F67,Objectifs!G:K,5,FALSE) -> 69,000 | T67: =(SUMIFS(PILCOT_ELAN!$P:$P,PILCOT_ELAN!$H:$H,$D67)) -> 24,179 | U67: 35% | V67: 44,821 | W67: =S67*SUIVI_REGION!$S$4 -> 49,286 | X67: -25,106 | Z67: =VLOOKUP(F67,Objectifs!G:M,7,FALSE) -> 738,600 | AA67: =(SUMIF(SOURCE_EMP_ASV!D:D,SUIVI_PDV!E67,SOURCE_EMP_ASV!J:J)) -> 797,162 | AB67: =IFERROR(AA67/Z67," ") -> 108% | AC67: =IF(AA67>Z67," ",Z67-AA67) ->  | AD67: =Z67*SUIVI_REGION!$Z$4 -> 598,521 | AE67: =AA67-AD67 -> 198,641 | AF67: =IF(SUMIF(SOURCE_EMP_ASV!D:D,SUIVI_PDV!E67,SOURCE_EMP_ASV!K:K)=0,"",(SUMIF(SOURCE_EMP_ASV!D:D,SUIVI_PDV!E67,SOURCE_EMP_ASV!L:L))/SUMIF(SOURCE_EMP_ASV!D:D,SUIVI_PDV!E67,SOURCE_EMP_ASV!K:K)) -> 0.42% | AG67: 0 € | AH67: =(SUMIF(EMPRUNT_CTO!H:H,SUIVI_PDV!D67,EMPRUNT_CTO!K:K)) -> 0 | AJ67: 0 | AK67: =(SUMIFS(ALIZE!P:P,ALIZE!H:H,D67))-(SUMIFS(ALIZE_2105!P:P,ALIZE_2105!H:H,D67)) -> 0 | AL67: =(SUMIFS(CORALIUM!P:P,CORALIUM!H:H,D67))-(SUMIFS(CORALIUM_2105!P:P,CORALIUM_2105!H:H,D67)) -> 0 | AM67: =(SUMIFS(PARMA_PEA!$N:$N,PARMA_PEA!$H:$H,$D67)) -> 0
A68: 50 | C68: Total Territoire TROYES | G68: TROYES | I68: =SUBTOTAL(9,I54:I67) -> 2,297,900 | J68: =SUBTOTAL(9,J54:J67) -> 673,620 | K68: 310,360 | L68: 29% | M68: 1,624,280 | N68: =I68*SUIVI_REGION!$I$4 -> 2,140,510 | O68: -1,466,890 | P68: =SUBTOTAL(9,P54:P67) -> 2,461,960 | Q68: =SUBTOTAL(9,Q54:Q67) -> 59,520 | S68: =SUBTOTAL(9,S54:S67) -> 746,800 | T68: =SUBTOTAL(9,T54:T67) -> 510,740 | U68: 68% | V68: 236,060 | W68: =S68*SUIVI_REGION!$S$4 -> 533,429 | X68: -22,689 | Z68: =SUBTOTAL(9,Z54:Z67) -> 7,998,000 | AA68: =SUBTOTAL(9,AA54:AA67) -> 7,630,638 | AB68: 95% | AC68: 367,362 | AD68: =Z68*SUIVI_REGION!$Z$4 -> 6,481,138 | AE68: 1,149,500 | AF68: =IF(SUMIF(SOURCE_EMP_ASV!B:B,G68,SOURCE_EMP_ASV!K:K)=0,"",(SUMIF(SOURCE_EMP_ASV!B:B,G68,SOURCE_EMP_ASV!L:L))/(SUMIF(SOURCE_EMP_ASV!B:B,G68,SOURCE_EMP_ASV!K:K))) -> 0.45% | AG68: =AH68*100 -> 252,000 € | AH68: =SUBTOTAL(9,AH54:AH67) -> 2,520 | AJ68: =AK68+AL68+AM68 -> 120,394 | AK68: =SUBTOTAL(9,AK54:AK67) -> 86,146 | AL68: =SUBTOTAL(9,AL54:AL67) -> 16,960 | AM68: =SUBTOTAL(9,AM54:AM67) -> 17,287
A69: 50 | B69: Total AUBE HAUTE MARNE | G69: AUBE HAUTE MARNE | I69: =SUBTOTAL(9,I43:I68) -> 3,447,600 | J69: =SUBTOTAL(9,J43:J68) -> 900,560 | K69: 350,980 | L69: 26% | M69: 2,547,040 | N69: =I69*SUIVI_REGION!$I$4 -> 3,211,463 | O69: -2,310,903 | P69: =SUBTOTAL(9,P43:P68) -> 3,721,400 | Q69: =SUBTOTAL(9,Q43:Q68) -> 107,200 | S69: =SUBTOTAL(9,S43:S68) -> 1,120,200 | T69: =SUBTOTAL(9,T43:T68) -> 619,486 | U69: 55% | V69: 500,714 | W69: =S69*SUIVI_REGION!$S$4 -> 800,143 | X69: -180,657 | Z69: =SUBTOTAL(9,Z43:Z68) -> 12,000,000 | AA69: =SUBTOTAL(9,AA43:AA68) -> 11,720,538 | AB69: 98% | AC69: 279,462 | AD69: =Z69*SUIVI_REGION!$Z$4 -> 9,724,138 | AE69: 1,996,400 | AF69: =IF(SUMIF(SOURCE_EMP_ASV!A:A,G69,SOURCE_EMP_ASV!K:K)=0,"",(SUMIF(SOURCE_EMP_ASV!A:A,G69,SOURCE_EMP_ASV!L:L))/(SUMIF(SOURCE_EMP_ASV!A:A,G69,SOURCE_EMP_ASV!K:K))) -> 0.43% | AG69: 260,000 € | AH69: =SUBTOTAL(9,AH43:AH68) -> 2,600 | AJ69: 261,217 | AK69: =SUBTOTAL(9,AK43:AK68) -> 225,647 | AL69: =SUBTOTAL(9,AL43:AL68) -> 18,283 | AM69: =SUBTOTAL(9,AM43:AM68) -> 17,287
A70: 80 | B70: VOSGES | C70: EPINAL | D70: 523 | E70: 151350000523 | F70: 88201 | G70: =VLOOKUP(F70,Objectifs!G:H,2,FALSE) -> CHANTRAINE | I70: =VLOOKUP(F70,Objectifs!G:L,6,FALSE) -> 107,900 | J70: =(SUMIFS(SOURCE_PARTS_SOC!G:G,SOURCE_PARTS_SOC!E:E,F70))+(SUMIFS(ORCA_CARNET!E:E,ORCA_CARNET!C:C,F70)) -> 89,760 | K70: =(SUMIFS(SOURCE_PARTS_SOC!H:H,SOURCE_PARTS_SOC!E:E,F70))+(SUMIFS(ORCA_CARNET!F:F,ORCA_CARNET!C:C,F70)) -> 39,780 | L70: 83% | M70: 18,140 | N70: =I70*SUIVI_REGION!$I$4 -> 100,510 | O70: -10,750 | P70: =(SUMIFS(SOURCE_PARTS_SOC_0506!$I:$I,SOURCE_PARTS_SOC_0506!$E:$E,F70)) -> 239,200 | Q70: =(SUMIFS(SOURCE_PARTS_SOC!$I:$I,SOURCE_PARTS_SOC!$E:$E,F70))-P70 -> 22,700 | S70: =VLOOKUP(F70,Objectifs!G:K,5,FALSE) -> 35,100 | T70: =(SUMIFS(PILCOT_ELAN!$P:$P,PILCOT_ELAN!$H:$H,$D70)) -> 0 | U70: 0% | V70: 35,100 | W70: =S70*SUIVI_REGION!$S$4 -> 25,071 | X70: -25,071 | Z70: =VLOOKUP(F70,Objectifs!G:M,7,FALSE) -> 361,900 | AA70: =(SUMIF(SOURCE_EMP_ASV!D:D,SUIVI_PDV!E70,SOURCE_EMP_ASV!J:J)) -> 227,858 | AB70: 63% | AC70: 134,042 | AD70: =Z70*SUIVI_REGION!$Z$4 -> 293,264 | AE70: -65,406 | AF70: =IF(SUMIF(SOURCE_EMP_ASV!D:D,SUIVI_PDV!E70,SOURCE_EMP_ASV!K:K)=0,"",(SUMIF(SOURCE_EMP_ASV!D:D,SUIVI_PDV!E70,SOURCE_EMP_ASV!L:L))/SUMIF(SOURCE_EMP_ASV!D:D,SUIVI_PDV!E70,SOURCE_EMP_ASV!K:K)) -> 0.33% | AG70: 0 € | AH70: =(SUMIF(EMPRUNT_CTO!H:H,SUIVI_PDV!D70,EMPRUNT_CTO!K:K)) -> 0 | AJ70: 12,727 | AK70: =(SUMIFS(ALIZE!P:P,ALIZE!H:H,D70))-(SUMIFS(ALIZE_2105!P:P,ALIZE_2105!H:H,D70)) -> 6,413 | AL70: =(SUMIFS(CORALIUM!P:P,CORALIUM!H:H,D70))-(SUMIFS(CORALIUM_2105!P:P,CORALIUM_2105!H:H,D70)) -> 6,315 | AM70: =(SUMIFS(PARMA_PEA!$N:$N,PARMA_PEA!$H:$H,$D70)) -> 0
A71: 80 | B71: VOSGES | C71: EPINAL | D71: 539 | E71: 151350000539 | F71: 88286 | G71: =VLOOKUP(F71,Objectifs!G:H,2,FALSE) -> EPINAL ARISTIDE BRIAND | I71: =VLOOKUP(F71,Objectifs!G:L,6,FALSE) -> 348,400 | J71: =(SUMIFS(SOURCE_PARTS_SOC!G:G,SOURCE_PARTS_SOC!E:E,F71))+(SUMIFS(ORCA_CARNET!E:E,ORCA_CARNET!C:C,F71)) -> 127,420 | K71: =(SUMIFS(SOURCE_PARTS_SOC!H:H,SOURCE_PARTS_SOC!E:E,F71))+(SUMIFS(ORCA_CARNET!F:F,ORCA_CARNET!C:C,F71)) -> 30,460 | L71: 37% | M71: 220,980 | N71: =I71*SUIVI_REGION!$I$4 -> 324,537 | O71: -197,117 | P71: =(SUMIFS(SOURCE_PARTS_SOC_0506!$I:$I,SOURCE_PARTS_SOC_0506!$E:$E,F71)) -> 346,980 | Q71: =(SUMIFS(SOURCE_PARTS_SOC!$I:$I,SOURCE_PARTS_SOC!$E:$E,F71))-P71 -> 17,060 | S71: =VLOOKUP(F71,Objectifs!G:K,5,FALSE) -> 113,200 | T71: =(SUMIFS(PILCOT_ELAN!$P:$P,PILCOT_ELAN!$H:$H,$D71)) -> 71,452 | U71: 63% | V71: 41,748 | W71: =S71*SUIVI_REGION!$S$4 -> 80,857 | X71: -9,405 | Z71: =VLOOKUP(F71,Objectifs!G:M,7,FALSE) -> 1,168,100 | AA71: =(SUMIF(SOURCE_EMP_ASV!D:D,SUIVI_PDV!E71,SOURCE_EMP_ASV!J:J)) -> 147,782 | AB71: 13% | AC71: 1,020,318 | AD71: =Z71*SUIVI_REGION!$Z$4 -> 946,564 | AE71: -798,781 | AF71: =IF(SUMIF(SOURCE_EMP_ASV!D:D,SUIVI_PDV!E71,SOURCE_EMP_ASV!K:K)=0,"",(SUMIF(SOURCE_EMP_ASV!D:D,SUIVI_PDV!E71,SOURCE_EMP_ASV!L:L))/SUMIF(SOURCE_EMP_ASV!D:D,SUIVI_PDV!E71,SOURCE_EMP_ASV!K:K)) -> 0.25% | AG71: 0 € | AH71: =(SUMIF(EMPRUNT_CTO!H:H,SUIVI_PDV!D71,EMPRUNT_CTO!K:K)) -> 0 | AJ71: 120 | AK71: =(SUMIFS(ALIZE!P:P,ALIZE!H:H,D71))-(SUMIFS(ALIZE_2105!P:P,ALIZE_2105!H:H,D71)) -> 120 | AL71: =(SUMIFS(CORALIUM!P:P,CORALIUM!H:H,D71))-(SUMIFS(CORALIUM_2105!P:P,CORALIUM_2105!H:H,D71)) -> 0 | AM71: =(SUMIFS(PARMA_PEA!$N:$N,PARMA_PEA!$H:$H,$D71)) -> 0
A72: 80 | B72: VOSGES | C72: EPINAL | D72: 541 | E72: 151350000541 | F72: 88288 | G72: =VLOOKUP(F72,Objectifs!G:H,2,FALSE) -> EPINAL LEOPOLD BOURG | I72: =VLOOKUP(F72,Objectifs!G:L,6,FALSE) -> 69,700 | J72: =(SUMIFS(SOURCE_PARTS_SOC!G:G,SOURCE_PARTS_SOC!E:E,F72))+(SUMIFS(ORCA_CARNET!E:E,ORCA_CARNET!C:C,F72)) -> 172,080 | K72: =(SUMIFS(SOURCE_PARTS_SOC!H:H,SOURCE_PARTS_SOC!E:E,F72))+(SUMIFS(ORCA_CARNET!F:F,ORCA_CARNET!C:C,F72)) -> 28,720 | L72: 247% | N72: =I72*SUIVI_REGION!$I$4 -> 64,926 | O72: 107,154 | P72: =(SUMIFS(SOURCE_PARTS_SOC_0506!$I:$I,SOURCE_PARTS_SOC_0506!$E:$E,F72)) -> 214,680 | Q72: =(SUMIFS(SOURCE_PARTS_SOC!$I:$I,SOURCE_PARTS_SOC!$E:$E,F72))-P72 -> 0 | S72: =VLOOKUP(F72,Objectifs!G:K,5,FALSE) -> 22,600 | T72: =(SUMIFS(PILCOT_ELAN!$P:$P,PILCOT_ELAN!$H:$H,$D72)) -> 7,855 | U72: 35% | V72: 14,745 | W72: =S72*SUIVI_REGION!$S$4 -> 16,143 | X72: -8,288 | Z72: =VLOOKUP(F72,Objectifs!G:M,7,FALSE) -> 233,600 | AA72: =(SUMIF(SOURCE_EMP_ASV!D:D,SUIVI_PDV!E72,SOURCE_EMP_ASV!J:J)) -> 295,606 | AB72: 127% | AD72: =Z72*SUIVI_REGION!$Z$4 -> 189,297 | AE72: 106,309 | AF72: =IF(SUMIF(SOURCE_EMP_ASV!D:D,SUIVI_PDV!E72,SOURCE_EMP_ASV!K:K)=0,"",(SUMIF(SOURCE_EMP_ASV!D:D,SUIVI_PDV!E72,SOURCE_EMP_ASV!L:L))/SUMIF(SOURCE_EMP_ASV!D:D,SUIVI_PDV!E72,SOURCE_EMP_ASV!K:K)) -> 0.35% | AG72: 0 € | AH72: =(SUMIF(EMPRUNT_CTO!H:H,SUIVI_PDV!D72,EMPRUNT_CTO!K:K)) -> 0 | AJ72: 10,000 | AK72: =(SUMIFS(ALIZE!P:P,ALIZE!H:H,D72))-(SUMIFS(ALIZE_2105!P:P,ALIZE_2105!H:H,D72)) -> 10,000 | AL72: =(SUMIFS(CORALIUM!P:P,CORALIUM!H:H,D72))-(SUMIFS(CORALIUM_2105!P:P,CORALIUM_2105!H:H,D72)) -> 0 | AM72: =(SUMIFS(PARMA_PEA!$N:$N,PARMA_PEA!$H:$H,$D72)) -> 0
A73: 80 | B73: VOSGES | C73: EPINAL | D73: 555 | E73: 151350000555 | F73: 88336 | G73: =VLOOKUP(F73,Objectifs!G:H,2,FALSE) -> GOLBEY | I73: =VLOOKUP(F73,Objectifs!G:L,6,FALSE) -> 104,500 | J73: =(SUMIFS(SOURCE_PARTS_SOC!G:G,SOURCE_PARTS_SOC!E:E,F73))+(SUMIFS(ORCA_CARNET!E:E,ORCA_CARNET!C:C,F73)) -> 3,780 | K73: =(SUMIFS(SOURCE_PARTS_SOC!H:H,SOURCE_PARTS_SOC!E:E,F73))+(SUMIFS(ORCA_CARNET!F:F,ORCA_CARNET!C:C,F73)) -> 0 | L73: 4% | M73: 100,720 | N73: =I73*SUIVI_REGION!$I$4 -> 97,342 | O73: -93,562 | P73: =(SUMIFS(SOURCE_PARTS_SOC_0506!$I:$I,SOURCE_PARTS_SOC_0506!$E:$E,F73)) -> 64,580 | Q73: =(SUMIFS(SOURCE_PARTS_SOC!$I:$I,SOURCE_PARTS_SOC!$E:$E,F73))-P73 -> 1,820 | S73: =VLOOKUP(F73,Objectifs!G:K,5,FALSE) -> 34,000 | T73: =(SUMIFS(PILCOT_ELAN!$P:$P,PILCOT_ELAN!$H:$H,$D73)) -> 0 | U73: 0% | V73: 34,000 | W73: =S73*SUIVI_REGION!$S$4 -> 24,286 | X73: -24,286 | Z73: =VLOOKUP(F73,Objectifs!G:M,7,FALSE) -> 350,400 | AA73: =(SUMIF(SOURCE_EMP_ASV!D:D,SUIVI_PDV!E73,SOURCE_EMP_ASV!J:J)) -> 351,046 | AB73: 100% | AD73: =Z73*SUIVI_REGION!$Z$4 -> 283,945 | AE73: 67,101 | AF73: =IF(SUMIF(SOURCE_EMP_ASV!D:D,SUIVI_PDV!E73,SOURCE_EMP_ASV!K:K)=0,"",(SUMIF(SOURCE_EMP_ASV!D:D,SUIVI_PDV!E73,SOURCE_EMP_ASV!L:L))/SUMIF(SOURCE_EMP_ASV!D:D,SUIVI_PDV!E73,SOURCE_EMP_ASV!K:K)) -> 0.50% | AG73: 0 € | AH73: =(SUMIF(EMPRUNT_CTO!H:H,SUIVI_PDV!D73,EMPRUNT_CTO!K:K)) -> 0 | AJ73: 0 | AK73: =(SUMIFS(ALIZE!P:P,ALIZE!H:H,D73))-(SUMIFS(ALIZE_2105!P:P,ALIZE_2105!H:H,D73)) -> 0 | AL73: =(SUMIFS(CORALIUM!P:P,CORALIUM!H:H,D73))-(SUMIFS(CORALIUM_2105!P:P,CORALIUM_2105!H:H,D73)) -> 0 | AM73: =(SUMIFS(PARMA_PEA!$N:$N,PARMA_PEA!$H:$H,$D73)) -> 0
A74: 80 | B74: VOSGES | C74: EPINAL | D74: 524 | E74: 151350000524 | F74: 88206 | G74: =VLOOKUP(F74,Objectifs!G:H,2,FALSE) -> CHARMES | I74: =VLOOKUP(F74,Objectifs!G:L,6,FALSE) -> 132,400 | J74: =(SUMIFS(SOURCE_PARTS_SOC!G:G,SOURCE_PARTS_SOC!E:E,F74))+(SUMIFS(ORCA_CARNET!E:E,ORCA_CARNET!C:C,F74)) -> 21,820 | K74: =(SUMIFS(SOURCE_PARTS_SOC!H:H,SOURCE_PARTS_SOC!E:E,F74))+(SUMIFS(ORCA_CARNET!F:F,ORCA_CARNET!C:C,F74)) -> 9,400 | L74: 16% | M74: 110,580 | N74: =I74*SUIVI_REGION!$I$4 -> 123,332 | O74: -101,512 | P74: =(SUMIFS(SOURCE_PARTS_SOC_0506!$I:$I,SOURCE_PARTS_SOC_0506!$E:$E,F74)) -> 138,340 | Q74: =(SUMIFS(SOURCE_PARTS_SOC!$I:$I,SOURCE_PARTS_SOC!$E:$E,F74))-P74 -> 11,160 | S74: =VLOOKUP(F74,Objectifs!G:K,5,FALSE) -> 43,000 | T74: =(SUMIFS(PILCOT_ELAN!$P:$P,PILCOT_ELAN!$H:$H,$D74)) -> 0 | U74: 0% | V74: 43,000 | W74: =S74*SUIVI_REGION!$S$4 -> 30,714 | X74: -30,714 | Z74: =VLOOKUP(F74,Objectifs!G:M,7,FALSE) -> 443,900 | AA74: =(SUMIF(SOURCE_EMP_ASV!D:D,SUIVI_PDV!E74,SOURCE_EMP_ASV!J:J)) -> 101,816 | AB74: 23% | AC74: 342,084 | AD74: =Z74*SUIVI_REGION!$Z$4 -> 359,712 | AE74: -257,896 | AF74: =IF(SUMIF(SOURCE_EMP_ASV!D:D,SUIVI_PDV!E74,SOURCE_EMP_ASV!K:K)=0,"",(SUMIF(SOURCE_EMP_ASV!D:D,SUIVI_PDV!E74,SOURCE_EMP_ASV!L:L))/SUMIF(SOURCE_EMP_ASV!D:D,SUIVI_PDV!E74,SOURCE_EMP_ASV!K:K)) -> 0.46% | AG74: 0 € | AH74: =(SUMIF(EMPRUNT_CTO!H:H,SUIVI_PDV!D74,EMPRUNT_CTO!K:K)) -> 0 | AJ74: 0 | AK74: =(SUMIFS(ALIZE!P:P,ALIZE!H:H,D74))-(SUMIFS(ALIZE_2105!P:P,ALIZE_2105!H:H,D74)) -> 0 | AL74: =(SUMIFS(CORALIUM!P:P,CORALIUM!H:H,D74))-(SUMIFS(CORALIUM_2105!P:P,CORALIUM_2105!H:H,D74)) -> 0 | AM74: =(SUMIFS(PARMA_PEA!$N:$N,PARMA_PEA!$H:$H,$D74)) -> 0
A75: 80 | B75: VOSGES | C75: EPINAL | D75: 600 | E75: 151350000600 | F75: 88451 | G75: =VLOOKUP(F75,Objectifs!G:H,2,FALSE) -> MIRECOURT | I75: =VLOOKUP(F75,Objectifs!G:L,6,FALSE) -> 179,300 | J75: =(SUMIFS(SOURCE_PARTS_SOC!G:G,SOURCE_PARTS_SOC!E:E,F75))+(SUMIFS(ORCA_CARNET!E:E,ORCA_CARNET!C:C,F75)) -> 108,940 | K75: =(SUMIFS(SOURCE_PARTS_SOC!H:H,SOURCE_PARTS_SOC!E:E,F75))+(SUMIFS(ORCA_CARNET!F:F,ORCA_CARNET!C:C,F75)) -> 55,640 | L75: 61% | M75: 70,360 | N75: =I75*SUIVI_REGION!$I$4 -> 167,019 | O75: -58,079 | P75: =(SUMIFS(SOURCE_PARTS_SOC_0506!$I:$I,SOURCE_PARTS_SOC_0506!$E:$E,F75)) -> 425,960 | Q75: =(SUMIFS(SOURCE_PARTS_SOC!$I:$I,SOURCE_PARTS_SOC!$E:$E,F75))-P75 -> 40 | S75: =VLOOKUP(F75,Objectifs!G:K,5,FALSE) -> 58,300 | T75: =(SUMIFS(PILCOT_ELAN!$P:$P,PILCOT_ELAN!$H:$H,$D75)) -> 6,186 | U75: 11% | V75: 52,114 | W75: =S75*SUIVI_REGION!$S$4 -> 41,643 | X75: -35,457 | Z75: =VLOOKUP(F75,Objectifs!G:M,7,FALSE) -> 601,000 | AA75: =(SUMIF(SOURCE_EMP_ASV!D:D,SUIVI_PDV!E75,SOURCE_EMP_ASV!J:J)) -> 235,890 | AB75: 39% | AC75: 365,110 | AD75: =Z75*SUIVI_REGION!$Z$4 -> 487,017 | AE75: -251,127 | AF75: =IF(SUMIF(SOURCE_EMP_ASV!D:D,SUIVI_PDV!E75,SOURCE_EMP_ASV!K:K)=0,"",(SUMIF(SOURCE_EMP_ASV!D:D,SUIVI_PDV!E75,SOURCE_EMP_ASV!L:L))/SUMIF(SOURCE_EMP_ASV!D:D,SUIVI_PDV!E75,SOURCE_EMP_ASV!K:K)) -> 0.31% | AG75: 0 € | AH75: =(SUMIF(EMPRUNT_CTO!H:H,SUIVI_PDV!D75,EMPRUNT_CTO!K:K)) -> 0 | AJ75: 0 | AK75: =(SUMIFS(ALIZE!P:P,ALIZE!H:H,D75))-(SUMIFS(ALIZE_2105!P:P,ALIZE_2105!H:H,D75)) -> 0 | AL75: =(SUMIFS(CORALIUM!P:P,CORALIUM!H:H,D75))-(SUMIFS(CORALIUM_2105!P:P,CORALIUM_2105!H:H,D75)) -> 0 | AM75: =(SUMIFS(PARMA_PEA!$N:$N,PARMA_PEA!$H:$H,$D75)) -> 0
A76: 80 | B76: VOSGES | C76: EPINAL | D76: 655 | E76: 151350000655 | F76: 88631 | G76: =VLOOKUP(F76,Objectifs!G:H,2,FALSE) -> THAON LES VOSGES | I76: =VLOOKUP(F76,Objectifs!G:L,6,FALSE) -> 104,500 | J76: =(SUMIFS(SOURCE_PARTS_SOC!G:G,SOURCE_PARTS_SOC!E:E,F76))+(SUMIFS(ORCA_CARNET!E:E,ORCA_CARNET!C:C,F76)) -> 38,920 | K76: =(SUMIFS(SOURCE_PARTS_SOC!H:H,SOURCE_PARTS_SOC!E:E,F76))+(SUMIFS(ORCA_CARNET!F:F,ORCA_CARNET!C:C,F76)) -> 80 | L76: 37% | M76: 65,580 | N76: =I76*SUIVI_REGION!$I$4 -> 97,342 | O76: -58,422 | P76: =(SUMIFS(SOURCE_PARTS_SOC_0506!$I:$I,SOURCE_PARTS_SOC_0506!$E:$E,F76)) -> 334,420 | Q76: =(SUMIFS(SOURCE_PARTS_SOC!$I:$I,SOURCE_PARTS_SOC!$E:$E,F76))-P76 -> 10,060 | S76: =VLOOKUP(F76,Objectifs!G:K,5,FALSE) -> 34,000 | T76: =(SUMIFS(PILCOT_ELAN!$P:$P,PILCOT_ELAN!$H:$H,$D76)) -> 9,034 | U76: 27% | V76: 24,966 | W76: =S76*SUIVI_REGION!$S$4 -> 24,286 | X76: =IFERROR(T76-W76," ") -> -15,251 | Z76: =VLOOKUP(F76,Objectifs!G:M,7,FALSE) -> 350,400 | AA76: =(SUMIF(SOURCE_EMP_ASV!D:D,SUIVI_PDV!E76,SOURCE_EMP_ASV!J:J)) -> 362,777 | AB76: 104% | AD76: =Z76*SUIVI_REGION!$Z$4 -> 283,945 | AE76: 78,832 | AF76: =IF(SUMIF(SOURCE_EMP_ASV!D:D,SUIVI_PDV!E76,SOURCE_EMP_ASV!K:K)=0,"",(SUMIF(SOURCE_EMP_ASV!D:D,SUIVI_PDV!E76,SOURCE_EMP_ASV!L:L))/SUMIF(SOURCE_EMP_ASV!D:D,SUIVI_PDV!E76,SOURCE_EMP_ASV!K:K)) -> 0.36% | AG76: 0 € | AH76: =(SUMIF(EMPRUNT_CTO!H:H,SUIVI_PDV!D76,EMPRUNT_CTO!K:K)) -> 0 | AJ76: 0 | AK76: =(SUMIFS(ALIZE!P:P,ALIZE!H:H,D76))-(SUMIFS(ALIZE_2105!P:P,ALIZE_2105!H:H,D76)) -> 0 | AL76: =(SUMIFS(CORALIUM!P:P,CORALIUM!H:H,D76))-(SUMIFS(CORALIUM_2105!P:P,CORALIUM_2105!H:H,D76)) -> 0 | AM76: =(SUMIFS(PARMA_PEA!$N:$N,PARMA_PEA!$H:$H,$D76)) -> 0
A77: 80 | B77: VOSGES | C77: EPINAL | D77: 538 | E77: 151350000538 | F77: 88281 | G77: =VLOOKUP(F77,Objectifs!G:H,2,FALSE) -> ELOYES | I77: =VLOOKUP(F77,Objectifs!G:L,6,FALSE) -> 139,400 | J77: =(SUMIFS(SOURCE_PARTS_SOC!G:G,SOURCE_PARTS_SOC!E:E,F77))+(SUMIFS(ORCA_CARNET!E:E,ORCA_CARNET!C:C,F77)) -> 13,060 | K77: =(SUMIFS(SOURCE_PARTS_SOC!H:H,SOURCE_PARTS_SOC!E:E,F77))+(SUMIFS(ORCA_CARNET!F:F,ORCA_CARNET!C:C,F77)) -> 1,720 | L77: 9% | M77: 126,340 | N77: =I77*SUIVI_REGION!$I$4 -> 129,852 | O77: -116,792 | P77: =(SUMIFS(SOURCE_PARTS_SOC_0506!$I:$I,SOURCE_PARTS_SOC_0506!$E:$E,F77)) -> 108,880 | Q77: =(SUMIFS(SOURCE_PARTS_SOC!$I:$I,SOURCE_PARTS_SOC!$E:$E,F77))-P77 -> 2,020 | S77: =VLOOKUP(F77,Objectifs!G:K,5,FALSE) -> 45,300 | T77: =(SUMIFS(PILCOT_ELAN!$P:$P,PILCOT_ELAN!$H:$H,$D77)) -> 9,681 | U77: 21% | V77: 35,619 | W77: =S77*SUIVI_REGION!$S$4 -> 32,357 | X77: -22,676 | Z77: =VLOOKUP(F77,Objectifs!G:M,7,FALSE) -> 467,200 | AA77: =(SUMIF(SOURCE_EMP_ASV!D:D,SUIVI_PDV!E77,SOURCE_EMP_ASV!J:J)) -> 384,360 | AB77: 82% | AC77: 82,840 | AD77: =Z77*SUIVI_REGION!$Z$4 -> 378,593 | AE77: 5,767 | AF77: =IF(SUMIF(SOURCE_EMP_ASV!D:D,SUIVI_PDV!E77,SOURCE_EMP_ASV!K:K)=0,"",(SUMIF(SOURCE_EMP_ASV!D:D,SUIVI_PDV!E77,SOURCE_EMP_ASV!L:L))/SUMIF(SOURCE_EMP_ASV!D:D,SUIVI_PDV!E77,SOURCE_EMP_ASV!K:K)) -> 0.48% | AG77: 0 € | AH77: =(SUMIF(EMPRUNT_CTO!H:H,SUIVI_PDV!D77,EMPRUNT_CTO!K:K)) -> 0 | AJ77: 26,513 | AK77: =(SUMIFS(ALIZE!P:P,ALIZE!H:H,D77))-(SUMIFS(ALIZE_2105!P:P,ALIZE_2105!H:H,D77)) -> 7,861 | AL77: =(SUMIFS(CORALIUM!P:P,CORALIUM!H:H,D77))-(SUMIFS(CORALIUM_2105!P:P,CORALIUM_2105!H:H,D77)) -> 18,653 | AM77: =(SUMIFS(PARMA_PEA!$N:$N,PARMA_PEA!$H:$H,$D77)) -> 0
A78: 80 | B78: VOSGES | C78: EPINAL | D78: 575 | E78: 151350000575 | F78: 88396 | G78: =VLOOKUP(F78,Objectifs!G:H,2,FALSE) -> LE VAL D AJOL | I78: =VLOOKUP(F78,Objectifs!G:L,6,FALSE) -> 107,900 | J78: =(SUMIFS(SOURCE_PARTS_SOC!G:G,SOURCE_PARTS_SOC!E:E,F78))+(SUMIFS(ORCA_CARNET!E:E,ORCA_CARNET!C:C,F78)) -> 76,800 | K78: =(SUMIFS(SOURCE_PARTS_SOC!H:H,SOURCE_PARTS_SOC!E:E,F78))+(SUMIFS(ORCA_CARNET!F:F,ORCA_CARNET!C:C,F78)) -> 0 | L78: 71% | M78: 31,100 | N78: =I78*SUIVI_REGION!$I$4 -> 100,510 | O78: -23,710 | P78: =(SUMIFS(SOURCE_PARTS_SOC_0506!$I:$I,SOURCE_PARTS_SOC_0506!$E:$E,F78)) -> 210,200 | Q78: =(SUMIFS(SOURCE_PARTS_SOC!$I:$I,SOURCE_PARTS_SOC!$E:$E,F78))-P78 -> 0 | S78: =VLOOKUP(F78,Objectifs!G:K,5,FALSE) -> 35,100 | T78: =(SUMIFS(PILCOT_ELAN!$P:$P,PILCOT_ELAN!$H:$H,$D78)) -> 0 | U78: 0% | V78: 35,100 | W78: =S78*SUIVI_REGION!$S$4 -> 25,071 | X78: -25,071 | Z78: =VLOOKUP(F78,Objectifs!G:M,7,FALSE) -> 361,700 | AA78: =(SUMIF(SOURCE_EMP_ASV!D:D,SUIVI_PDV!E78,SOURCE_EMP_ASV!J:J)) -> 166,768 | AB78: 46% | AC78: 194,932 | AD78: =Z78*SUIVI_REGION!$Z$4 -> 293,102 | AE78: -126,334 | AF78: =IF(SUMIF(SOURCE_EMP_ASV!D:D,SUIVI_PDV!E78,SOURCE_EMP_ASV!K:K)=0,"",(SUMIF(SOURCE_EMP_ASV!D:D,SUIVI_PDV!E78,SOURCE_EMP_ASV!L:L))/SUMIF(SOURCE_EMP_ASV!D:D,SUIVI_PDV!E78,SOURCE_EMP_ASV!K:K)) -> 0.46% | AG78: 0 € | AH78: =(SUMIF(EMPRUNT_CTO!H:H,SUIVI_PDV!D78,EMPRUNT_CTO!K:K)) -> 0 | AJ78: 9,681 | AK78: =(SUMIFS(ALIZE!P:P,ALIZE!H:H,D78))-(SUMIFS(ALIZE_2105!P:P,ALIZE_2105!H:H,D78)) -> 9,681 | AL78: =(SUMIFS(CORALIUM!P:P,CORALIUM!H:H,D78))-(SUMIFS(CORALIUM_2105!P:P,CORALIUM_2105!H:H,D78)) -> 0 | AM78: =(SUMIFS(PARMA_PEA!$N:$N,PARMA_PEA!$H:$H,$D78)) -> 0
A79: 80 | B79: VOSGES | C79: EPINAL | D79: 633 | E79: 151350000633 | F79: 88561 | G79: =VLOOKUP(F79,Objectifs!G:H,2,FALSE) -> REMIREMONT | I79: =VLOOKUP(F79,Objectifs!G:L,6,FALSE) -> 243,900 | J79: =(SUMIFS(SOURCE_PARTS_SOC!G:G,SOURCE_PARTS_SOC!E:E,F79))+(SUMIFS(ORCA_CARNET!E:E,ORCA_CARNET!C:C,F79)) -> 136,340 | K79: =(SUMIFS(SOURCE_PARTS_SOC!H:H,SOURCE_PARTS_SOC!E:E,F79))+(SUMIFS(ORCA_CARNET!F:F,ORCA_CARNET!C:C,F79)) -> 520 | L79: 56% | M79: 107,560 | N79: =I79*SUIVI_REGION!$I$4 -> 227,195 | O79: -90,855 | P79: =(SUMIFS(SOURCE_PARTS_SOC_0506!$I:$I,SOURCE_PARTS_SOC_0506!$E:$E,F79)) -> 389,140 | Q79: =(SUMIFS(SOURCE_PARTS_SOC!$I:$I,SOURCE_PARTS_SOC!$E:$E,F79))-P79 -> 100 | S79: =VLOOKUP(F79,Objectifs!G:K,5,FALSE) -> 79,300 | T79: =(SUMIFS(PILCOT_ELAN!$P:$P,PILCOT_ELAN!$H:$H,$D79)) -> 44,301 | U79: 56% | V79: 34,999 | W79: =S79*SUIVI_REGION!$S$4 -> 56,643 | X79: -12,342 | Z79: =VLOOKUP(F79,Objectifs!G:M,7,FALSE) -> 817,700 | AA79: =(SUMIF(SOURCE_EMP_ASV!D:D,SUIVI_PDV!E79,SOURCE_EMP_ASV!J:J)) -> 612,126 | AB79: 75% | AC79: 205,574 | AD79: =Z79*SUIVI_REGION!$Z$4 -> 662,619 | AE79: -50,493 | AF79: =IF(SUMIF(SOURCE_EMP_ASV!D:D,SUIVI_PDV!E79,SOURCE_EMP_ASV!K:K)=0,"",(SUMIF(SOURCE_EMP_ASV!D:D,SUIVI_PDV!E79,SOURCE_EMP_ASV!L:L))/SUMIF(SOURCE_EMP_ASV!D:D,SUIVI_PDV!E79,SOURCE_EMP_ASV!K:K)) -> 0.41% | AG79: 0 € | AH79: =(SUMIF(EMPRUNT_CTO!H:H,SUIVI_PDV!D79,EMPRUNT_CTO!K:K)) -> 0 | AJ79: 61,157 | AK79: =(SUMIFS(ALIZE!P:P,ALIZE!H:H,D79))-(SUMIFS(ALIZE_2105!P:P,ALIZE_2105!H:H,D79)) -> 39,433 | AL79: =(SUMIFS(CORALIUM!P:P,CORALIUM!H:H,D79))-(SUMIFS(CORALIUM_2105!P:P,CORALIUM_2105!H:H,D79)) -> 21,724 | AM79: =(SUMIFS(PARMA_PEA!$N:$N,PARMA_PEA!$H:$H,$D79)) -> 0
A80: 80 | B80: VOSGES | C80: EPINAL | D80: 676 | E80: 151350000676 | F80: 88716 | G80: =VLOOKUP(F80,Objectifs!G:H,2,FALSE) -> XERTIGNY | I80: =VLOOKUP(F80,Objectifs!G:L,6,FALSE) -> 104,500 | J80: =(SUMIFS(SOURCE_PARTS_SOC!G:G,SOURCE_PARTS_SOC!E:E,F80))+(SUMIFS(ORCA_CARNET!E:E,ORCA_CARNET!C:C,F80)) -> 10,960 | K80: =(SUMIFS(SOURCE_PARTS_SOC!H:H,SOURCE_PARTS_SOC!E:E,F80))+(SUMIFS(ORCA_CARNET!F:F,ORCA_CARNET!C:C,F80)) -> 0 | L80: 10% | M80: 93,540 | N80: =I80*SUIVI_REGION!$I$4 -> 97,342 | O80: -86,382 | P80: =(SUMIFS(SOURCE_PARTS_SOC_0506!$I:$I,SOURCE_PARTS_SOC_0506!$E:$E,F80)) -> 197,820 | Q80: =(SUMIFS(SOURCE_PARTS_SOC!$I:$I,SOURCE_PARTS_SOC!$E:$E,F80))-P80 -> 0 | S80: =VLOOKUP(F80,Objectifs!G:K,5,FALSE) -> 34,000 | T80: =(SUMIFS(PILCOT_ELAN!$P:$P,PILCOT_ELAN!$H:$H,$D80)) -> 7,412 | U80: 22% | V80: 26,588 | W80: =S80*SUIVI_REGION!$S$4 -> 24,286 | X80: -16,874 | Z80: =VLOOKUP(F80,Objectifs!G:M,7,FALSE) -> 350,400 | AA80: =(SUMIF(SOURCE_EMP_ASV!D:D,SUIVI_PDV!E80,SOURCE_EMP_ASV!J:J)) -> 273,971 | AB80: 78% | AC80: 76,429 | AD80: =Z80*SUIVI_REGION!$Z$4 -> 283,945 | AE80: -9,974 | AF80: =IF(SUMIF(SOURCE_EMP_ASV!D:D,SUIVI_PDV!E80,SOURCE_EMP_ASV!K:K)=0,"",(SUMIF(SOURCE_EMP_ASV!D:D,SUIVI_PDV!E80,SOURCE_EMP_ASV!L:L))/SUMIF(SOURCE_EMP_ASV!D:D,SUIVI_PDV!E80,SOURCE_EMP_ASV!K:K)) -> 0.49% | AG80: 0 € | AH80: =(SUMIF(EMPRUNT_CTO!H:H,SUIVI_PDV!D80,EMPRUNT_CTO!K:K)) -> 0 | AJ80: 0 | AK80: =(SUMIFS(ALIZE!P:P,ALIZE!H:H,D80))-(SUMIFS(ALIZE_2105!P:P,ALIZE_2105!H:H,D80)) -> 0 | AL80: =(SUMIFS(CORALIUM!P:P,CORALIUM!H:H,D80))-(SUMIFS(CORALIUM_2105!P:P,CORALIUM_2105!H:H,D80)) -> 0 | AM80: =(SUMIFS(PARMA_PEA!$N:$N,PARMA_PEA!$H:$H,$D80)) -> 0
A81: 80 | B81: VOSGES | C81: EPINAL | D81: 533 | E81: 151350000533 | F81: 88256 | G81: =VLOOKUP(F81,Objectifs!G:H,2,FALSE) -> DARNEY | I81: =VLOOKUP(F81,Objectifs!G:L,6,FALSE) -> 34,800 | J81: =(SUMIFS(SOURCE_PARTS_SOC!G:G,SOURCE_PARTS_SOC!E:E,F81))+(SUMIFS(ORCA_CARNET!E:E,ORCA_CARNET!C:C,F81)) -> 8,240 | K81: =(SUMIFS(SOURCE_PARTS_SOC!H:H,SOURCE_PARTS_SOC!E:E,F81))+(SUMIFS(ORCA_CARNET!F:F,ORCA_CARNET!C:C,F81)) -> 7,240 | L81: 24% | M81: 26,560 | N81: =I81*SUIVI_REGION!$I$4 -> 32,416 | O81: -24,176 | P81: =(SUMIFS(SOURCE_PARTS_SOC_0506!$I:$I,SOURCE_PARTS_SOC_0506!$E:$E,F81)) -> 118,120 | Q81: =(SUMIFS(SOURCE_PARTS_SOC!$I:$I,SOURCE_PARTS_SOC!$E:$E,F81))-P81 -> 0 | S81: =VLOOKUP(F81,Objectifs!G:K,5,FALSE) -> 11,300 | T81: =(SUMIFS(PILCOT_ELAN!$P:$P,PILCOT_ELAN!$H:$H,$D81)) -> 0 | U81: 0% | V81: 11,300 | W81: =S81*SUIVI_REGION!$S$4 -> 8,071 | X81: -8,071 | Z81: =VLOOKUP(F81,Objectifs!G:M,7,FALSE) -> 116,800 | AA81: =(SUMIF(SOURCE_EMP_ASV!D:D,SUIVI_PDV!E81,SOURCE_EMP_ASV!J:J)) -> 0 | AB81: 0% | AC81: 116,800 | AD81: =Z81*SUIVI_REGION!$Z$4 -> 94,648 | AE81: -94,648 | AF81: =IF(SUMIF(SOURCE_EMP_ASV!D:D,SUIVI_PDV!E81,SOURCE_EMP_ASV!K:K)=0,"",(SUMIF(SOURCE_EMP_ASV!D:D,SUIVI_PDV!E81,SOURCE_EMP_ASV!L:L))/SUMIF(SOURCE_EMP_ASV!D:D,SUIVI_PDV!E81,SOURCE_EMP_ASV!K:K)) ->  | AG81: 0 € | AH81: =(SUMIF(EMPRUNT_CTO!H:H,SUIVI_PDV!D81,EMPRUNT_CTO!K:K)) -> 0 | AJ81: 0 | AK81: =(SUMIFS(ALIZE!P:P,ALIZE!H:H,D81))-(SUMIFS(ALIZE_2105!P:P,ALIZE_2105!H:H,D81)) -> 0 | AL81: =(SUMIFS(CORALIUM!P:P,CORALIUM!H:H,D81))-(SUMIFS(CORALIUM_2105!P:P,CORALIUM_2105!H:H,D81)) -> 0 | AM81: =(SUMIFS(PARMA_PEA!$N:$N,PARMA_PEA!$H:$H,$D81)) -> 0
A82: 80 | B82: VOSGES | C82: EPINAL | D82: 616 | E82: 151350000616 | F82: 88501 | G82: =VLOOKUP(F82,Objectifs!G:H,2,FALSE) -> NEUFCHATEAU | I82: =VLOOKUP(F82,Objectifs!G:L,6,FALSE) -> 174,200 | J82: =(SUMIFS(SOURCE_PARTS_SOC!G:G,SOURCE_PARTS_SOC!E:E,F82))+(SUMIFS(ORCA_CARNET!E:E,ORCA_CARNET!C:C,F82)) -> 120,420 | K82: =(SUMIFS(SOURCE_PARTS_SOC!H:H,SOURCE_PARTS_SOC!E:E,F82))+(SUMIFS(ORCA_CARNET!F:F,ORCA_CARNET!C:C,F82)) -> 80,620 | L82: 69% | M82: 53,780 | N82: =I82*SUIVI_REGION!$I$4 -> 162,268 | O82: -41,848 | P82: =(SUMIFS(SOURCE_PARTS_SOC_0506!$I:$I,SOURCE_PARTS_SOC_0506!$E:$E,F82)) -> 265,400 | Q82: =(SUMIFS(SOURCE_PARTS_SOC!$I:$I,SOURCE_PARTS_SOC!$E:$E,F82))-P82 -> 13,780 | S82: =VLOOKUP(F82,Objectifs!G:K,5,FALSE) -> 56,600 | T82: =(SUMIFS(PILCOT_ELAN!$P:$P,PILCOT_ELAN!$H:$H,$D82)) -> 59,222 | U82: 105% | W82: =S82*SUIVI_REGION!$S$4 -> 40,429 | X82: 18,794 | Z82: =VLOOKUP(F82,Objectifs!G:M,7,FALSE) -> 584,000 | AA82: =(SUMIF(SOURCE_EMP_ASV!D:D,SUIVI_PDV!E82,SOURCE_EMP_ASV!J:J)) -> 238,548 | AB82: 41% | AC82: 345,452 | AD82: =Z82*SUIVI_REGION!$Z$4 -> 473,241 | AE82: -234,693 | AF82: =IF(SUMIF(SOURCE_EMP_ASV!D:D,SUIVI_PDV!E82,SOURCE_EMP_ASV!K:K)=0,"",(SUMIF(SOURCE_EMP_ASV!D:D,SUIVI_PDV!E82,SOURCE_EMP_ASV!L:L))/SUMIF(SOURCE_EMP_ASV!D:D,SUIVI_PDV!E82,SOURCE_EMP_ASV!K:K)) -> 0.27% | AG82: 3,000 € | AH82: =(SUMIF(EMPRUNT_CTO!H:H,SUIVI_PDV!D82,EMPRUNT_CTO!K:K)) -> 30 | AJ82: 0 | AK82: =(SUMIFS(ALIZE!P:P,ALIZE!H:H,D82))-(SUMIFS(ALIZE_2105!P:P,ALIZE_2105!H:H,D82)) -> 0 | AL82: =(SUMIFS(CORALIUM!P:P,CORALIUM!H:H,D82))-(SUMIFS(CORALIUM_2105!P:P,CORALIUM_2105!H:H,D82)) -> 0 | AM82: =(SUMIFS(PARMA_PEA!$N:$N,PARMA_PEA!$H:$H,$D82)) -> 0
A83: 80 | B83: VOSGES | C83: EPINAL | D83: 673 | E83: 151350000673 | F83: 88706 | G83: =VLOOKUP(F83,Objectifs!G:H,2,FALSE) -> VITTEL | I83: =VLOOKUP(F83,Objectifs!G:L,6,FALSE) -> 143,400 | J83: =(SUMIFS(SOURCE_PARTS_SOC!G:G,SOURCE_PARTS_SOC!E:E,F83))+(SUMIFS(ORCA_CARNET!E:E,ORCA_CARNET!C:C,F83)) -> 126,000 | K83: =(SUMIFS(SOURCE_PARTS_SOC!H:H,SOURCE_PARTS_SOC!E:E,F83))+(SUMIFS(ORCA_CARNET!F:F,ORCA_CARNET!C:C,F83)) -> 91,500 | L83: 88% | M83: 17,400 | N83: =I83*SUIVI_REGION!$I$4 -> 133,578 | O83: -7,578 | P83: =(SUMIFS(SOURCE_PARTS_SOC_0506!$I:$I,SOURCE_PARTS_SOC_0506!$E:$E,F83)) -> 256,220 | Q83: =(SUMIFS(SOURCE_PARTS_SOC!$I:$I,SOURCE_PARTS_SOC!$E:$E,F83))-P83 -> 200 | S83: =VLOOKUP(F83,Objectifs!G:K,5,FALSE) -> 46,600 | T83: =(SUMIFS(PILCOT_ELAN!$P:$P,PILCOT_ELAN!$H:$H,$D83)) -> 64,034 | U83: 137% | W83: =S83*SUIVI_REGION!$S$4 -> 33,286 | X83: 30,749 | Z83: =VLOOKUP(F83,Objectifs!G:M,7,FALSE) -> 480,800 | AA83: =(SUMIF(SOURCE_EMP_ASV!D:D,SUIVI_PDV!E83,SOURCE_EMP_ASV!J:J)) -> 311,892 | AB83: 65% | AC83: 168,908 | AD83: =Z83*SUIVI_REGION!$Z$4 -> 389,614 | AE83: -77,722 | AF83: =IF(SUMIF(SOURCE_EMP_ASV!D:D,SUIVI_PDV!E83,SOURCE_EMP_ASV!K:K)=0,"",(SUMIF(SOURCE_EMP_ASV!D:D,SUIVI_PDV!E83,SOURCE_EMP_ASV!L:L))/SUMIF(SOURCE_EMP_ASV!D:D,SUIVI_PDV!E83,SOURCE_EMP_ASV!K:K)) -> 0.24% | AG83: 0 € | AH83: =(SUMIF(EMPRUNT_CTO!H:H,SUIVI_PDV!D83,EMPRUNT_CTO!K:K)) -> 0 | AJ83: 0 | AK83: =(SUMIFS(ALIZE!P:P,ALIZE!H:H,D83))-(SUMIFS(ALIZE_2105!P:P,ALIZE_2105!H:H,D83)) -> 0 | AL83: =(SUMIFS(CORALIUM!P:P,CORALIUM!H:H,D83))-(SUMIFS(CORALIUM_2105!P:P,CORALIUM_2105!H:H,D83)) -> 0 | AM83: =(SUMIFS(PARMA_PEA!$N:$N,PARMA_PEA!$H:$H,$D83)) -> 0
A84: 80 | C84: Total Territoire EPINAL | G84: EPINAL | I84: =SUBTOTAL(9,I70:I83) -> 1,994,800 | J84: =SUBTOTAL(9,J70:J83) -> 1,054,540 | K84: =SUBTOTAL(9,K70:K83) -> 345,680 | L84: 53% | M84: 940,260 | N84: =I84*SUIVI_REGION!$I$4 -> 1,858,170 | O84: -803,630 | P84: =SUBTOTAL(9,P70:P83) -> 3,309,940 | Q84: =SUBTOTAL(9,Q70:Q83) -> 78,940 | S84: =SUBTOTAL(9,S70:S83) -> 648,400 | T84: =SUBTOTAL(9,T70:T83) -> 279,178 | U84: 43% | V84: 369,222 | W84: =S84*SUIVI_REGION!$S$4 -> 463,143 | X84: =IFERROR(T84-W84," ") -> -183,965 | Z84: =SUBTOTAL(9,Z70:Z83) -> 6,687,900 | AA84: =SUBTOTAL(9,AA70:AA83) -> 3,710,440 | AB84: 55% | AC84: 2,977,460 | AD84: =Z84*SUIVI_REGION!$Z$4 -> 5,419,505 | AE84: -1,709,065 | AF84: =IF(SUMIF(SOURCE_EMP_ASV!B:B,G84,SOURCE_EMP_ASV!K:K)=0,"",(SUMIF(SOURCE_EMP_ASV!B:B,G84,SOURCE_EMP_ASV!L:L))/(SUMIF(SOURCE_EMP_ASV!B:B,G84,SOURCE_EMP_ASV!K:K))) -> 0.39% | AG84: 3,000 € | AH84: =SUBTOTAL(9,AH70:AH83) -> 30 | AJ84: 120,198 | AK84: =SUBTOTAL(9,AK70:AK83) -> 73,507 | AL84: =SUBTOTAL(9,AL70:AL83) -> 46,691 | AM84: =SUBTOTAL(9,AM70:AM83) -> 0
A85: 80 | B85: VOSGES | C85: SAINT DIE | D85: 520 | E85: 151350000520 | F85: 88186 | G85: =VLOOKUP(F85,Objectifs!G:H,2,FALSE) -> BRUYERES | I85: =VLOOKUP(F85,Objectifs!G:L,6,FALSE) -> 139,400 | J85: =(SUMIFS(SOURCE_PARTS_SOC!G:G,SOURCE_PARTS_SOC!E:E,F85))+(SUMIFS(ORCA_CARNET!E:E,ORCA_CARNET!C:C,F85)) -> 18,940 | K85: =(SUMIFS(SOURCE_PARTS_SOC!H:H,SOURCE_PARTS_SOC!E:E,F85))+(SUMIFS(ORCA_CARNET!F:F,ORCA_CARNET!C:C,F85)) -> 1,100 | L85: 14% | M85: 120,460 | N85: =I85*SUIVI_REGION!$I$4 -> 129,852 | O85: -110,912 | P85: =(SUMIFS(SOURCE_PARTS_SOC_0506!$I:$I,SOURCE_PARTS_SOC_0506!$E:$E,F85)) -> 158,040 | Q85: =(SUMIFS(SOURCE_PARTS_SOC!$I:$I,SOURCE_PARTS_SOC!$E:$E,F85))-P85 -> 0 | S85: =VLOOKUP(F85,Objectifs!G:K,5,FALSE) -> 45,300 | T85: =(SUMIFS(PILCOT_ELAN!$P:$P,PILCOT_ELAN!$H:$H,$D85)) -> 468 | U85: 1% | V85: 44,832 | W85: =S85*SUIVI_REGION!$S$4 -> 32,357 | X85: =IFERROR(T85-W85," ") -> -31,889 | Z85: =VLOOKUP(F85,Objectifs!G:M,7,FALSE) -> 467,200 | AA85: =(SUMIF(SOURCE_EMP_ASV!D:D,SUIVI_PDV!E85,SOURCE_EMP_ASV!J:J)) -> 386,000 | AB85: 83% | AC85: 81,200 | AD85: =Z85*SUIVI_REGION!$Z$4 -> 378,593 | AE85: 7,407 | AF85: =IF(SUMIF(SOURCE_EMP_ASV!D:D,SUIVI_PDV!E85,SOURCE_EMP_ASV!K:K)=0,"",(SUMIF(SOURCE_EMP_ASV!D:D,SUIVI_PDV!E85,SOURCE_EMP_ASV!L:L))/SUMIF(SOURCE_EMP_ASV!D:D,SUIVI_PDV!E85,SOURCE_EMP_ASV!K:K)) -> 0.42% | AG85: 0 € | AH85: =(SUMIF(EMPRUNT_CTO!H:H,SUIVI_PDV!D85,EMPRUNT_CTO!K:K)) -> 0 | AJ85: 21,056 | AK85: =(SUMIFS(ALIZE!P:P,ALIZE!H:H,D85))-(SUMIFS(ALIZE_2105!P:P,ALIZE_2105!H:H,D85)) -> 21,056 | AL85: =(SUMIFS(CORALIUM!P:P,CORALIUM!H:H,D85))-(SUMIFS(CORALIUM_2105!P:P,CORALIUM_2105!H:H,D85)) -> 0 | AM85: =(SUMIFS(PARMA_PEA!$N:$N,PARMA_PEA!$H:$H,$D85)) -> 0
A86: 80 | B86: VOSGES | C86: SAINT DIE | D86: 530 | E86: 151350000530 | F86: 88246 | G86: =VLOOKUP(F86,Objectifs!G:H,2,FALSE) -> CORNIMONT LA BRESSE | I86: =VLOOKUP(F86,Objectifs!G:L,6,FALSE) -> 104,500 | J86: =(SUMIFS(SOURCE_PARTS_SOC!G:G,SOURCE_PARTS_SOC!E:E,F86))+(SUMIFS(ORCA_CARNET!E:E,ORCA_CARNET!C:C,F86)) -> 13,020 | K86: =(SUMIFS(SOURCE_PARTS_SOC!H:H,SOURCE_PARTS_SOC!E:E,F86))+(SUMIFS(ORCA_CARNET!F:F,ORCA_CARNET!C:C,F86)) -> 700 | L86: 12% | M86: 91,480 | N86: =I86*SUIVI_REGION!$I$4 -> 97,342 | O86: -84,322 | P86: =(SUMIFS(SOURCE_PARTS_SOC_0506!$I:$I,SOURCE_PARTS_SOC_0506!$E:$E,F86)) -> 348,020 | Q86: =(SUMIFS(SOURCE_PARTS_SOC!$I:$I,SOURCE_PARTS_SOC!$E:$E,F86))-P86 -> 0 | S86: =VLOOKUP(F86,Objectifs!G:K,5,FALSE) -> 34,000 | T86: =(SUMIFS(PILCOT_ELAN!$P:$P,PILCOT_ELAN!$H:$H,$D86)) -> 0 | U86: 0% | V86: 34,000 | W86: =S86*SUIVI_REGION!$S$4 -> 24,286 | X86: -24,286 | Z86: =VLOOKUP(F86,Objectifs!G:M,7,FALSE) -> 350,400 | AA86: =(SUMIF(SOURCE_EMP_ASV!D:D,SUIVI_PDV!E86,SOURCE_EMP_ASV!J:J)) -> 296,701 | AB86: 85% | AC86: 53,699 | AD86: =Z86*SUIVI_REGION!$Z$4 -> 283,945 | AE86: 12,757 | AF86: =IF(SUMIF(SOURCE_EMP_ASV!D:D,SUIVI_PDV!E86,SOURCE_EMP_ASV!K:K)=0,"",(SUMIF(SOURCE_EMP_ASV!D:D,SUIVI_PDV!E86,SOURCE_EMP_ASV!L:L))/SUMIF(SOURCE_EMP_ASV!D:D,SUIVI_PDV!E86,SOURCE_EMP_ASV!K:K)) -> 0.34% | AG86: 0 € | AH86: =(SUMIF(EMPRUNT_CTO!H:H,SUIVI_PDV!D86,EMPRUNT_CTO!K:K)) -> 0 | AJ86: 0 | AK86: =(SUMIFS(ALIZE!P:P,ALIZE!H:H,D86))-(SUMIFS(ALIZE_2105!P:P,ALIZE_2105!H:H,D86)) -> 0 | AL86: =(SUMIFS(CORALIUM!P:P,CORALIUM!H:H,D86))-(SUMIFS(CORALIUM_2105!P:P,CORALIUM_2105!H:H,D86)) -> 0 | AM86: =(SUMIFS(PARMA_PEA!$N:$N,PARMA_PEA!$H:$H,$D86)) -> 0
A87: 80 | B87: VOSGES | C87: SAINT DIE | D87: 554 | E87: 151350000554 | F87: 88326 | G87: =VLOOKUP(F87,Objectifs!G:H,2,FALSE) -> GERARDMER | I87: =VLOOKUP(F87,Objectifs!G:L,6,FALSE) -> 190,500 | J87: =(SUMIFS(SOURCE_PARTS_SOC!G:G,SOURCE_PARTS_SOC!E:E,F87))+(SUMIFS(ORCA_CARNET!E:E,ORCA_CARNET!C:C,F87)) -> 96,760 | K87: =(SUMIFS(SOURCE_PARTS_SOC!H:H,SOURCE_PARTS_SOC!E:E,F87))+(SUMIFS(ORCA_CARNET!F:F,ORCA_CARNET!C:C,F87)) -> 15,680 | L87: 51% | M87: 93,740 | N87: =I87*SUIVI_REGION!$I$4 -> 177,452 | O87: -80,692 | P87: =(SUMIFS(SOURCE_PARTS_SOC_0506!$I:$I,SOURCE_PARTS_SOC_0506!$E:$E,F87)) -> 254,500 | Q87: =(SUMIFS(SOURCE_PARTS_SOC!$I:$I,SOURCE_PARTS_SOC!$E:$E,F87))-P87 -> 20,100 | S87: =VLOOKUP(F87,Objectifs!G:K,5,FALSE) -> 61,900 | T87: =(SUMIFS(PILCOT_ELAN!$P:$P,PILCOT_ELAN!$H:$H,$D87)) -> 19,421 | U87: 31% | V87: 42,479 | W87: =S87*SUIVI_REGION!$S$4 -> 44,214 | X87: -24,794 | Z87: =VLOOKUP(F87,Objectifs!G:M,7,FALSE) -> 638,900 | AA87: =(SUMIF(SOURCE_EMP_ASV!D:D,SUIVI_PDV!E87,SOURCE_EMP_ASV!J:J)) -> 200,396 | AB87: 31% | AC87: 438,504 | AD87: =Z87*SUIVI_REGION!$Z$4 -> 517,729 | AE87: -317,333 | AF87: =IF(SUMIF(SOURCE_EMP_ASV!D:D,SUIVI_PDV!E87,SOURCE_EMP_ASV!K:K)=0,"",(SUMIF(SOURCE_EMP_ASV!D:D,SUIVI_PDV!E87,SOURCE_EMP_ASV!L:L))/SUMIF(SOURCE_EMP_ASV!D:D,SUIVI_PDV!E87,SOURCE_EMP_ASV!K:K)) -> 0.50% | AG87: 0 € | AH87: =(SUMIF(EMPRUNT_CTO!H:H,SUIVI_PDV!D87,EMPRUNT_CTO!K:K)) -> 0 | AJ87: 19,704 | AK87: =(SUMIFS(ALIZE!P:P,ALIZE!H:H,D87))-(SUMIFS(ALIZE_2105!P:P,ALIZE_2105!H:H,D87)) -> 19,704 | AL87: =(SUMIFS(CORALIUM!P:P,CORALIUM!H:H,D87))-(SUMIFS(CORALIUM_2105!P:P,CORALIUM_2105!H:H,D87)) -> 0 | AM87: =(SUMIFS(PARMA_PEA!$N:$N,PARMA_PEA!$H:$H,$D87)) -> 0
A88: 80 | B88: VOSGES | C88: SAINT DIE | D88: 574 | E88: 151350000574 | F88: 88386 | G88: =VLOOKUP(F88,Objectifs!G:H,2,FALSE) -> LE THILLOT | I88: =VLOOKUP(F88,Objectifs!G:L,6,FALSE) -> 104,500 | J88: =(SUMIFS(SOURCE_PARTS_SOC!G:G,SOURCE_PARTS_SOC!E:E,F88))+(SUMIFS(ORCA_CARNET!E:E,ORCA_CARNET!C:C,F88)) -> 37,900 | K88: =(SUMIFS(SOURCE_PARTS_SOC!H:H,SOURCE_PARTS_SOC!E:E,F88))+(SUMIFS(ORCA_CARNET!F:F,ORCA_CARNET!C:C,F88)) -> 18,740 | L88: 36% | M88: 66,600 | N88: =I88*SUIVI_REGION!$I$4 -> 97,342 | O88: -59,442 | P88: =(SUMIFS(SOURCE_PARTS_SOC_0506!$I:$I,SOURCE_PARTS_SOC_0506!$E:$E,F88)) -> 54,060 | Q88: =(SUMIFS(SOURCE_PARTS_SOC!$I:$I,SOURCE_PARTS_SOC!$E:$E,F88))-P88 -> 20 | S88: =VLOOKUP(F88,Objectifs!G:K,5,FALSE) -> 34,000 | T88: =(SUMIFS(PILCOT_ELAN!$P:$P,PILCOT_ELAN!$H:$H,$D88)) -> 43,026 | U88: 127% | V88: =IF(T88>S88," ",S88-T88) ->  | W88: =S88*SUIVI_REGION!$S$4 -> 24,286 | X88: 18,740 | Z88: =VLOOKUP(F88,Objectifs!G:M,7,FALSE) -> 350,400 | AA88: =(SUMIF(SOURCE_EMP_ASV!D:D,SUIVI_PDV!E88,SOURCE_EMP_ASV!J:J)) -> 51,550 | AB88: 15% | AC88: 298,850 | AD88: =Z88*SUIVI_REGION!$Z$4 -> 283,945 | AE88: -232,395 | AF88: =IF(SUMIF(SOURCE_EMP_ASV!D:D,SUIVI_PDV!E88,SOURCE_EMP_ASV!K:K)=0,"",(SUMIF(SOURCE_EMP_ASV!D:D,SUIVI_PDV!E88,SOURCE_EMP_ASV!L:L))/SUMIF(SOURCE_EMP_ASV!D:D,SUIVI_PDV!E88,SOURCE_EMP_ASV!K:K)) -> 0.26% | AG88: 0 € | AH88: =(SUMIF(EMPRUNT_CTO!H:H,SUIVI_PDV!D88,EMPRUNT_CTO!K:K)) -> 0 | AJ88: 0 | AK88: =(SUMIFS(ALIZE!P:P,ALIZE!H:H,D88))-(SUMIFS(ALIZE_2105!P:P,ALIZE_2105!H:H,D88)) -> 0 | AL88: =(SUMIFS(CORALIUM!P:P,CORALIUM!H:H,D88))-(SUMIFS(CORALIUM_2105!P:P,CORALIUM_2105!H:H,D88)) -> 0 | AM88: =(SUMIFS(PARMA_PEA!$N:$N,PARMA_PEA!$H:$H,$D88)) -> 0
A89: 80 | B89: VOSGES | C89: SAINT DIE | D89: 663 | E89: 151350000663 | F89: 88666 | G89: =VLOOKUP(F89,Objectifs!G:H,2,FALSE) -> VAGNEY | I89: =VLOOKUP(F89,Objectifs!G:L,6,FALSE) -> 139,400 | J89: =(SUMIFS(SOURCE_PARTS_SOC!G:G,SOURCE_PARTS_SOC!E:E,F89))+(SUMIFS(ORCA_CARNET!E:E,ORCA_CARNET!C:C,F89)) -> 87,340 | K89: =(SUMIFS(SOURCE_PARTS_SOC!H:H,SOURCE_PARTS_SOC!E:E,F89))+(SUMIFS(ORCA_CARNET!F:F,ORCA_CARNET!C:C,F89)) -> 4,800 | L89: 63% | M89: 52,060 | N89: =I89*SUIVI_REGION!$I$4 -> 129,852 | O89: -42,512 | P89: =(SUMIFS(SOURCE_PARTS_SOC_0506!$I:$I,SOURCE_PARTS_SOC_0506!$E:$E,F89)) -> 187,680 | Q89: =(SUMIFS(SOURCE_PARTS_SOC!$I:$I,SOURCE_PARTS_SOC!$E:$E,F89))-P89 -> 0 | S89: =VLOOKUP(F89,Objectifs!G:K,5,FALSE) -> 45,300 | T89: =(SUMIFS(PILCOT_ELAN!$P:$P,PILCOT_ELAN!$H:$H,$D89)) -> 0 | U89: 0% | V89: 45,300 | W89: =S89*SUIVI_REGION!$S$4 -> 32,357 | X89: -32,357 | Z89: =VLOOKUP(F89,Objectifs!G:M,7,FALSE) -> 467,200 | AA89: =(SUMIF(SOURCE_EMP_ASV!D:D,SUIVI_PDV!E89,SOURCE_EMP_ASV!J:J)) -> 272,473 | AB89: 58% | AC89: 194,727 | AD89: =Z89*SUIVI_REGION!$Z$4 -> 378,593 | AE89: -106,120 | AF89: =IF(SUMIF(SOURCE_EMP_ASV!D:D,SUIVI_PDV!E89,SOURCE_EMP_ASV!K:K)=0,"",(SUMIF(SOURCE_EMP_ASV!D:D,SUIVI_PDV!E89,SOURCE_EMP_ASV!L:L))/SUMIF(SOURCE_EMP_ASV!D:D,SUIVI_PDV!E89,SOURCE_EMP_ASV!K:K)) -> 0.42% | AG89: 0 € | AH89: =(SUMIF(EMPRUNT_CTO!H:H,SUIVI_PDV!D89,EMPRUNT_CTO!K:K)) -> 0 | AJ89: 8,502 | AK89: =(SUMIFS(ALIZE!P:P,ALIZE!H:H,D89))-(SUMIFS(ALIZE_2105!P:P,ALIZE_2105!H:H,D89)) -> 8,502 | AL89: =(SUMIFS(CORALIUM!P:P,CORALIUM!H:H,D89))-(SUMIFS(CORALIUM_2105!P:P,CORALIUM_2105!H:H,D89)) -> 0 | AM89: =(SUMIFS(PARMA_PEA!$N:$N,PARMA_PEA!$H:$H,$D89)) -> 0
A90: 80 | B90: VOSGES | C90: SAINT DIE | D90: 606 | E90: 151350000606 | F90: 88461 | G90: =VLOOKUP(F90,Objectifs!G:H,2,FALSE) -> MOYENMOUTIER | I90: =VLOOKUP(F90,Objectifs!G:L,6,FALSE) -> 99,300 | J90: =(SUMIFS(SOURCE_PARTS_SOC!G:G,SOURCE_PARTS_SOC!E:E,F90))+(SUMIFS(ORCA_CARNET!E:E,ORCA_CARNET!C:C,F90)) -> 100,880 | K90: =(SUMIFS(SOURCE_PARTS_SOC!H:H,SOURCE_PARTS_SOC!E:E,F90))+(SUMIFS(ORCA_CARNET!F:F,ORCA_CARNET!C:C,F90)) -> 50,000 | L90: 102% | N90: =I90*SUIVI_REGION!$I$4 -> 92,499 | O90: 8,381 | P90: =(SUMIFS(SOURCE_PARTS_SOC_0506!$I:$I,SOURCE_PARTS_SOC_0506!$E:$E,F90)) -> 150,180 | Q90: =(SUMIFS(SOURCE_PARTS_SOC!$I:$I,SOURCE_PARTS_SOC!$E:$E,F90))-P90 -> 0 | S90: =VLOOKUP(F90,Objectifs!G:K,5,FALSE) -> 32,300 | T90: =(SUMIFS(PILCOT_ELAN!$P:$P,PILCOT_ELAN!$H:$H,$D90)) -> 14,936 | U90: 46% | V90: 17,364 | W90: =S90*SUIVI_REGION!$S$4 -> 23,071 | X90: -8,135 | Z90: =VLOOKUP(F90,Objectifs!G:M,7,FALSE) -> 332,900 | AA90: =(SUMIF(SOURCE_EMP_ASV!D:D,SUIVI_PDV!E90,SOURCE_EMP_ASV!J:J)) -> 788,401 | AB90: 237% | AD90: =Z90*SUIVI_REGION!$Z$4 -> 269,764 | AE90: 518,637 | AF90: =IF(SUMIF(SOURCE_EMP_ASV!D:D,SUIVI_PDV!E90,SOURCE_EMP_ASV!K:K)=0,"",(SUMIF(SOURCE_EMP_ASV!D:D,SUIVI_PDV!E90,SOURCE_EMP_ASV!L:L))/SUMIF(SOURCE_EMP_ASV!D:D,SUIVI_PDV!E90,SOURCE_EMP_ASV!K:K)) -> 0.47% | AG90: 0 € | AH90: =(SUMIF(EMPRUNT_CTO!H:H,SUIVI_PDV!D90,EMPRUNT_CTO!K:K)) -> 0 | AJ90: 0 | AK90: =(SUMIFS(ALIZE!P:P,ALIZE!H:H,D90))-(SUMIFS(ALIZE_2105!P:P,ALIZE_2105!H:H,D90)) -> 0 | AL90: =(SUMIFS(CORALIUM!P:P,CORALIUM!H:H,D90))-(SUMIFS(CORALIUM_2105!P:P,CORALIUM_2105!H:H,D90)) -> 0 | AM90: =(SUMIFS(PARMA_PEA!$N:$N,PARMA_PEA!$H:$H,$D90)) -> 0
A91: 80 | B91: VOSGES | C91: SAINT DIE | D91: 630 | E91: 151350000630 | F91: 88551 | G91: =VLOOKUP(F91,Objectifs!G:H,2,FALSE) -> RAMBERVILLERS | I91: =VLOOKUP(F91,Objectifs!G:L,6,FALSE) -> 139,400 | J91: =(SUMIFS(SOURCE_PARTS_SOC!G:G,SOURCE_PARTS_SOC!E:E,F91))+(SUMIFS(ORCA_CARNET!E:E,ORCA_CARNET!C:C,F91)) -> 17,880 | K91: =(SUMIFS(SOURCE_PARTS_SOC!H:H,SOURCE_PARTS_SOC!E:E,F91))+(SUMIFS(ORCA_CARNET!F:F,ORCA_CARNET!C:C,F91)) -> 1,120 | L91: 13% | M91: 121,520 | N91: =I91*SUIVI_REGION!$I$4 -> 129,852 | O91: -111,972 | P91: =(SUMIFS(SOURCE_PARTS_SOC_0506!$I:$I,SOURCE_PARTS_SOC_0506!$E:$E,F91)) -> 192,060 | Q91: =(SUMIFS(SOURCE_PARTS_SOC!$I:$I,SOURCE_PARTS_SOC!$E:$E,F91))-P91 -> 20 | S91: =VLOOKUP(F91,Objectifs!G:K,5,FALSE) -> 45,300 | T91: =(SUMIFS(PILCOT_ELAN!$P:$P,PILCOT_ELAN!$H:$H,$D91)) -> 20,004 | U91: 44% | V91: 25,296 | W91: =S91*SUIVI_REGION!$S$4 -> 32,357 | X91: -12,353 | Z91: =VLOOKUP(F91,Objectifs!G:M,7,FALSE) -> 467,200 | AA91: =(SUMIF(SOURCE_EMP_ASV!D:D,SUIVI_PDV!E91,SOURCE_EMP_ASV!J:J)) -> 101,240 | AB91: 22% | AC91: 365,960 | AD91: =Z91*SUIVI_REGION!$Z$4 -> 378,593 | AE91: -277,353 | AF91: =IF(SUMIF(SOURCE_EMP_ASV!D:D,SUIVI_PDV!E91,SOURCE_EMP_ASV!K:K)=0,"",(SUMIF(SOURCE_EMP_ASV!D:D,SUIVI_PDV!E91,SOURCE_EMP_ASV!L:L))/SUMIF(SOURCE_EMP_ASV!D:D,SUIVI_PDV!E91,SOURCE_EMP_ASV!K:K)) -> 0.38% | AG91: 0 € | AH91: =(SUMIF(EMPRUNT_CTO!H:H,SUIVI_PDV!D91,EMPRUNT_CTO!K:K)) -> 0 | AJ91: 20,388 | AK91: =(SUMIFS(ALIZE!P:P,ALIZE!H:H,D91))-(SUMIFS(ALIZE_2105!P:P,ALIZE_2105!H:H,D91)) -> 20,388 | AL91: =(SUMIFS(CORALIUM!P:P,CORALIUM!H:H,D91))-(SUMIFS(CORALIUM_2105!P:P,CORALIUM_2105!H:H,D91)) -> 0 | AM91: =(SUMIFS(PARMA_PEA!$N:$N,PARMA_PEA!$H:$H,$D91)) -> 0
A92: 80 | B92: VOSGES | C92: SAINT DIE | D92: 631 | E92: 151350000631 | F92: 88556 | G92: =VLOOKUP(F92,Objectifs!G:H,2,FALSE) -> RAON L ETAPE | I92: =VLOOKUP(F92,Objectifs!G:L,6,FALSE) -> 139,400 | J92: =(SUMIFS(SOURCE_PARTS_SOC!G:G,SOURCE_PARTS_SOC!E:E,F92))+(SUMIFS(ORCA_CARNET!E:E,ORCA_CARNET!C:C,F92)) -> 46,040 | K92: =(SUMIFS(SOURCE_PARTS_SOC!H:H,SOURCE_PARTS_SOC!E:E,F92))+(SUMIFS(ORCA_CARNET!F:F,ORCA_CARNET!C:C,F92)) -> 33,440 | L92: 33% | M92: 93,360 | N92: =I92*SUIVI_REGION!$I$4 -> 129,852 | O92: -83,812 | P92: =(SUMIFS(SOURCE_PARTS_SOC_0506!$I:$I,SOURCE_PARTS_SOC_0506!$E:$E,F92)) -> 162,700 | Q92: =(SUMIFS(SOURCE_PARTS_SOC!$I:$I,SOURCE_PARTS_SOC!$E:$E,F92))-P92 -> 50,440 | S92: =VLOOKUP(F92,Objectifs!G:K,5,FALSE) -> 45,300 | T92: =(SUMIFS(PILCOT_ELAN!$P:$P,PILCOT_ELAN!$H:$H,$D92)) -> 0 | U92: 0% | V92: 45,300 | W92: =S92*SUIVI_REGION!$S$4 -> 32,357 | X92: -32,357 | Z92: =VLOOKUP(F92,Objectifs!G:M,7,FALSE) -> 467,200 | AA92: =(SUMIF(SOURCE_EMP_ASV!D:D,SUIVI_PDV!E92,SOURCE_EMP_ASV!J:J)) -> 81,035 | AB92: 17% | AC92: 386,165 | AD92: =Z92*SUIVI_REGION!$Z$4 -> 378,593 | AE92: -297,558 | AF92: =IF(SUMIF(SOURCE_EMP_ASV!D:D,SUIVI_PDV!E92,SOURCE_EMP_ASV!K:K)=0,"",(SUMIF(SOURCE_EMP_ASV!D:D,SUIVI_PDV!E92,SOURCE_EMP_ASV!L:L))/SUMIF(SOURCE_EMP_ASV!D:D,SUIVI_PDV!E92,SOURCE_EMP_ASV!K:K)) -> 0.18% | AG92: 0 € | AH92: =(SUMIF(EMPRUNT_CTO!H:H,SUIVI_PDV!D92,EMPRUNT_CTO!K:K)) -> 0 | AJ92: 14,276 | AK92: =(SUMIFS(ALIZE!P:P,ALIZE!H:H,D92))-(SUMIFS(ALIZE_2105!P:P,ALIZE_2105!H:H,D92)) -> 14,276 | AL92: =(SUMIFS(CORALIUM!P:P,CORALIUM!H:H,D92))-(SUMIFS(CORALIUM_2105!P:P,CORALIUM_2105!H:H,D92)) -> 0 | AM92: =(SUMIFS(PARMA_PEA!$N:$N,PARMA_PEA!$H:$H,$D92)) -> 0
A93: 80 | B93: VOSGES | C93: SAINT DIE | D93: 551 | E93: 151350000551 | F93: 88316 | G93: =VLOOKUP(F93,Objectifs!G:H,2,FALSE) -> FRAIZE | I93: =VLOOKUP(F93,Objectifs!G:L,6,FALSE) -> 139,400 | J93: =(SUMIFS(SOURCE_PARTS_SOC!G:G,SOURCE_PARTS_SOC!E:E,F93))+(SUMIFS(ORCA_CARNET!E:E,ORCA_CARNET!C:C,F93)) -> 36,780 | K93: =(SUMIFS(SOURCE_PARTS_SOC!H:H,SOURCE_PARTS_SOC!E:E,F93))+(SUMIFS(ORCA_CARNET!F:F,ORCA_CARNET!C:C,F93)) -> 28,160 | L93: 26% | M93: 102,620 | N93: =I93*SUIVI_REGION!$I$4 -> 129,852 | O93: -93,072 | P93: =(SUMIFS(SOURCE_PARTS_SOC_0506!$I:$I,SOURCE_PARTS_SOC_0506!$E:$E,F93)) -> 156,980 | Q93: =(SUMIFS(SOURCE_PARTS_SOC!$I:$I,SOURCE_PARTS_SOC!$E:$E,F93))-P93 -> 800 | S93: =VLOOKUP(F93,Objectifs!G:K,5,FALSE) -> 45,300 | T93: =(SUMIFS(PILCOT_ELAN!$P:$P,PILCOT_ELAN!$H:$H,$D93)) -> 6,500 | U93: 14% | V93: 38,800 | W93: =S93*SUIVI_REGION!$S$4 -> 32,357 | X93: -25,857 | Z93: =VLOOKUP(F93,Objectifs!G:M,7,FALSE) -> 467,200 | AA93: =(SUMIF(SOURCE_EMP_ASV!D:D,SUIVI_PDV!E93,SOURCE_EMP_ASV!J:J)) -> 155,855 | AB93: 33% | AC93: 311,345 | AD93: =Z93*SUIVI_REGION!$Z$4 -> 378,593 | AE93: -222,738 | AF93: =IF(SUMIF(SOURCE_EMP_ASV!D:D,SUIVI_PDV!E93,SOURCE_EMP_ASV!K:K)=0,"",(SUMIF(SOURCE_EMP_ASV!D:D,SUIVI_PDV!E93,SOURCE_EMP_ASV!L:L))/SUMIF(SOURCE_EMP_ASV!D:D,SUIVI_PDV!E93,SOURCE_EMP_ASV!K:K)) -> 0.42% | AG93: 0 € | AH93: =(SUMIF(EMPRUNT_CTO!H:H,SUIVI_PDV!D93,EMPRUNT_CTO!K:K)) -> 0 | AJ93: 19,464 | AK93: =(SUMIFS(ALIZE!P:P,ALIZE!H:H,D93))-(SUMIFS(ALIZE_2105!P:P,ALIZE_2105!H:H,D93)) -> 0 | AL93: =(SUMIFS(CORALIUM!P:P,CORALIUM!H:H,D93))-(SUMIFS(CORALIUM_2105!P:P,CORALIUM_2105!H:H,D93)) -> 0 | AM93: =(SUMIFS(PARMA_PEA!$N:$N,PARMA_PEA!$H:$H,$D93)) -> 19,464
A94: 80 | B94: VOSGES | C94: SAINT DIE | D94: 638 | E94: 151350000638 | F94: 88586 | G94: =VLOOKUP(F94,Objectifs!G:H,2,FALSE) -> SAINT DIE | I94: =VLOOKUP(F94,Objectifs!G:L,6,FALSE) -> 537,800 | J94: =(SUMIFS(SOURCE_PARTS_SOC!G:G,SOURCE_PARTS_SOC!E:E,F94))+(SUMIFS(ORCA_CARNET!E:E,ORCA_CARNET!C:C,F94)) -> 68,100 | K94: =(SUMIFS(SOURCE_PARTS_SOC!H:H,SOURCE_PARTS_SOC!E:E,F94))+(SUMIFS(ORCA_CARNET!F:F,ORCA_CARNET!C:C,F94)) -> 1,500 | L94: 13% | M94: 469,700 | N94: =I94*SUIVI_REGION!$I$4 -> 500,964 | O94: -432,864 | P94: =(SUMIFS(SOURCE_PARTS_SOC_0506!$I:$I,SOURCE_PARTS_SOC_0506!$E:$E,F94)) -> 527,440 | Q94: =(SUMIFS(SOURCE_PARTS_SOC!$I:$I,SOURCE_PARTS_SOC!$E:$E,F94))-P94 -> 4,600 | S94: =VLOOKUP(F94,Objectifs!G:K,5,FALSE) -> 175,000 | T94: =(SUMIFS(PILCOT_ELAN!$P:$P,PILCOT_ELAN!$H:$H,$D94)) -> 124,300 | U94: 71% | V94: 50,700 | W94: =S94*SUIVI_REGION!$S$4 -> 125,000 | X94: -700 | Z94: =VLOOKUP(F94,Objectifs!G:M,7,FALSE) -> 1,803,500 | AA94: =(SUMIF(SOURCE_EMP_ASV!D:D,SUIVI_PDV!E94,SOURCE_EMP_ASV!J:J)) -> 1,582,535 | AB94: 88% | AC94: 220,965 | AD94: =Z94*SUIVI_REGION!$Z$4 -> 1,461,457 | AE94: 121,079 | AF94: =IF(SUMIF(SOURCE_EMP_ASV!D:D,SUIVI_PDV!E94,SOURCE_EMP_ASV!K:K)=0,"",(SUMIF(SOURCE_EMP_ASV!D:D,SUIVI_PDV!E94,SOURCE_EMP_ASV!L:L))/SUMIF(SOURCE_EMP_ASV!D:D,SUIVI_PDV!E94,SOURCE_EMP_ASV!K:K)) -> 0.41% | AG94: 0 € | AH94: =(SUMIF(EMPRUNT_CTO!H:H,SUIVI_PDV!D94,EMPRUNT_CTO!K:K)) -> 0 | AJ94: 0 | AK94: =(SUMIFS(ALIZE!P:P,ALIZE!H:H,D94))-(SUMIFS(ALIZE_2105!P:P,ALIZE_2105!H:H,D94)) -> 0 | AL94: =(SUMIFS(CORALIUM!P:P,CORALIUM!H:H,D94))-(SUMIFS(CORALIUM_2105!P:P,CORALIUM_2105!H:H,D94)) -> 0 | AM94: =(SUMIFS(PARMA_PEA!$N:$N,PARMA_PEA!$H:$H,$D94)) -> 0
A95: 80 | C95: Total Territoire SAINT DIE | G95: SAINT DIE | I95: =SUBTOTAL(9,I85:I94) -> 1,733,600 | J95: =SUBTOTAL(9,J85:J94) -> 523,640 | K95: =SUBTOTAL(9,K85:K94) -> 155,240 | L95: 30% | M95: 1,209,960 | N95: =I95*SUIVI_REGION!$I$4 -> 1,614,860 | O95: -1,091,220 | P95: =SUBTOTAL(9,P85:P94) -> 2,191,660 | Q95: =SUBTOTAL(9,Q85:Q94) -> 75,980 | S95: =SUBTOTAL(9,S85:S94) -> 563,700 | T95: =SUBTOTAL(9,T85:T94) -> 228,654 | U95: 41% | V95: 335,046 | W95: =S95*SUIVI_REGION!$S$4 -> 402,643 | X95: -173,989 | Z95: =SUBTOTAL(9,Z85:Z94) -> 5,812,100 | AA95: =SUBTOTAL(9,AA85:AA94) -> 3,916,187 | AB95: 67% | AC95: 1,895,913 | AD95: =Z95*SUIVI_REGION!$Z$4 -> 4,709,805 | AE95: -793,618 | AF95: =IF(SUMIF(SOURCE_EMP_ASV!B:B,G95,SOURCE_EMP_ASV!K:K)=0,"",(SUMIF(SOURCE_EMP_ASV!B:B,G95,SOURCE_EMP_ASV!L:L))/(SUMIF(SOURCE_EMP_ASV!B:B,G95,SOURCE_EMP_ASV!K:K))) -> 0.41% | AG95: 0 € | AH95: =SUBTOTAL(9,AH85:AH94) -> 0 | AJ95: 103,391 | AK95: =SUBTOTAL(9,AK85:AK94) -> 83,927 | AL95: =SUBTOTAL(9,AL85:AL94) -> 0 | AM95: =SUBTOTAL(9,AM85:AM94) -> 19,464
A96: 80 | B96: Total VOSGES | G96: VOSGES | I96: =SUBTOTAL(9,I70:I95) -> 3,728,400 | J96: =SUBTOTAL(9,J70:J95) -> 1,578,180 | K96: =SUBTOTAL(9,K70:K95) -> 500,920 | L96: 42% | M96: 2,150,220 | N96: =I96*SUIVI_REGION!$I$4 -> 3,473,030 | O96: -1,894,850 | P96: =SUBTOTAL(9,P70:P95) -> 5,501,600 | Q96: =SUBTOTAL(9,Q70:Q95) -> 154,920 | S96: =SUBTOTAL(9,S70:S95) -> 1,212,100 | T96: =SUBTOTAL(9,T70:T95) -> 507,832 | U96: 42% | V96: 704,268 | W96: =S96*SUIVI_REGION!$S$4 -> 865,786 | X96: -357,954 | Z96: =SUBTOTAL(9,Z70:Z95) -> 12,500,000 | AA96: =SUBTOTAL(9,AA70:AA95) -> 7,626,627 | AB96: 61% | AC96: 4,873,373 | AD96: =Z96*SUIVI_REGION!$Z$4 -> 10,129,310 | AE96: -2,502,683 | AF96: =IF(SUMIF(SOURCE_EMP_ASV!A:A,G96,SOURCE_EMP_ASV!K:K)=0,"",(SUMIF(SOURCE_EMP_ASV!A:A,G96,SOURCE_EMP_ASV!L:L))/(SUMIF(SOURCE_EMP_ASV!A:A,G96,SOURCE_EMP_ASV!K:K))) -> 0.40% | AG96: 3,000 € | AH96: =SUBTOTAL(9,AH70:AH95) -> 30 | AJ96: 223,589 | AK96: =SUBTOTAL(9,AK70:AK95) -> 157,434 | AL96: =SUBTOTAL(9,AL70:AL95) -> 46,691 | AM96: =SUBTOTAL(9,AM70:AM95) -> 19,464
A97: 110 | B97: MEURTHE ET MOSELLE MEUSE | C97: NANCY | D97: 507 | E97: 151350000507 | F97: 54116 | G97: =VLOOKUP(F97,Objectifs!G:H,2,FALSE) -> BACCARAT | I97: =VLOOKUP(F97,Objectifs!G:L,6,FALSE) -> 101,000 | J97: =(SUMIFS(SOURCE_PARTS_SOC!G:G,SOURCE_PARTS_SOC!E:E,F97))+(SUMIFS(ORCA_CARNET!E:E,ORCA_CARNET!C:C,F97)) -> 21,260 | K97: =(SUMIFS(SOURCE_PARTS_SOC!H:H,SOURCE_PARTS_SOC!E:E,F97))+(SUMIFS(ORCA_CARNET!F:F,ORCA_CARNET!C:C,F97)) -> 8,080 | L97: 21% | M97: 79,740 | N97: =I97*SUIVI_REGION!$I$4 -> 94,082 | O97: -72,822 | P97: =(SUMIFS(SOURCE_PARTS_SOC_0506!$I:$I,SOURCE_PARTS_SOC_0506!$E:$E,F97)) -> 114,660 | Q97: =(SUMIFS(SOURCE_PARTS_SOC!$I:$I,SOURCE_PARTS_SOC!$E:$E,F97))-P97 -> 0 | S97: =VLOOKUP(F97,Objectifs!G:K,5,FALSE) -> 32,800 | T97: =(SUMIFS(PILCOT_ELAN!$P:$P,PILCOT_ELAN!$H:$H,$D97)) -> 35,270 | U97: 108% | W97: =S97*SUIVI_REGION!$S$4 -> 23,429 | X97: 11,842 | Z97: =VLOOKUP(F97,Objectifs!G:M,7,FALSE) -> 427,300 | AA97: =(SUMIF(SOURCE_EMP_ASV!D:D,SUIVI_PDV!E97,SOURCE_EMP_ASV!J:J)) -> 576,471 | AB97: 135% | AD97: =Z97*SUIVI_REGION!$Z$4 -> 346,260 | AE97: 230,210 | AF97: =IF(SUMIF(SOURCE_EMP_ASV!D:D,SUIVI_PDV!E97,SOURCE_EMP_ASV!K:K)=0,"",(SUMIF(SOURCE_EMP_ASV!D:D,SUIVI_PDV!E97,SOURCE_EMP_ASV!L:L))/SUMIF(SOURCE_EMP_ASV!D:D,SUIVI_PDV!E97,SOURCE_EMP_ASV!K:K)) -> 0.50% | AG97: 0 € | AH97: =(SUMIF(EMPRUNT_CTO!H:H,SUIVI_PDV!D97,EMPRUNT_CTO!K:K)) -> 0 | AJ97: 11,880 | AK97: =(SUMIFS(ALIZE!P:P,ALIZE!H:H,D97))-(SUMIFS(ALIZE_2105!P:P,ALIZE_2105!H:H,D97)) -> 11,880 | AL97: =(SUMIFS(CORALIUM!P:P,CORALIUM!H:H,D97))-(SUMIFS(CORALIUM_2105!P:P,CORALIUM_2105!H:H,D97)) -> 0 | AM97: =(SUMIFS(PARMA_PEA!$N:$N,PARMA_PEA!$H:$H,$D97)) -> 0
A98: 110 | B98: MEURTHE ET MOSELLE MEUSE | C98: NANCY | D98: 513 | E98: 151350000513 | F98: 54166 | G98: =VLOOKUP(F98,Objectifs!G:H,2,FALSE) -> BLAINVILLE | I98: =VLOOKUP(F98,Objectifs!G:L,6,FALSE) -> 128,900 | J98: =(SUMIFS(SOURCE_PARTS_SOC!G:G,SOURCE_PARTS_SOC!E:E,F98))+(SUMIFS(ORCA_CARNET!E:E,ORCA_CARNET!C:C,F98)) -> 4,020 | K98: =(SUMIFS(SOURCE_PARTS_SOC!H:H,SOURCE_PARTS_SOC!E:E,F98))+(SUMIFS(ORCA_CARNET!F:F,ORCA_CARNET!C:C,F98)) -> 0 | L98: 3% | M98: 124,880 | N98: =I98*SUIVI_REGION!$I$4 -> 120,071 | O98: -116,051 | P98: =(SUMIFS(SOURCE_PARTS_SOC_0506!$I:$I,SOURCE_PARTS_SOC_0506!$E:$E,F98)) -> 134,080 | Q98: =(SUMIFS(SOURCE_PARTS_SOC!$I:$I,SOURCE_PARTS_SOC!$E:$E,F98))-P98 -> 60 | S98: =VLOOKUP(F98,Objectifs!G:K,5,FALSE) -> 41,900 | T98: =(SUMIFS(PILCOT_ELAN!$P:$P,PILCOT_ELAN!$H:$H,$D98)) -> 301 | U98: 1% | V98: 41,599 | W98: =S98*SUIVI_REGION!$S$4 -> 29,929 | X98: -29,627 | Z98: =VLOOKUP(F98,Objectifs!G:M,7,FALSE) -> 545,200 | AA98: =(SUMIF(SOURCE_EMP_ASV!D:D,SUIVI_PDV!E98,SOURCE_EMP_ASV!J:J)) -> 115,217 | AB98: 21% | AC98: 429,983 | AD98: =Z98*SUIVI_REGION!$Z$4 -> 441,800 | AE98: -326,583 | AF98: =IF(SUMIF(SOURCE_EMP_ASV!D:D,SUIVI_PDV!E98,SOURCE_EMP_ASV!K:K)=0,"",(SUMIF(SOURCE_EMP_ASV!D:D,SUIVI_PDV!E98,SOURCE_EMP_ASV!L:L))/SUMIF(SOURCE_EMP_ASV!D:D,SUIVI_PDV!E98,SOURCE_EMP_ASV!K:K)) -> 0.36% | AG98: 0 € | AH98: =(SUMIF(EMPRUNT_CTO!H:H,SUIVI_PDV!D98,EMPRUNT_CTO!K:K)) -> 0 | AJ98: 0 | AK98: =(SUMIFS(ALIZE!P:P,ALIZE!H:H,D98))-(SUMIFS(ALIZE_2105!P:P,ALIZE_2105!H:H,D98)) -> 0 | AL98: =(SUMIFS(CORALIUM!P:P,CORALIUM!H:H,D98))-(SUMIFS(CORALIUM_2105!P:P,CORALIUM_2105!H:H,D98)) -> 0 | AM98: =(SUMIFS(PARMA_PEA!$N:$N,PARMA_PEA!$H:$H,$D98)) -> 0
A99: 110 | B99: MEURTHE ET MOSELLE MEUSE | C99: NANCY | D99: 514 | E99: 151350000514 | F99: 54171 | G99: =VLOOKUP(F99,Objectifs!G:H,2,FALSE) -> BLAMONT | I99: =VLOOKUP(F99,Objectifs!G:L,6,FALSE) -> 55,700 | J99: =(SUMIFS(SOURCE_PARTS_SOC!G:G,SOURCE_PARTS_SOC!E:E,F99))+(SUMIFS(ORCA_CARNET!E:E,ORCA_CARNET!C:C,F99)) -> 700 | K99: =(SUMIFS(SOURCE_PARTS_SOC!H:H,SOURCE_PARTS_SOC!E:E,F99))+(SUMIFS(ORCA_CARNET!F:F,ORCA_CARNET!C:C,F99)) -> 0 | L99: 1% | M99: 55,000 | N99: =I99*SUIVI_REGION!$I$4 -> 51,885 | O99: -51,185 | P99: =(SUMIFS(SOURCE_PARTS_SOC_0506!$I:$I,SOURCE_PARTS_SOC_0506!$E:$E,F99)) -> 66,060 | Q99: =(SUMIFS(SOURCE_PARTS_SOC!$I:$I,SOURCE_PARTS_SOC!$E:$E,F99))-P99 -> 20 | S99: =VLOOKUP(F99,Objectifs!G:K,5,FALSE) -> 18,100 | T99: =(SUMIFS(PILCOT_ELAN!$P:$P,PILCOT_ELAN!$H:$H,$D99)) -> 0 | U99: 0% | V99: 18,100 | W99: =S99*SUIVI_REGION!$S$4 -> 12,929 | X99: -12,929 | Z99: =VLOOKUP(F99,Objectifs!G:M,7,FALSE) -> 235,800 | AA99: =(SUMIF(SOURCE_EMP_ASV!D:D,SUIVI_PDV!E99,SOURCE_EMP_ASV!J:J)) -> 28,520 | AB99: 12% | AC99: 207,280 | AD99: =Z99*SUIVI_REGION!$Z$4 -> 191,079 | AE99: -162,559 | AF99: =IF(SUMIF(SOURCE_EMP_ASV!D:D,SUIVI_PDV!E99,SOURCE_EMP_ASV!K:K)=0,"",(SUMIF(SOURCE_EMP_ASV!D:D,SUIVI_PDV!E99,SOURCE_EMP_ASV!L:L))/SUMIF(SOURCE_EMP_ASV!D:D,SUIVI_PDV!E99,SOURCE_EMP_ASV!K:K)) -> 0.50% | AG99: 0 € | AH99: =(SUMIF(EMPRUNT_CTO!H:H,SUIVI_PDV!D99,EMPRUNT_CTO!K:K)) -> 0 | AJ99: 0 | AK99: =(SUMIFS(ALIZE!P:P,ALIZE!H:H,D99))-(SUMIFS(ALIZE_2105!P:P,ALIZE_2105!H:H,D99)) -> 0 | AL99: =(SUMIFS(CORALIUM!P:P,CORALIUM!H:H,D99))-(SUMIFS(CORALIUM_2105!P:P,CORALIUM_2105!H:H,D99)) -> 0 | AM99: =(SUMIFS(PARMA_PEA!$N:$N,PARMA_PEA!$H:$H,$D99)) -> 0
A100: 110 | B100: MEURTHE ET MOSELLE MEUSE | C100: NANCY | D100: 581 | E100: 151350000581 | F100: 54426 | G100: =VLOOKUP(F100,Objectifs!G:H,2,FALSE) -> LUNEVILLE CARNOT | I100: =VLOOKUP(F100,Objectifs!G:L,6,FALSE) -> 355,400 | J100: =(SUMIFS(SOURCE_PARTS_SOC!G:G,SOURCE_PARTS_SOC!E:E,F100))+(SUMIFS(ORCA_CARNET!E:E,ORCA_CARNET!C:C,F100)) -> 64,860 | K100: =(SUMIFS(SOURCE_PARTS_SOC!H:H,SOURCE_PARTS_SOC!E:E,F100))+(SUMIFS(ORCA_CARNET!F:F,ORCA_CARNET!C:C,F100)) -> 560 | L100: 18% | M100: 290,540 | N100: =I100*SUIVI_REGION!$I$4 -> 331,058 | O100: -266,198 | P100: =(SUMIFS(SOURCE_PARTS_SOC_0506!$I:$I,SOURCE_PARTS_SOC_0506!$E:$E,F100)) -> 421,100 | Q100: =(SUMIFS(SOURCE_PARTS_SOC!$I:$I,SOURCE_PARTS_SOC!$E:$E,F100))-P100 -> 0 | S100: =VLOOKUP(F100,Objectifs!G:K,5,FALSE) -> 115,500 | T100: =(SUMIFS(PILCOT_ELAN!$P:$P,PILCOT_ELAN!$H:$H,$D100)) -> 90,894 | U100: 79% | V100: 24,606 | W100: =S100*SUIVI_REGION!$S$4 -> 82,500 | X100: 8,394 | Z100: =VLOOKUP(F100,Objectifs!G:M,7,FALSE) -> 1,503,000 | AA100: =(SUMIF(SOURCE_EMP_ASV!D:D,SUIVI_PDV!E100,SOURCE_EMP_ASV!J:J)) -> 1,436,423 | AB100: 96% | AC100: 66,577 | AD100: =Z100*SUIVI_REGION!$Z$4 -> 1,217,948 | AE100: 218,474 | AF100: =IF(SUMIF(SOURCE_EMP_ASV!D:D,SUIVI_PDV!E100,SOURCE_EMP_ASV!K:K)=0,"",(SUMIF(SOURCE_EMP_ASV!D:D,SUIVI_PDV!E100,SOURCE_EMP_ASV!L:L))/SUMIF(SOURCE_EMP_ASV!D:D,SUIVI_PDV!E100,SOURCE_EMP_ASV!K:K)) -> 0.36% | AG100: 30,000 € | AH100: =(SUMIF(EMPRUNT_CTO!H:H,SUIVI_PDV!D100,EMPRUNT_CTO!K:K)) -> 300 | AJ100: 1,509 | AK100: =(SUMIFS(ALIZE!P:P,ALIZE!H:H,D100))-(SUMIFS(ALIZE_2105!P:P,ALIZE_2105!H:H,D100)) -> 1,509 | AL100: =(SUMIFS(CORALIUM!P:P,CORALIUM!H:H,D100))-(SUMIFS(CORALIUM_2105!P:P,CORALIUM_2105!H:H,D100)) -> 0 | AM100: =(SUMIFS(PARMA_PEA!$N:$N,PARMA_PEA!$H:$H,$D100)) -> 0
A101: 110 | B101: MEURTHE ET MOSELLE MEUSE | C101: NANCY | D101: 542 | E101: 151350000542 | F101: 54296 | G101: =VLOOKUP(F101,Objectifs!G:H,2,FALSE) -> ESSEY LES NANCY | I101: =VLOOKUP(F101,Objectifs!G:L,6,FALSE) -> 137,000 | J101: =(SUMIFS(SOURCE_PARTS_SOC!G:G,SOURCE_PARTS_SOC!E:E,F101))+(SUMIFS(ORCA_CARNET!E:E,ORCA_CARNET!C:C,F101)) -> 24,720 | K101: =(SUMIFS(SOURCE_PARTS_SOC!H:H,SOURCE_PARTS_SOC!E:E,F101))+(SUMIFS(ORCA_CARNET!F:F,ORCA_CARNET!C:C,F101)) -> 100 | L101: 18% | M101: 112,280 | N101: =I101*SUIVI_REGION!$I$4 -> 127,616 | O101: -102,896 | P101: =(SUMIFS(SOURCE_PARTS_SOC_0506!$I:$I,SOURCE_PARTS_SOC_0506!$E:$E,F101)) -> 73,440 | Q101: =(SUMIFS(SOURCE_PARTS_SOC!$I:$I,SOURCE_PARTS_SOC!$E:$E,F101))-P101 -> 0 | S101: =VLOOKUP(F101,Objectifs!G:K,5,FALSE) -> 44,500 | T101: =(SUMIFS(PILCOT_ELAN!$P:$P,PILCOT_ELAN!$H:$H,$D101)) -> 3,398 | U101: 8% | V101: 41,102 | W101: =S101*SUIVI_REGION!$S$4 -> 31,786 | X101: -28,388 | Z101: =VLOOKUP(F101,Objectifs!G:M,7,FALSE) -> 579,300 | AA101: =(SUMIF(SOURCE_EMP_ASV!D:D,SUIVI_PDV!E101,SOURCE_EMP_ASV!J:J)) -> 177,400 | AB101: 31% | AC101: 401,900 | AD101: =Z101*SUIVI_REGION!$Z$4 -> 469,433 | AE101: -292,033 | AF101: =IF(SUMIF(SOURCE_EMP_ASV!D:D,SUIVI_PDV!E101,SOURCE_EMP_ASV!K:K)=0,"",(SUMIF(SOURCE_EMP_ASV!D:D,SUIVI_PDV!E101,SOURCE_EMP_ASV!L:L))/SUMIF(SOURCE_EMP_ASV!D:D,SUIVI_PDV!E101,SOURCE_EMP_ASV!K:K)) -> 0.50% | AG101: 0 € | AH101: =(SUMIF(EMPRUNT_CTO!H:H,SUIVI_PDV!D101,EMPRUNT_CTO!K:K)) -> 0 | AJ101: 0 | AK101: =(SUMIFS(ALIZE!P:P,ALIZE!H:H,D101))-(SUMIFS(ALIZE_2105!P:P,ALIZE_2105!H:H,D101)) -> 0 | AL101: =(SUMIFS(CORALIUM!P:P,CORALIUM!H:H,D101))-(SUMIFS(CORALIUM_2105!P:P,CORALIUM_2105!H:H,D101)) -> 0 | AM101: =(SUMIFS(PARMA_PEA!$N:$N,PARMA_PEA!$H:$H,$D101)) -> 0
A102: 110 | B102: MEURTHE ET MOSELLE MEUSE | C102: NANCY | D102: 640 | E102: 151350000640 | F102: 54601 | G102: =VLOOKUP(F102,Objectifs!G:H,2,FALSE) -> SAINT MAX | I102: =VLOOKUP(F102,Objectifs!G:L,6,FALSE) -> 143,200 | J102: =(SUMIFS(SOURCE_PARTS_SOC!G:G,SOURCE_PARTS_SOC!E:E,F102))+(SUMIFS(ORCA_CARNET!E:E,ORCA_CARNET!C:C,F102)) -> 49,760 | K102: =(SUMIFS(SOURCE_PARTS_SOC!H:H,SOURCE_PARTS_SOC!E:E,F102))+(SUMIFS(ORCA_CARNET!F:F,ORCA_CARNET!C:C,F102)) -> 280 | L102: 35% | M102: 93,440 | N102: =I102*SUIVI_REGION!$I$4 -> 133,392 | O102: -83,632 | P102: =(SUMIFS(SOURCE_PARTS_SOC_0506!$I:$I,SOURCE_PARTS_SOC_0506!$E:$E,F102)) -> 171,760 | Q102: =(SUMIFS(SOURCE_PARTS_SOC!$I:$I,SOURCE_PARTS_SOC!$E:$E,F102))-P102 -> 0 | S102: =VLOOKUP(F102,Objectifs!G:K,5,FALSE) -> 46,500 | T102: =(SUMIFS(PILCOT_ELAN!$P:$P,PILCOT_ELAN!$H:$H,$D102)) -> 35,913 | U102: 77% | V102: 10,587 | W102: =S102*SUIVI_REGION!$S$4 -> 33,214 | X102: 2,699 | Z102: =VLOOKUP(F102,Objectifs!G:M,7,FALSE) -> 605,500 | AA102: =(SUMIF(SOURCE_EMP_ASV!D:D,SUIVI_PDV!E102,SOURCE_EMP_ASV!J:J)) -> 289,640 | AB102: 48% | AC102: 315,860 | AD102: =Z102*SUIVI_REGION!$Z$4 -> 490,664 | AE102: -201,024 | AF102: =IF(SUMIF(SOURCE_EMP_ASV!D:D,SUIVI_PDV!E102,SOURCE_EMP_ASV!K:K)=0,"",(SUMIF(SOURCE_EMP_ASV!D:D,SUIVI_PDV!E102,SOURCE_EMP_ASV!L:L))/SUMIF(SOURCE_EMP_ASV!D:D,SUIVI_PDV!E102,SOURCE_EMP_ASV!K:K)) -> 0.48% | AG102: 0 € | AH102: =(SUMIF(EMPRUNT_CTO!H:H,SUIVI_PDV!D102,EMPRUNT_CTO!K:K)) -> 0 | AJ102: 8,945 | AK102: =(SUMIFS(ALIZE!P:P,ALIZE!H:H,D102))-(SUMIFS(ALIZE_2105!P:P,ALIZE_2105!H:H,D102)) -> 8,945 | AL102: =(SUMIFS(CORALIUM!P:P,CORALIUM!H:H,D102))-(SUMIFS(CORALIUM_2105!P:P,CORALIUM_2105!H:H,D102)) -> 0 | AM102: =(SUMIFS(PARMA_PEA!$N:$N,PARMA_PEA!$H:$H,$D102)) -> 0
A103: 110 | B103: MEURTHE ET MOSELLE MEUSE | C103: NANCY | D103: 660 | E103: 151350000660 | F103: 54636 | G103: =VLOOKUP(F103,Objectifs!G:H,2,FALSE) -> TOMBLAINE | I103: =VLOOKUP(F103,Objectifs!G:L,6,FALSE) -> 101,000 | J103: =(SUMIFS(SOURCE_PARTS_SOC!G:G,SOURCE_PARTS_SOC!E:E,F103))+(SUMIFS(ORCA_CARNET!E:E,ORCA_CARNET!C:C,F103)) -> 62,180 | K103: =(SUMIFS(SOURCE_PARTS_SOC!H:H,SOURCE_PARTS_SOC!E:E,F103))+(SUMIFS(ORCA_CARNET!F:F,ORCA_CARNET!C:C,F103)) -> 860 | L103: 62% | M103: 38,820 | N103: =I103*SUIVI_REGION!$I$4 -> 94,082 | O103: -31,902 | P103: =(SUMIFS(SOURCE_PARTS_SOC_0506!$I:$I,SOURCE_PARTS_SOC_0506!$E:$E,F103)) -> 48,340 | Q103: =(SUMIFS(SOURCE_PARTS_SOC!$I:$I,SOURCE_PARTS_SOC!$E:$E,F103))-P103 -> 15,520 | S103: =VLOOKUP(F103,Objectifs!G:K,5,FALSE) -> 32,800 | T103: =(SUMIFS(PILCOT_ELAN!$P:$P,PILCOT_ELAN!$H:$H,$D103)) -> 12,117 | U103: 37% | V103: 20,683 | W103: =S103*SUIVI_REGION!$S$4 -> 23,429 | X103: -11,311 | Z103: =VLOOKUP(F103,Objectifs!G:M,7,FALSE) -> 427,300 | AA103: =(SUMIF(SOURCE_EMP_ASV!D:D,SUIVI_PDV!E103,SOURCE_EMP_ASV!J:J)) -> 425,300 | AB103: 100% | AC103: 2,000 | AD103: =Z103*SUIVI_REGION!$Z$4 -> 346,260 | AE103: 79,040 | AF103: =IF(SUMIF(SOURCE_EMP_ASV!D:D,SUIVI_PDV!E103,SOURCE_EMP_ASV!K:K)=0,"",(SUMIF(SOURCE_EMP_ASV!D:D,SUIVI_PDV!E103,SOURCE_EMP_ASV!L:L))/SUMIF(SOURCE_EMP_ASV!D:D,SUIVI_PDV!E103,SOURCE_EMP_ASV!K:K)) -> 0.50% | AG103: 0 € | AH103: =(SUMIF(EMPRUNT_CTO!H:H,SUIVI_PDV!D103,EMPRUNT_CTO!K:K)) -> 0 | AJ103: 0 | AK103: =(SUMIFS(ALIZE!P:P,ALIZE!H:H,D103))-(SUMIFS(ALIZE_2105!P:P,ALIZE_2105!H:H,D103)) -> 0 | AL103: =(SUMIFS(CORALIUM!P:P,CORALIUM!H:H,D103))-(SUMIFS(CORALIUM_2105!P:P,CORALIUM_2105!H:H,D103)) -> 0 | AM103: =(SUMIFS(PARMA_PEA!$N:$N,PARMA_PEA!$H:$H,$D103)) -> 0
A104: 110 | B104: MEURTHE ET MOSELLE MEUSE | C104: NANCY | D104: 612 | E104: 151350000612 | F104: 54481 | G104: =VLOOKUP(F104,Objectifs!G:H,2,FALSE) -> NANCY PLACE DOMBASLE | I104: =VLOOKUP(F104,Objectifs!G:L,6,FALSE) -> 395,400 | J104: =(SUMIFS(SOURCE_PARTS_SOC!G:G,SOURCE_PARTS_SOC!E:E,F104))+(SUMIFS(ORCA_CARNET!E:E,ORCA_CARNET!C:C,F104)) -> 96,780 | K104: =(SUMIFS(SOURCE_PARTS_SOC!H:H,SOURCE_PARTS_SOC!E:E,F104))+(SUMIFS(ORCA_CARNET!F:F,ORCA_CARNET!C:C,F104)) -> 240 | L104: 24% | M104: 298,620 | N104: =I104*SUIVI_REGION!$I$4 -> 368,318 | O104: -271,538 | P104: =(SUMIFS(SOURCE_PARTS_SOC_0506!$I:$I,SOURCE_PARTS_SOC_0506!$E:$E,F104)) -> 669,000 | Q104: =(SUMIFS(SOURCE_PARTS_SOC!$I:$I,SOURCE_PARTS_SOC!$E:$E,F104))-P104 -> 21,000 | S104: =VLOOKUP(F104,Objectifs!G:K,5,FALSE) -> 128,500 | T104: =(SUMIFS(PILCOT_ELAN!$P:$P,PILCOT_ELAN!$H:$H,$D104)) -> 11,434 | U104: 9% | V104: 117,066 | W104: =S104*SUIVI_REGION!$S$4 -> 91,786 | X104: -80,352 | Z104: =VLOOKUP(F104,Objectifs!G:M,7,FALSE) -> 1,672,300 | AA104: =(SUMIF(SOURCE_EMP_ASV!D:D,SUIVI_PDV!E104,SOURCE_EMP_ASV!J:J)) -> 761,932 | AB104: 46% | AC104: 910,368 | AD104: =Z104*SUIVI_REGION!$Z$4 -> 1,355,140 | AE104: -593,207 | AF104: =IF(SUMIF(SOURCE_EMP_ASV!D:D,SUIVI_PDV!E104,SOURCE_EMP_ASV!K:K)=0,"",(SUMIF(SOURCE_EMP_ASV!D:D,SUIVI_PDV!E104,SOURCE_EMP_ASV!L:L))/SUMIF(SOURCE_EMP_ASV!D:D,SUIVI_PDV!E104,SOURCE_EMP_ASV!K:K)) -> 0.46% | AG104: 121,000 € | AH104: =(SUMIF(EMPRUNT_CTO!H:H,SUIVI_PDV!D104,EMPRUNT_CTO!K:K)) -> 1,210 | AJ104: 0 | AK104: =(SUMIFS(ALIZE!P:P,ALIZE!H:H,D104))-(SUMIFS(ALIZE_2105!P:P,ALIZE_2105!H:H,D104)) -> 0 | AL104: =(SUMIFS(CORALIUM!P:P,CORALIUM!H:H,D104))-(SUMIFS(CORALIUM_2105!P:P,CORALIUM_2105!H:H,D104)) -> 0 | AM104: =(SUMIFS(PARMA_PEA!$N:$N,PARMA_PEA!$H:$H,$D104)) -> 0
A105: 110 | B105: MEURTHE ET MOSELLE MEUSE | C105: NANCY | D105: 613 | E105: 151350000613 | F105: 54486 | G105: =VLOOKUP(F105,Objectifs!G:H,2,FALSE) -> NANCY POINT CENTRAL | I105: =VLOOKUP(F105,Objectifs!G:L,6,FALSE) -> 242,500 | J105: =(SUMIFS(SOURCE_PARTS_SOC!G:G,SOURCE_PARTS_SOC!E:E,F105))+(SUMIFS(ORCA_CARNET!E:E,ORCA_CARNET!C:C,F105)) -> 171,400 | K105: =(SUMIFS(SOURCE_PARTS_SOC!H:H,SOURCE_PARTS_SOC!E:E,F105))+(SUMIFS(ORCA_CARNET!F:F,ORCA_CARNET!C:C,F105)) -> 18,160 | L105: 71% | M105: 71,100 | N105: =I105*SUIVI_REGION!$I$4 -> 225,890 | O105: -54,490 | P105: =(SUMIFS(SOURCE_PARTS_SOC_0506!$I:$I,SOURCE_PARTS_SOC_0506!$E:$E,F105)) -> 806,780 | Q105: =(SUMIFS(SOURCE_PARTS_SOC!$I:$I,SOURCE_PARTS_SOC!$E:$E,F105))-P105 -> 40 | S105: =VLOOKUP(F105,Objectifs!G:K,5,FALSE) -> 78,800 | T105: =(SUMIFS(PILCOT_ELAN!$P:$P,PILCOT_ELAN!$H:$H,$D105)) -> 198 | U105: 0% | V105: 78,602 | W105: =S105*SUIVI_REGION!$S$4 -> 56,286 | X105: -56,087 | Z105: =VLOOKUP(F105,Objectifs!G:M,7,FALSE) -> 1,025,800 | AA105: =(SUMIF(SOURCE_EMP_ASV!D:D,SUIVI_PDV!E105,SOURCE_EMP_ASV!J:J)) -> 309,805 | AB105: 30% | AC105: 715,995 | AD105: =Z105*SUIVI_REGION!$Z$4 -> 831,252 | AE105: -521,447 | AF105: =IF(SUMIF(SOURCE_EMP_ASV!D:D,SUIVI_PDV!E105,SOURCE_EMP_ASV!K:K)=0,"",(SUMIF(SOURCE_EMP_ASV!D:D,SUIVI_PDV!E105,SOURCE_EMP_ASV!L:L))/SUMIF(SOURCE_EMP_ASV!D:D,SUIVI_PDV!E105,SOURCE_EMP_ASV!K:K)) -> 0.21% | AG105: 0 € | AH105: =(SUMIF(EMPRUNT_CTO!H:H,SUIVI_PDV!D105,EMPRUNT_CTO!K:K)) -> 0 | AJ105: 6,174 | AK105: =(SUMIFS(ALIZE!P:P,ALIZE!H:H,D105))-(SUMIFS(ALIZE_2105!P:P,ALIZE_2105!H:H,D105)) -> 6,174 | AL105: =(SUMIFS(CORALIUM!P:P,CORALIUM!H:H,D105))-(SUMIFS(CORALIUM_2105!P:P,CORALIUM_2105!H:H,D105)) -> 0 | AM105: =(SUMIFS(PARMA_PEA!$N:$N,PARMA_PEA!$H:$H,$D105)) -> 0
A106: 110 | B106: MEURTHE ET MOSELLE MEUSE | C106: NANCY | D106: 537 | E106: 151350000537 | F106: 54266 | G106: =VLOOKUP(F106,Objectifs!G:H,2,FALSE) -> DOMBASLE SUR MEURTHE | I106: =VLOOKUP(F106,Objectifs!G:L,6,FALSE) -> 133,600 | J106: =(SUMIFS(SOURCE_PARTS_SOC!G:G,SOURCE_PARTS_SOC!E:E,F106))+(SUMIFS(ORCA_CARNET!E:E,ORCA_CARNET!C:C,F106)) -> 222,760 | K106: =(SUMIFS(SOURCE_PARTS_SOC!H:H,SOURCE_PARTS_SOC!E:E,F106))+(SUMIFS(ORCA_CARNET!F:F,ORCA_CARNET!C:C,F106)) -> 40 | L106: 167% | N106: =I106*SUIVI_REGION!$I$4 -> 124,449 | O106: 98,311 | P106: =(SUMIFS(SOURCE_PARTS_SOC_0506!$I:$I,SOURCE_PARTS_SOC_0506!$E:$E,F106)) -> 293,920 | Q106: =(SUMIFS(SOURCE_PARTS_SOC!$I:$I,SOURCE_PARTS_SOC!$E:$E,F106))-P106 -> 20 | S106: =VLOOKUP(F106,Objectifs!G:K,5,FALSE) -> 43,400 | T106: =(SUMIFS(PILCOT_ELAN!$P:$P,PILCOT_ELAN!$H:$H,$D106)) -> 20,563 | U106: 47% | V106: 22,837 | W106: =S106*SUIVI_REGION!$S$4 -> 31,000 | X106: -10,437 | Z106: =VLOOKUP(F106,Objectifs!G:M,7,FALSE) -> 565,100 | AA106: =(SUMIF(SOURCE_EMP_ASV!D:D,SUIVI_PDV!E106,SOURCE_EMP_ASV!J:J)) -> 620,535 | AB106: 110% | AD106: =Z106*SUIVI_REGION!$Z$4 -> 457,926 | AE106: 162,609 | AF106: =IF(SUMIF(SOURCE_EMP_ASV!D:D,SUIVI_PDV!E106,SOURCE_EMP_ASV!K:K)=0,"",(SUMIF(SOURCE_EMP_ASV!D:D,SUIVI_PDV!E106,SOURCE_EMP_ASV!L:L))/SUMIF(SOURCE_EMP_ASV!D:D,SUIVI_PDV!E106,SOURCE_EMP_ASV!K:K)) -> 0.50% | AG106: 0 € | AH106: =(SUMIF(EMPRUNT_CTO!H:H,SUIVI_PDV!D106,EMPRUNT_CTO!K:K)) -> 0 | AJ106: 0 | AK106: =(SUMIFS(ALIZE!P:P,ALIZE!H:H,D106))-(SUMIFS(ALIZE_2105!P:P,ALIZE_2105!H:H,D106)) -> 0 | AL106: =(SUMIFS(CORALIUM!P:P,CORALIUM!H:H,D106))-(SUMIFS(CORALIUM_2105!P:P,CORALIUM_2105!H:H,D106)) -> 0 | AM106: =(SUMIFS(PARMA_PEA!$N:$N,PARMA_PEA!$H:$H,$D106)) -> 0
A107: 110 | B107: MEURTHE ET MOSELLE MEUSE | C107: NANCY | D107: 567 | E107: 151350000567 | F107: 54356 | G107: =VLOOKUP(F107,Objectifs!G:H,2,FALSE) -> JARVILLE LA MALGRANGE | I107: =VLOOKUP(F107,Objectifs!G:L,6,FALSE) -> 135,900 | J107: =(SUMIFS(SOURCE_PARTS_SOC!G:G,SOURCE_PARTS_SOC!E:E,F107))+(SUMIFS(ORCA_CARNET!E:E,ORCA_CARNET!C:C,F107)) -> 24,900 | K107: =(SUMIFS(SOURCE_PARTS_SOC!H:H,SOURCE_PARTS_SOC!E:E,F107))+(SUMIFS(ORCA_CARNET!F:F,ORCA_CARNET!C:C,F107)) -> 4,500 | L107: 18% | M107: 111,000 | N107: =I107*SUIVI_REGION!$I$4 -> 126,592 | O107: -101,692 | P107: =(SUMIFS(SOURCE_PARTS_SOC_0506!$I:$I,SOURCE_PARTS_SOC_0506!$E:$E,F107)) -> 98,420 | Q107: =(SUMIFS(SOURCE_PARTS_SOC!$I:$I,SOURCE_PARTS_SOC!$E:$E,F107))-P107 -> 540 | S107: =VLOOKUP(F107,Objectifs!G:K,5,FALSE) -> 44,200 | T107: =(SUMIFS(PILCOT_ELAN!$P:$P,PILCOT_ELAN!$H:$H,$D107)) -> 0 | U107: 0% | V107: 44,200 | W107: =S107*SUIVI_REGION!$S$4 -> 31,571 | X107: -31,571 | Z107: =VLOOKUP(F107,Objectifs!G:M,7,FALSE) -> 574,700 | AA107: =(SUMIF(SOURCE_EMP_ASV!D:D,SUIVI_PDV!E107,SOURCE_EMP_ASV!J:J)) -> 117,615 | AB107: 20% | AC107: 457,085 | AD107: =Z107*SUIVI_REGION!$Z$4 -> 465,705 | AE107: -348,091 | AF107: =IF(SUMIF(SOURCE_EMP_ASV!D:D,SUIVI_PDV!E107,SOURCE_EMP_ASV!K:K)=0,"",(SUMIF(SOURCE_EMP_ASV!D:D,SUIVI_PDV!E107,SOURCE_EMP_ASV!L:L))/SUMIF(SOURCE_EMP_ASV!D:D,SUIVI_PDV!E107,SOURCE_EMP_ASV!K:K)) -> 0.50% | AG107: 0 € | AH107: =(SUMIF(EMPRUNT_CTO!H:H,SUIVI_PDV!D107,EMPRUNT_CTO!K:K)) -> 0 | AJ107: 0 | AK107: =(SUMIFS(ALIZE!P:P,ALIZE!H:H,D107))-(SUMIFS(ALIZE_2105!P:P,ALIZE_2105!H:H,D107)) -> 0 | AL107: =(SUMIFS(CORALIUM!P:P,CORALIUM!H:H,D107))-(SUMIFS(CORALIUM_2105!P:P,CORALIUM_2105!H:H,D107)) -> 0 | AM107: =(SUMIFS(PARMA_PEA!$N:$N,PARMA_PEA!$H:$H,$D107)) -> 0
A108: 110 | B108: MEURTHE ET MOSELLE MEUSE | C108: NANCY | D108: 610 | E108: 151350000610 | F108: 54476 | G108: =VLOOKUP(F108,Objectifs!G:H,2,FALSE) -> NANCY ARTEM | I108: =VLOOKUP(F108,Objectifs!G:L,6,FALSE) -> 101,600 | J108: =(SUMIFS(SOURCE_PARTS_SOC!G:G,SOURCE_PARTS_SOC!E:E,F108))+(SUMIFS(ORCA_CARNET!E:E,ORCA_CARNET!C:C,F108)) -> 129,540 | K108: =(SUMIFS(SOURCE_PARTS_SOC!H:H,SOURCE_PARTS_SOC!E:E,F108))+(SUMIFS(ORCA_CARNET!F:F,ORCA_CARNET!C:C,F108)) -> 1,440 | L108: 128% | N108: =I108*SUIVI_REGION!$I$4 -> 94,641 | O108: 34,899 | P108: =(SUMIFS(SOURCE_PARTS_SOC_0506!$I:$I,SOURCE_PARTS_SOC_0506!$E:$E,F108)) -> 36,720 | Q108: =(SUMIFS(SOURCE_PARTS_SOC!$I:$I,SOURCE_PARTS_SOC!$E:$E,F108))-P108 -> 0 | S108: =VLOOKUP(F108,Objectifs!G:K,5,FALSE) -> 33,000 | T108: =(SUMIFS(PILCOT_ELAN!$P:$P,PILCOT_ELAN!$H:$H,$D108)) -> 0 | U108: 0% | V108: 33,000 | W108: =S108*SUIVI_REGION!$S$4 -> 23,571 | X108: -23,571 | Z108: =VLOOKUP(F108,Objectifs!G:M,7,FALSE) -> 429,500 | AA108: =(SUMIF(SOURCE_EMP_ASV!D:D,SUIVI_PDV!E108,SOURCE_EMP_ASV!J:J)) -> 89,000 | AB108: 21% | AC108: 340,500 | AD108: =Z108*SUIVI_REGION!$Z$4 -> 348,043 | AE108: -259,043 | AF108: =IF(SUMIF(SOURCE_EMP_ASV!D:D,SUIVI_PDV!E108,SOURCE_EMP_ASV!K:K)=0,"",(SUMIF(SOURCE_EMP_ASV!D:D,SUIVI_PDV!E108,SOURCE_EMP_ASV!L:L))/SUMIF(SOURCE_EMP_ASV!D:D,SUIVI_PDV!E108,SOURCE_EMP_ASV!K:K)) -> 0.50% | AG108: 0 € | AH108: =(SUMIF(EMPRUNT_CTO!H:H,SUIVI_PDV!D108,EMPRUNT_CTO!K:K)) -> 0 | AJ108: 0 | AK108: =(SUMIFS(ALIZE!P:P,ALIZE!H:H,D108))-(SUMIFS(ALIZE_2105!P:P,ALIZE_2105!H:H,D108)) -> 0 | AL108: =(SUMIFS(CORALIUM!P:P,CORALIUM!H:H,D108))-(SUMIFS(CORALIUM_2105!P:P,CORALIUM_2105!H:H,D108)) -> 0 | AM108: =(SUMIFS(PARMA_PEA!$N:$N,PARMA_PEA!$H:$H,$D108)) -> 0
A109: 110 | B109: MEURTHE ET MOSELLE MEUSE | C109: NANCY | D109: 642 | E109: 151350000642 | F109: 54611 | G109: =VLOOKUP(F109,Objectifs!G:H,2,FALSE) -> SAINT NICOLAS DE PORT | I109: =VLOOKUP(F109,Objectifs!G:L,6,FALSE) -> 101,000 | J109: =(SUMIFS(SOURCE_PARTS_SOC!G:G,SOURCE_PARTS_SOC!E:E,F109))+(SUMIFS(ORCA_CARNET!E:E,ORCA_CARNET!C:C,F109)) -> 61,040 | K109: =(SUMIFS(SOURCE_PARTS_SOC!H:H,SOURCE_PARTS_SOC!E:E,F109))+(SUMIFS(ORCA_CARNET!F:F,ORCA_CARNET!C:C,F109)) -> 1,200 | L109: 60% | M109: 39,960 | N109: =I109*SUIVI_REGION!$I$4 -> 94,082 | O109: -33,042 | P109: =(SUMIFS(SOURCE_PARTS_SOC_0506!$I:$I,SOURCE_PARTS_SOC_0506!$E:$E,F109)) -> 302,660 | Q109: =(SUMIFS(SOURCE_PARTS_SOC!$I:$I,SOURCE_PARTS_SOC!$E:$E,F109))-P109 -> 0 | S109: =VLOOKUP(F109,Objectifs!G:K,5,FALSE) -> 32,800 | T109: =(SUMIFS(PILCOT_ELAN!$P:$P,PILCOT_ELAN!$H:$H,$D109)) -> 38,496 | U109: 117% | W109: =S109*SUIVI_REGION!$S$4 -> 23,429 | X109: 15,068 | Z109: =VLOOKUP(F109,Objectifs!G:M,7,FALSE) -> 427,300 | AA109: =(SUMIF(SOURCE_EMP_ASV!D:D,SUIVI_PDV!E109,SOURCE_EMP_ASV!J:J)) -> 250,980 | AB109: 59% | AC109: 176,320 | AD109: =Z109*SUIVI_REGION!$Z$4 -> 346,260 | AE109: -95,281 | AF109: =IF(SUMIF(SOURCE_EMP_ASV!D:D,SUIVI_PDV!E109,SOURCE_EMP_ASV!K:K)=0,"",(SUMIF(SOURCE_EMP_ASV!D:D,SUIVI_PDV!E109,SOURCE_EMP_ASV!L:L))/SUMIF(SOURCE_EMP_ASV!D:D,SUIVI_PDV!E109,SOURCE_EMP_ASV!K:K)) -> 0.50% | AG109: 0 € | AH109: =(SUMIF(EMPRUNT_CTO!H:H,SUIVI_PDV!D109,EMPRUNT_CTO!K:K)) -> 0 | AJ109: 0 | AK109: =(SUMIFS(ALIZE!P:P,ALIZE!H:H,D109))-(SUMIFS(ALIZE_2105!P:P,ALIZE_2105!H:H,D109)) -> 0 | AL109: =(SUMIFS(CORALIUM!P:P,CORALIUM!H:H,D109))-(SUMIFS(CORALIUM_2105!P:P,CORALIUM_2105!H:H,D109)) -> 0 | AM109: =(SUMIFS(PARMA_PEA!$N:$N,PARMA_PEA!$H:$H,$D109)) -> 0
A110: 110 | B110: MEURTHE ET MOSELLE MEUSE | C110: NANCY | D110: 665 | E110: 151350000665 | F110: 54671 | G110: =VLOOKUP(F110,Objectifs!G:H,2,FALSE) -> VANDOEUVRE LES NANCY | I110: =VLOOKUP(F110,Objectifs!G:L,6,FALSE) -> 170,700 | J110: =(SUMIFS(SOURCE_PARTS_SOC!G:G,SOURCE_PARTS_SOC!E:E,F110))+(SUMIFS(ORCA_CARNET!E:E,ORCA_CARNET!C:C,F110)) -> 53,560 | K110: =(SUMIFS(SOURCE_PARTS_SOC!H:H,SOURCE_PARTS_SOC!E:E,F110))+(SUMIFS(ORCA_CARNET!F:F,ORCA_CARNET!C:C,F110)) -> 0 | L110: 31% | M110: 117,140 | N110: =I110*SUIVI_REGION!$I$4 -> 159,008 | O110: -105,448 | P110: =(SUMIFS(SOURCE_PARTS_SOC_0506!$I:$I,SOURCE_PARTS_SOC_0506!$E:$E,F110)) -> 136,740 | Q110: =(SUMIFS(SOURCE_PARTS_SOC!$I:$I,SOURCE_PARTS_SOC!$E:$E,F110))-P110 -> 0 | S110: =VLOOKUP(F110,Objectifs!G:K,5,FALSE) -> 55,500 | T110: =(SUMIFS(PILCOT_ELAN!$P:$P,PILCOT_ELAN!$H:$H,$D110)) -> 5,130 | U110: 9% | V110: 50,370 | W110: =S110*SUIVI_REGION!$S$4 -> 39,643 | X110: -34,513 | Z110: =VLOOKUP(F110,Objectifs!G:M,7,FALSE) -> 722,000 | AA110: =(SUMIF(SOURCE_EMP_ASV!D:D,SUIVI_PDV!E110,SOURCE_EMP_ASV!J:J)) -> 226,000 | AB110: 31% | AC110: 496,000 | AD110: =Z110*SUIVI_REGION!$Z$4 -> 585,069 | AE110: -359,069 | AF110: =IF(SUMIF(SOURCE_EMP_ASV!D:D,SUIVI_PDV!E110,SOURCE_EMP_ASV!K:K)=0,"",(SUMIF(SOURCE_EMP_ASV!D:D,SUIVI_PDV!E110,SOURCE_EMP_ASV!L:L))/SUMIF(SOURCE_EMP_ASV!D:D,SUIVI_PDV!E110,SOURCE_EMP_ASV!K:K)) -> 0.50% | AG110: 0 € | AH110: =(SUMIF(EMPRUNT_CTO!H:H,SUIVI_PDV!D110,EMPRUNT_CTO!K:K)) -> 0 | AJ110: 0 | AK110: =(SUMIFS(ALIZE!P:P,ALIZE!H:H,D110))-(SUMIFS(ALIZE_2105!P:P,ALIZE_2105!H:H,D110)) -> 0 | AL110: =(SUMIFS(CORALIUM!P:P,CORALIUM!H:H,D110))-(SUMIFS(CORALIUM_2105!P:P,CORALIUM_2105!H:H,D110)) -> 0 | AM110: =(SUMIFS(PARMA_PEA!$N:$N,PARMA_PEA!$H:$H,$D110)) -> 0
A111: 110 | C111: Total Territoire NANCY | G111: NANCY | I111: =SUBTOTAL(9,I97:I110) -> 2,302,900 | J111: =SUBTOTAL(9,J97:J110) -> 987,480 | K111: =SUBTOTAL(9,K97:K110) -> 35,460 | L111: 43% | M111: 1,315,420 | N111: =I111*SUIVI_REGION!$I$4 -> 2,145,167 | O111: -1,157,687 | P111: =SUBTOTAL(9,P97:P110) -> 3,373,680 | Q111: =SUBTOTAL(9,Q97:Q110) -> 37,200 | S111: =SUBTOTAL(9,S97:S110) -> 748,300 | T111: =SUBTOTAL(9,T97:T110) -> 253,716 | U111: 34% | V111: 494,584 | W111: =S111*SUIVI_REGION!$S$4 -> 534,500 | X111: -280,784 | Z111: =SUBTOTAL(9,Z97:Z110) -> 9,740,100 | AA111: =SUBTOTAL(9,AA97:AA110) -> 5,424,837 | AB111: 56% | AC111: 4,315,263 | AD111: =Z111*SUIVI_REGION!$Z$4 -> 7,892,840 | AE111: -2,468,003 | AF111: =IF(SUMIF(SOURCE_EMP_ASV!B:B,G111,SOURCE_EMP_ASV!K:K)=0,"",(SUMIF(SOURCE_EMP_ASV!B:B,G111,SOURCE_EMP_ASV!L:L))/(SUMIF(SOURCE_EMP_ASV!B:B,G111,SOURCE_EMP_ASV!K:K))) -> 0.43% | AG111: 151,000 € | AH111: =SUBTOTAL(9,AH97:AH110) -> 1,510 | AJ111: 28,508 | AK111: =SUBTOTAL(9,AK97:AK110) -> 28,508 | AL111: =SUBTOTAL(9,AL97:AL110) -> 0 | AM111: =SUBTOTAL(9,AM97:AM110) -> 0
A112: 110 | B112: MEURTHE ET MOSELLE MEUSE | C112: PONT A MOUSSON | D112: 519 | E112: 151350000519 | F112: 54184 | G112: =VLOOKUP(F112,Objectifs!G:H,2,FALSE) -> BRIEY | I112: =VLOOKUP(F112,Objectifs!G:L,6,FALSE) -> 163,700 | J112: =(SUMIFS(SOURCE_PARTS_SOC!G:G,SOURCE_PARTS_SOC!E:E,F112))+(SUMIFS(ORCA_CARNET!E:E,ORCA_CARNET!C:C,F112)) -> 62,300 | K112: =(SUMIFS(SOURCE_PARTS_SOC!H:H,SOURCE_PARTS_SOC!E:E,F112))+(SUMIFS(ORCA_CARNET!F:F,ORCA_CARNET!C:C,F112)) -> 240 | L112: 38% | M112: 101,400 | N112: =I112*SUIVI_REGION!$I$4 -> 152,488 | O112: -90,188 | P112: =(SUMIFS(SOURCE_PARTS_SOC_0506!$I:$I,SOURCE_PARTS_SOC_0506!$E:$E,F112)) -> 223,240 | Q112: =(SUMIFS(SOURCE_PARTS_SOC!$I:$I,SOURCE_PARTS_SOC!$E:$E,F112))-P112 -> 0 | S112: =VLOOKUP(F112,Objectifs!G:K,5,FALSE) -> 53,200 | T112: =(SUMIFS(PILCOT_ELAN!$P:$P,PILCOT_ELAN!$H:$H,$D112)) -> 1,625 | U112: 3% | V112: 51,575 | W112: =S112*SUIVI_REGION!$S$4 -> 38,000 | X112: -36,375 | Z112: =VLOOKUP(F112,Objectifs!G:M,7,FALSE) -> 692,600 | AA112: =(SUMIF(SOURCE_EMP_ASV!D:D,SUIVI_PDV!E112,SOURCE_EMP_ASV!J:J)) -> 279,953 | AB112: 40% | AC112: 412,647 | AD112: =Z112*SUIVI_REGION!$Z$4 -> 561,245 | AE112: -281,292 | AF112: =IF(SUMIF(SOURCE_EMP_ASV!D:D,SUIVI_PDV!E112,SOURCE_EMP_ASV!K:K)=0,"",(SUMIF(SOURCE_EMP_ASV!D:D,SUIVI_PDV!E112,SOURCE_EMP_ASV!L:L))/SUMIF(SOURCE_EMP_ASV!D:D,SUIVI_PDV!E112,SOURCE_EMP_ASV!K:K)) -> 0.52% | AG112: 0 € | AH112: =(SUMIF(EMPRUNT_CTO!H:H,SUIVI_PDV!D112,EMPRUNT_CTO!K:K)) -> 0 | AJ112: 0 | AK112: =(SUMIFS(ALIZE!P:P,ALIZE!H:H,D112))-(SUMIFS(ALIZE_2105!P:P,ALIZE_2105!H:H,D112)) -> 0 | AL112: =(SUMIFS(CORALIUM!P:P,CORALIUM!H:H,D112))-(SUMIFS(CORALIUM_2105!P:P,CORALIUM_2105!H:H,D112)) -> 0 | AM112: =(SUMIFS(PARMA_PEA!$N:$N,PARMA_PEA!$H:$H,$D112)) -> 0
A113: 110 | B113: MEURTHE ET MOSELLE MEUSE | C113: PONT A MOUSSON | D113: 566 | E113: 151350000566 | F113: 54355 | G113: =VLOOKUP(F113,Objectifs!G:H,2,FALSE) -> JARNY | I113: =VLOOKUP(F113,Objectifs!G:L,6,FALSE) -> 168,700 | J113: =(SUMIFS(SOURCE_PARTS_SOC!G:G,SOURCE_PARTS_SOC!E:E,F113))+(SUMIFS(ORCA_CARNET!E:E,ORCA_CARNET!C:C,F113)) -> 51,800 | K113: =(SUMIFS(SOURCE_PARTS_SOC!H:H,SOURCE_PARTS_SOC!E:E,F113))+(SUMIFS(ORCA_CARNET!F:F,ORCA_CARNET!C:C,F113)) -> 13,000 | L113: 31% | M113: 116,900 | N113: =I113*SUIVI_REGION!$I$4 -> 157,145 | O113: -105,345 | P113: =(SUMIFS(SOURCE_PARTS_SOC_0506!$I:$I,SOURCE_PARTS_SOC_0506!$E:$E,F113)) -> 180,640 | Q113: =(SUMIFS(SOURCE_PARTS_SOC!$I:$I,SOURCE_PARTS_SOC!$E:$E,F113))-P113 -> 7,080 | S113: =VLOOKUP(F113,Objectifs!G:K,5,FALSE) -> 54,800 | T113: =(SUMIFS(PILCOT_ELAN!$P:$P,PILCOT_ELAN!$H:$H,$D113)) -> 472 | U113: 1% | V113: 54,328 | W113: =S113*SUIVI_REGION!$S$4 -> 39,143 | X113: -38,670 | Z113: =VLOOKUP(F113,Objectifs!G:M,7,FALSE) -> 713,600 | AA113: =(SUMIF(SOURCE_EMP_ASV!D:D,SUIVI_PDV!E113,SOURCE_EMP_ASV!J:J)) -> 351,012 | AB113: 49% | AC113: 362,588 | AD113: =Z113*SUIVI_REGION!$Z$4 -> 578,262 | AE113: -227,250 | AF113: =IF(SUMIF(SOURCE_EMP_ASV!D:D,SUIVI_PDV!E113,SOURCE_EMP_ASV!K:K)=0,"",(SUMIF(SOURCE_EMP_ASV!D:D,SUIVI_PDV!E113,SOURCE_EMP_ASV!L:L))/SUMIF(SOURCE_EMP_ASV!D:D,SUIVI_PDV!E113,SOURCE_EMP_ASV!K:K)) -> 0.49% | AG113: 0 € | AH113: =(SUMIF(EMPRUNT_CTO!H:H,SUIVI_PDV!D113,EMPRUNT_CTO!K:K)) -> 0 | AJ113: 0 | AK113: =(SUMIFS(ALIZE!P:P,ALIZE!H:H,D113))-(SUMIFS(ALIZE_2105!P:P,ALIZE_2105!H:H,D113)) -> 0 | AL113: =(SUMIFS(CORALIUM!P:P,CORALIUM!H:H,D113))-(SUMIFS(CORALIUM_2105!P:P,CORALIUM_2105!H:H,D113)) -> 0 | AM113: =(SUMIFS(PARMA_PEA!$N:$N,PARMA_PEA!$H:$H,$D113)) -> 0
A114: 110 | B114: MEURTHE ET MOSELLE MEUSE | C114: PONT A MOUSSON | D114: 568 | E114: 151350000568 | F114: 54357 | G114: =VLOOKUP(F114,Objectifs!G:H,2,FALSE) -> JOEUF | I114: =VLOOKUP(F114,Objectifs!G:L,6,FALSE) -> 128,900 | J114: =(SUMIFS(SOURCE_PARTS_SOC!G:G,SOURCE_PARTS_SOC!E:E,F114))+(SUMIFS(ORCA_CARNET!E:E,ORCA_CARNET!C:C,F114)) -> 13,980 | K114: =(SUMIFS(SOURCE_PARTS_SOC!H:H,SOURCE_PARTS_SOC!E:E,F114))+(SUMIFS(ORCA_CARNET!F:F,ORCA_CARNET!C:C,F114)) -> 0 | L114: 11% | M114: 114,920 | N114: =I114*SUIVI_REGION!$I$4 -> 120,071 | O114: -106,091 | P114: =(SUMIFS(SOURCE_PARTS_SOC_0506!$I:$I,SOURCE_PARTS_SOC_0506!$E:$E,F114)) -> 339,340 | Q114: =(SUMIFS(SOURCE_PARTS_SOC!$I:$I,SOURCE_PARTS_SOC!$E:$E,F114))-P114 -> 200 | S114: =VLOOKUP(F114,Objectifs!G:K,5,FALSE) -> 41,900 | T114: =(SUMIFS(PILCOT_ELAN!$P:$P,PILCOT_ELAN!$H:$H,$D114)) -> 35,322 | U114: 84% | V114: 6,578 | W114: =S114*SUIVI_REGION!$S$4 -> 29,929 | X114: 5,394 | Z114: =VLOOKUP(F114,Objectifs!G:M,7,FALSE) -> 545,200 | AA114: =(SUMIF(SOURCE_EMP_ASV!D:D,SUIVI_PDV!E114,SOURCE_EMP_ASV!J:J)) -> 495,844 | AB114: 91% | AC114: 49,356 | AD114: =Z114*SUIVI_REGION!$Z$4 -> 441,800 | AE114: 54,044 | AF114: =IF(SUMIF(SOURCE_EMP_ASV!D:D,SUIVI_PDV!E114,SOURCE_EMP_ASV!K:K)=0,"",(SUMIF(SOURCE_EMP_ASV!D:D,SUIVI_PDV!E114,SOURCE_EMP_ASV!L:L))/SUMIF(SOURCE_EMP_ASV!D:D,SUIVI_PDV!E114,SOURCE_EMP_ASV!K:K)) -> 0.50% | AG114: 0 € | AH114: =(SUMIF(EMPRUNT_CTO!H:H,SUIVI_PDV!D114,EMPRUNT_CTO!K:K)) -> 0 | AJ114: 0 | AK114: =(SUMIFS(ALIZE!P:P,ALIZE!H:H,D114))-(SUMIFS(ALIZE_2105!P:P,ALIZE_2105!H:H,D114)) -> 0 | AL114: =(SUMIFS(CORALIUM!P:P,CORALIUM!H:H,D114))-(SUMIFS(CORALIUM_2105!P:P,CORALIUM_2105!H:H,D114)) -> 0 | AM114: =(SUMIFS(PARMA_PEA!$N:$N,PARMA_PEA!$H:$H,$D114)) -> 0
A115: 110 | B115: MEURTHE ET MOSELLE MEUSE | C115: PONT A MOUSSON | D115: 534 | E115: 151350000534 | F115: 54257 | G115: =VLOOKUP(F115,Objectifs!G:H,2,FALSE) -> DIEULOUARD | I115: =VLOOKUP(F115,Objectifs!G:L,6,FALSE) -> 128,900 | J115: =(SUMIFS(SOURCE_PARTS_SOC!G:G,SOURCE_PARTS_SOC!E:E,F115))+(SUMIFS(ORCA_CARNET!E:E,ORCA_CARNET!C:C,F115)) -> 30,660 | K115: =(SUMIFS(SOURCE_PARTS_SOC!H:H,SOURCE_PARTS_SOC!E:E,F115))+(SUMIFS(ORCA_CARNET!F:F,ORCA_CARNET!C:C,F115)) -> 120 | L115: 24% | M115: 98,240 | N115: =I115*SUIVI_REGION!$I$4 -> 120,071 | O115: -89,411 | P115: =(SUMIFS(SOURCE_PARTS_SOC_0506!$I:$I,SOURCE_PARTS_SOC_0506!$E:$E,F115)) -> 76,500 | Q115: =(SUMIFS(SOURCE_PARTS_SOC!$I:$I,SOURCE_PARTS_SOC!$E:$E,F115))-P115 -> 1,980 | S115: =VLOOKUP(F115,Objectifs!G:K,5,FALSE) -> 41,900 | T115: =(SUMIFS(PILCOT_ELAN!$P:$P,PILCOT_ELAN!$H:$H,$D115)) -> 4,897 | U115: 12% | V115: 37,003 | W115: =S115*SUIVI_REGION!$S$4 -> 29,929 | X115: -25,032 | Z115: =VLOOKUP(F115,Objectifs!G:M,7,FALSE) -> 545,200 | AA115: =(SUMIF(SOURCE_EMP_ASV!D:D,SUIVI_PDV!E115,SOURCE_EMP_ASV!J:J)) -> 104,914 | AB115: 19% | AC115: 440,286 | AD115: =Z115*SUIVI_REGION!$Z$4 -> 441,800 | AE115: -336,886 | AF115: =IF(SUMIF(SOURCE_EMP_ASV!D:D,SUIVI_PDV!E115,SOURCE_EMP_ASV!K:K)=0,"",(SUMIF(SOURCE_EMP_ASV!D:D,SUIVI_PDV!E115,SOURCE_EMP_ASV!L:L))/SUMIF(SOURCE_EMP_ASV!D:D,SUIVI_PDV!E115,SOURCE_EMP_ASV!K:K)) -> 0.58% | AG115: 0 € | AH115: =(SUMIF(EMPRUNT_CTO!H:H,SUIVI_PDV!D115,EMPRUNT_CTO!K:K)) -> 0 | AJ115: 0 | AK115: =(SUMIFS(ALIZE!P:P,ALIZE!H:H,D115))-(SUMIFS(ALIZE_2105!P:P,ALIZE_2105!H:H,D115)) -> 0 | AL115: =(SUMIFS(CORALIUM!P:P,CORALIUM!H:H,D115))-(SUMIFS(CORALIUM_2105!P:P,CORALIUM_2105!H:H,D115)) -> 0 | AM115: =(SUMIFS(PARMA_PEA!$N:$N,PARMA_PEA!$H:$H,$D115)) -> 0
A116: 110 | B116: MEURTHE ET MOSELLE MEUSE | C116: PONT A MOUSSON | D116: 622 | E116: 151350000622 | F116: 54516 | G116: =VLOOKUP(F116,Objectifs!G:H,2,FALSE) -> PAGNY SUR MOSELLE | I116: =VLOOKUP(F116,Objectifs!G:L,6,FALSE) -> 101,000 | J116: =(SUMIFS(SOURCE_PARTS_SOC!G:G,SOURCE_PARTS_SOC!E:E,F116))+(SUMIFS(ORCA_CARNET!E:E,ORCA_CARNET!C:C,F116)) -> 37,900 | K116: =(SUMIFS(SOURCE_PARTS_SOC!H:H,SOURCE_PARTS_SOC!E:E,F116))+(SUMIFS(ORCA_CARNET!F:F,ORCA_CARNET!C:C,F116)) -> 5,000 | L116: 38% | M116: 63,100 | N116: =I116*SUIVI_REGION!$I$4 -> 94,082 | O116: -56,182 | P116: =(SUMIFS(SOURCE_PARTS_SOC_0506!$I:$I,SOURCE_PARTS_SOC_0506!$E:$E,F116)) -> 28,960 | Q116: =(SUMIFS(SOURCE_PARTS_SOC!$I:$I,SOURCE_PARTS_SOC!$E:$E,F116))-P116 -> 0 | S116: =VLOOKUP(F116,Objectifs!G:K,5,FALSE) -> 32,800 | T116: =(SUMIFS(PILCOT_ELAN!$P:$P,PILCOT_ELAN!$H:$H,$D116)) -> 6,421 | U116: 20% | V116: 26,379 | W116: =S116*SUIVI_REGION!$S$4 -> 23,429 | X116: -17,008 | Z116: =VLOOKUP(F116,Objectifs!G:M,7,FALSE) -> 427,300 | AA116: =(SUMIF(SOURCE_EMP_ASV!D:D,SUIVI_PDV!E116,SOURCE_EMP_ASV!J:J)) -> 427,519 | AB116: 100% | AD116: =Z116*SUIVI_REGION!$Z$4 -> 346,260 | AE116: 81,259 | AF116: =IF(SUMIF(SOURCE_EMP_ASV!D:D,SUIVI_PDV!E116,SOURCE_EMP_ASV!K:K)=0,"",(SUMIF(SOURCE_EMP_ASV!D:D,SUIVI_PDV!E116,SOURCE_EMP_ASV!L:L))/SUMIF(SOURCE_EMP_ASV!D:D,SUIVI_PDV!E116,SOURCE_EMP_ASV!K:K)) -> 0.50% | AG116: 0 € | AH116: =(SUMIF(EMPRUNT_CTO!H:H,SUIVI_PDV!D116,EMPRUNT_CTO!K:K)) -> 0 | AJ116: 0 | AK116: =(SUMIFS(ALIZE!P:P,ALIZE!H:H,D116))-(SUMIFS(ALIZE_2105!P:P,ALIZE_2105!H:H,D116)) -> 0 | AL116: =(SUMIFS(CORALIUM!P:P,CORALIUM!H:H,D116))-(SUMIFS(CORALIUM_2105!P:P,CORALIUM_2105!H:H,D116)) -> 0 | AM116: =(SUMIFS(PARMA_PEA!$N:$N,PARMA_PEA!$H:$H,$D116)) -> 0
A117: 110 | B117: MEURTHE ET MOSELLE MEUSE | C117: PONT A MOUSSON | D117: 626 | E117: 151350000626 | F117: 54531 | G117: =VLOOKUP(F117,Objectifs!G:H,2,FALSE) -> POMPEY | I117: =VLOOKUP(F117,Objectifs!G:L,6,FALSE) -> 163,700 | J117: =(SUMIFS(SOURCE_PARTS_SOC!G:G,SOURCE_PARTS_SOC!E:E,F117))+(SUMIFS(ORCA_CARNET!E:E,ORCA_CARNET!C:C,F117)) -> 35,580 | K117: =(SUMIFS(SOURCE_PARTS_SOC!H:H,SOURCE_PARTS_SOC!E:E,F117))+(SUMIFS(ORCA_CARNET!F:F,ORCA_CARNET!C:C,F117)) -> 860 | L117: 22% | M117: 128,120 | N117: =I117*SUIVI_REGION!$I$4 -> 152,488 | O117: -116,908 | P117: =(SUMIFS(SOURCE_PARTS_SOC_0506!$I:$I,SOURCE_PARTS_SOC_0506!$E:$E,F117)) -> 234,860 | Q117: =(SUMIFS(SOURCE_PARTS_SOC!$I:$I,SOURCE_PARTS_SOC!$E:$E,F117))-P117 -> 80 | S117: =VLOOKUP(F117,Objectifs!G:K,5,FALSE) -> 53,200 | T117: =(SUMIFS(PILCOT_ELAN!$P:$P,PILCOT_ELAN!$H:$H,$D117)) -> 0 | U117: 0% | V117: 53,200 | W117: =S117*SUIVI_REGION!$S$4 -> 38,000 | X117: -38,000 | Z117: =VLOOKUP(F117,Objectifs!G:M,7,FALSE) -> 692,600 | AA117: =(SUMIF(SOURCE_EMP_ASV!D:D,SUIVI_PDV!E117,SOURCE_EMP_ASV!J:J)) -> 416,111 | AB117: 60% | AC117: 276,489 | AD117: =Z117*SUIVI_REGION!$Z$4 -> 561,245 | AE117: -145,133 | AF117: =IF(SUMIF(SOURCE_EMP_ASV!D:D,SUIVI_PDV!E117,SOURCE_EMP_ASV!K:K)=0,"",(SUMIF(SOURCE_EMP_ASV!D:D,SUIVI_PDV!E117,SOURCE_EMP_ASV!L:L))/SUMIF(SOURCE_EMP_ASV!D:D,SUIVI_PDV!E117,SOURCE_EMP_ASV!K:K)) -> 0.49% | AG117: 0 € | AH117: =(SUMIF(EMPRUNT_CTO!H:H,SUIVI_PDV!D117,EMPRUNT_CTO!K:K)) -> 0 | AJ117: 0 | AK117: =(SUMIFS(ALIZE!P:P,ALIZE!H:H,D117))-(SUMIFS(ALIZE_2105!P:P,ALIZE_2105!H:H,D117)) -> 0 | AL117: =(SUMIFS(CORALIUM!P:P,CORALIUM!H:H,D117))-(SUMIFS(CORALIUM_2105!P:P,CORALIUM_2105!H:H,D117)) -> 0 | AM117: =(SUMIFS(PARMA_PEA!$N:$N,PARMA_PEA!$H:$H,$D117)) -> 0
A118: 110 | B118: MEURTHE ET MOSELLE MEUSE | C118: PONT A MOUSSON | D118: 628 | E118: 151350000628 | F118: 54535 | G118: =VLOOKUP(F118,Objectifs!G:H,2,FALSE) -> PONT A MOUSSON CENTRALE | I118: =VLOOKUP(F118,Objectifs!G:L,6,FALSE) -> 364,500 | J118: =(SUMIFS(SOURCE_PARTS_SOC!G:G,SOURCE_PARTS_SOC!E:E,F118))+(SUMIFS(ORCA_CARNET!E:E,ORCA_CARNET!C:C,F118)) -> 163,520 | K118: =(SUMIFS(SOURCE_PARTS_SOC!H:H,SOURCE_PARTS_SOC!E:E,F118))+(SUMIFS(ORCA_CARNET!F:F,ORCA_CARNET!C:C,F118)) -> 45,840 | L118: 45% | M118: 200,980 | N118: =I118*SUIVI_REGION!$I$4 -> 339,534 | O118: -176,014 | P118: =(SUMIFS(SOURCE_PARTS_SOC_0506!$I:$I,SOURCE_PARTS_SOC_0506!$E:$E,F118)) -> 472,160 | Q118: =(SUMIFS(SOURCE_PARTS_SOC!$I:$I,SOURCE_PARTS_SOC!$E:$E,F118))-P118 -> 140 | S118: =VLOOKUP(F118,Objectifs!G:K,5,FALSE) -> 118,500 | T118: =(SUMIFS(PILCOT_ELAN!$P:$P,PILCOT_ELAN!$H:$H,$D118)) -> 26,897 | U118: 23% | V118: 91,603 | W118: =S118*SUIVI_REGION!$S$4 -> 84,643 | X118: -57,746 | Z118: =VLOOKUP(F118,Objectifs!G:M,7,FALSE) -> 1,541,700 | AA118: =(SUMIF(SOURCE_EMP_ASV!D:D,SUIVI_PDV!E118,SOURCE_EMP_ASV!J:J)) -> 883,244 | AB118: 57% | AC118: 658,456 | AD118: =Z118*SUIVI_REGION!$Z$4 -> 1,249,309 | AE118: -366,065 | AF118: =IF(SUMIF(SOURCE_EMP_ASV!D:D,SUIVI_PDV!E118,SOURCE_EMP_ASV!K:K)=0,"",(SUMIF(SOURCE_EMP_ASV!D:D,SUIVI_PDV!E118,SOURCE_EMP_ASV!L:L))/SUMIF(SOURCE_EMP_ASV!D:D,SUIVI_PDV!E118,SOURCE_EMP_ASV!K:K)) -> 0.49% | AG118: 10,000 € | AH118: =(SUMIF(EMPRUNT_CTO!H:H,SUIVI_PDV!D118,EMPRUNT_CTO!K:K)) -> 100 | AJ118: 0 | AK118: =(SUMIFS(ALIZE!P:P,ALIZE!H:H,D118))-(SUMIFS(ALIZE_2105!P:P,ALIZE_2105!H:H,D118)) -> 0 | AL118: =(SUMIFS(CORALIUM!P:P,CORALIUM!H:H,D118))-(SUMIFS(CORALIUM_2105!P:P,CORALIUM_2105!H:H,D118)) -> 0 | AM118: =(SUMIFS(PARMA_PEA!$N:$N,PARMA_PEA!$H:$H,$D118)) -> 0
A119: 110 | B119: MEURTHE ET MOSELLE MEUSE | C119: PONT A MOUSSON | D119: 580 | E119: 151350000580 | F119: 54416 | G119: =VLOOKUP(F119,Objectifs!G:H,2,FALSE) -> LUDRES | I119: =VLOOKUP(F119,Objectifs!G:L,6,FALSE) -> 153,900 | J119: =(SUMIFS(SOURCE_PARTS_SOC!G:G,SOURCE_PARTS_SOC!E:E,F119))+(SUMIFS(ORCA_CARNET!E:E,ORCA_CARNET!C:C,F119)) -> 41,720 | K119: =(SUMIFS(SOURCE_PARTS_SOC!H:H,SOURCE_PARTS_SOC!E:E,F119))+(SUMIFS(ORCA_CARNET!F:F,ORCA_CARNET!C:C,F119)) -> 2,440 | L119: 27% | M119: 112,180 | N119: =I119*SUIVI_REGION!$I$4 -> 143,359 | O119: -101,639 | P119: =(SUMIFS(SOURCE_PARTS_SOC_0506!$I:$I,SOURCE_PARTS_SOC_0506!$E:$E,F119)) -> 212,680 | Q119: =(SUMIFS(SOURCE_PARTS_SOC!$I:$I,SOURCE_PARTS_SOC!$E:$E,F119))-P119 -> 5,080 | S119: =VLOOKUP(F119,Objectifs!G:K,5,FALSE) -> 50,000 | T119: =(SUMIFS(PILCOT_ELAN!$P:$P,PILCOT_ELAN!$H:$H,$D119)) -> 23,148 | U119: 46% | V119: 26,852 | W119: =S119*SUIVI_REGION!$S$4 -> 35,714 | X119: -12,566 | Z119: =VLOOKUP(F119,Objectifs!G:M,7,FALSE) -> 651,000 | AA119: =(SUMIF(SOURCE_EMP_ASV!D:D,SUIVI_PDV!E119,SOURCE_EMP_ASV!J:J)) -> 467,166 | AB119: 72% | AC119: 183,834 | AD119: =Z119*SUIVI_REGION!$Z$4 -> 527,534 | AE119: -60,369 | AF119: =IF(SUMIF(SOURCE_EMP_ASV!D:D,SUIVI_PDV!E119,SOURCE_EMP_ASV!K:K)=0,"",(SUMIF(SOURCE_EMP_ASV!D:D,SUIVI_PDV!E119,SOURCE_EMP_ASV!L:L))/SUMIF(SOURCE_EMP_ASV!D:D,SUIVI_PDV!E119,SOURCE_EMP_ASV!K:K)) -> 0.51% | AG119: 40,000 € | AH119: =(SUMIF(EMPRUNT_CTO!H:H,SUIVI_PDV!D119,EMPRUNT_CTO!K:K)) -> 400 | AJ119: 0 | AK119: =(SUMIFS(ALIZE!P:P,ALIZE!H:H,D119))-(SUMIFS(ALIZE_2105!P:P,ALIZE_2105!H:H,D119)) -> 0 | AL119: =(SUMIFS(CORALIUM!P:P,CORALIUM!H:H,D119))-(SUMIFS(CORALIUM_2105!P:P,CORALIUM_2105!H:H,D119)) -> 0 | AM119: =(SUMIFS(PARMA_PEA!$N:$N,PARMA_PEA!$H:$H,$D119)) -> 0
A120: 110 | B120: MEURTHE ET MOSELLE MEUSE | C120: PONT A MOUSSON | D120: 618 | E120: 151350000618 | F120: 54506 | G120: =VLOOKUP(F120,Objectifs!G:H,2,FALSE) -> CHALIGNY NEUVES MAISONS | I120: =VLOOKUP(F120,Objectifs!G:L,6,FALSE) -> 132,400 | J120: =(SUMIFS(SOURCE_PARTS_SOC!G:G,SOURCE_PARTS_SOC!E:E,F120))+(SUMIFS(ORCA_CARNET!E:E,ORCA_CARNET!C:C,F120)) -> 99,160 | K120: =(SUMIFS(SOURCE_PARTS_SOC!H:H,SOURCE_PARTS_SOC!E:E,F120))+(SUMIFS(ORCA_CARNET!F:F,ORCA_CARNET!C:C,F120)) -> 20,920 | L120: 75% | M120: 33,240 | N120: =I120*SUIVI_REGION!$I$4 -> 123,332 | O120: -24,172 | P120: =(SUMIFS(SOURCE_PARTS_SOC_0506!$I:$I,SOURCE_PARTS_SOC_0506!$E:$E,F120)) -> 264,820 | Q120: =(SUMIFS(SOURCE_PARTS_SOC!$I:$I,SOURCE_PARTS_SOC!$E:$E,F120))-P120 -> 60 | S120: =VLOOKUP(F120,Objectifs!G:K,5,FALSE) -> 43,000 | T120: =(SUMIFS(PILCOT_ELAN!$P:$P,PILCOT_ELAN!$H:$H,$D120)) -> 1,241 | U120: 3% | V120: 41,759 | W120: =S120*SUIVI_REGION!$S$4 -> 30,714 | X120: -29,473 | Z120: =VLOOKUP(F120,Objectifs!G:M,7,FALSE) -> 559,900 | AA120: =(SUMIF(SOURCE_EMP_ASV!D:D,SUIVI_PDV!E120,SOURCE_EMP_ASV!J:J)) -> 493,143 | AB120: 88% | AC120: 66,757 | AD120: =Z120*SUIVI_REGION!$Z$4 -> 453,712 | AE120: 39,431 | AF120: =IF(SUMIF(SOURCE_EMP_ASV!D:D,SUIVI_PDV!E120,SOURCE_EMP_ASV!K:K)=0,"",(SUMIF(SOURCE_EMP_ASV!D:D,SUIVI_PDV!E120,SOURCE_EMP_ASV!L:L))/SUMIF(SOURCE_EMP_ASV!D:D,SUIVI_PDV!E120,SOURCE_EMP_ASV!K:K)) -> 0.58% | AG120: 0 € | AH120: =(SUMIF(EMPRUNT_CTO!H:H,SUIVI_PDV!D120,EMPRUNT_CTO!K:K)) -> 0 | AJ120: 40,719 | AK120: =(SUMIFS(ALIZE!P:P,ALIZE!H:H,D120))-(SUMIFS(ALIZE_2105!P:P,ALIZE_2105!H:H,D120)) -> 40,719 | AL120: =(SUMIFS(CORALIUM!P:P,CORALIUM!H:H,D120))-(SUMIFS(CORALIUM_2105!P:P,CORALIUM_2105!H:H,D120)) -> 0 | AM120: =(SUMIFS(PARMA_PEA!$N:$N,PARMA_PEA!$H:$H,$D120)) -> 0
A121: 110 | B121: MEURTHE ET MOSELLE MEUSE | C121: PONT A MOUSSON | D121: 661 | E121: 151350000661 | F121: 54651 | G121: =VLOOKUP(F121,Objectifs!G:H,2,FALSE) -> TOUL | I121: =VLOOKUP(F121,Objectifs!G:L,6,FALSE) -> 327,500 | J121: =(SUMIFS(SOURCE_PARTS_SOC!G:G,SOURCE_PARTS_SOC!E:E,F121))+(SUMIFS(ORCA_CARNET!E:E,ORCA_CARNET!C:C,F121)) -> 246,800 | K121: =(SUMIFS(SOURCE_PARTS_SOC!H:H,SOURCE_PARTS_SOC!E:E,F121))+(SUMIFS(ORCA_CARNET!F:F,ORCA_CARNET!C:C,F121)) -> 12,840 | L121: 75% | M121: 80,700 | N121: =I121*SUIVI_REGION!$I$4 -> 305,068 | O121: -58,268 | P121: =(SUMIFS(SOURCE_PARTS_SOC_0506!$I:$I,SOURCE_PARTS_SOC_0506!$E:$E,F121)) -> 644,100 | Q121: =(SUMIFS(SOURCE_PARTS_SOC!$I:$I,SOURCE_PARTS_SOC!$E:$E,F121))-P121 -> 4,320 | S121: =VLOOKUP(F121,Objectifs!G:K,5,FALSE) -> 106,400 | T121: =(SUMIFS(PILCOT_ELAN!$P:$P,PILCOT_ELAN!$H:$H,$D121)) -> 53,060 | U121: 50% | V121: 53,340 | W121: =S121*SUIVI_REGION!$S$4 -> 76,000 | X121: -22,940 | Z121: =VLOOKUP(F121,Objectifs!G:M,7,FALSE) -> 1,385,100 | AA121: =(SUMIF(SOURCE_EMP_ASV!D:D,SUIVI_PDV!E121,SOURCE_EMP_ASV!J:J)) -> 606,483 | AB121: 44% | AC121: 778,617 | AD121: =Z121*SUIVI_REGION!$Z$4 -> 1,122,409 | AE121: -515,926 | AF121: =IF(SUMIF(SOURCE_EMP_ASV!D:D,SUIVI_PDV!E121,SOURCE_EMP_ASV!K:K)=0,"",(SUMIF(SOURCE_EMP_ASV!D:D,SUIVI_PDV!E121,SOURCE_EMP_ASV!L:L))/SUMIF(SOURCE_EMP_ASV!D:D,SUIVI_PDV!E121,SOURCE_EMP_ASV!K:K)) -> 0.46% | AG121: 0 € | AH121: =(SUMIF(EMPRUNT_CTO!H:H,SUIVI_PDV!D121,EMPRUNT_CTO!K:K)) -> 0 | AJ121: 3,115 | AK121: =(SUMIFS(ALIZE!P:P,ALIZE!H:H,D121))-(SUMIFS(ALIZE_2105!P:P,ALIZE_2105!H:H,D121)) -> 3,115 | AL121: =(SUMIFS(CORALIUM!P:P,CORALIUM!H:H,D121))-(SUMIFS(CORALIUM_2105!P:P,CORALIUM_2105!H:H,D121)) -> 0 | AM121: =(SUMIFS(PARMA_PEA!$N:$N,PARMA_PEA!$H:$H,$D121)) -> 0
A122: 110 | B122: MEURTHE ET MOSELLE MEUSE | C122: PONT A MOUSSON | D122: 669 | E122: 151350000669 | F122: 54686 | G122: =VLOOKUP(F122,Objectifs!G:H,2,FALSE) -> VEZELISE | I122: =VLOOKUP(F122,Objectifs!G:L,6,FALSE) -> 34,800 | J122: =(SUMIFS(SOURCE_PARTS_SOC!G:G,SOURCE_PARTS_SOC!E:E,F122))+(SUMIFS(ORCA_CARNET!E:E,ORCA_CARNET!C:C,F122)) -> 30,240 | K122: =(SUMIFS(SOURCE_PARTS_SOC!H:H,SOURCE_PARTS_SOC!E:E,F122))+(SUMIFS(ORCA_CARNET!F:F,ORCA_CARNET!C:C,F122)) -> 0 | L122: 87% | M122: 4,560 | N122: =I122*SUIVI_REGION!$I$4 -> 32,416 | O122: -2,176 | P122: =(SUMIFS(SOURCE_PARTS_SOC_0506!$I:$I,SOURCE_PARTS_SOC_0506!$E:$E,F122)) -> 130,960 | Q122: =(SUMIFS(SOURCE_PARTS_SOC!$I:$I,SOURCE_PARTS_SOC!$E:$E,F122))-P122 -> 40 | S122: =VLOOKUP(F122,Objectifs!G:K,5,FALSE) -> 11,300 | T122: =(SUMIFS(PILCOT_ELAN!$P:$P,PILCOT_ELAN!$H:$H,$D122)) -> 0 | U122: 0% | V122: 11,300 | W122: =S122*SUIVI_REGION!$S$4 -> 8,071 | X122: -8,071 | Z122: =VLOOKUP(F122,Objectifs!G:M,7,FALSE) -> 147,400 | AA122: =(SUMIF(SOURCE_EMP_ASV!D:D,SUIVI_PDV!E122,SOURCE_EMP_ASV!J:J)) -> 97,647 | AB122: 66% | AC122: 49,753 | AD122: =Z122*SUIVI_REGION!$Z$4 -> 119,445 | AE122: -21,798 | AF122: =IF(SUMIF(SOURCE_EMP_ASV!D:D,SUIVI_PDV!E122,SOURCE_EMP_ASV!K:K)=0,"",(SUMIF(SOURCE_EMP_ASV!D:D,SUIVI_PDV!E122,SOURCE_EMP_ASV!L:L))/SUMIF(SOURCE_EMP_ASV!D:D,SUIVI_PDV!E122,SOURCE_EMP_ASV!K:K)) -> 0.50% | AG122: 15,000 € | AH122: =(SUMIF(EMPRUNT_CTO!H:H,SUIVI_PDV!D122,EMPRUNT_CTO!K:K)) -> 150 | AJ122: 0 | AK122: =(SUMIFS(ALIZE!P:P,ALIZE!H:H,D122))-(SUMIFS(ALIZE_2105!P:P,ALIZE_2105!H:H,D122)) -> 0 | AL122: =(SUMIFS(CORALIUM!P:P,CORALIUM!H:H,D122))-(SUMIFS(CORALIUM_2105!P:P,CORALIUM_2105!H:H,D122)) -> 0 | AM122: =(SUMIFS(PARMA_PEA!$N:$N,PARMA_PEA!$H:$H,$D122)) -> 0
A123: 110 | B123: MEURTHE ET MOSELLE MEUSE | C123: PONT A MOUSSON | D123: 522 | E123: 151350000522 | F123: 54196 | G123: =VLOOKUP(F123,Objectifs!G:H,2,FALSE) -> CHAMPIGNEULLES | I123: =VLOOKUP(F123,Objectifs!G:L,6,FALSE) -> 101,000 | J123: =(SUMIFS(SOURCE_PARTS_SOC!G:G,SOURCE_PARTS_SOC!E:E,F123))+(SUMIFS(ORCA_CARNET!E:E,ORCA_CARNET!C:C,F123)) -> 30,580 | K123: =(SUMIFS(SOURCE_PARTS_SOC!H:H,SOURCE_PARTS_SOC!E:E,F123))+(SUMIFS(ORCA_CARNET!F:F,ORCA_CARNET!C:C,F123)) -> 1,040 | L123: 30% | M123: 70,420 | N123: =I123*SUIVI_REGION!$I$4 -> 94,082 | O123: -63,502 | P123: =(SUMIFS(SOURCE_PARTS_SOC_0506!$I:$I,SOURCE_PARTS_SOC_0506!$E:$E,F123)) -> 19,860 | Q123: =(SUMIFS(SOURCE_PARTS_SOC!$I:$I,SOURCE_PARTS_SOC!$E:$E,F123))-P123 -> 60 | S123: =VLOOKUP(F123,Objectifs!G:K,5,FALSE) -> 32,800 | T123: =(SUMIFS(PILCOT_ELAN!$P:$P,PILCOT_ELAN!$H:$H,$D123)) -> 16,250 | U123: 50% | V123: 16,550 | W123: =S123*SUIVI_REGION!$S$4 -> 23,429 | X123: -7,178 | Z123: =VLOOKUP(F123,Objectifs!G:M,7,FALSE) -> 427,300 | AA123: =(SUMIF(SOURCE_EMP_ASV!D:D,SUIVI_PDV!E123,SOURCE_EMP_ASV!J:J)) -> 349,541 | AB123: 82% | AC123: 77,759 | AD123: =Z123*SUIVI_REGION!$Z$4 -> 346,260 | AE123: 3,281 | AF123: =IF(SUMIF(SOURCE_EMP_ASV!D:D,SUIVI_PDV!E123,SOURCE_EMP_ASV!K:K)=0,"",(SUMIF(SOURCE_EMP_ASV!D:D,SUIVI_PDV!E123,SOURCE_EMP_ASV!L:L))/SUMIF(SOURCE_EMP_ASV!D:D,SUIVI_PDV!E123,SOURCE_EMP_ASV!K:K)) -> 0.50% | AG123: 0 € | AH123: =(SUMIF(EMPRUNT_CTO!H:H,SUIVI_PDV!D123,EMPRUNT_CTO!K:K)) -> 0 | AJ123: 0 | AK123: =(SUMIFS(ALIZE!P:P,ALIZE!H:H,D123))-(SUMIFS(ALIZE_2105!P:P,ALIZE_2105!H:H,D123)) -> 0 | AL123: =(SUMIFS(CORALIUM!P:P,CORALIUM!H:H,D123))-(SUMIFS(CORALIUM_2105!P:P,CORALIUM_2105!H:H,D123)) -> 0 | AM123: =(SUMIFS(PARMA_PEA!$N:$N,PARMA_PEA!$H:$H,$D123)) -> 0
A124: 110 | B124: MEURTHE ET MOSELLE MEUSE | C124: PONT A MOUSSON | D124: 573 | E124: 151350000573 | F124: 54376 | G124: =VLOOKUP(F124,Objectifs!G:H,2,FALSE) -> LAXOU BOUFFLERS | I124: =VLOOKUP(F124,Objectifs!G:L,6,FALSE) -> 128,900 | J124: =(SUMIFS(SOURCE_PARTS_SOC!G:G,SOURCE_PARTS_SOC!E:E,F124))+(SUMIFS(ORCA_CARNET!E:E,ORCA_CARNET!C:C,F124)) -> 76,220 | K124: =(SUMIFS(SOURCE_PARTS_SOC!H:H,SOURCE_PARTS_SOC!E:E,F124))+(SUMIFS(ORCA_CARNET!F:F,ORCA_CARNET!C:C,F124)) -> 6,160 | L124: 59% | M124: 52,680 | N124: =I124*SUIVI_REGION!$I$4 -> 120,071 | O124: -43,851 | P124: =(SUMIFS(SOURCE_PARTS_SOC_0506!$I:$I,SOURCE_PARTS_SOC_0506!$E:$E,F124)) -> 84,760 | Q124: =(SUMIFS(SOURCE_PARTS_SOC!$I:$I,SOURCE_PARTS_SOC!$E:$E,F124))-P124 -> 0 | S124: =VLOOKUP(F124,Objectifs!G:K,5,FALSE) -> 41,900 | T124: =(SUMIFS(PILCOT_ELAN!$P:$P,PILCOT_ELAN!$H:$H,$D124)) -> 4,682 | U124: 11% | V124: 37,218 | W124: =S124*SUIVI_REGION!$S$4 -> 29,929 | X124: -25,247 | Z124: =VLOOKUP(F124,Objectifs!G:M,7,FALSE) -> 545,200 | AA124: =(SUMIF(SOURCE_EMP_ASV!D:D,SUIVI_PDV!E124,SOURCE_EMP_ASV!J:J)) -> 80,523 | AB124: 15% | AC124: 464,677 | AD124: =Z124*SUIVI_REGION!$Z$4 -> 441,800 | AE124: -361,277 | AF124: =IF(SUMIF(SOURCE_EMP_ASV!D:D,SUIVI_PDV!E124,SOURCE_EMP_ASV!K:K)=0,"",(SUMIF(SOURCE_EMP_ASV!D:D,SUIVI_PDV!E124,SOURCE_EMP_ASV!L:L))/SUMIF(SOURCE_EMP_ASV!D:D,SUIVI_PDV!E124,SOURCE_EMP_ASV!K:K)) -> 0.50% | AG124: 0 € | AH124: =(SUMIF(EMPRUNT_CTO!H:H,SUIVI_PDV!D124,EMPRUNT_CTO!K:K)) -> 0 | AJ124: 12,432 | AK124: =(SUMIFS(ALIZE!P:P,ALIZE!H:H,D124))-(SUMIFS(ALIZE_2105!P:P,ALIZE_2105!H:H,D124)) -> 12,432 | AL124: =(SUMIFS(CORALIUM!P:P,CORALIUM!H:H,D124))-(SUMIFS(CORALIUM_2105!P:P,CORALIUM_2105!H:H,D124)) -> 0 | AM124: =(SUMIFS(PARMA_PEA!$N:$N,PARMA_PEA!$H:$H,$D124)) -> 0
A125: 110 | B125: MEURTHE ET MOSELLE MEUSE | C125: PONT A MOUSSON | D125: 572 | E125: 151350000572 | F125: 54381 | G125: =VLOOKUP(F125,Objectifs!G:H,2,FALSE) -> LAXOU ARISTIDE BRIAND | I125: =VLOOKUP(F125,Objectifs!G:L,6,FALSE) -> 145,600 | J125: =(SUMIFS(SOURCE_PARTS_SOC!G:G,SOURCE_PARTS_SOC!E:E,F125))+(SUMIFS(ORCA_CARNET!E:E,ORCA_CARNET!C:C,F125)) -> 8,840 | K125: =(SUMIFS(SOURCE_PARTS_SOC!H:H,SOURCE_PARTS_SOC!E:E,F125))+(SUMIFS(ORCA_CARNET!F:F,ORCA_CARNET!C:C,F125)) -> 40 | L125: 6% | M125: 136,760 | N125: =I125*SUIVI_REGION!$I$4 -> 135,627 | O125: -126,787 | P125: =(SUMIFS(SOURCE_PARTS_SOC_0506!$I:$I,SOURCE_PARTS_SOC_0506!$E:$E,F125)) -> 151,160 | Q125: =(SUMIFS(SOURCE_PARTS_SOC!$I:$I,SOURCE_PARTS_SOC!$E:$E,F125))-P125 -> 60 | S125: =VLOOKUP(F125,Objectifs!G:K,5,FALSE) -> 47,300 | T125: =(SUMIFS(PILCOT_ELAN!$P:$P,PILCOT_ELAN!$H:$H,$D125)) -> 0 | U125: 0% | V125: 47,300 | W125: =S125*SUIVI_REGION!$S$4 -> 33,786 | X125: -33,786 | Z125: =VLOOKUP(F125,Objectifs!G:M,7,FALSE) -> 615,900 | AA125: =(SUMIF(SOURCE_EMP_ASV!D:D,SUIVI_PDV!E125,SOURCE_EMP_ASV!J:J)) -> 267,603 | AB125: 43% | AC125: 348,297 | AD125: =Z125*SUIVI_REGION!$Z$4 -> 499,091 | AE125: -231,489 | AF125: =IF(SUMIF(SOURCE_EMP_ASV!D:D,SUIVI_PDV!E125,SOURCE_EMP_ASV!K:K)=0,"",(SUMIF(SOURCE_EMP_ASV!D:D,SUIVI_PDV!E125,SOURCE_EMP_ASV!L:L))/SUMIF(SOURCE_EMP_ASV!D:D,SUIVI_PDV!E125,SOURCE_EMP_ASV!K:K)) -> 0.49% | AG125: 0 € | AH125: =(SUMIF(EMPRUNT_CTO!H:H,SUIVI_PDV!D125,EMPRUNT_CTO!K:K)) -> 0 | AJ125: 0 | AK125: =(SUMIFS(ALIZE!P:P,ALIZE!H:H,D125))-(SUMIFS(ALIZE_2105!P:P,ALIZE_2105!H:H,D125)) -> 0 | AL125: =(SUMIFS(CORALIUM!P:P,CORALIUM!H:H,D125))-(SUMIFS(CORALIUM_2105!P:P,CORALIUM_2105!H:H,D125)) -> 0 | AM125: =(SUMIFS(PARMA_PEA!$N:$N,PARMA_PEA!$H:$H,$D125)) -> 0
A126: 110 | B126: MEURTHE ET MOSELLE MEUSE | C126: PONT A MOUSSON | D126: 615 | E126: 151350000615 | F126: 54496 | G126: =VLOOKUP(F126,Objectifs!G:H,2,FALSE) -> NANCY TROIS MAISONS | I126: =VLOOKUP(F126,Objectifs!G:L,6,FALSE) -> 107,900 | J126: =(SUMIFS(SOURCE_PARTS_SOC!G:G,SOURCE_PARTS_SOC!E:E,F126))+(SUMIFS(ORCA_CARNET!E:E,ORCA_CARNET!C:C,F126)) -> 25,640 | K126: =(SUMIFS(SOURCE_PARTS_SOC!H:H,SOURCE_PARTS_SOC!E:E,F126))+(SUMIFS(ORCA_CARNET!F:F,ORCA_CARNET!C:C,F126)) -> 0 | L126: =IFERROR(J126/I126," ") -> 24% | M126: =IF(J126>I126," ",I126-J126) -> 82,260 | N126: =I126*SUIVI_REGION!$I$4 -> 100,510 | O126: =J126-N126 -> -74,870 | P126: =(SUMIFS(SOURCE_PARTS_SOC_0506!$I:$I,SOURCE_PARTS_SOC_0506!$E:$E,F126)) -> 148,740 | Q126: =(SUMIFS(SOURCE_PARTS_SOC!$I:$I,SOURCE_PARTS_SOC!$E:$E,F126))-P126 -> 60 | S126: =VLOOKUP(F126,Objectifs!G:K,5,FALSE) -> 35,100 | T126: =(SUMIFS(PILCOT_ELAN!$P:$P,PILCOT_ELAN!$H:$H,$D126)) -> 2,915 | U126: =IFERROR(T126/S126," ") -> 8% | V126: 32,185 | W126: =S126*SUIVI_REGION!$S$4 -> 25,071 | X126: -22,157 | Z126: =VLOOKUP(F126,Objectifs!G:M,7,FALSE) -> 456,400 | AA126: =(SUMIF(SOURCE_EMP_ASV!D:D,SUIVI_PDV!E126,SOURCE_EMP_ASV!J:J)) -> 66,547 | AB126: 15% | AC126: 389,853 | AD126: =Z126*SUIVI_REGION!$Z$4 -> 369,841 | AE126: -303,295 | AF126: =IF(SUMIF(SOURCE_EMP_ASV!D:D,SUIVI_PDV!E126,SOURCE_EMP_ASV!K:K)=0,"",(SUMIF(SOURCE_EMP_ASV!D:D,SUIVI_PDV!E126,SOURCE_EMP_ASV!L:L))/SUMIF(SOURCE_EMP_ASV!D:D,SUIVI_PDV!E126,SOURCE_EMP_ASV!K:K)) -> 0.50% | AG126: 0 € | AH126: =(SUMIF(EMPRUNT_CTO!H:H,SUIVI_PDV!D126,EMPRUNT_CTO!K:K)) -> 0 | AJ126: 0 | AK126: =(SUMIFS(ALIZE!P:P,ALIZE!H:H,D126))-(SUMIFS(ALIZE_2105!P:P,ALIZE_2105!H:H,D126)) -> 0 | AL126: =(SUMIFS(CORALIUM!P:P,CORALIUM!H:H,D126))-(SUMIFS(CORALIUM_2105!P:P,CORALIUM_2105!H:H,D126)) -> 0 | AM126: =(SUMIFS(PARMA_PEA!$N:$N,PARMA_PEA!$H:$H,$D126)) -> 0
A127: 110 | B127: MEURTHE ET MOSELLE MEUSE | C127: PONT A MOUSSON | D127: 671 | E127: 151350000671 | F127: 54696 | G127: =VLOOKUP(F127,Objectifs!G:H,2,FALSE) -> VILLERS GENERAL LECLERC | I127: =VLOOKUP(F127,Objectifs!G:L,6,FALSE) -> 218,600 | J127: =(SUMIFS(SOURCE_PARTS_SOC!G:G,SOURCE_PARTS_SOC!E:E,F127))+(SUMIFS(ORCA_CARNET!E:E,ORCA_CARNET!C:C,F127)) -> 120,380 | K127: =(SUMIFS(SOURCE_PARTS_SOC!H:H,SOURCE_PARTS_SOC!E:E,F127))+(SUMIFS(ORCA_CARNET!F:F,ORCA_CARNET!C:C,F127)) -> 80 | L127: 55% | M127: 98,220 | N127: =I127*SUIVI_REGION!$I$4 -> 203,627 | O127: -83,247 | P127: =(SUMIFS(SOURCE_PARTS_SOC_0506!$I:$I,SOURCE_PARTS_SOC_0506!$E:$E,F127)) -> 169,680 | Q127: =(SUMIFS(SOURCE_PARTS_SOC!$I:$I,SOURCE_PARTS_SOC!$E:$E,F127))-P127 -> 260 | S127: =VLOOKUP(F127,Objectifs!G:K,5,FALSE) -> 71,100 | T127: =(SUMIFS(PILCOT_ELAN!$P:$P,PILCOT_ELAN!$H:$H,$D127)) -> 0 | U127: 0% | V127: 71,100 | W127: =S127*SUIVI_REGION!$S$4 -> 50,786 | X127: -50,786 | Z127: =VLOOKUP(F127,Objectifs!G:M,7,FALSE) -> 924,700 | AA127: =(SUMIF(SOURCE_EMP_ASV!D:D,SUIVI_PDV!E127,SOURCE_EMP_ASV!J:J)) -> 849,682 | AB127: 92% | AC127: 75,018 | AD127: =Z127*SUIVI_REGION!$Z$4 -> 749,326 | AE127: 100,356 | AF127: =IF(SUMIF(SOURCE_EMP_ASV!D:D,SUIVI_PDV!E127,SOURCE_EMP_ASV!K:K)=0,"",(SUMIF(SOURCE_EMP_ASV!D:D,SUIVI_PDV!E127,SOURCE_EMP_ASV!L:L))/SUMIF(SOURCE_EMP_ASV!D:D,SUIVI_PDV!E127,SOURCE_EMP_ASV!K:K)) -> 0.52% | AG127: 0 € | AH127: =(SUMIF(EMPRUNT_CTO!H:H,SUIVI_PDV!D127,EMPRUNT_CTO!K:K)) -> 0 | AJ127: 120,701 | AK127: =(SUMIFS(ALIZE!P:P,ALIZE!H:H,D127))-(SUMIFS(ALIZE_2105!P:P,ALIZE_2105!H:H,D127)) -> 61,648 | AL127: =(SUMIFS(CORALIUM!P:P,CORALIUM!H:H,D127))-(SUMIFS(CORALIUM_2105!P:P,CORALIUM_2105!H:H,D127)) -> 59,053 | AM127: =(SUMIFS(PARMA_PEA!$N:$N,PARMA_PEA!$H:$H,$D127)) -> 0
A128: 110 | C128: Total Territoire PONT A MOUSSON | G128: PONT A MOUSSON | I128: =SUBTOTAL(9,I112:I127) -> 2,570,000 | J128: =SUBTOTAL(9,J112:J127) -> 1,075,320 | K128: 108,580 | L128: 42% | M128: 1,494,680 | N128: =I128*SUIVI_REGION!$I$4 -> 2,393,973 | O128: -1,318,653 | P128: =SUBTOTAL(9,P112:P127) -> 3,382,460 | Q128: =SUBTOTAL(9,Q112:Q127) -> 19,420 | S128: =SUBTOTAL(9,S112:S127) -> 835,200 | T128: =SUBTOTAL(9,T112:T127) -> 176,930 | U128: 21% | V128: 658,270 | W128: =S128*SUIVI_REGION!$S$4 -> 596,571 | X128: -419,641 | Z128: =SUBTOTAL(9,Z112:Z127) -> 10,871,100 | AA128: =SUBTOTAL(9,AA112:AA127) -> 6,236,931 | AB128: 57% | AC128: 4,634,169 | AD128: =Z128*SUIVI_REGION!$Z$4 -> 8,809,340 | AE128: -2,572,409 | AF128: =IF(SUMIF(SOURCE_EMP_ASV!B:B,G128,SOURCE_EMP_ASV!K:K)=0,"",(SUMIF(SOURCE_EMP_ASV!B:B,G128,SOURCE_EMP_ASV!L:L))/(SUMIF(SOURCE_EMP_ASV!B:B,G128,SOURCE_EMP_ASV!K:K))) -> 0.50% | AG128: 65,000 € | AH128: =SUBTOTAL(9,AH112:AH127) -> 650 | AJ128: 176,968 | AK128: =SUBTOTAL(9,AK112:AK127) -> 117,915 | AL128: =SUBTOTAL(9,AL112:AL127) -> 59,053 | AM128: =SUBTOTAL(9,AM112:AM127) -> 0
A129: 110 | B129: MEURTHE ET MOSELLE MEUSE | C129: VERDUN | D129: 508 | E129: 151350000508 | F129: 55151 | G129: =VLOOKUP(F129,Objectifs!G:H,2,FALSE) -> BAR LE DUC | I129: =VLOOKUP(F129,Objectifs!G:L,6,FALSE) -> 373,300 | J129: =(SUMIFS(SOURCE_PARTS_SOC!G:G,SOURCE_PARTS_SOC!E:E,F129))+(SUMIFS(ORCA_CARNET!E:E,ORCA_CARNET!C:C,F129)) -> 186,580 | K129: =(SUMIFS(SOURCE_PARTS_SOC!H:H,SOURCE_PARTS_SOC!E:E,F129))+(SUMIFS(ORCA_CARNET!F:F,ORCA_CARNET!C:C,F129)) -> 10,400 | L129: 50% | M129: 186,720 | N129: =I129*SUIVI_REGION!$I$4 -> 347,732 | O129: -161,152 | P129: =(SUMIFS(SOURCE_PARTS_SOC_0506!$I:$I,SOURCE_PARTS_SOC_0506!$E:$E,F129)) -> 234,080 | Q129: =(SUMIFS(SOURCE_PARTS_SOC!$I:$I,SOURCE_PARTS_SOC!$E:$E,F129))-P129 -> 7,260 | S129: =VLOOKUP(F129,Objectifs!G:K,5,FALSE) -> 121,300 | T129: =(SUMIFS(PILCOT_ELAN!$P:$P,PILCOT_ELAN!$H:$H,$D129)) -> 42,302 | U129: 35% | V129: 78,998 | W129: =S129*SUIVI_REGION!$S$4 -> 86,643 | X129: -44,341 | Z129: =VLOOKUP(F129,Objectifs!G:M,7,FALSE) -> 1,579,000 | AA129: =(SUMIF(SOURCE_EMP_ASV!D:D,SUIVI_PDV!E129,SOURCE_EMP_ASV!J:J)) -> 1,240,696 | AB129: 79% | AC129: 338,304 | AD129: =Z129*SUIVI_REGION!$Z$4 -> 1,279,534 | AE129: -38,838 | AF129: =IF(SUMIF(SOURCE_EMP_ASV!D:D,SUIVI_PDV!E129,SOURCE_EMP_ASV!K:K)=0,"",(SUMIF(SOURCE_EMP_ASV!D:D,SUIVI_PDV!E129,SOURCE_EMP_ASV!L:L))/SUMIF(SOURCE_EMP_ASV!D:D,SUIVI_PDV!E129,SOURCE_EMP_ASV!K:K)) -> 0.47% | AG129: 30,000 € | AH129: =(SUMIF(EMPRUNT_CTO!H:H,SUIVI_PDV!D129,EMPRUNT_CTO!K:K)) -> 300 | AJ129: 0 | AK129: =(SUMIFS(ALIZE!P:P,ALIZE!H:H,D129))-(SUMIFS(ALIZE_2105!P:P,ALIZE_2105!H:H,D129)) -> 0 | AL129: =(SUMIFS(CORALIUM!P:P,CORALIUM!H:H,D129))-(SUMIFS(CORALIUM_2105!P:P,CORALIUM_2105!H:H,D129)) -> 0 | AM129: =(SUMIFS(PARMA_PEA!$N:$N,PARMA_PEA!$H:$H,$D129)) -> 0
A130: 110 | B130: MEURTHE ET MOSELLE MEUSE | C130: VERDUN | D130: 576 | E130: 151350000576 | F130: 55406 | G130: =VLOOKUP(F130,Objectifs!G:H,2,FALSE) -> LIGNY EN BARROIS | I130: =VLOOKUP(F130,Objectifs!G:L,6,FALSE) -> 101,200 | J130: =(SUMIFS(SOURCE_PARTS_SOC!G:G,SOURCE_PARTS_SOC!E:E,F130))+(SUMIFS(ORCA_CARNET!E:E,ORCA_CARNET!C:C,F130)) -> 27,140 | K130: =(SUMIFS(SOURCE_PARTS_SOC!H:H,SOURCE_PARTS_SOC!E:E,F130))+(SUMIFS(ORCA_CARNET!F:F,ORCA_CARNET!C:C,F130)) -> 0 | L130: 27% | M130: 74,060 | N130: =I130*SUIVI_REGION!$I$4 -> 94,268 | O130: -67,128 | P130: =(SUMIFS(SOURCE_PARTS_SOC_0506!$I:$I,SOURCE_PARTS_SOC_0506!$E:$E,F130)) -> 121,200 | Q130: =(SUMIFS(SOURCE_PARTS_SOC!$I:$I,SOURCE_PARTS_SOC!$E:$E,F130))-P130 -> 20 | S130: =VLOOKUP(F130,Objectifs!G:K,5,FALSE) -> 32,900 | T130: =(SUMIFS(PILCOT_ELAN!$P:$P,PILCOT_ELAN!$H:$H,$D130)) -> 0 | U130: 0% | V130: 32,900 | W130: =S130*SUIVI_REGION!$S$4 -> 23,500 | X130: -23,500 | Z130: =VLOOKUP(F130,Objectifs!G:M,7,FALSE) -> 428,200 | AA130: =(SUMIF(SOURCE_EMP_ASV!D:D,SUIVI_PDV!E130,SOURCE_EMP_ASV!J:J)) -> 162,500 | AB130: 38% | AC130: 265,700 | AD130: =Z130*SUIVI_REGION!$Z$4 -> 346,990 | AE130: -184,490 | AF130: =IF(SUMIF(SOURCE_EMP_ASV!D:D,SUIVI_PDV!E130,SOURCE_EMP_ASV!K:K)=0,"",(SUMIF(SOURCE_EMP_ASV!D:D,SUIVI_PDV!E130,SOURCE_EMP_ASV!L:L))/SUMIF(SOURCE_EMP_ASV!D:D,SUIVI_PDV!E130,SOURCE_EMP_ASV!K:K)) -> 0.50% | AG130: 0 € | AH130: =(SUMIF(EMPRUNT_CTO!H:H,SUIVI_PDV!D130,EMPRUNT_CTO!K:K)) -> 0 | AJ130: 0 | AK130: =(SUMIFS(ALIZE!P:P,ALIZE!H:H,D130))-(SUMIFS(ALIZE_2105!P:P,ALIZE_2105!H:H,D130)) -> 0 | AL130: =(SUMIFS(CORALIUM!P:P,CORALIUM!H:H,D130))-(SUMIFS(CORALIUM_2105!P:P,CORALIUM_2105!H:H,D130)) -> 0 | AM130: =(SUMIFS(PARMA_PEA!$N:$N,PARMA_PEA!$H:$H,$D130)) -> 0
A131: 110 | B131: MEURTHE ET MOSELLE MEUSE | C131: VERDUN | D131: 634 | E131: 151350000634 | F131: 55566 | G131: =VLOOKUP(F131,Objectifs!G:H,2,FALSE) -> REVIGNY SUR ORNAIN | I131: =VLOOKUP(F131,Objectifs!G:L,6,FALSE) -> 101,000 | J131: =(SUMIFS(SOURCE_PARTS_SOC!G:G,SOURCE_PARTS_SOC!E:E,F131))+(SUMIFS(ORCA_CARNET!E:E,ORCA_CARNET!C:C,F131)) -> 77,240 | K131: =(SUMIFS(SOURCE_PARTS_SOC!H:H,SOURCE_PARTS_SOC!E:E,F131))+(SUMIFS(ORCA_CARNET!F:F,ORCA_CARNET!C:C,F131)) -> 0 | L131: 76% | M131: 23,760 | N131: =I131*SUIVI_REGION!$I$4 -> 94,082 | O131: -16,842 | P131: =(SUMIFS(SOURCE_PARTS_SOC_0506!$I:$I,SOURCE_PARTS_SOC_0506!$E:$E,F131)) -> 117,540 | Q131: =(SUMIFS(SOURCE_PARTS_SOC!$I:$I,SOURCE_PARTS_SOC!$E:$E,F131))-P131 -> 20 | S131: =VLOOKUP(F131,Objectifs!G:K,5,FALSE) -> 32,800 | T131: =(SUMIFS(PILCOT_ELAN!$P:$P,PILCOT_ELAN!$H:$H,$D131)) -> 100 | U131: 0% | V131: 32,700 | W131: =S131*SUIVI_REGION!$S$4 -> 23,429 | X131: -23,329 | Z131: =VLOOKUP(F131,Objectifs!G:M,7,FALSE) -> 427,300 | AA131: =(SUMIF(SOURCE_EMP_ASV!D:D,SUIVI_PDV!E131,SOURCE_EMP_ASV!J:J)) -> 95,525 | AB131: =IFERROR(AA131/Z131," ") -> 22% | AC131: =IF(AA131>Z131," ",Z131-AA131) -> 331,775 | AD131: =Z131*SUIVI_REGION!$Z$4 -> 346,260 | AE131: =AA131-AD131 -> -250,735 | AF131: =IF(SUMIF(SOURCE_EMP_ASV!D:D,SUIVI_PDV!E131,SOURCE_EMP_ASV!K:K)=0,"",(SUMIF(SOURCE_EMP_ASV!D:D,SUIVI_PDV!E131,SOURCE_EMP_ASV!L:L))/SUMIF(SOURCE_EMP_ASV!D:D,SUIVI_PDV!E131,SOURCE_EMP_ASV!K:K)) -> 0.50% | AG131: 0 € | AH131: =(SUMIF(EMPRUNT_CTO!H:H,SUIVI_PDV!D131,EMPRUNT_CTO!K:K)) -> 0 | AJ131: 0 | AK131: =(SUMIFS(ALIZE!P:P,ALIZE!H:H,D131))-(SUMIFS(ALIZE_2105!P:P,ALIZE_2105!H:H,D131)) -> 0 | AL131: =(SUMIFS(CORALIUM!P:P,CORALIUM!H:H,D131))-(SUMIFS(CORALIUM_2105!P:P,CORALIUM_2105!H:H,D131)) -> 0 | AM131: =(SUMIFS(PARMA_PEA!$N:$N,PARMA_PEA!$H:$H,$D131)) -> 0
A132: 110 | B132: MEURTHE ET MOSELLE MEUSE | C132: VERDUN | D132: 528 | E132: 151350000528 | F132: 55231 | G132: =VLOOKUP(F132,Objectifs!G:H,2,FALSE) -> COMMERCY | I132: =VLOOKUP(F132,Objectifs!G:L,6,FALSE) -> 135,900 | J132: =(SUMIFS(SOURCE_PARTS_SOC!G:G,SOURCE_PARTS_SOC!E:E,F132))+(SUMIFS(ORCA_CARNET!E:E,ORCA_CARNET!C:C,F132)) -> 126,200 | K132: =(SUMIFS(SOURCE_PARTS_SOC!H:H,SOURCE_PARTS_SOC!E:E,F132))+(SUMIFS(ORCA_CARNET!F:F,ORCA_CARNET!C:C,F132)) -> 75,440 | L132: 93% | M132: 9,700 | N132: =I132*SUIVI_REGION!$I$4 -> 126,592 | O132: -392 | P132: =(SUMIFS(SOURCE_PARTS_SOC_0506!$I:$I,SOURCE_PARTS_SOC_0506!$E:$E,F132)) -> 131,860 | Q132: =(SUMIFS(SOURCE_PARTS_SOC!$I:$I,SOURCE_PARTS_SOC!$E:$E,F132))-P132 -> 360 | S132: =VLOOKUP(F132,Objectifs!G:K,5,FALSE) -> 44,200 | T132: =(SUMIFS(PILCOT_ELAN!$P:$P,PILCOT_ELAN!$H:$H,$D132)) -> 722 | U132: 2% | V132: 43,478 | W132: =S132*SUIVI_REGION!$S$4 -> 31,571 | X132: -30,850 | Z132: =VLOOKUP(F132,Objectifs!G:M,7,FALSE) -> 574,700 | AA132: =(SUMIF(SOURCE_EMP_ASV!D:D,SUIVI_PDV!E132,SOURCE_EMP_ASV!J:J)) -> 323,784 | AB132: 56% | AC132: 250,916 | AD132: =Z132*SUIVI_REGION!$Z$4 -> 465,705 | AE132: -141,921 | AF132: =IF(SUMIF(SOURCE_EMP_ASV!D:D,SUIVI_PDV!E132,SOURCE_EMP_ASV!K:K)=0,"",(SUMIF(SOURCE_EMP_ASV!D:D,SUIVI_PDV!E132,SOURCE_EMP_ASV!L:L))/SUMIF(SOURCE_EMP_ASV!D:D,SUIVI_PDV!E132,SOURCE_EMP_ASV!K:K)) -> 0.50% | AG132: =AH132*100 -> 0 € | AH132: =(SUMIF(EMPRUNT_CTO!H:H,SUIVI_PDV!D132,EMPRUNT_CTO!K:K)) -> 0 | AJ132: =AK132+AL132+AM132 -> 2,284 | AK132: =(SUMIFS(ALIZE!P:P,ALIZE!H:H,D132))-(SUMIFS(ALIZE_2105!P:P,ALIZE_2105!H:H,D132)) -> 2,284 | AL132: =(SUMIFS(CORALIUM!P:P,CORALIUM!H:H,D132))-(SUMIFS(CORALIUM_2105!P:P,CORALIUM_2105!H:H,D132)) -> 0 | AM132: =(SUMIFS(PARMA_PEA!$N:$N,PARMA_PEA!$H:$H,$D132)) -> 0
A133: 110 | B133: MEURTHE ET MOSELLE MEUSE | C133: VERDUN | D133: 641 | E133: 151350000641 | F133: 55606 | G133: =VLOOKUP(F133,Objectifs!G:H,2,FALSE) -> SAINT MIHIEL | I133: =VLOOKUP(F133,Objectifs!G:L,6,FALSE) -> 94,100 | J133: =(SUMIFS(SOURCE_PARTS_SOC!G:G,SOURCE_PARTS_SOC!E:E,F133))+(SUMIFS(ORCA_CARNET!E:E,ORCA_CARNET!C:C,F133)) -> 49,820 | K133: =(SUMIFS(SOURCE_PARTS_SOC!H:H,SOURCE_PARTS_SOC!E:E,F133))+(SUMIFS(ORCA_CARNET!F:F,ORCA_CARNET!C:C,F133)) -> 120 | L133: 53% | M133: 44,280 | N133: =I133*SUIVI_REGION!$I$4 -> 87,655 | O133: -37,835 | P133: =(SUMIFS(SOURCE_PARTS_SOC_0506!$I:$I,SOURCE_PARTS_SOC_0506!$E:$E,F133)) -> 111,140 | Q133: =(SUMIFS(SOURCE_PARTS_SOC!$I:$I,SOURCE_PARTS_SOC!$E:$E,F133))-P133 -> 0 | S133: =VLOOKUP(F133,Objectifs!G:K,5,FALSE) -> 30,600 | T133: =(SUMIFS(PILCOT_ELAN!$P:$P,PILCOT_ELAN!$H:$H,$D133)) -> 19,735 | U133: 64% | V133: 10,865 | W133: =S133*SUIVI_REGION!$S$4 -> 21,857 | X133: -2,122 | Z133: =VLOOKUP(F133,Objectifs!G:M,7,FALSE) -> 397,900 | AA133: =(SUMIF(SOURCE_EMP_ASV!D:D,SUIVI_PDV!E133,SOURCE_EMP_ASV!J:J)) -> 530,500 | AB133: 133% | AD133: =Z133*SUIVI_REGION!$Z$4 -> 322,436 | AE133: 208,064 | AF133: =IF(SUMIF(SOURCE_EMP_ASV!D:D,SUIVI_PDV!E133,SOURCE_EMP_ASV!K:K)=0,"",(SUMIF(SOURCE_EMP_ASV!D:D,SUIVI_PDV!E133,SOURCE_EMP_ASV!L:L))/SUMIF(SOURCE_EMP_ASV!D:D,SUIVI_PDV!E133,SOURCE_EMP_ASV!K:K)) -> 0.51% | AG133: 0 € | AH133: =(SUMIF(EMPRUNT_CTO!H:H,SUIVI_PDV!D133,EMPRUNT_CTO!K:K)) -> 0 | AJ133: 0 | AK133: =(SUMIFS(ALIZE!P:P,ALIZE!H:H,D133))-(SUMIFS(ALIZE_2105!P:P,ALIZE_2105!H:H,D133)) -> 0 | AL133: =(SUMIFS(CORALIUM!P:P,CORALIUM!H:H,D133))-(SUMIFS(CORALIUM_2105!P:P,CORALIUM_2105!H:H,D133)) -> 0 | AM133: =(SUMIFS(PARMA_PEA!$N:$N,PARMA_PEA!$H:$H,$D133)) -> 0
A134: 110 | B134: MEURTHE ET MOSELLE MEUSE | C134: VERDUN | D134: 666 | E134: 151350000666 | F134: 55676 | G134: =VLOOKUP(F134,Objectifs!G:H,2,FALSE) -> VAUCOULEURS | I134: =VLOOKUP(F134,Objectifs!G:L,6,FALSE) -> 31,400 | J134: =(SUMIFS(SOURCE_PARTS_SOC!G:G,SOURCE_PARTS_SOC!E:E,F134))+(SUMIFS(ORCA_CARNET!E:E,ORCA_CARNET!C:C,F134)) -> 7,640 | K134: =(SUMIFS(SOURCE_PARTS_SOC!H:H,SOURCE_PARTS_SOC!E:E,F134))+(SUMIFS(ORCA_CARNET!F:F,ORCA_CARNET!C:C,F134)) -> 0 | L134: 24% | M134: 23,760 | N134: =I134*SUIVI_REGION!$I$4 -> 29,249 | O134: -21,609 | P134: =(SUMIFS(SOURCE_PARTS_SOC_0506!$I:$I,SOURCE_PARTS_SOC_0506!$E:$E,F134)) -> 43,920 | Q134: =(SUMIFS(SOURCE_PARTS_SOC!$I:$I,SOURCE_PARTS_SOC!$E:$E,F134))-P134 -> 0 | S134: =VLOOKUP(F134,Objectifs!G:K,5,FALSE) -> 10,200 | T134: =(SUMIFS(PILCOT_ELAN!$P:$P,PILCOT_ELAN!$H:$H,$D134)) -> 0 | U134: 0% | V134: 10,200 | W134: =S134*SUIVI_REGION!$S$4 -> 7,286 | X134: -7,286 | Z134: =VLOOKUP(F134,Objectifs!G:M,7,FALSE) -> 132,600 | AA134: =(SUMIF(SOURCE_EMP_ASV!D:D,SUIVI_PDV!E134,SOURCE_EMP_ASV!J:J)) -> 5,000 | AB134: 4% | AC134: 127,600 | AD134: =Z134*SUIVI_REGION!$Z$4 -> 107,452 | AE134: -102,452 | AF134: =IF(SUMIF(SOURCE_EMP_ASV!D:D,SUIVI_PDV!E134,SOURCE_EMP_ASV!K:K)=0,"",(SUMIF(SOURCE_EMP_ASV!D:D,SUIVI_PDV!E134,SOURCE_EMP_ASV!L:L))/SUMIF(SOURCE_EMP_ASV!D:D,SUIVI_PDV!E134,SOURCE_EMP_ASV!K:K)) -> 0.50% | AG134: 0 € | AH134: =(SUMIF(EMPRUNT_CTO!H:H,SUIVI_PDV!D134,EMPRUNT_CTO!K:K)) -> 0 | AJ134: 0 | AK134: =(SUMIFS(ALIZE!P:P,ALIZE!H:H,D134))-(SUMIFS(ALIZE_2105!P:P,ALIZE_2105!H:H,D134)) -> 0 | AL134: =(SUMIFS(CORALIUM!P:P,CORALIUM!H:H,D134))-(SUMIFS(CORALIUM_2105!P:P,CORALIUM_2105!H:H,D134)) -> 0 | AM134: =(SUMIFS(PARMA_PEA!$N:$N,PARMA_PEA!$H:$H,$D134)) -> 0
A135: 110 | B135: MEURTHE ET MOSELLE MEUSE | C135: VERDUN | D135: 577 | E135: 151350000577 | F135: 54412 | G135: =VLOOKUP(F135,Objectifs!G:H,2,FALSE) -> LONGUYON | I135: =VLOOKUP(F135,Objectifs!G:L,6,FALSE) -> 101,000 | J135: =(SUMIFS(SOURCE_PARTS_SOC!G:G,SOURCE_PARTS_SOC!E:E,F135))+(SUMIFS(ORCA_CARNET!E:E,ORCA_CARNET!C:C,F135)) -> 56,040 | K135: =(SUMIFS(SOURCE_PARTS_SOC!H:H,SOURCE_PARTS_SOC!E:E,F135))+(SUMIFS(ORCA_CARNET!F:F,ORCA_CARNET!C:C,F135)) -> 80 | L135: 55% | M135: 44,960 | N135: =I135*SUIVI_REGION!$I$4 -> 94,082 | O135: -38,042 | P135: =(SUMIFS(SOURCE_PARTS_SOC_0506!$I:$I,SOURCE_PARTS_SOC_0506!$E:$E,F135)) -> 79,360 | Q135: =(SUMIFS(SOURCE_PARTS_SOC!$I:$I,SOURCE_PARTS_SOC!$E:$E,F135))-P135 -> 5,200 | S135: =VLOOKUP(F135,Objectifs!G:K,5,FALSE) -> 32,800 | T135: =(SUMIFS(PILCOT_ELAN!$P:$P,PILCOT_ELAN!$H:$H,$D135)) -> 0 | U135: 0% | V135: 32,800 | W135: =S135*SUIVI_REGION!$S$4 -> 23,429 | X135: -23,429 | Z135: =VLOOKUP(F135,Objectifs!G:M,7,FALSE) -> 427,300 | AA135: =(SUMIF(SOURCE_EMP_ASV!D:D,SUIVI_PDV!E135,SOURCE_EMP_ASV!J:J)) -> 239,500 | AB135: 56% | AC135: 187,800 | AD135: =Z135*SUIVI_REGION!$Z$4 -> 346,260 | AE135: -106,760 | AF135: =IF(SUMIF(SOURCE_EMP_ASV!D:D,SUIVI_PDV!E135,SOURCE_EMP_ASV!K:K)=0,"",(SUMIF(SOURCE_EMP_ASV!D:D,SUIVI_PDV!E135,SOURCE_EMP_ASV!L:L))/SUMIF(SOURCE_EMP_ASV!D:D,SUIVI_PDV!E135,SOURCE_EMP_ASV!K:K)) -> 0.50% | AG135: 0 € | AH135: =(SUMIF(EMPRUNT_CTO!H:H,SUIVI_PDV!D135,EMPRUNT_CTO!K:K)) -> 0 | AJ135: 0 | AK135: =(SUMIFS(ALIZE!P:P,ALIZE!H:H,D135))-(SUMIFS(ALIZE_2105!P:P,ALIZE_2105!H:H,D135)) -> 0 | AL135: =(SUMIFS(CORALIUM!P:P,CORALIUM!H:H,D135))-(SUMIFS(CORALIUM_2105!P:P,CORALIUM_2105!H:H,D135)) -> 0 | AM135: =(SUMIFS(PARMA_PEA!$N:$N,PARMA_PEA!$H:$H,$D135)) -> 0
A136: 110 | B136: MEURTHE ET MOSELLE MEUSE | C136: VERDUN | D136: 578 | E136: 151350000578 | F136: 54413 | G136: =VLOOKUP(F136,Objectifs!G:H,2,FALSE) -> LONGWY BAS | I136: =VLOOKUP(F136,Objectifs!G:L,6,FALSE) -> 205,600 | J136: =(SUMIFS(SOURCE_PARTS_SOC!G:G,SOURCE_PARTS_SOC!E:E,F136))+(SUMIFS(SOURCE_PARTS_SOC!G:G,SOURCE_PARTS_SOC!E:E,54414))+(SUMIFS(ORCA_CARNET!E:E,ORCA_CARNET!C:C,F136))+(SUMIFS(ORCA_CARNET!E:E,ORCA_CARNET!C:C,54414)) -> 194,200 | K136: =(SUMIFS(SOURCE_PARTS_SOC!H:H,SOURCE_PARTS_SOC!E:E,F136))+(SUMIFS(SOURCE_PARTS_SOC!H:H,SOURCE_PARTS_SOC!E:E,54414))+(SUMIFS(ORCA_CARNET!F:F,ORCA_CARNET!C:C,F136))+(SUMIFS(ORCA_CARNET!F:F,ORCA_CARNET!C:C,54414)) -> 54,280 | L136: 94% | M136: 11,400 | N136: =I136*SUIVI_REGION!$I$4 -> 191,518 | O136: 2,682 | P136: =(SUMIFS(SOURCE_PARTS_SOC_0506!$I:$I,SOURCE_PARTS_SOC_0506!$E:$E,F136))+(SUMIFS(SOURCE_PARTS_SOC_0506!$I:$I,SOURCE_PARTS_SOC_0506!$E:$E,54414)) -> 353,420 | Q136: =(SUMIFS(SOURCE_PARTS_SOC!$I:$I,SOURCE_PARTS_SOC!$E:$E,F136))+(SUMIFS(SOURCE_PARTS_SOC!$I:$I,SOURCE_PARTS_SOC!$E:$E,54414))-P136 -> 140 | S136: =VLOOKUP(F136,Objectifs!G:K,5,FALSE)+VLOOKUP(54414,Objectifs!G:K,5,FALSE) -> 66,800 | T136: =(SUMIFS(PILCOT_ELAN!$P:$P,PILCOT_ELAN!$H:$H,$D136))+(SUMIFS(PILCOT_ELAN!$P:$P,PILCOT_ELAN!$H:$H,579)) -> 30,085 | U136: 45% | V136: 36,715 | W136: =S136*SUIVI_REGION!$S$4 -> 47,714 | X136: -17,629 | Z136: =VLOOKUP(F136,Objectifs!G:M,7,FALSE) -> 869,400 | AA136: =(SUMIF(SOURCE_EMP_ASV!D:D,SUIVI_PDV!E136,SOURCE_EMP_ASV!J:J))+(SUMIF(SOURCE_EMP_ASV!D:D,151350000579,SOURCE_EMP_ASV!J:J)) -> 1,203,358 | AB136: 138% | AD136: =Z136*SUIVI_REGION!$Z$4 -> 704,514 | AE136: 498,844 | AF136: =IF(SUMIF(SOURCE_EMP_ASV!D:D,SUIVI_PDV!E136,SOURCE_EMP_ASV!K:K)=0,"",(SUMIF(SOURCE_EMP_ASV!D:D,SUIVI_PDV!E136,SOURCE_EMP_ASV!L:L))/SUMIF(SOURCE_EMP_ASV!D:D,SUIVI_PDV!E136,SOURCE_EMP_ASV!K:K)) -> 0.46% | AG136: 60,000 € | AH136: =(SUMIF(EMPRUNT_CTO!H:H,SUIVI_PDV!D136,EMPRUNT_CTO!K:K))+(SUMIF(EMPRUNT_CTO!H:H,579,EMPRUNT_CTO!K:K)) -> 600 | AJ136: 0 | AK136: =(SUMIFS(ALIZE!P:P,ALIZE!H:H,D136))-(SUMIFS(ALIZE_2105!P:P,ALIZE_2105!H:H,D136)) -> 0 | AL136: =(SUMIFS(CORALIUM!P:P,CORALIUM!H:H,D136))-(SUMIFS(CORALIUM_2105!P:P,CORALIUM_2105!H:H,D136)) -> 0 | AM136: =(SUMIFS(PARMA_PEA!$N:$N,PARMA_PEA!$H:$H,$D136))+(SUMIFS(PARMA_PEA!$N:$N,PARMA_PEA!$H:$H,579)) -> 0
A137: 110 | B137: MEURTHE ET MOSELLE MEUSE | C137: VERDUN | D137: 672 | E137: 151350000672 | F137: 54700 | G137: =VLOOKUP(F137,Objectifs!G:H,2,FALSE) -> VILLERUPT | I137: =VLOOKUP(F137,Objectifs!G:L,6,FALSE) -> 105,300 | J137: =(SUMIFS(SOURCE_PARTS_SOC!G:G,SOURCE_PARTS_SOC!E:E,F137))+(SUMIFS(ORCA_CARNET!E:E,ORCA_CARNET!C:C,F137)) -> 125,680 | K137: =(SUMIFS(SOURCE_PARTS_SOC!H:H,SOURCE_PARTS_SOC!E:E,F137))+(SUMIFS(ORCA_CARNET!F:F,ORCA_CARNET!C:C,F137)) -> 0 | L137: 119% | N137: =I137*SUIVI_REGION!$I$4 -> 98,088 | O137: 27,592 | P137: =(SUMIFS(SOURCE_PARTS_SOC_0506!$I:$I,SOURCE_PARTS_SOC_0506!$E:$E,F137)) -> 197,060 | Q137: =(SUMIFS(SOURCE_PARTS_SOC!$I:$I,SOURCE_PARTS_SOC!$E:$E,F137))-P137 -> 16,660 | S137: =VLOOKUP(F137,Objectifs!G:K,5,FALSE) -> 34,200 | T137: =(SUMIFS(PILCOT_ELAN!$P:$P,PILCOT_ELAN!$H:$H,$D137)) -> 46,844 | U137: 137% | W137: =S137*SUIVI_REGION!$S$4 -> 24,429 | X137: 22,416 | Z137: =VLOOKUP(F137,Objectifs!G:M,7,FALSE) -> 445,200 | AA137: =(SUMIF(SOURCE_EMP_ASV!D:D,SUIVI_PDV!E137,SOURCE_EMP_ASV!J:J)) -> 519,686 | AB137: 117% | AD137: =Z137*SUIVI_REGION!$Z$4 -> 360,766 | AE137: 158,920 | AF137: =IF(SUMIF(SOURCE_EMP_ASV!D:D,SUIVI_PDV!E137,SOURCE_EMP_ASV!K:K)=0,"",(SUMIF(SOURCE_EMP_ASV!D:D,SUIVI_PDV!E137,SOURCE_EMP_ASV!L:L))/SUMIF(SOURCE_EMP_ASV!D:D,SUIVI_PDV!E137,SOURCE_EMP_ASV!K:K)) -> 0.44% | AG137: 0 € | AH137: =(SUMIF(EMPRUNT_CTO!H:H,SUIVI_PDV!D137,EMPRUNT_CTO!K:K)) -> 0 | AJ137: 0 | AK137: =(SUMIFS(ALIZE!P:P,ALIZE!H:H,D137))-(SUMIFS(ALIZE_2105!P:P,ALIZE_2105!H:H,D137)) -> 0 | AL137: =(SUMIFS(CORALIUM!P:P,CORALIUM!H:H,D137))-(SUMIFS(CORALIUM_2105!P:P,CORALIUM_2105!H:H,D137)) -> 0 | AM137: =(SUMIFS(PARMA_PEA!$N:$N,PARMA_PEA!$H:$H,$D137)) -> 0
A138: 110 | B138: MEURTHE ET MOSELLE MEUSE | C138: VERDUN | D138: 603 | E138: 151350000603 | F138: 55456 | G138: =VLOOKUP(F138,Objectifs!G:H,2,FALSE) -> MONTMEDY | I138: =VLOOKUP(F138,Objectifs!G:L,6,FALSE) -> 17,100 | J138: =(SUMIFS(SOURCE_PARTS_SOC!G:G,SOURCE_PARTS_SOC!E:E,F138))+(SUMIFS(ORCA_CARNET!E:E,ORCA_CARNET!C:C,F138)) -> 4,660 | K138: =(SUMIFS(SOURCE_PARTS_SOC!H:H,SOURCE_PARTS_SOC!E:E,F138))+(SUMIFS(ORCA_CARNET!F:F,ORCA_CARNET!C:C,F138)) -> 880 | L138: 27% | M138: 12,440 | N138: =I138*SUIVI_REGION!$I$4 -> 15,929 | O138: -11,269 | P138: =(SUMIFS(SOURCE_PARTS_SOC_0506!$I:$I,SOURCE_PARTS_SOC_0506!$E:$E,F138)) -> 83,220 | Q138: =(SUMIFS(SOURCE_PARTS_SOC!$I:$I,SOURCE_PARTS_SOC!$E:$E,F138))-P138 -> 220 | S138: =VLOOKUP(F138,Objectifs!G:K,5,FALSE) -> 5,700 | T138: =(SUMIFS(PILCOT_ELAN!$P:$P,PILCOT_ELAN!$H:$H,$D138)) -> 0 | U138: 0% | V138: 5,700 | W138: =S138*SUIVI_REGION!$S$4 -> 4,071 | X138: -4,071 | Z138: =VLOOKUP(F138,Objectifs!G:M,7,FALSE) -> 73,700 | AA138: =(SUMIF(SOURCE_EMP_ASV!D:D,SUIVI_PDV!E138,SOURCE_EMP_ASV!J:J)) -> 41,410 | AB138: 56% | AC138: 32,290 | AD138: =Z138*SUIVI_REGION!$Z$4 -> 59,722 | AE138: -18,312 | AF138: =IF(SUMIF(SOURCE_EMP_ASV!D:D,SUIVI_PDV!E138,SOURCE_EMP_ASV!K:K)=0,"",(SUMIF(SOURCE_EMP_ASV!D:D,SUIVI_PDV!E138,SOURCE_EMP_ASV!L:L))/SUMIF(SOURCE_EMP_ASV!D:D,SUIVI_PDV!E138,SOURCE_EMP_ASV!K:K)) -> 0.50% | AG138: 0 € | AH138: =(SUMIF(EMPRUNT_CTO!H:H,SUIVI_PDV!D138,EMPRUNT_CTO!K:K)) -> 0 | AJ138: 0 | AK138: =(SUMIFS(ALIZE!P:P,ALIZE!H:H,D138))-(SUMIFS(ALIZE_2105!P:P,ALIZE_2105!H:H,D138)) -> 0 | AL138: =(SUMIFS(CORALIUM!P:P,CORALIUM!H:H,D138))-(SUMIFS(CORALIUM_2105!P:P,CORALIUM_2105!H:H,D138)) -> 0 | AM138: =(SUMIFS(PARMA_PEA!$N:$N,PARMA_PEA!$H:$H,$D138)) -> 0
A139: 110 | B139: MEURTHE ET MOSELLE MEUSE | C139: VERDUN | D139: 652 | E139: 151350000652 | F139: 55624 | G139: =VLOOKUP(F139,Objectifs!G:H,2,FALSE) -> STENAY | I139: =VLOOKUP(F139,Objectifs!G:L,6,FALSE) -> 80,100 | J139: =(SUMIFS(SOURCE_PARTS_SOC!G:G,SOURCE_PARTS_SOC!E:E,F139))+(SUMIFS(ORCA_CARNET!E:E,ORCA_CARNET!C:C,F139)) -> 16,620 | K139: =(SUMIFS(SOURCE_PARTS_SOC!H:H,SOURCE_PARTS_SOC!E:E,F139))+(SUMIFS(ORCA_CARNET!F:F,ORCA_CARNET!C:C,F139)) -> 420 | L139: 21% | M139: 63,480 | N139: =I139*SUIVI_REGION!$I$4 -> 74,614 | O139: -57,994 | P139: =(SUMIFS(SOURCE_PARTS_SOC_0506!$I:$I,SOURCE_PARTS_SOC_0506!$E:$E,F139)) -> 42,360 | Q139: =(SUMIFS(SOURCE_PARTS_SOC!$I:$I,SOURCE_PARTS_SOC!$E:$E,F139))-P139 -> 0 | S139: =VLOOKUP(F139,Objectifs!G:K,5,FALSE) -> 26,000 | T139: =(SUMIFS(PILCOT_ELAN!$P:$P,PILCOT_ELAN!$H:$H,$D139)) -> 11,170 | U139: 43% | V139: 14,830 | W139: =S139*SUIVI_REGION!$S$4 -> 18,571 | X139: -7,402 | Z139: =VLOOKUP(F139,Objectifs!G:M,7,FALSE) -> 338,900 | AA139: =(SUMIF(SOURCE_EMP_ASV!D:D,SUIVI_PDV!E139,SOURCE_EMP_ASV!J:J)) -> 238,550 | AB139: 70% | AC139: 100,350 | AD139: =Z139*SUIVI_REGION!$Z$4 -> 274,626 | AE139: -36,076 | AF139: =IF(SUMIF(SOURCE_EMP_ASV!D:D,SUIVI_PDV!E139,SOURCE_EMP_ASV!K:K)=0,"",(SUMIF(SOURCE_EMP_ASV!D:D,SUIVI_PDV!E139,SOURCE_EMP_ASV!L:L))/SUMIF(SOURCE_EMP_ASV!D:D,SUIVI_PDV!E139,SOURCE_EMP_ASV!K:K)) -> 0.45% | AG139: 0 € | AH139: =(SUMIF(EMPRUNT_CTO!H:H,SUIVI_PDV!D139,EMPRUNT_CTO!K:K)) -> 0 | AJ139: 12,167 | AK139: =(SUMIFS(ALIZE!P:P,ALIZE!H:H,D139))-(SUMIFS(ALIZE_2105!P:P,ALIZE_2105!H:H,D139)) -> 12,167 | AL139: =(SUMIFS(CORALIUM!P:P,CORALIUM!H:H,D139))-(SUMIFS(CORALIUM_2105!P:P,CORALIUM_2105!H:H,D139)) -> 0 | AM139: =(SUMIFS(PARMA_PEA!$N:$N,PARMA_PEA!$H:$H,$D139)) -> 0
A140: 110 | B140: MEURTHE ET MOSELLE MEUSE | C140: VERDUN | D140: 543 | E140: 151350000543 | F140: 55298 | G140: =VLOOKUP(F140,Objectifs!G:H,2,FALSE) -> ETAIN | I140: =VLOOKUP(F140,Objectifs!G:L,6,FALSE) -> 94,100 | J140: =(SUMIFS(SOURCE_PARTS_SOC!G:G,SOURCE_PARTS_SOC!E:E,F140))+(SUMIFS(ORCA_CARNET!E:E,ORCA_CARNET!C:C,F140)) -> 24,480 | K140: =(SUMIFS(SOURCE_PARTS_SOC!H:H,SOURCE_PARTS_SOC!E:E,F140))+(SUMIFS(ORCA_CARNET!F:F,ORCA_CARNET!C:C,F140)) -> 0 | L140: 26% | M140: 69,620 | N140: =I140*SUIVI_REGION!$I$4 -> 87,655 | O140: -63,175 | P140: =(SUMIFS(SOURCE_PARTS_SOC_0506!$I:$I,SOURCE_PARTS_SOC_0506!$E:$E,F140)) -> 35,740 | Q140: =(SUMIFS(SOURCE_PARTS_SOC!$I:$I,SOURCE_PARTS_SOC!$E:$E,F140))-P140 -> 60 | S140: =VLOOKUP(F140,Objectifs!G:K,5,FALSE) -> 30,600 | T140: =(SUMIFS(PILCOT_ELAN!$P:$P,PILCOT_ELAN!$H:$H,$D140)) -> 0 | U140: 0% | V140: 30,600 | W140: =S140*SUIVI_REGION!$S$4 -> 21,857 | X140: -21,857 | Z140: =VLOOKUP(F140,Objectifs!G:M,7,FALSE) -> 397,900 | AA140: =(SUMIF(SOURCE_EMP_ASV!D:D,SUIVI_PDV!E140,SOURCE_EMP_ASV!J:J)) -> 248,779 | AB140: 63% | AC140: 149,121 | AD140: =Z140*SUIVI_REGION!$Z$4 -> 322,436 | AE140: -73,658 | AF140: =IF(SUMIF(SOURCE_EMP_ASV!D:D,SUIVI_PDV!E140,SOURCE_EMP_ASV!K:K)=0,"",(SUMIF(SOURCE_EMP_ASV!D:D,SUIVI_PDV!E140,SOURCE_EMP_ASV!L:L))/SUMIF(SOURCE_EMP_ASV!D:D,SUIVI_PDV!E140,SOURCE_EMP_ASV!K:K)) -> 0.56% | AG140: 0 € | AH140: =(SUMIF(EMPRUNT_CTO!H:H,SUIVI_PDV!D140,EMPRUNT_CTO!K:K)) -> 0 | AJ140: 0 | AK140: =(SUMIFS(ALIZE!P:P,ALIZE!H:H,D140))-(SUMIFS(ALIZE_2105!P:P,ALIZE_2105!H:H,D140)) -> 0 | AL140: =(SUMIFS(CORALIUM!P:P,CORALIUM!H:H,D140))-(SUMIFS(CORALIUM_2105!P:P,CORALIUM_2105!H:H,D140)) -> 0 | AM140: =(SUMIFS(PARMA_PEA!$N:$N,PARMA_PEA!$H:$H,$D140)) -> 0
A141: 110 | B141: MEURTHE ET MOSELLE MEUSE | C141: VERDUN | D141: 667 | E141: 151350000667 | F141: 55678 | G141: =VLOOKUP(F141,Objectifs!G:H,2,FALSE) -> VERDUN CENTRALE | I141: =VLOOKUP(F141,Objectifs!G:L,6,FALSE) -> 306,600 | J141: =(SUMIFS(SOURCE_PARTS_SOC!G:G,SOURCE_PARTS_SOC!E:E,F141))+(SUMIFS(ORCA_CARNET!E:E,ORCA_CARNET!C:C,F141)) -> 108,580 | K141: =(SUMIFS(SOURCE_PARTS_SOC!H:H,SOURCE_PARTS_SOC!E:E,F141))+(SUMIFS(ORCA_CARNET!F:F,ORCA_CARNET!C:C,F141)) -> 6,600 | L141: 35% | M141: 198,020 | N141: =I141*SUIVI_REGION!$I$4 -> 285,600 | O141: -177,020 | P141: =(SUMIFS(SOURCE_PARTS_SOC_0506!$I:$I,SOURCE_PARTS_SOC_0506!$E:$E,F141))+(SUMIFS(SOURCE_PARTS_SOC_0506!$I:$I,SOURCE_PARTS_SOC_0506!$E:$E,55679)) -> 819,320 | Q141: =(SUMIFS(SOURCE_PARTS_SOC!$I:$I,SOURCE_PARTS_SOC!$E:$E,F141))-P141 -> 19,240 | S141: =VLOOKUP(F141,Objectifs!G:K,5,FALSE)+VLOOKUP(55679,Objectifs!G:K,5,FALSE) -> 99,600 | T141: =(SUMIFS(PILCOT_ELAN!$P:$P,PILCOT_ELAN!$H:$H,$D141))+(SUMIFS(PILCOT_ELAN!$P:$P,PILCOT_ELAN!$H:$H,668)) -> 47,553 | U141: 48% | V141: 52,047 | W141: =S141*SUIVI_REGION!$S$4 -> 71,143 | X141: -23,590 | Z141: =VLOOKUP(F141,Objectifs!G:M,7,FALSE) -> 1,296,700 | AA141: =(SUMIF(SOURCE_EMP_ASV!D:D,SUIVI_PDV!E141,SOURCE_EMP_ASV!J:J))+(SUMIF(SOURCE_EMP_ASV!D:D,151350000668,SOURCE_EMP_ASV!J:J)) -> 1,473,016 | AB141: 114% | AD141: =Z141*SUIVI_REGION!$Z$4 -> 1,050,774 | AE141: 422,241 | AF141: =IF(SUMIF(SOURCE_EMP_ASV!D:D,SUIVI_PDV!E141,SOURCE_EMP_ASV!K:K)=0,"",(SUMIF(SOURCE_EMP_ASV!D:D,SUIVI_PDV!E141,SOURCE_EMP_ASV!L:L))/SUMIF(SOURCE_EMP_ASV!D:D,SUIVI_PDV!E141,SOURCE_EMP_ASV!K:K)) -> 0.47% | AG141: 10,000 € | AH141: =(SUMIF(EMPRUNT_CTO!H:H,SUIVI_PDV!D141,EMPRUNT_CTO!K:K))+(SUMIF(EMPRUNT_CTO!H:H,668,EMPRUNT_CTO!K:K)) -> 100 | AJ141: 0 | AK141: =(SUMIFS(ALIZE!P:P,ALIZE!H:H,D141))-(SUMIFS(ALIZE_2105!P:P,ALIZE_2105!H:H,D141)) -> 0 | AL141: =(SUMIFS(CORALIUM!P:P,CORALIUM!H:H,D141))-(SUMIFS(CORALIUM_2105!P:P,CORALIUM_2105!H:H,D141)) -> 0 | AM141: =(SUMIFS(PARMA_PEA!$N:$N,PARMA_PEA!$H:$H,$D141))+(SUMIFS(PARMA_PEA!$N:$N,PARMA_PEA!$H:$H,668)) -> 0
A142: 110 | C142: Total Territoire VERDUN | G142: VERDUN | I142: =SUBTOTAL(9,I129:I141) -> 1,746,700 | J142: =SUBTOTAL(9,J129:J141) -> 1,004,880 | K142: =SUBTOTAL(9,K129:K141) -> 148,220 | L142: 58% | M142: 741,820 | N142: =I142*SUIVI_REGION!$I$4 -> 1,627,063 | O142: -622,183 | P142: =SUBTOTAL(9,P129:P141) -> 2,370,220 | Q142: =SUBTOTAL(9,Q129:Q141) -> 49,180 | S142: =SUBTOTAL(9,S129:S141) -> 567,700 | T142: =SUBTOTAL(9,T129:T141) -> 198,510 | U142: 35% | V142: 369,190 | W142: =S142*SUIVI_REGION!$S$4 -> 405,500 | X142: -206,990 | Z142: =SUBTOTAL(9,Z129:Z141) -> 7,388,800 | AA142: =SUBTOTAL(9,AA129:AA141) -> 6,322,303 | AB142: 86% | AC142: 1,066,497 | AD142: =Z142*SUIVI_REGION!$Z$4 -> 5,987,476 | AE142: 334,828 | AF142: =IF(SUMIF(SOURCE_EMP_ASV!B:B,G142,SOURCE_EMP_ASV!K:K)=0,"",(SUMIF(SOURCE_EMP_ASV!B:B,G142,SOURCE_EMP_ASV!L:L))/(SUMIF(SOURCE_EMP_ASV!B:B,G142,SOURCE_EMP_ASV!K:K))) -> 0.47% | AG142: 100,000 € | AH142: =SUBTOTAL(9,AH129:AH141) -> 1,000 | AJ142: 14,450 | AK142: =SUBTOTAL(9,AK129:AK141) -> 14,450 | AL142: =SUBTOTAL(9,AL129:AL141) -> 0 | AM142: =SUBTOTAL(9,AM129:AM141) -> 0
A143: 110 | B143: Total MEURTHE ET MOSELLE MEUSE | G143: MEURTHE ET MOSELLE MEUSE | I143: =SUBTOTAL(9,I97:I142) -> 6,619,600 | J143: =SUBTOTAL(9,J97:J142) -> 3,067,680 | K143: =SUBTOTAL(9,K97:K142) -> 292,260 | L143: 46% | M143: 3,551,920 | N143: =I143*SUIVI_REGION!$I$4 -> 6,166,203 | O143: -3,098,523 | P143: =SUBTOTAL(9,P97:P142) -> 9,126,360 | Q143: =SUBTOTAL(9,Q97:Q142) -> 105,800 | S143: =SUBTOTAL(9,S97:S141) -> 2,151,200 | T143: =SUBTOTAL(9,T97:T142) -> 629,156 | U143: 29% | V143: 1,522,044 | W143: =S143*SUIVI_REGION!$S$4 -> 1,536,571 | X143: -907,415 | Z143: =SUBTOTAL(9,Z97:Z142) -> 28,000,000 | AA143: =SUBTOTAL(9,AA97:AA142) -> 17,984,071 | AB143: 64% | AC143: 10,015,929 | AD143: =Z143*SUIVI_REGION!$Z$4 -> 22,689,655 | AE143: -4,705,584 | AF143: =IF(SUMIF(SOURCE_EMP_ASV!A:A,G143,SOURCE_EMP_ASV!K:K)=0,"",(SUMIF(SOURCE_EMP_ASV!A:A,G143,SOURCE_EMP_ASV!L:L))/(SUMIF(SOURCE_EMP_ASV!A:A,G143,SOURCE_EMP_ASV!K:K))) -> 0.47% | AG143: 316,000 € | AH143: =SUBTOTAL(9,AH97:AH142) -> 3,160 | AJ143: 219,926 | AK143: =SUBTOTAL(9,AK97:AK142) -> 160,873 | AL143: =SUBTOTAL(9,AL97:AL142) -> 59,053 | AM143: =SUBTOTAL(9,AM97:AM142) -> 0
A144: 160 | B144: MOSELLE | C144: METZ | D144: 518 | E144: 151350000518 | F144: 57182 | G144: =VLOOKUP(F144,Objectifs!G:H,2,FALSE) -> BOUZONVILLE | I144: =VLOOKUP(F144,Objectifs!G:L,6,FALSE) -> 52,300 | J144: =(SUMIFS(SOURCE_PARTS_SOC!G:G,SOURCE_PARTS_SOC!E:E,F144))+(SUMIFS(ORCA_CARNET!E:E,ORCA_CARNET!C:C,F144)) -> 8,700 | K144: =(SUMIFS(SOURCE_PARTS_SOC!H:H,SOURCE_PARTS_SOC!E:E,F144))+(SUMIFS(ORCA_CARNET!F:F,ORCA_CARNET!C:C,F144)) -> 520 | L144: 17% | M144: 43,600 | N144: =I144*SUIVI_REGION!$I$4 -> 48,718 | O144: -40,018 | P144: =(SUMIFS(SOURCE_PARTS_SOC_0506!$I:$I,SOURCE_PARTS_SOC_0506!$E:$E,F144)) -> 34,040 | Q144: =(SUMIFS(SOURCE_PARTS_SOC!$I:$I,SOURCE_PARTS_SOC!$E:$E,F144))-P144 -> 60 | S144: =VLOOKUP(F144,Objectifs!G:K,5,FALSE) -> 17,000 | T144: =(SUMIFS(PILCOT_ELAN!$P:$P,PILCOT_ELAN!$H:$H,$D144)) -> 0 | U144: 0% | V144: 17,000 | W144: =S144*SUIVI_REGION!$S$4 -> 12,143 | X144: -12,143 | Z144: =VLOOKUP(F144,Objectifs!G:M,7,FALSE) -> 173,000 | AA144: =(SUMIF(SOURCE_EMP_ASV!D:D,SUIVI_PDV!E144,SOURCE_EMP_ASV!J:J)) -> 46,120 | AB144: 27% | AC144: 126,880 | AD144: =Z144*SUIVI_REGION!$Z$4 -> 140,190 | AE144: -94,069 | AF144: =IF(SUMIF(SOURCE_EMP_ASV!D:D,SUIVI_PDV!E144,SOURCE_EMP_ASV!K:K)=0,"",(SUMIF(SOURCE_EMP_ASV!D:D,SUIVI_PDV!E144,SOURCE_EMP_ASV!L:L))/SUMIF(SOURCE_EMP_ASV!D:D,SUIVI_PDV!E144,SOURCE_EMP_ASV!K:K)) -> 0.16% | AG144: 0 € | AH144: =(SUMIF(EMPRUNT_CTO!H:H,SUIVI_PDV!D144,EMPRUNT_CTO!K:K)) -> 0 | AJ144: 7,057 | AK144: =(SUMIFS(ALIZE!P:P,ALIZE!H:H,D144))-(SUMIFS(ALIZE_2105!P:P,ALIZE_2105!H:H,D144)) -> 7,057 | AL144: =(SUMIFS(CORALIUM!P:P,CORALIUM!H:H,D144))-(SUMIFS(CORALIUM_2105!P:P,CORALIUM_2105!H:H,D144)) -> 0 | AM144: =(SUMIFS(PARMA_PEA!$N:$N,PARMA_PEA!$H:$H,$D144)) -> 0
A145: 160 | B145: MOSELLE | C145: METZ | D145: 590 | E145: 151350000590 | F145: 57439 | G145: =VLOOKUP(F145,Objectifs!G:H,2,FALSE) -> METZ POMPIDOU | I145: =VLOOKUP(F145,Objectifs!G:L,6,FALSE) -> 156,000 | J145: =(SUMIFS(SOURCE_PARTS_SOC!G:G,SOURCE_PARTS_SOC!E:E,F145))+(SUMIFS(ORCA_CARNET!E:E,ORCA_CARNET!C:C,F145)) -> 138,240 | K145: =(SUMIFS(SOURCE_PARTS_SOC!H:H,SOURCE_PARTS_SOC!E:E,F145))+(SUMIFS(ORCA_CARNET!F:F,ORCA_CARNET!C:C,F145)) -> 1,960 | L145: 89% | M145: 17,760 | N145: =I145*SUIVI_REGION!$I$4 -> 145,315 | O145: -7,075 | P145: =(SUMIFS(SOURCE_PARTS_SOC_0506!$I:$I,SOURCE_PARTS_SOC_0506!$E:$E,F145)) -> 56,380 | Q145: =(SUMIFS(SOURCE_PARTS_SOC!$I:$I,SOURCE_PARTS_SOC!$E:$E,F145))-P145 -> 5,520 | S145: =VLOOKUP(F145,Objectifs!G:K,5,FALSE) -> 50,700 | T145: =(SUMIFS(PILCOT_ELAN!$P:$P,PILCOT_ELAN!$H:$H,$D145)) -> 1,304 | U145: 3% | V145: 49,396 | W145: =S145*SUIVI_REGION!$S$4 -> 36,214 | X145: =IFERROR(T145-W145," ") -> -34,910 | Z145: =VLOOKUP(F145,Objectifs!G:M,7,FALSE) -> 516,500 | AA145: =(SUMIF(SOURCE_EMP_ASV!D:D,SUIVI_PDV!E145,SOURCE_EMP_ASV!J:J)) -> 129,500 | AB145: 25% | AC145: 387,000 | AD145: =Z145*SUIVI_REGION!$Z$4 -> 418,543 | AE145: -289,043 | AF145: =IF(SUMIF(SOURCE_EMP_ASV!D:D,SUIVI_PDV!E145,SOURCE_EMP_ASV!K:K)=0,"",(SUMIF(SOURCE_EMP_ASV!D:D,SUIVI_PDV!E145,SOURCE_EMP_ASV!L:L))/SUMIF(SOURCE_EMP_ASV!D:D,SUIVI_PDV!E145,SOURCE_EMP_ASV!K:K)) -> 0.49% | AG145: 0 € | AH145: =(SUMIF(EMPRUNT_CTO!H:H,SUIVI_PDV!D145,EMPRUNT_CTO!K:K)) -> 0 | AJ145: 0 | AK145: =(SUMIFS(ALIZE!P:P,ALIZE!H:H,D145))-(SUMIFS(ALIZE_2105!P:P,ALIZE_2105!H:H,D145)) -> 0 | AL145: =(SUMIFS(CORALIUM!P:P,CORALIUM!H:H,D145))-(SUMIFS(CORALIUM_2105!P:P,CORALIUM_2105!H:H,D145)) -> 0 | AM145: =(SUMIFS(PARMA_PEA!$N:$N,PARMA_PEA!$H:$H,$D145)) -> 0
A146: 160 | B146: MOSELLE | C146: METZ | D146: 591 | E146: 151350000591 | F146: 57440 | G146: =VLOOKUP(F146,Objectifs!G:H,2,FALSE) -> METZ MOZART | I146: =VLOOKUP(F146,Objectifs!G:L,6,FALSE) -> 83,700 | J146: =(SUMIFS(SOURCE_PARTS_SOC!G:G,SOURCE_PARTS_SOC!E:E,F146))+(SUMIFS(ORCA_CARNET!E:E,ORCA_CARNET!C:C,F146)) -> 44,980 | K146: =(SUMIFS(SOURCE_PARTS_SOC!H:H,SOURCE_PARTS_SOC!E:E,F146))+(SUMIFS(ORCA_CARNET!F:F,ORCA_CARNET!C:C,F146)) -> 2,260 | L146: 54% | M146: 38,720 | N146: =I146*SUIVI_REGION!$I$4 -> 77,967 | O146: -32,987 | P146: =(SUMIFS(SOURCE_PARTS_SOC_0506!$I:$I,SOURCE_PARTS_SOC_0506!$E:$E,F146)) -> 222,920 | Q146: =(SUMIFS(SOURCE_PARTS_SOC!$I:$I,SOURCE_PARTS_SOC!$E:$E,F146))-P146 -> 0 | S146: =VLOOKUP(F146,Objectifs!G:K,5,FALSE) -> 27,200 | T146: =(SUMIFS(PILCOT_ELAN!$P:$P,PILCOT_ELAN!$H:$H,$D146)) -> 0 | U146: 0% | V146: 27,200 | W146: =S146*SUIVI_REGION!$S$4 -> 19,429 | X146: -19,429 | Z146: =VLOOKUP(F146,Objectifs!G:M,7,FALSE) -> 277,200 | AA146: =(SUMIF(SOURCE_EMP_ASV!D:D,SUIVI_PDV!E146,SOURCE_EMP_ASV!J:J)) -> 191,582 | AB146: 69% | AC146: 85,618 | AD146: =Z146*SUIVI_REGION!$Z$4 -> 224,628 | AE146: -33,046 | AF146: =IF(SUMIF(SOURCE_EMP_ASV!D:D,SUIVI_PDV!E146,SOURCE_EMP_ASV!K:K)=0,"",(SUMIF(SOURCE_EMP_ASV!D:D,SUIVI_PDV!E146,SOURCE_EMP_ASV!L:L))/SUMIF(SOURCE_EMP_ASV!D:D,SUIVI_PDV!E146,SOURCE_EMP_ASV!K:K)) -> 0.29% | AG146: 0 € | AH146: =(SUMIF(EMPRUNT_CTO!H:H,SUIVI_PDV!D146,EMPRUNT_CTO!K:K)) -> 0 | AJ146: 0 | AK146: =(SUMIFS(ALIZE!P:P,ALIZE!H:H,D146))-(SUMIFS(ALIZE_2105!P:P,ALIZE_2105!H:H,D146)) -> 0 | AL146: =(SUMIFS(CORALIUM!P:P,CORALIUM!H:H,D146))-(SUMIFS(CORALIUM_2105!P:P,CORALIUM_2105!H:H,D146)) -> 0 | AM146: =(SUMIFS(PARMA_PEA!$N:$N,PARMA_PEA!$H:$H,$D146)) -> 0
A147: 160 | B147: MOSELLE | C147: METZ | D147: 592 | E147: 151350000592 | F147: 57441 | G147: =VLOOKUP(F147,Objectifs!G:H,2,FALSE) -> METZ PLAPPEVILLE | I147: =VLOOKUP(F147,Objectifs!G:L,6,FALSE) -> 123,100 | J147: =(SUMIFS(SOURCE_PARTS_SOC!G:G,SOURCE_PARTS_SOC!E:E,F147))+(SUMIFS(ORCA_CARNET!E:E,ORCA_CARNET!C:C,F147)) -> 58,560 | K147: =(SUMIFS(SOURCE_PARTS_SOC!H:H,SOURCE_PARTS_SOC!E:E,F147))+(SUMIFS(ORCA_CARNET!F:F,ORCA_CARNET!C:C,F147)) -> 25,260 | L147: 48% | M147: 64,540 | N147: =I147*SUIVI_REGION!$I$4 -> 114,668 | O147: -56,108 | P147: =(SUMIFS(SOURCE_PARTS_SOC_0506!$I:$I,SOURCE_PARTS_SOC_0506!$E:$E,F147)) -> 84,100 | Q147: =(SUMIFS(SOURCE_PARTS_SOC!$I:$I,SOURCE_PARTS_SOC!$E:$E,F147))-P147 -> 100 | S147: =VLOOKUP(F147,Objectifs!G:K,5,FALSE) -> 40,000 | T147: =(SUMIFS(PILCOT_ELAN!$P:$P,PILCOT_ELAN!$H:$H,$D147)) -> 39,030 | U147: 98% | V147: 970 | W147: =S147*SUIVI_REGION!$S$4 -> 28,571 | X147: 10,459 | Z147: =VLOOKUP(F147,Objectifs!G:M,7,FALSE) -> 407,600 | AA147: =(SUMIF(SOURCE_EMP_ASV!D:D,SUIVI_PDV!E147,SOURCE_EMP_ASV!J:J)) -> 227,344 | AB147: 56% | AC147: 180,256 | AD147: =Z147*SUIVI_REGION!$Z$4 -> 330,297 | AE147: -102,953 | AF147: =IF(SUMIF(SOURCE_EMP_ASV!D:D,SUIVI_PDV!E147,SOURCE_EMP_ASV!K:K)=0,"",(SUMIF(SOURCE_EMP_ASV!D:D,SUIVI_PDV!E147,SOURCE_EMP_ASV!L:L))/SUMIF(SOURCE_EMP_ASV!D:D,SUIVI_PDV!E147,SOURCE_EMP_ASV!K:K)) -> 0.51% | AG147: 0 € | AH147: =(SUMIF(EMPRUNT_CTO!H:H,SUIVI_PDV!D147,EMPRUNT_CTO!K:K)) -> 0 | AJ147: -6 | AK147: =(SUMIFS(ALIZE!P:P,ALIZE!H:H,D147))-(SUMIFS(ALIZE_2105!P:P,ALIZE_2105!H:H,D147)) -> 0 | AL147: =(SUMIFS(CORALIUM!P:P,CORALIUM!H:H,D147))-(SUMIFS(CORALIUM_2105!P:P,CORALIUM_2105!H:H,D147)) -> -6 | AM147: =(SUMIFS(PARMA_PEA!$N:$N,PARMA_PEA!$H:$H,$D147)) -> 0
A148: 160 | B148: MOSELLE | C148: METZ | D148: 596 | E148: 151350000596 | F148: 57445 | G148: =VLOOKUP(F148,Objectifs!G:H,2,FALSE) -> METZ SAINT LIVIER | I148: =VLOOKUP(F148,Objectifs!G:L,6,FALSE) -> 69,700 | J148: =(SUMIFS(SOURCE_PARTS_SOC!G:G,SOURCE_PARTS_SOC!E:E,F148))+(SUMIFS(ORCA_CARNET!E:E,ORCA_CARNET!C:C,F148)) -> 16,440 | K148: =(SUMIFS(SOURCE_PARTS_SOC!H:H,SOURCE_PARTS_SOC!E:E,F148))+(SUMIFS(ORCA_CARNET!F:F,ORCA_CARNET!C:C,F148)) -> 200 | L148: 24% | M148: 53,260 | N148: =I148*SUIVI_REGION!$I$4 -> 64,926 | O148: -48,486 | P148: =(SUMIFS(SOURCE_PARTS_SOC_0506!$I:$I,SOURCE_PARTS_SOC_0506!$E:$E,F148)) -> 62,520 | Q148: =(SUMIFS(SOURCE_PARTS_SOC!$I:$I,SOURCE_PARTS_SOC!$E:$E,F148))-P148 -> 40 | S148: =VLOOKUP(F148,Objectifs!G:K,5,FALSE) -> 22,600 | T148: =(SUMIFS(PILCOT_ELAN!$P:$P,PILCOT_ELAN!$H:$H,$D148)) -> 0 | U148: 0% | V148: =IF(T148>S148," ",S148-T148) -> 22,600 | W148: =S148*SUIVI_REGION!$S$4 -> 16,143 | X148: -16,143 | Z148: =VLOOKUP(F148,Objectifs!G:M,7,FALSE) -> 230,700 | AA148: =(SUMIF(SOURCE_EMP_ASV!D:D,SUIVI_PDV!E148,SOURCE_EMP_ASV!J:J)) -> 157,450 | AB148: 68% | AC148: 73,250 | AD148: =Z148*SUIVI_REGION!$Z$4 -> 186,947 | AE148: -29,497 | AF148: =IF(SUMIF(SOURCE_EMP_ASV!D:D,SUIVI_PDV!E148,SOURCE_EMP_ASV!K:K)=0,"",(SUMIF(SOURCE_EMP_ASV!D:D,SUIVI_PDV!E148,SOURCE_EMP_ASV!L:L))/SUMIF(SOURCE_EMP_ASV!D:D,SUIVI_PDV!E148,SOURCE_EMP_ASV!K:K)) -> 0.42% | AG148: 0 € | AH148: =(SUMIF(EMPRUNT_CTO!H:H,SUIVI_PDV!D148,EMPRUNT_CTO!K:K)) -> 0 | AJ148: 0 | AK148: =(SUMIFS(ALIZE!P:P,ALIZE!H:H,D148))-(SUMIFS(ALIZE_2105!P:P,ALIZE_2105!H:H,D148)) -> 0 | AL148: =(SUMIFS(CORALIUM!P:P,CORALIUM!H:H,D148))-(SUMIFS(CORALIUM_2105!P:P,CORALIUM_2105!H:H,D148)) -> 0 | AM148: =(SUMIFS(PARMA_PEA!$N:$N,PARMA_PEA!$H:$H,$D148)) -> 0
A149: 160 | B149: MOSELLE | C149: METZ | D149: 675 | E149: 151350000675 | F149: 57712 | G149: =VLOOKUP(F149,Objectifs!G:H,2,FALSE) -> WOIPPY | I149: =VLOOKUP(F149,Objectifs!G:L,6,FALSE) -> 139,400 | J149: =(SUMIFS(SOURCE_PARTS_SOC!G:G,SOURCE_PARTS_SOC!E:E,F149))+(SUMIFS(ORCA_CARNET!E:E,ORCA_CARNET!C:C,F149)) -> 21,180 | K149: =(SUMIFS(SOURCE_PARTS_SOC!H:H,SOURCE_PARTS_SOC!E:E,F149))+(SUMIFS(ORCA_CARNET!F:F,ORCA_CARNET!C:C,F149)) -> 1,460 | L149: 15% | M149: 118,220 | N149: =I149*SUIVI_REGION!$I$4 -> 129,852 | O149: -108,672 | P149: =(SUMIFS(SOURCE_PARTS_SOC_0506!$I:$I,SOURCE_PARTS_SOC_0506!$E:$E,F149)) -> 78,340 | Q149: =(SUMIFS(SOURCE_PARTS_SOC!$I:$I,SOURCE_PARTS_SOC!$E:$E,F149))-P149 -> 60 | S149: =VLOOKUP(F149,Objectifs!G:K,5,FALSE) -> 45,300 | T149: =(SUMIFS(PILCOT_ELAN!$P:$P,PILCOT_ELAN!$H:$H,$D149)) -> 0 | U149: 0% | V149: 45,300 | W149: =S149*SUIVI_REGION!$S$4 -> 32,357 | X149: -32,357 | Z149: =VLOOKUP(F149,Objectifs!G:M,7,FALSE) -> 461,400 | AA149: =(SUMIF(SOURCE_EMP_ASV!D:D,SUIVI_PDV!E149,SOURCE_EMP_ASV!J:J)) -> 779,219 | AB149: 169% | AD149: =Z149*SUIVI_REGION!$Z$4 -> 373,893 | AE149: 405,326 | AF149: =IF(SUMIF(SOURCE_EMP_ASV!D:D,SUIVI_PDV!E149,SOURCE_EMP_ASV!K:K)=0,"",(SUMIF(SOURCE_EMP_ASV!D:D,SUIVI_PDV!E149,SOURCE_EMP_ASV!L:L))/SUMIF(SOURCE_EMP_ASV!D:D,SUIVI_PDV!E149,SOURCE_EMP_ASV!K:K)) -> 0.35% | AG149: 0 € | AH149: =(SUMIF(EMPRUNT_CTO!H:H,SUIVI_PDV!D149,EMPRUNT_CTO!K:K)) -> 0 | AJ149: 0 | AK149: =(SUMIFS(ALIZE!P:P,ALIZE!H:H,D149))-(SUMIFS(ALIZE_2105!P:P,ALIZE_2105!H:H,D149)) -> 0 | AL149: =(SUMIFS(CORALIUM!P:P,CORALIUM!H:H,D149))-(SUMIFS(CORALIUM_2105!P:P,CORALIUM_2105!H:H,D149)) -> 0 | AM149: =(SUMIFS(PARMA_PEA!$N:$N,PARMA_PEA!$H:$H,$D149)) -> 0
A150: 160 | B150: MOSELLE | C150: METZ | D150: 516 | E150: 151350000516 | F150: 57178 | G150: =VLOOKUP(F150,Objectifs!G:H,2,FALSE) -> BOULAY | I150: =VLOOKUP(F150,Objectifs!G:L,6,FALSE) -> 69,700 | J150: =(SUMIFS(SOURCE_PARTS_SOC!G:G,SOURCE_PARTS_SOC!E:E,F150))+(SUMIFS(ORCA_CARNET!E:E,ORCA_CARNET!C:C,F150)) -> 10,800 | K150: =(SUMIFS(SOURCE_PARTS_SOC!H:H,SOURCE_PARTS_SOC!E:E,F150))+(SUMIFS(ORCA_CARNET!F:F,ORCA_CARNET!C:C,F150)) -> 3,860 | L150: 15% | M150: 58,900 | N150: =I150*SUIVI_REGION!$I$4 -> 64,926 | O150: -54,126 | P150: =(SUMIFS(SOURCE_PARTS_SOC_0506!$I:$I,SOURCE_PARTS_SOC_0506!$E:$E,F150)) -> 32,660 | Q150: =(SUMIFS(SOURCE_PARTS_SOC!$I:$I,SOURCE_PARTS_SOC!$E:$E,F150))-P150 -> 220 | S150: =VLOOKUP(F150,Objectifs!G:K,5,FALSE) -> 22,600 | T150: =(SUMIFS(PILCOT_ELAN!$P:$P,PILCOT_ELAN!$H:$H,$D150)) -> 34,854 | U150: 154% | W150: =S150*SUIVI_REGION!$S$4 -> 16,143 | X150: 18,711 | Z150: =VLOOKUP(F150,Objectifs!G:M,7,FALSE) -> 230,700 | AA150: =(SUMIF(SOURCE_EMP_ASV!D:D,SUIVI_PDV!E150,SOURCE_EMP_ASV!J:J)) -> 185,310 | AB150: 80% | AC150: 45,391 | AD150: =Z150*SUIVI_REGION!$Z$4 -> 186,947 | AE150: -1,637 | AF150: =IF(SUMIF(SOURCE_EMP_ASV!D:D,SUIVI_PDV!E150,SOURCE_EMP_ASV!K:K)=0,"",(SUMIF(SOURCE_EMP_ASV!D:D,SUIVI_PDV!E150,SOURCE_EMP_ASV!L:L))/SUMIF(SOURCE_EMP_ASV!D:D,SUIVI_PDV!E150,SOURCE_EMP_ASV!K:K)) -> 0.19% | AG150: 0 € | AH150: =(SUMIF(EMPRUNT_CTO!H:H,SUIVI_PDV!D150,EMPRUNT_CTO!K:K)) -> 0 | AJ150: 1 | AK150: =(SUMIFS(ALIZE!P:P,ALIZE!H:H,D150))-(SUMIFS(ALIZE_2105!P:P,ALIZE_2105!H:H,D150)) -> 0 | AL150: =(SUMIFS(CORALIUM!P:P,CORALIUM!H:H,D150))-(SUMIFS(CORALIUM_2105!P:P,CORALIUM_2105!H:H,D150)) -> 1 | AM150: =(SUMIFS(PARMA_PEA!$N:$N,PARMA_PEA!$H:$H,$D150)) -> 0
A151: 160 | B151: MOSELLE | C151: METZ | D151: 588 | E151: 151350000588 | F151: 57437 | G151: =VLOOKUP(F151,Objectifs!G:H,2,FALSE) -> METZ SARRE | I151: =VLOOKUP(F151,Objectifs!G:L,6,FALSE) -> 94,100 | J151: =(SUMIFS(SOURCE_PARTS_SOC!G:G,SOURCE_PARTS_SOC!E:E,F151))+(SUMIFS(ORCA_CARNET!E:E,ORCA_CARNET!C:C,F151)) -> 15,000 | K151: =(SUMIFS(SOURCE_PARTS_SOC!H:H,SOURCE_PARTS_SOC!E:E,F151))+(SUMIFS(ORCA_CARNET!F:F,ORCA_CARNET!C:C,F151)) -> 0 | L151: 16% | M151: 79,100 | N151: =I151*SUIVI_REGION!$I$4 -> 87,655 | O151: -72,655 | P151: =(SUMIFS(SOURCE_PARTS_SOC_0506!$I:$I,SOURCE_PARTS_SOC_0506!$E:$E,F151)) -> 29,840 | Q151: =(SUMIFS(SOURCE_PARTS_SOC!$I:$I,SOURCE_PARTS_SOC!$E:$E,F151))-P151 -> 20 | S151: =VLOOKUP(F151,Objectifs!G:K,5,FALSE) -> 30,600 | T151: =(SUMIFS(PILCOT_ELAN!$P:$P,PILCOT_ELAN!$H:$H,$D151)) -> 0 | U151: 0% | V151: 30,600 | W151: =S151*SUIVI_REGION!$S$4 -> 21,857 | X151: -21,857 | Z151: =VLOOKUP(F151,Objectifs!G:M,7,FALSE) -> 311,500 | AA151: =(SUMIF(SOURCE_EMP_ASV!D:D,SUIVI_PDV!E151,SOURCE_EMP_ASV!J:J)) -> 255,851 | AB151: 82% | AC151: 55,649 | AD151: =Z151*SUIVI_REGION!$Z$4 -> 252,422 | AE151: 3,428 | AF151: =IF(SUMIF(SOURCE_EMP_ASV!D:D,SUIVI_PDV!E151,SOURCE_EMP_ASV!K:K)=0,"",(SUMIF(SOURCE_EMP_ASV!D:D,SUIVI_PDV!E151,SOURCE_EMP_ASV!L:L))/SUMIF(SOURCE_EMP_ASV!D:D,SUIVI_PDV!E151,SOURCE_EMP_ASV!K:K)) -> 0.16% | AG151: 0 € | AH151: =(SUMIF(EMPRUNT_CTO!H:H,SUIVI_PDV!D151,EMPRUNT_CTO!K:K)) -> 0 | AJ151: 0 | AK151: =(SUMIFS(ALIZE!P:P,ALIZE!H:H,D151))-(SUMIFS(ALIZE_2105!P:P,ALIZE_2105!H:H,D151)) -> 0 | AL151: =(SUMIFS(CORALIUM!P:P,CORALIUM!H:H,D151))-(SUMIFS(CORALIUM_2105!P:P,CORALIUM_2105!H:H,D151)) -> 0 | AM151: =(SUMIFS(PARMA_PEA!$N:$N,PARMA_PEA!$H:$H,$D151)) -> 0
A152: 160 | B152: MOSELLE | C152: METZ | D152: 595 | E152: 151350000595 | F152: 57444 | G152: =VLOOKUP(F152,Objectifs!G:H,2,FALSE) -> SAINT JULIEN LES METZ | I152: =VLOOKUP(F152,Objectifs!G:L,6,FALSE) -> 198,200 | J152: =(SUMIFS(SOURCE_PARTS_SOC!G:G,SOURCE_PARTS_SOC!E:E,F152))+(SUMIFS(ORCA_CARNET!E:E,ORCA_CARNET!C:C,F152)) -> 56,340 | K152: =(SUMIFS(SOURCE_PARTS_SOC!H:H,SOURCE_PARTS_SOC!E:E,F152))+(SUMIFS(ORCA_CARNET!F:F,ORCA_CARNET!C:C,F152)) -> 6,700 | L152: 28% | M152: 141,860 | N152: =I152*SUIVI_REGION!$I$4 -> 184,625 | O152: -128,285 | P152: =(SUMIFS(SOURCE_PARTS_SOC_0506!$I:$I,SOURCE_PARTS_SOC_0506!$E:$E,F152)) -> 103,680 | Q152: =(SUMIFS(SOURCE_PARTS_SOC!$I:$I,SOURCE_PARTS_SOC!$E:$E,F152))-P152 -> 20 | S152: =VLOOKUP(F152,Objectifs!G:K,5,FALSE) -> 64,400 | T152: =(SUMIFS(PILCOT_ELAN!$P:$P,PILCOT_ELAN!$H:$H,$D152)) -> 78,208 | U152: 121% | W152: =S152*SUIVI_REGION!$S$4 -> 46,000 | X152: 32,208 | Z152: =VLOOKUP(F152,Objectifs!G:M,7,FALSE) -> 656,100 | AA152: =(SUMIF(SOURCE_EMP_ASV!D:D,SUIVI_PDV!E152,SOURCE_EMP_ASV!J:J)) -> 628,557 | AB152: 96% | AC152: 27,543 | AD152: =Z152*SUIVI_REGION!$Z$4 -> 531,667 | AE152: 96,890 | AF152: =IF(SUMIF(SOURCE_EMP_ASV!D:D,SUIVI_PDV!E152,SOURCE_EMP_ASV!K:K)=0,"",(SUMIF(SOURCE_EMP_ASV!D:D,SUIVI_PDV!E152,SOURCE_EMP_ASV!L:L))/SUMIF(SOURCE_EMP_ASV!D:D,SUIVI_PDV!E152,SOURCE_EMP_ASV!K:K)) -> 0.48% | AG152: 0 € | AH152: =(SUMIF(EMPRUNT_CTO!H:H,SUIVI_PDV!D152,EMPRUNT_CTO!K:K)) -> 0 | AJ152: 14,192 | AK152: =(SUMIFS(ALIZE!P:P,ALIZE!H:H,D152))-(SUMIFS(ALIZE_2105!P:P,ALIZE_2105!H:H,D152)) -> 5,727 | AL152: =(SUMIFS(CORALIUM!P:P,CORALIUM!H:H,D152))-(SUMIFS(CORALIUM_2105!P:P,CORALIUM_2105!H:H,D152)) -> 8,465 | AM152: =(SUMIFS(PARMA_PEA!$N:$N,PARMA_PEA!$H:$H,$D152)) -> 0
A153: 160 | B153: MOSELLE | C153: METZ | D153: 597 | E153: 151350000597 | F153: 57446 | G153: =VLOOKUP(F153,Objectifs!G:H,2,FALSE) -> METZ SERPENOISE | I153: =VLOOKUP(F153,Objectifs!G:L,6,FALSE) -> 525,700 | J153: =(SUMIFS(SOURCE_PARTS_SOC!G:G,SOURCE_PARTS_SOC!E:E,F153))+(SUMIFS(ORCA_CARNET!E:E,ORCA_CARNET!C:C,F153)) -> 143,700 | K153: =(SUMIFS(SOURCE_PARTS_SOC!H:H,SOURCE_PARTS_SOC!E:E,F153))+(SUMIFS(ORCA_CARNET!F:F,ORCA_CARNET!C:C,F153)) -> 38,060 | L153: 27% | M153: 382,000 | N153: =I153*SUIVI_REGION!$I$4 -> 489,693 | O153: -345,993 | P153: =(SUMIFS(SOURCE_PARTS_SOC_0506!$I:$I,SOURCE_PARTS_SOC_0506!$E:$E,F153)) -> 759,240 | Q153: =(SUMIFS(SOURCE_PARTS_SOC!$I:$I,SOURCE_PARTS_SOC!$E:$E,F153))-P153 -> 17,140 | S153: =VLOOKUP(F153,Objectifs!G:K,5,FALSE) -> 171,000 | T153: =(SUMIFS(PILCOT_ELAN!$P:$P,PILCOT_ELAN!$H:$H,$D153)) -> 22,196 | U153: 13% | V153: 148,804 | W153: =S153*SUIVI_REGION!$S$4 -> 122,143 | X153: -99,947 | Z153: =VLOOKUP(F153,Objectifs!G:M,7,FALSE) -> 1,740,700 | AA153: =(SUMIF(SOURCE_EMP_ASV!D:D,SUIVI_PDV!E153,SOURCE_EMP_ASV!J:J)) -> 1,062,380 | AB153: 61% | AC153: 678,320 | AD153: =Z153*SUIVI_REGION!$Z$4 -> 1,410,567 | AE153: -348,187 | AF153: =IF(SUMIF(SOURCE_EMP_ASV!D:D,SUIVI_PDV!E153,SOURCE_EMP_ASV!K:K)=0,"",(SUMIF(SOURCE_EMP_ASV!D:D,SUIVI_PDV!E153,SOURCE_EMP_ASV!L:L))/SUMIF(SOURCE_EMP_ASV!D:D,SUIVI_PDV!E153,SOURCE_EMP_ASV!K:K)) -> 0.29% | AG153: 55,000 € | AH153: =(SUMIF(EMPRUNT_CTO!H:H,SUIVI_PDV!D153,EMPRUNT_CTO!K:K)) -> 550 | AJ153: 10,113 | AK153: =(SUMIFS(ALIZE!P:P,ALIZE!H:H,D153))-(SUMIFS(ALIZE_2105!P:P,ALIZE_2105!H:H,D153)) -> 0 | AL153: =(SUMIFS(CORALIUM!P:P,CORALIUM!H:H,D153))-(SUMIFS(CORALIUM_2105!P:P,CORALIUM_2105!H:H,D153)) -> 10,113 | AM153: =(SUMIFS(PARMA_PEA!$N:$N,PARMA_PEA!$H:$H,$D153)) -> 0
A154: 160 | B154: MOSELLE | C154: METZ | D154: 598 | E154: 151350000598 | F154: 57447 | G154: =VLOOKUP(F154,Objectifs!G:H,2,FALSE) -> METZ SAINT MAXIMIN | I154: =VLOOKUP(F154,Objectifs!G:L,6,FALSE) -> 101,000 | J154: =(SUMIFS(SOURCE_PARTS_SOC!G:G,SOURCE_PARTS_SOC!E:E,F154))+(SUMIFS(ORCA_CARNET!E:E,ORCA_CARNET!C:C,F154)) -> 107,680 | K154: =(SUMIFS(SOURCE_PARTS_SOC!H:H,SOURCE_PARTS_SOC!E:E,F154))+(SUMIFS(ORCA_CARNET!F:F,ORCA_CARNET!C:C,F154)) -> 83,360 | L154: 107% | N154: =I154*SUIVI_REGION!$I$4 -> 94,082 | O154: 13,598 | P154: =(SUMIFS(SOURCE_PARTS_SOC_0506!$I:$I,SOURCE_PARTS_SOC_0506!$E:$E,F154)) -> 110,260 | Q154: =(SUMIFS(SOURCE_PARTS_SOC!$I:$I,SOURCE_PARTS_SOC!$E:$E,F154))-P154 -> 40 | S154: =VLOOKUP(F154,Objectifs!G:K,5,FALSE) -> 32,800 | T154: =(SUMIFS(PILCOT_ELAN!$P:$P,PILCOT_ELAN!$H:$H,$D154)) -> 16,596 | U154: 51% | V154: 16,204 | W154: =S154*SUIVI_REGION!$S$4 -> 23,429 | X154: -6,832 | Z154: =VLOOKUP(F154,Objectifs!G:M,7,FALSE) -> 334,300 | AA154: =(SUMIF(SOURCE_EMP_ASV!D:D,SUIVI_PDV!E154,SOURCE_EMP_ASV!J:J)) -> 50,414 | AB154: 15% | AC154: 283,886 | AD154: =Z154*SUIVI_REGION!$Z$4 -> 270,898 | AE154: -220,484 | AF154: =IF(SUMIF(SOURCE_EMP_ASV!D:D,SUIVI_PDV!E154,SOURCE_EMP_ASV!K:K)=0,"",(SUMIF(SOURCE_EMP_ASV!D:D,SUIVI_PDV!E154,SOURCE_EMP_ASV!L:L))/SUMIF(SOURCE_EMP_ASV!D:D,SUIVI_PDV!E154,SOURCE_EMP_ASV!K:K)) -> 0.31% | AG154: 0 € | AH154: =(SUMIF(EMPRUNT_CTO!H:H,SUIVI_PDV!D154,EMPRUNT_CTO!K:K)) -> 0 | AJ154: 0 | AK154: =(SUMIFS(ALIZE!P:P,ALIZE!H:H,D154))-(SUMIFS(ALIZE_2105!P:P,ALIZE_2105!H:H,D154)) -> 0 | AL154: =(SUMIFS(CORALIUM!P:P,CORALIUM!H:H,D154))-(SUMIFS(CORALIUM_2105!P:P,CORALIUM_2105!H:H,D154)) -> 0 | AM154: =(SUMIFS(PARMA_PEA!$N:$N,PARMA_PEA!$H:$H,$D154)) -> 0
A155: 160 | B155: MOSELLE | C155: METZ | D155: 632 | E155: 151350000632 | F155: 57559 | G155: =VLOOKUP(F155,Objectifs!G:H,2,FALSE) -> REMILLY | I155: =VLOOKUP(F155,Objectifs!G:L,6,FALSE) -> 136,700 | J155: =(SUMIFS(SOURCE_PARTS_SOC!G:G,SOURCE_PARTS_SOC!E:E,F155))+(SUMIFS(ORCA_CARNET!E:E,ORCA_CARNET!C:C,F155)) -> 65,740 | K155: =(SUMIFS(SOURCE_PARTS_SOC!H:H,SOURCE_PARTS_SOC!E:E,F155))+(SUMIFS(ORCA_CARNET!F:F,ORCA_CARNET!C:C,F155)) -> 2,520 | L155: 48% | M155: 70,960 | N155: =I155*SUIVI_REGION!$I$4 -> 127,337 | O155: -61,597 | P155: =(SUMIFS(SOURCE_PARTS_SOC_0506!$I:$I,SOURCE_PARTS_SOC_0506!$E:$E,F155)) -> 153,460 | Q155: =(SUMIFS(SOURCE_PARTS_SOC!$I:$I,SOURCE_PARTS_SOC!$E:$E,F155))-P155 -> 300 | S155: =VLOOKUP(F155,Objectifs!G:K,5,FALSE) -> 44,400 | T155: =(SUMIFS(PILCOT_ELAN!$P:$P,PILCOT_ELAN!$H:$H,$D155)) -> 43,594 | U155: 98% | V155: 806 | W155: =S155*SUIVI_REGION!$S$4 -> 31,714 | X155: 11,880 | Z155: =VLOOKUP(F155,Objectifs!G:M,7,FALSE) -> 452,400 | AA155: =(SUMIF(SOURCE_EMP_ASV!D:D,SUIVI_PDV!E155,SOURCE_EMP_ASV!J:J)) -> 131,468 | AB155: 29% | AC155: 320,932 | AD155: =Z155*SUIVI_REGION!$Z$4 -> 366,600 | AE155: -235,132 | AF155: =IF(SUMIF(SOURCE_EMP_ASV!D:D,SUIVI_PDV!E155,SOURCE_EMP_ASV!K:K)=0,"",(SUMIF(SOURCE_EMP_ASV!D:D,SUIVI_PDV!E155,SOURCE_EMP_ASV!L:L))/SUMIF(SOURCE_EMP_ASV!D:D,SUIVI_PDV!E155,SOURCE_EMP_ASV!K:K)) -> 1.09% | AG155: 0 € | AH155: =(SUMIF(EMPRUNT_CTO!H:H,SUIVI_PDV!D155,EMPRUNT_CTO!K:K)) -> 0 | AJ155: 0 | AK155: =(SUMIFS(ALIZE!P:P,ALIZE!H:H,D155))-(SUMIFS(ALIZE_2105!P:P,ALIZE_2105!H:H,D155)) -> 0 | AL155: =(SUMIFS(CORALIUM!P:P,CORALIUM!H:H,D155))-(SUMIFS(CORALIUM_2105!P:P,CORALIUM_2105!H:H,D155)) -> 0 | AM155: =(SUMIFS(PARMA_PEA!$N:$N,PARMA_PEA!$H:$H,$D155)) -> 0
A156: 160 | B156: MOSELLE | C156: METZ | D156: 503 | E156: 151350000503 | F156: 57105 | G156: =VLOOKUP(F156,Objectifs!G:H,2,FALSE) -> ARS SUR MOSELLE | I156: =VLOOKUP(F156,Objectifs!G:L,6,FALSE) -> 118,700 | J156: =(SUMIFS(SOURCE_PARTS_SOC!G:G,SOURCE_PARTS_SOC!E:E,F156))+(SUMIFS(ORCA_CARNET!E:E,ORCA_CARNET!C:C,F156)) -> 121,220 | K156: =(SUMIFS(SOURCE_PARTS_SOC!H:H,SOURCE_PARTS_SOC!E:E,F156))+(SUMIFS(ORCA_CARNET!F:F,ORCA_CARNET!C:C,F156)) -> 27,560 | L156: 102% | N156: =I156*SUIVI_REGION!$I$4 -> 110,570 | O156: 10,650 | P156: =(SUMIFS(SOURCE_PARTS_SOC_0506!$I:$I,SOURCE_PARTS_SOC_0506!$E:$E,F156)) -> 249,020 | Q156: =(SUMIFS(SOURCE_PARTS_SOC!$I:$I,SOURCE_PARTS_SOC!$E:$E,F156))-P156 -> 760 | S156: =VLOOKUP(F156,Objectifs!G:K,5,FALSE) -> 38,600 | T156: =(SUMIFS(PILCOT_ELAN!$P:$P,PILCOT_ELAN!$H:$H,$D156)) -> 30,845 | U156: 80% | V156: 7,755 | W156: =S156*SUIVI_REGION!$S$4 -> 27,571 | X156: 3,274 | Z156: =VLOOKUP(F156,Objectifs!G:M,7,FALSE) -> 393,000 | AA156: =(SUMIF(SOURCE_EMP_ASV!D:D,SUIVI_PDV!E156,SOURCE_EMP_ASV!J:J)) -> 328,800 | AB156: 84% | AC156: 64,200 | AD156: =Z156*SUIVI_REGION!$Z$4 -> 318,466 | AE156: 10,334 | AF156: =IF(SUMIF(SOURCE_EMP_ASV!D:D,SUIVI_PDV!E156,SOURCE_EMP_ASV!K:K)=0,"",(SUMIF(SOURCE_EMP_ASV!D:D,SUIVI_PDV!E156,SOURCE_EMP_ASV!L:L))/SUMIF(SOURCE_EMP_ASV!D:D,SUIVI_PDV!E156,SOURCE_EMP_ASV!K:K)) -> 0.39% | AG156: 0 € | AH156: =(SUMIF(EMPRUNT_CTO!H:H,SUIVI_PDV!D156,EMPRUNT_CTO!K:K)) -> 0 | AJ156: 27,976 | AK156: =(SUMIFS(ALIZE!P:P,ALIZE!H:H,D156))-(SUMIFS(ALIZE_2105!P:P,ALIZE_2105!H:H,D156)) -> 21,235 | AL156: =(SUMIFS(CORALIUM!P:P,CORALIUM!H:H,D156))-(SUMIFS(CORALIUM_2105!P:P,CORALIUM_2105!H:H,D156)) -> 0 | AM156: =(SUMIFS(PARMA_PEA!$N:$N,PARMA_PEA!$H:$H,$D156)) -> 6,741
A157: 160 | B157: MOSELLE | C157: METZ | D157: 585 | E157: 151350000585 | F157: 57434 | G157: =VLOOKUP(F157,Objectifs!G:H,2,FALSE) -> MARLY | I157: =VLOOKUP(F157,Objectifs!G:L,6,FALSE) -> 167,200 | J157: =(SUMIFS(SOURCE_PARTS_SOC!G:G,SOURCE_PARTS_SOC!E:E,F157))+(SUMIFS(ORCA_CARNET!E:E,ORCA_CARNET!C:C,F157)) -> 29,240 | K157: =(SUMIFS(SOURCE_PARTS_SOC!H:H,SOURCE_PARTS_SOC!E:E,F157))+(SUMIFS(ORCA_CARNET!F:F,ORCA_CARNET!C:C,F157)) -> 1,100 | L157: 17% | M157: 137,960 | N157: =I157*SUIVI_REGION!$I$4 -> 155,748 | O157: -126,508 | P157: =(SUMIFS(SOURCE_PARTS_SOC_0506!$I:$I,SOURCE_PARTS_SOC_0506!$E:$E,F157)) -> 254,980 | Q157: =(SUMIFS(SOURCE_PARTS_SOC!$I:$I,SOURCE_PARTS_SOC!$E:$E,F157))-P157 -> 2,000 | S157: =VLOOKUP(F157,Objectifs!G:K,5,FALSE) -> 54,300 | T157: =(SUMIFS(PILCOT_ELAN!$P:$P,PILCOT_ELAN!$H:$H,$D157)) -> 2,795 | U157: 5% | V157: 51,505 | W157: =S157*SUIVI_REGION!$S$4 -> 38,786 | X157: -35,991 | Z157: =VLOOKUP(F157,Objectifs!G:M,7,FALSE) -> 553,600 | AA157: =(SUMIF(SOURCE_EMP_ASV!D:D,SUIVI_PDV!E157,SOURCE_EMP_ASV!J:J)) -> 307,839 | AB157: 56% | AC157: 245,761 | AD157: =Z157*SUIVI_REGION!$Z$4 -> 448,607 | AE157: -140,768 | AF157: =IF(SUMIF(SOURCE_EMP_ASV!D:D,SUIVI_PDV!E157,SOURCE_EMP_ASV!K:K)=0,"",(SUMIF(SOURCE_EMP_ASV!D:D,SUIVI_PDV!E157,SOURCE_EMP_ASV!L:L))/SUMIF(SOURCE_EMP_ASV!D:D,SUIVI_PDV!E157,SOURCE_EMP_ASV!K:K)) -> 0.34% | AG157: 0 € | AH157: =(SUMIF(EMPRUNT_CTO!H:H,SUIVI_PDV!D157,EMPRUNT_CTO!K:K)) -> 0 | AJ157: 0 | AK157: =(SUMIFS(ALIZE!P:P,ALIZE!H:H,D157))-(SUMIFS(ALIZE_2105!P:P,ALIZE_2105!H:H,D157)) -> 0 | AL157: =(SUMIFS(CORALIUM!P:P,CORALIUM!H:H,D157))-(SUMIFS(CORALIUM_2105!P:P,CORALIUM_2105!H:H,D157)) -> 0 | AM157: =(SUMIFS(PARMA_PEA!$N:$N,PARMA_PEA!$H:$H,$D157)) -> 0
A158: 160 | B158: MOSELLE | C158: METZ | D158: 601 | E158: 151350000601 | F158: 57453 | G158: =VLOOKUP(F158,Objectifs!G:H,2,FALSE) -> MONTIGNY LES METZ | I158: =VLOOKUP(F158,Objectifs!G:L,6,FALSE) -> 265,500 | J158: =(SUMIFS(SOURCE_PARTS_SOC!G:G,SOURCE_PARTS_SOC!E:E,F158))+(SUMIFS(ORCA_CARNET!E:E,ORCA_CARNET!C:C,F158)) -> 99,740 | K158: =(SUMIFS(SOURCE_PARTS_SOC!H:H,SOURCE_PARTS_SOC!E:E,F158))+(SUMIFS(ORCA_CARNET!F:F,ORCA_CARNET!C:C,F158)) -> 4,720 | L158: 38% | M158: 165,760 | N158: =I158*SUIVI_REGION!$I$4 -> 247,315 | O158: -147,575 | P158: =(SUMIFS(SOURCE_PARTS_SOC_0506!$I:$I,SOURCE_PARTS_SOC_0506!$E:$E,F158)) -> 451,380 | Q158: =(SUMIFS(SOURCE_PARTS_SOC!$I:$I,SOURCE_PARTS_SOC!$E:$E,F158))-P158 -> 12,160 | S158: =VLOOKUP(F158,Objectifs!G:K,5,FALSE) -> 86,300 | T158: =(SUMIFS(PILCOT_ELAN!$P:$P,PILCOT_ELAN!$H:$H,$D158)) -> 12,516 | U158: 15% | V158: 73,784 | W158: =S158*SUIVI_REGION!$S$4 -> 61,643 | X158: -49,127 | Z158: =VLOOKUP(F158,Objectifs!G:M,7,FALSE) -> 879,100 | AA158: =(SUMIF(SOURCE_EMP_ASV!D:D,SUIVI_PDV!E158,SOURCE_EMP_ASV!J:J)) -> 445,576 | AB158: 51% | AC158: 433,524 | AD158: =Z158*SUIVI_REGION!$Z$4 -> 712,374 | AE158: -266,798 | AF158: =IF(SUMIF(SOURCE_EMP_ASV!D:D,SUIVI_PDV!E158,SOURCE_EMP_ASV!K:K)=0,"",(SUMIF(SOURCE_EMP_ASV!D:D,SUIVI_PDV!E158,SOURCE_EMP_ASV!L:L))/SUMIF(SOURCE_EMP_ASV!D:D,SUIVI_PDV!E158,SOURCE_EMP_ASV!K:K)) -> 0.28% | AG158: 201,000 € | AH158: =(SUMIF(EMPRUNT_CTO!H:H,SUIVI_PDV!D158,EMPRUNT_CTO!K:K)) -> 2,010 | AJ158: 0 | AK158: =(SUMIFS(ALIZE!P:P,ALIZE!H:H,D158))-(SUMIFS(ALIZE_2105!P:P,ALIZE_2105!H:H,D158)) -> 0 | AL158: =(SUMIFS(CORALIUM!P:P,CORALIUM!H:H,D158))-(SUMIFS(CORALIUM_2105!P:P,CORALIUM_2105!H:H,D158)) -> 0 | AM158: =(SUMIFS(PARMA_PEA!$N:$N,PARMA_PEA!$H:$H,$D158)) -> 0
A159: 160 | B159: MOSELLE | C159: METZ | D159: 605 | E159: 151350000605 | F159: 57459 | G159: =VLOOKUP(F159,Objectifs!G:H,2,FALSE) -> MOULINS LES METZ | I159: =VLOOKUP(F159,Objectifs!G:L,6,FALSE) -> 121,800 | J159: =(SUMIFS(SOURCE_PARTS_SOC!G:G,SOURCE_PARTS_SOC!E:E,F159))+(SUMIFS(ORCA_CARNET!E:E,ORCA_CARNET!C:C,F159)) -> 65,840 | K159: =(SUMIFS(SOURCE_PARTS_SOC!H:H,SOURCE_PARTS_SOC!E:E,F159))+(SUMIFS(ORCA_CARNET!F:F,ORCA_CARNET!C:C,F159)) -> 2,620 | L159: 54% | M159: 55,960 | N159: =I159*SUIVI_REGION!$I$4 -> 113,458 | O159: -47,618 | P159: =(SUMIFS(SOURCE_PARTS_SOC_0506!$I:$I,SOURCE_PARTS_SOC_0506!$E:$E,F159)) -> 189,400 | Q159: =(SUMIFS(SOURCE_PARTS_SOC!$I:$I,SOURCE_PARTS_SOC!$E:$E,F159))-P159 -> 0 | S159: =VLOOKUP(F159,Objectifs!G:K,5,FALSE) -> 39,600 | T159: =(SUMIFS(PILCOT_ELAN!$P:$P,PILCOT_ELAN!$H:$H,$D159)) -> 0 | U159: 0% | V159: 39,600 | W159: =S159*SUIVI_REGION!$S$4 -> 28,286 | X159: -28,286 | Z159: =VLOOKUP(F159,Objectifs!G:M,7,FALSE) -> 403,400 | AA159: =(SUMIF(SOURCE_EMP_ASV!D:D,SUIVI_PDV!E159,SOURCE_EMP_ASV!J:J)) -> 277,550 | AB159: 69% | AC159: 125,850 | AD159: =Z159*SUIVI_REGION!$Z$4 -> 326,893 | AE159: -49,343 | AF159: =IF(SUMIF(SOURCE_EMP_ASV!D:D,SUIVI_PDV!E159,SOURCE_EMP_ASV!K:K)=0,"",(SUMIF(SOURCE_EMP_ASV!D:D,SUIVI_PDV!E159,SOURCE_EMP_ASV!L:L))/SUMIF(SOURCE_EMP_ASV!D:D,SUIVI_PDV!E159,SOURCE_EMP_ASV!K:K)) -> 0.50% | AG159: 0 € | AH159: =(SUMIF(EMPRUNT_CTO!H:H,SUIVI_PDV!D159,EMPRUNT_CTO!K:K)) -> 0 | AJ159: 0 | AK159: =(SUMIFS(ALIZE!P:P,ALIZE!H:H,D159))-(SUMIFS(ALIZE_2105!P:P,ALIZE_2105!H:H,D159)) -> 0 | AL159: =(SUMIFS(CORALIUM!P:P,CORALIUM!H:H,D159))-(SUMIFS(CORALIUM_2105!P:P,CORALIUM_2105!H:H,D159)) -> 0 | AM159: =(SUMIFS(PARMA_PEA!$N:$N,PARMA_PEA!$H:$H,$D159)) -> 0
A160: 160 | B160: MOSELLE | C160: METZ | D160: 527 | E160: 151350000527 | F160: 57224 | G160: =VLOOKUP(F160,Objectifs!G:H,2,FALSE) -> CLOUANGE | I160: =VLOOKUP(F160,Objectifs!G:L,6,FALSE) -> 104,500 | J160: =(SUMIFS(SOURCE_PARTS_SOC!G:G,SOURCE_PARTS_SOC!E:E,F160))+(SUMIFS(ORCA_CARNET!E:E,ORCA_CARNET!C:C,F160)) -> 57,780 | K160: =(SUMIFS(SOURCE_PARTS_SOC!H:H,SOURCE_PARTS_SOC!E:E,F160))+(SUMIFS(ORCA_CARNET!F:F,ORCA_CARNET!C:C,F160)) -> 3,060 | L160: 55% | M160: 46,720 | N160: =I160*SUIVI_REGION!$I$4 -> 97,342 | O160: -39,562 | P160: =(SUMIFS(SOURCE_PARTS_SOC_0506!$I:$I,SOURCE_PARTS_SOC_0506!$E:$E,F160)) -> 154,280 | Q160: =(SUMIFS(SOURCE_PARTS_SOC!$I:$I,SOURCE_PARTS_SOC!$E:$E,F160))-P160 -> 20 | S160: =VLOOKUP(F160,Objectifs!G:K,5,FALSE) -> 34,000 | T160: =(SUMIFS(PILCOT_ELAN!$P:$P,PILCOT_ELAN!$H:$H,$D160)) -> 5,148 | U160: 15% | V160: 28,852 | W160: =S160*SUIVI_REGION!$S$4 -> 24,286 | X160: -19,137 | Z160: =VLOOKUP(F160,Objectifs!G:M,7,FALSE) -> 346,100 | AA160: =(SUMIF(SOURCE_EMP_ASV!D:D,SUIVI_PDV!E160,SOURCE_EMP_ASV!J:J)) -> 260,066 | AB160: 75% | AC160: 86,034 | AD160: =Z160*SUIVI_REGION!$Z$4 -> 280,460 | AE160: -20,395 | AF160: =IF(SUMIF(SOURCE_EMP_ASV!D:D,SUIVI_PDV!E160,SOURCE_EMP_ASV!K:K)=0,"",(SUMIF(SOURCE_EMP_ASV!D:D,SUIVI_PDV!E160,SOURCE_EMP_ASV!L:L))/SUMIF(SOURCE_EMP_ASV!D:D,SUIVI_PDV!E160,SOURCE_EMP_ASV!K:K)) -> 0.39% | AG160: 0 € | AH160: =(SUMIF(EMPRUNT_CTO!H:H,SUIVI_PDV!D160,EMPRUNT_CTO!K:K)) -> 0 | AJ160: 48,541 | AK160: =(SUMIFS(ALIZE!P:P,ALIZE!H:H,D160))-(SUMIFS(ALIZE_2105!P:P,ALIZE_2105!H:H,D160)) -> 20,629 | AL160: =(SUMIFS(CORALIUM!P:P,CORALIUM!H:H,D160))-(SUMIFS(CORALIUM_2105!P:P,CORALIUM_2105!H:H,D160)) -> 22,674 | AM160: =(SUMIFS(PARMA_PEA!$N:$N,PARMA_PEA!$H:$H,$D160)) -> 5,238
A161: 160 | B161: MOSELLE | C161: METZ | D161: 583 | E161: 151350000583 | F161: 57432 | G161: =VLOOKUP(F161,Objectifs!G:H,2,FALSE) -> MAIZIERES LES METZ | I161: =VLOOKUP(F161,Objectifs!G:L,6,FALSE) -> 135,000 | J161: =(SUMIFS(SOURCE_PARTS_SOC!G:G,SOURCE_PARTS_SOC!E:E,F161))+(SUMIFS(ORCA_CARNET!E:E,ORCA_CARNET!C:C,F161)) -> 64,780 | K161: =(SUMIFS(SOURCE_PARTS_SOC!H:H,SOURCE_PARTS_SOC!E:E,F161))+(SUMIFS(ORCA_CARNET!F:F,ORCA_CARNET!C:C,F161)) -> 4,660 | L161: 48% | M161: 70,220 | N161: =I161*SUIVI_REGION!$I$4 -> 125,753 | O161: -60,973 | P161: =(SUMIFS(SOURCE_PARTS_SOC_0506!$I:$I,SOURCE_PARTS_SOC_0506!$E:$E,F161)) -> 384,520 | Q161: =(SUMIFS(SOURCE_PARTS_SOC!$I:$I,SOURCE_PARTS_SOC!$E:$E,F161))-P161 -> 20 | S161: =VLOOKUP(F161,Objectifs!G:K,5,FALSE) -> 43,900 | T161: =(SUMIFS(PILCOT_ELAN!$P:$P,PILCOT_ELAN!$H:$H,$D161)) -> 54,331 | U161: 124% | W161: =S161*SUIVI_REGION!$S$4 -> 31,357 | X161: 22,974 | Z161: =VLOOKUP(F161,Objectifs!G:M,7,FALSE) -> 446,800 | AA161: =(SUMIF(SOURCE_EMP_ASV!D:D,SUIVI_PDV!E161,SOURCE_EMP_ASV!J:J)) -> 129,740 | AB161: 29% | AC161: 317,060 | AD161: =Z161*SUIVI_REGION!$Z$4 -> 362,062 | AE161: -232,322 | AF161: =IF(SUMIF(SOURCE_EMP_ASV!D:D,SUIVI_PDV!E161,SOURCE_EMP_ASV!K:K)=0,"",(SUMIF(SOURCE_EMP_ASV!D:D,SUIVI_PDV!E161,SOURCE_EMP_ASV!L:L))/SUMIF(SOURCE_EMP_ASV!D:D,SUIVI_PDV!E161,SOURCE_EMP_ASV!K:K)) -> 0.57% | AG161: 0 € | AH161: =(SUMIF(EMPRUNT_CTO!H:H,SUIVI_PDV!D161,EMPRUNT_CTO!K:K)) -> 0 | AJ161: 9,873 | AK161: =(SUMIFS(ALIZE!P:P,ALIZE!H:H,D161))-(SUMIFS(ALIZE_2105!P:P,ALIZE_2105!H:H,D161)) -> 2,000 | AL161: =(SUMIFS(CORALIUM!P:P,CORALIUM!H:H,D161))-(SUMIFS(CORALIUM_2105!P:P,CORALIUM_2105!H:H,D161)) -> 7,873 | AM161: =(SUMIFS(PARMA_PEA!$N:$N,PARMA_PEA!$H:$H,$D161)) -> 0
A162: 160 | B162: MOSELLE | C162: METZ | D162: 584 | E162: 151350000584 | F162: 57433 | G162: =VLOOKUP(F162,Objectifs!G:H,2,FALSE) -> MARANGE SILVANGE | I162: =VLOOKUP(F162,Objectifs!G:L,6,FALSE) -> 94,100 | J162: =(SUMIFS(SOURCE_PARTS_SOC!G:G,SOURCE_PARTS_SOC!E:E,F162))+(SUMIFS(ORCA_CARNET!E:E,ORCA_CARNET!C:C,F162)) -> 18,520 | K162: =(SUMIFS(SOURCE_PARTS_SOC!H:H,SOURCE_PARTS_SOC!E:E,F162))+(SUMIFS(ORCA_CARNET!F:F,ORCA_CARNET!C:C,F162)) -> 2,060 | L162: 20% | M162: 75,580 | N162: =I162*SUIVI_REGION!$I$4 -> 87,655 | O162: -69,135 | P162: =(SUMIFS(SOURCE_PARTS_SOC_0506!$I:$I,SOURCE_PARTS_SOC_0506!$E:$E,F162)) -> 86,220 | Q162: =(SUMIFS(SOURCE_PARTS_SOC!$I:$I,SOURCE_PARTS_SOC!$E:$E,F162))-P162 -> 12,460 | S162: =VLOOKUP(F162,Objectifs!G:K,5,FALSE) -> 30,600 | T162: =(SUMIFS(PILCOT_ELAN!$P:$P,PILCOT_ELAN!$H:$H,$D162)) -> 32,424 | U162: 106% | W162: =S162*SUIVI_REGION!$S$4 -> 21,857 | X162: 10,567 | Z162: =VLOOKUP(F162,Objectifs!G:M,7,FALSE) -> 311,500 | AA162: =(SUMIF(SOURCE_EMP_ASV!D:D,SUIVI_PDV!E162,SOURCE_EMP_ASV!J:J)) -> 184,368 | AB162: 59% | AC162: 127,132 | AD162: =Z162*SUIVI_REGION!$Z$4 -> 252,422 | AE162: -68,054 | AF162: =IF(SUMIF(SOURCE_EMP_ASV!D:D,SUIVI_PDV!E162,SOURCE_EMP_ASV!K:K)=0,"",(SUMIF(SOURCE_EMP_ASV!D:D,SUIVI_PDV!E162,SOURCE_EMP_ASV!L:L))/SUMIF(SOURCE_EMP_ASV!D:D,SUIVI_PDV!E162,SOURCE_EMP_ASV!K:K)) -> 0.50% | AG162: 0 € | AH162: =(SUMIF(EMPRUNT_CTO!H:H,SUIVI_PDV!D162,EMPRUNT_CTO!K:K)) -> 0 | AJ162: 0 | AK162: =(SUMIFS(ALIZE!P:P,ALIZE!H:H,D162))-(SUMIFS(ALIZE_2105!P:P,ALIZE_2105!H:H,D162)) -> 0 | AL162: =(SUMIFS(CORALIUM!P:P,CORALIUM!H:H,D162))-(SUMIFS(CORALIUM_2105!P:P,CORALIUM_2105!H:H,D162)) -> 0 | AM162: =(SUMIFS(PARMA_PEA!$N:$N,PARMA_PEA!$H:$H,$D162)) -> 0
A163: 160 | B163: MOSELLE | C163: METZ | D163: 636 | E163: 151350000636 | F163: 57574 | G163: =VLOOKUP(F163,Objectifs!G:H,2,FALSE) -> ROMBAS | I163: =VLOOKUP(F163,Objectifs!G:L,6,FALSE) -> 102,700 | J163: =(SUMIFS(SOURCE_PARTS_SOC!G:G,SOURCE_PARTS_SOC!E:E,F163))+(SUMIFS(ORCA_CARNET!E:E,ORCA_CARNET!C:C,F163)) -> 60,000 | K163: =(SUMIFS(SOURCE_PARTS_SOC!H:H,SOURCE_PARTS_SOC!E:E,F163))+(SUMIFS(ORCA_CARNET!F:F,ORCA_CARNET!C:C,F163)) -> 6,940 | L163: 58% | M163: 42,700 | N163: =I163*SUIVI_REGION!$I$4 -> 95,666 | O163: -35,666 | P163: =(SUMIFS(SOURCE_PARTS_SOC_0506!$I:$I,SOURCE_PARTS_SOC_0506!$E:$E,F163)) -> 82,220 | Q163: =(SUMIFS(SOURCE_PARTS_SOC!$I:$I,SOURCE_PARTS_SOC!$E:$E,F163))-P163 -> 20 | S163: =VLOOKUP(F163,Objectifs!G:K,5,FALSE) -> 33,400 | T163: =(SUMIFS(PILCOT_ELAN!$P:$P,PILCOT_ELAN!$H:$H,$D163)) -> 23,195 | U163: 69% | V163: 10,205 | W163: =S163*SUIVI_REGION!$S$4 -> 23,857 | X163: -662 | Z163: =VLOOKUP(F163,Objectifs!G:M,7,FALSE) -> 340,000 | AA163: =(SUMIF(SOURCE_EMP_ASV!D:D,SUIVI_PDV!E163,SOURCE_EMP_ASV!J:J)) -> 184,493 | AB163: 54% | AC163: 155,507 | AD163: =Z163*SUIVI_REGION!$Z$4 -> 275,517 | AE163: -91,025 | AF163: =IF(SUMIF(SOURCE_EMP_ASV!D:D,SUIVI_PDV!E163,SOURCE_EMP_ASV!K:K)=0,"",(SUMIF(SOURCE_EMP_ASV!D:D,SUIVI_PDV!E163,SOURCE_EMP_ASV!L:L))/SUMIF(SOURCE_EMP_ASV!D:D,SUIVI_PDV!E163,SOURCE_EMP_ASV!K:K)) -> 0.31% | AG163: 0 € | AH163: =(SUMIF(EMPRUNT_CTO!H:H,SUIVI_PDV!D163,EMPRUNT_CTO!K:K)) -> 0 | AJ163: 0 | AK163: =(SUMIFS(ALIZE!P:P,ALIZE!H:H,D163))-(SUMIFS(ALIZE_2105!P:P,ALIZE_2105!H:H,D163)) -> 0 | AL163: =(SUMIFS(CORALIUM!P:P,CORALIUM!H:H,D163))-(SUMIFS(CORALIUM_2105!P:P,CORALIUM_2105!H:H,D163)) -> 0 | AM163: =(SUMIFS(PARMA_PEA!$N:$N,PARMA_PEA!$H:$H,$D163)) -> 0
A164: 160 | B164: MOSELLE | C164: METZ | D164: 643 | E164: 151350000643 | F164: 57612 | G164: =VLOOKUP(F164,Objectifs!G:H,2,FALSE) -> SAINTE MARIE AUX CHENES | I164: =VLOOKUP(F164,Objectifs!G:L,6,FALSE) -> 137,800 | J164: =(SUMIFS(SOURCE_PARTS_SOC!G:G,SOURCE_PARTS_SOC!E:E,F164))+(SUMIFS(ORCA_CARNET!E:E,ORCA_CARNET!C:C,F164)) -> 53,120 | K164: =(SUMIFS(SOURCE_PARTS_SOC!H:H,SOURCE_PARTS_SOC!E:E,F164))+(SUMIFS(ORCA_CARNET!F:F,ORCA_CARNET!C:C,F164)) -> 3,240 | L164: 39% | M164: 84,680 | N164: =I164*SUIVI_REGION!$I$4 -> 128,362 | O164: -75,242 | P164: =(SUMIFS(SOURCE_PARTS_SOC_0506!$I:$I,SOURCE_PARTS_SOC_0506!$E:$E,F164)) -> 125,440 | Q164: =(SUMIFS(SOURCE_PARTS_SOC!$I:$I,SOURCE_PARTS_SOC!$E:$E,F164))-P164 -> 6,820 | S164: =VLOOKUP(F164,Objectifs!G:K,5,FALSE) -> 44,800 | T164: =(SUMIFS(PILCOT_ELAN!$P:$P,PILCOT_ELAN!$H:$H,$D164)) -> 0 | U164: 0% | V164: 44,800 | W164: =S164*SUIVI_REGION!$S$4 -> 32,000 | X164: -32,000 | Z164: =VLOOKUP(F164,Objectifs!G:M,7,FALSE) -> 456,200 | AA164: =(SUMIF(SOURCE_EMP_ASV!D:D,SUIVI_PDV!E164,SOURCE_EMP_ASV!J:J)) -> 167,230 | AB164: 37% | AC164: 288,970 | AD164: =Z164*SUIVI_REGION!$Z$4 -> 369,679 | AE164: -202,449 | AF164: =IF(SUMIF(SOURCE_EMP_ASV!D:D,SUIVI_PDV!E164,SOURCE_EMP_ASV!K:K)=0,"",(SUMIF(SOURCE_EMP_ASV!D:D,SUIVI_PDV!E164,SOURCE_EMP_ASV!L:L))/SUMIF(SOURCE_EMP_ASV!D:D,SUIVI_PDV!E164,SOURCE_EMP_ASV!K:K)) -> 0.43% | AG164: 0 € | AH164: =(SUMIF(EMPRUNT_CTO!H:H,SUIVI_PDV!D164,EMPRUNT_CTO!K:K)) -> 0 | AJ164: 10,020 | AK164: =(SUMIFS(ALIZE!P:P,ALIZE!H:H,D164))-(SUMIFS(ALIZE_2105!P:P,ALIZE_2105!H:H,D164)) -> 10,020 | AL164: =(SUMIFS(CORALIUM!P:P,CORALIUM!H:H,D164))-(SUMIFS(CORALIUM_2105!P:P,CORALIUM_2105!H:H,D164)) -> 0 | AM164: =(SUMIFS(PARMA_PEA!$N:$N,PARMA_PEA!$H:$H,$D164)) -> 0
A165: 160 | C165: Total Territoire METZ | G165: METZ | I165: =SUBTOTAL(9,I144:I164) -> 2,996,900 | J165: =SUBTOTAL(9,J144:J164) -> 1,257,600 | K165: 222,120 | L165: 42% | M165: 1,739,300 | N165: =I165*SUIVI_REGION!$I$4 -> 2,791,633 | O165: -1,534,033 | P165: =SUBTOTAL(9,P144:P164) -> 3,704,900 | Q165: =SUBTOTAL(9,Q144:Q164) -> 57,780 | S165: =SUBTOTAL(9,S144:S164) -> 974,100 | T165: =SUBTOTAL(9,T144:T164) -> 397,037 | U165: 41% | V165: 577,063 | W165: =S165*SUIVI_REGION!$S$4 -> 695,786 | X165: -298,749 | Z165: =SUBTOTAL(9,Z144:Z164) -> 9,921,800 | AA165: =SUBTOTAL(9,AA144:AA164) -> 6,130,856 | AB165: 62% | AC165: 3,790,944 | AD165: =Z165*SUIVI_REGION!$Z$4 -> 8,040,079 | AE165: -1,909,223 | AF165: =IF(SUMIF(SOURCE_EMP_ASV!B:B,G165,SOURCE_EMP_ASV!K:K)=0,"",(SUMIF(SOURCE_EMP_ASV!B:B,G165,SOURCE_EMP_ASV!L:L))/(SUMIF(SOURCE_EMP_ASV!B:B,G165,SOURCE_EMP_ASV!K:K))) -> 0.39% | AG165: 256,000 € | AH165: =SUBTOTAL(9,AH144:AH164) -> 2,560 | AJ165: 127,767 | AK165: =SUBTOTAL(9,AK144:AK164) -> 66,668 | AL165: =SUBTOTAL(9,AL144:AL164) -> 49,120 | AM165: =SUBTOTAL(9,AM144:AM164) -> 11,979
A166: 160 | B166: MOSELLE | C166: MOSELLE EST | D166: 525 | E166: 151350000525 | F166: 57210 | G166: =VLOOKUP(F166,Objectifs!G:H,2,FALSE) -> CHATEAU SALINS | I166: =VLOOKUP(F166,Objectifs!G:L,6,FALSE) -> 94,100 | J166: =(SUMIFS(SOURCE_PARTS_SOC!G:G,SOURCE_PARTS_SOC!E:E,F166))+(SUMIFS(ORCA_CARNET!E:E,ORCA_CARNET!C:C,F166)) -> 27,240 | K166: =(SUMIFS(SOURCE_PARTS_SOC!H:H,SOURCE_PARTS_SOC!E:E,F166))+(SUMIFS(ORCA_CARNET!F:F,ORCA_CARNET!C:C,F166)) -> 520 | L166: 29% | M166: 66,860 | N166: =I166*SUIVI_REGION!$I$4 -> 87,655 | O166: -60,415 | P166: =(SUMIFS(SOURCE_PARTS_SOC_0506!$I:$I,SOURCE_PARTS_SOC_0506!$E:$E,F166)) -> 103,800 | Q166: =(SUMIFS(SOURCE_PARTS_SOC!$I:$I,SOURCE_PARTS_SOC!$E:$E,F166))-P166 -> 51,320 | S166: =VLOOKUP(F166,Objectifs!G:K,5,FALSE) -> 30,600 | T166: =(SUMIFS(PILCOT_ELAN!$P:$P,PILCOT_ELAN!$H:$H,$D166)) -> 7,878 | U166: 26% | V166: 22,722 | W166: =S166*SUIVI_REGION!$S$4 -> 21,857 | X166: -13,979 | Z166: =VLOOKUP(F166,Objectifs!G:M,7,FALSE) -> 311,500 | AA166: =(SUMIF(SOURCE_EMP_ASV!D:D,SUIVI_PDV!E166,SOURCE_EMP_ASV!J:J)) -> 6,000 | AB166: 2% | AC166: 305,500 | AD166: =Z166*SUIVI_REGION!$Z$4 -> 252,422 | AE166: -246,422 | AF166: =IF(SUMIF(SOURCE_EMP_ASV!D:D,SUIVI_PDV!E166,SOURCE_EMP_ASV!K:K)=0,"",(SUMIF(SOURCE_EMP_ASV!D:D,SUIVI_PDV!E166,SOURCE_EMP_ASV!L:L))/SUMIF(SOURCE_EMP_ASV!D:D,SUIVI_PDV!E166,SOURCE_EMP_ASV!K:K)) -> 3.00% | AG166: 0 € | AH166: =(SUMIF(EMPRUNT_CTO!H:H,SUIVI_PDV!D166,EMPRUNT_CTO!K:K)) -> 0 | AJ166: -3,989 | AK166: =(SUMIFS(ALIZE!P:P,ALIZE!H:H,D166))-(SUMIFS(ALIZE_2105!P:P,ALIZE_2105!H:H,D166)) -> 0 | AL166: =(SUMIFS(CORALIUM!P:P,CORALIUM!H:H,D166))-(SUMIFS(CORALIUM_2105!P:P,CORALIUM_2105!H:H,D166)) -> -3,989 | AM166: =(SUMIFS(PARMA_PEA!$N:$N,PARMA_PEA!$H:$H,$D166)) -> 0
A167: 160 | B167: MOSELLE | C167: MOSELLE EST | D167: 535 | E167: 151350000535 | F167: 57258 | G167: =VLOOKUP(F167,Objectifs!G:H,2,FALSE) -> DIEUZE | I167: =VLOOKUP(F167,Objectifs!G:L,6,FALSE) -> 94,100 | J167: =(SUMIFS(SOURCE_PARTS_SOC!G:G,SOURCE_PARTS_SOC!E:E,F167))+(SUMIFS(ORCA_CARNET!E:E,ORCA_CARNET!C:C,F167)) -> 14,160 | K167: =(SUMIFS(SOURCE_PARTS_SOC!H:H,SOURCE_PARTS_SOC!E:E,F167))+(SUMIFS(ORCA_CARNET!F:F,ORCA_CARNET!C:C,F167)) -> 1,120 | L167: 15% | M167: 79,940 | N167: =I167*SUIVI_REGION!$I$4 -> 87,655 | O167: -73,495 | P167: =(SUMIFS(SOURCE_PARTS_SOC_0506!$I:$I,SOURCE_PARTS_SOC_0506!$E:$E,F167)) -> 93,100 | Q167: =(SUMIFS(SOURCE_PARTS_SOC!$I:$I,SOURCE_PARTS_SOC!$E:$E,F167))-P167 -> 7,500 | S167: =VLOOKUP(F167,Objectifs!G:K,5,FALSE) -> 30,600 | T167: =(SUMIFS(PILCOT_ELAN!$P:$P,PILCOT_ELAN!$H:$H,$D167)) -> 146,680 | U167: 479% | W167: =S167*SUIVI_REGION!$S$4 -> 21,857 | X167: 124,823 | Z167: =VLOOKUP(F167,Objectifs!G:M,7,FALSE) -> 311,500 | AA167: =(SUMIF(SOURCE_EMP_ASV!D:D,SUIVI_PDV!E167,SOURCE_EMP_ASV!J:J)) -> 265,398 | AB167: 85% | AC167: 46,103 | AD167: =Z167*SUIVI_REGION!$Z$4 -> 252,422 | AE167: 12,975 | AF167: =IF(SUMIF(SOURCE_EMP_ASV!D:D,SUIVI_PDV!E167,SOURCE_EMP_ASV!K:K)=0,"",(SUMIF(SOURCE_EMP_ASV!D:D,SUIVI_PDV!E167,SOURCE_EMP_ASV!L:L))/SUMIF(SOURCE_EMP_ASV!D:D,SUIVI_PDV!E167,SOURCE_EMP_ASV!K:K)) -> 0.48% | AG167: 0 € | AH167: =(SUMIF(EMPRUNT_CTO!H:H,SUIVI_PDV!D167,EMPRUNT_CTO!K:K)) -> 0 | AJ167: 0 | AK167: =(SUMIFS(ALIZE!P:P,ALIZE!H:H,D167))-(SUMIFS(ALIZE_2105!P:P,ALIZE_2105!H:H,D167)) -> 0 | AL167: =(SUMIFS(CORALIUM!P:P,CORALIUM!H:H,D167))-(SUMIFS(CORALIUM_2105!P:P,CORALIUM_2105!H:H,D167)) -> 0 | AM167: =(SUMIFS(PARMA_PEA!$N:$N,PARMA_PEA!$H:$H,$D167)) -> 0
A168: 160 | B168: MOSELLE | C168: MOSELLE EST | D168: 546 | E168: 151350000546 | F168: 57305 | G168: =VLOOKUP(F168,Objectifs!G:H,2,FALSE) -> FAULQUEMONT | I168: =VLOOKUP(F168,Objectifs!G:L,6,FALSE) -> 69,700 | J168: =(SUMIFS(SOURCE_PARTS_SOC!G:G,SOURCE_PARTS_SOC!E:E,F168))+(SUMIFS(ORCA_CARNET!E:E,ORCA_CARNET!C:C,F168)) -> 23,200 | K168: =(SUMIFS(SOURCE_PARTS_SOC!H:H,SOURCE_PARTS_SOC!E:E,F168))+(SUMIFS(ORCA_CARNET!F:F,ORCA_CARNET!C:C,F168)) -> 3,320 | L168: 33% | M168: 46,500 | N168: =I168*SUIVI_REGION!$I$4 -> 64,926 | O168: -41,726 | P168: =(SUMIFS(SOURCE_PARTS_SOC_0506!$I:$I,SOURCE_PARTS_SOC_0506!$E:$E,F168)) -> 33,520 | Q168: =(SUMIFS(SOURCE_PARTS_SOC!$I:$I,SOURCE_PARTS_SOC!$E:$E,F168))-P168 -> 760 | S168: =VLOOKUP(F168,Objectifs!G:K,5,FALSE) -> 22,600 | T168: =(SUMIFS(PILCOT_ELAN!$P:$P,PILCOT_ELAN!$H:$H,$D168)) -> 4,025 | U168: 18% | V168: 18,575 | W168: =S168*SUIVI_REGION!$S$4 -> 16,143 | X168: -12,118 | Z168: =VLOOKUP(F168,Objectifs!G:M,7,FALSE) -> 230,700 | AA168: =(SUMIF(SOURCE_EMP_ASV!D:D,SUIVI_PDV!E168,SOURCE_EMP_ASV!J:J)) -> 508,375 | AB168: 220% | AD168: =Z168*SUIVI_REGION!$Z$4 -> 186,947 | AE168: 321,428 | AF168: =IF(SUMIF(SOURCE_EMP_ASV!D:D,SUIVI_PDV!E168,SOURCE_EMP_ASV!K:K)=0,"",(SUMIF(SOURCE_EMP_ASV!D:D,SUIVI_PDV!E168,SOURCE_EMP_ASV!L:L))/SUMIF(SOURCE_EMP_ASV!D:D,SUIVI_PDV!E168,SOURCE_EMP_ASV!K:K)) -> 0.36% | AG168: 0 € | AH168: =(SUMIF(EMPRUNT_CTO!H:H,SUIVI_PDV!D168,EMPRUNT_CTO!K:K)) -> 0 | AJ168: 0 | AK168: =(SUMIFS(ALIZE!P:P,ALIZE!H:H,D168))-(SUMIFS(ALIZE_2105!P:P,ALIZE_2105!H:H,D168)) -> 0 | AL168: =(SUMIFS(CORALIUM!P:P,CORALIUM!H:H,D168))-(SUMIFS(CORALIUM_2105!P:P,CORALIUM_2105!H:H,D168)) -> 0 | AM168: =(SUMIFS(PARMA_PEA!$N:$N,PARMA_PEA!$H:$H,$D168)) -> 0
A169: 160 | B169: MOSELLE | C169: MOSELLE EST | D169: 604 | E169: 151350000604 | F169: 57458 | G169: =VLOOKUP(F169,Objectifs!G:H,2,FALSE) -> MORHANGE | I169: =VLOOKUP(F169,Objectifs!G:L,6,FALSE) -> 94,100 | J169: =(SUMIFS(SOURCE_PARTS_SOC!G:G,SOURCE_PARTS_SOC!E:E,F169))+(SUMIFS(ORCA_CARNET!E:E,ORCA_CARNET!C:C,F169)) -> 21,780 | K169: =(SUMIFS(SOURCE_PARTS_SOC!H:H,SOURCE_PARTS_SOC!E:E,F169))+(SUMIFS(ORCA_CARNET!F:F,ORCA_CARNET!C:C,F169)) -> 1,580 | L169: 23% | M169: 72,320 | N169: =I169*SUIVI_REGION!$I$4 -> 87,655 | O169: -65,875 | P169: =(SUMIFS(SOURCE_PARTS_SOC_0506!$I:$I,SOURCE_PARTS_SOC_0506!$E:$E,F169)) -> 66,940 | Q169: =(SUMIFS(SOURCE_PARTS_SOC!$I:$I,SOURCE_PARTS_SOC!$E:$E,F169))-P169 -> 0 | S169: =VLOOKUP(F169,Objectifs!G:K,5,FALSE) -> 30,600 | T169: =(SUMIFS(PILCOT_ELAN!$P:$P,PILCOT_ELAN!$H:$H,$D169)) -> 0 | U169: 0% | V169: 30,600 | W169: =S169*SUIVI_REGION!$S$4 -> 21,857 | X169: -21,857 | Z169: =VLOOKUP(F169,Objectifs!G:M,7,FALSE) -> 311,500 | AA169: =(SUMIF(SOURCE_EMP_ASV!D:D,SUIVI_PDV!E169,SOURCE_EMP_ASV!J:J)) -> 122,159 | AB169: 39% | AC169: 189,341 | AD169: =Z169*SUIVI_REGION!$Z$4 -> 252,422 | AE169: -130,263 | AF169: =IF(SUMIF(SOURCE_EMP_ASV!D:D,SUIVI_PDV!E169,SOURCE_EMP_ASV!K:K)=0,"",(SUMIF(SOURCE_EMP_ASV!D:D,SUIVI_PDV!E169,SOURCE_EMP_ASV!L:L))/SUMIF(SOURCE_EMP_ASV!D:D,SUIVI_PDV!E169,SOURCE_EMP_ASV!K:K)) -> 0.50% | AG169: 0 € | AH169: =(SUMIF(EMPRUNT_CTO!H:H,SUIVI_PDV!D169,EMPRUNT_CTO!K:K)) -> 0 | AJ169: 0 | AK169: =(SUMIFS(ALIZE!P:P,ALIZE!H:H,D169))-(SUMIFS(ALIZE_2105!P:P,ALIZE_2105!H:H,D169)) -> 0 | AL169: =(SUMIFS(CORALIUM!P:P,CORALIUM!H:H,D169))-(SUMIFS(CORALIUM_2105!P:P,CORALIUM_2105!H:H,D169)) -> 0 | AM169: =(SUMIFS(PARMA_PEA!$N:$N,PARMA_PEA!$H:$H,$D169)) -> 0
A170: 160 | B170: MOSELLE | C170: MOSELLE EST | D170: 511 | E170: 151350000511 | F170: 57163 | G170: =VLOOKUP(F170,Objectifs!G:H,2,FALSE) -> BEHREN LES FORBACH | I170: =VLOOKUP(F170,Objectifs!G:L,6,FALSE) -> 52,300 | J170: =(SUMIFS(SOURCE_PARTS_SOC!G:G,SOURCE_PARTS_SOC!E:E,F170))+(SUMIFS(ORCA_CARNET!E:E,ORCA_CARNET!C:C,F170)) -> 11,660 | K170: =(SUMIFS(SOURCE_PARTS_SOC!H:H,SOURCE_PARTS_SOC!E:E,F170))+(SUMIFS(ORCA_CARNET!F:F,ORCA_CARNET!C:C,F170)) -> 0 | L170: 22% | M170: 40,640 | N170: =I170*SUIVI_REGION!$I$4 -> 48,718 | O170: -37,058 | P170: =(SUMIFS(SOURCE_PARTS_SOC_0506!$I:$I,SOURCE_PARTS_SOC_0506!$E:$E,F170)) -> 102,440 | Q170: =(SUMIFS(SOURCE_PARTS_SOC!$I:$I,SOURCE_PARTS_SOC!$E:$E,F170))-P170 -> 200 | S170: =VLOOKUP(F170,Objectifs!G:K,5,FALSE) -> 17,000 | T170: =(SUMIFS(PILCOT_ELAN!$P:$P,PILCOT_ELAN!$H:$H,$D170)) -> 0 | U170: 0% | V170: 17,000 | W170: =S170*SUIVI_REGION!$S$4 -> 12,143 | X170: -12,143 | Z170: =VLOOKUP(F170,Objectifs!G:M,7,FALSE) -> 173,000 | AA170: =(SUMIF(SOURCE_EMP_ASV!D:D,SUIVI_PDV!E170,SOURCE_EMP_ASV!J:J)) -> 43,800 | AB170: 25% | AC170: 129,200 | AD170: =Z170*SUIVI_REGION!$Z$4 -> 140,190 | AE170: -96,390 | AF170: =IF(SUMIF(SOURCE_EMP_ASV!D:D,SUIVI_PDV!E170,SOURCE_EMP_ASV!K:K)=0,"",(SUMIF(SOURCE_EMP_ASV!D:D,SUIVI_PDV!E170,SOURCE_EMP_ASV!L:L))/SUMIF(SOURCE_EMP_ASV!D:D,SUIVI_PDV!E170,SOURCE_EMP_ASV!K:K)) -> 0.50% | AG170: 0 € | AH170: =(SUMIF(EMPRUNT_CTO!H:H,SUIVI_PDV!D170,EMPRUNT_CTO!K:K)) -> 0 | AJ170: 0 | AK170: =(SUMIFS(ALIZE!P:P,ALIZE!H:H,D170))-(SUMIFS(ALIZE_2105!P:P,ALIZE_2105!H:H,D170)) -> 0 | AL170: =(SUMIFS(CORALIUM!P:P,CORALIUM!H:H,D170))-(SUMIFS(CORALIUM_2105!P:P,CORALIUM_2105!H:H,D170)) -> 0 | AM170: =(SUMIFS(PARMA_PEA!$N:$N,PARMA_PEA!$H:$H,$D170)) -> 0
A171: 160 | B171: MOSELLE | C171: MOSELLE EST | D171: 549 | E171: 151350000549 | F171: 57308 | G171: =VLOOKUP(F171,Objectifs!G:H,2,FALSE) -> FORBACH CENTRALE | I171: =VLOOKUP(F171,Objectifs!G:L,6,FALSE) -> 275,200 | J171: =(SUMIFS(SOURCE_PARTS_SOC!G:G,SOURCE_PARTS_SOC!E:E,F171))+(SUMIFS(ORCA_CARNET!E:E,ORCA_CARNET!C:C,F171)) -> 55,480 | K171: =(SUMIFS(SOURCE_PARTS_SOC!H:H,SOURCE_PARTS_SOC!E:E,F171))+(SUMIFS(ORCA_CARNET!F:F,ORCA_CARNET!C:C,F171)) -> 7,400 | L171: 20% | M171: 219,720 | N171: =I171*SUIVI_REGION!$I$4 -> 256,351 | O171: -200,871 | P171: =(SUMIFS(SOURCE_PARTS_SOC_0506!$I:$I,SOURCE_PARTS_SOC_0506!$E:$E,F171)) -> 259,980 | Q171: =(SUMIFS(SOURCE_PARTS_SOC!$I:$I,SOURCE_PARTS_SOC!$E:$E,F171))-P171 -> 6,460 | S171: =VLOOKUP(F171,Objectifs!G:K,5,FALSE) -> 89,500 | T171: =(SUMIFS(PILCOT_ELAN!$P:$P,PILCOT_ELAN!$H:$H,$D171)) -> 0 | U171: 0% | V171: 89,500 | W171: =S171*SUIVI_REGION!$S$4 -> 63,929 | X171: -63,929 | Z171: =VLOOKUP(F171,Objectifs!G:M,7,FALSE) -> 911,300 | AA171: =(SUMIF(SOURCE_EMP_ASV!D:D,SUIVI_PDV!E171,SOURCE_EMP_ASV!J:J)) -> 421,559 | AB171: 46% | AC171: 489,741 | AD171: =Z171*SUIVI_REGION!$Z$4 -> 738,467 | AE171: -316,909 | AF171: =IF(SUMIF(SOURCE_EMP_ASV!D:D,SUIVI_PDV!E171,SOURCE_EMP_ASV!K:K)=0,"",(SUMIF(SOURCE_EMP_ASV!D:D,SUIVI_PDV!E171,SOURCE_EMP_ASV!L:L))/SUMIF(SOURCE_EMP_ASV!D:D,SUIVI_PDV!E171,SOURCE_EMP_ASV!K:K)) -> 0.32% | AG171: 0 € | AH171: =(SUMIF(EMPRUNT_CTO!H:H,SUIVI_PDV!D171,EMPRUNT_CTO!K:K)) -> 0 | AJ171: 0 | AK171: =(SUMIFS(ALIZE!P:P,ALIZE!H:H,D171))-(SUMIFS(ALIZE_2105!P:P,ALIZE_2105!H:H,D171)) -> 0 | AL171: =(SUMIFS(CORALIUM!P:P,CORALIUM!H:H,D171))-(SUMIFS(CORALIUM_2105!P:P,CORALIUM_2105!H:H,D171)) -> 0 | AM171: =(SUMIFS(PARMA_PEA!$N:$N,PARMA_PEA!$H:$H,$D171)) -> 0
A172: 160 | B172: MOSELLE | C172: MOSELLE EST | D172: 653 | E172: 151350000653 | F172: 57626 | G172: =VLOOKUP(F172,Objectifs!G:H,2,FALSE) -> STIRING WENDEL | I172: =VLOOKUP(F172,Objectifs!G:L,6,FALSE) -> 52,300 | J172: =(SUMIFS(SOURCE_PARTS_SOC!G:G,SOURCE_PARTS_SOC!E:E,F172))+(SUMIFS(ORCA_CARNET!E:E,ORCA_CARNET!C:C,F172)) -> 10,540 | K172: =(SUMIFS(SOURCE_PARTS_SOC!H:H,SOURCE_PARTS_SOC!E:E,F172))+(SUMIFS(ORCA_CARNET!F:F,ORCA_CARNET!C:C,F172)) -> 3,140 | L172: 20% | M172: 41,760 | N172: =I172*SUIVI_REGION!$I$4 -> 48,718 | O172: -38,178 | P172: =(SUMIFS(SOURCE_PARTS_SOC_0506!$I:$I,SOURCE_PARTS_SOC_0506!$E:$E,F172)) -> 48,220 | Q172: =(SUMIFS(SOURCE_PARTS_SOC!$I:$I,SOURCE_PARTS_SOC!$E:$E,F172))-P172 -> 0 | S172: =VLOOKUP(F172,Objectifs!G:K,5,FALSE) -> 17,000 | T172: =(SUMIFS(PILCOT_ELAN!$P:$P,PILCOT_ELAN!$H:$H,$D172)) -> 0 | U172: 0% | V172: 17,000 | W172: =S172*SUIVI_REGION!$S$4 -> 12,143 | X172: -12,143 | Z172: =VLOOKUP(F172,Objectifs!G:M,7,FALSE) -> 173,000 | AA172: =(SUMIF(SOURCE_EMP_ASV!D:D,SUIVI_PDV!E172,SOURCE_EMP_ASV!J:J)) -> 0 | AB172: 0% | AC172: 173,000 | AD172: =Z172*SUIVI_REGION!$Z$4 -> 140,190 | AE172: -140,190 | AF172: =IF(SUMIF(SOURCE_EMP_ASV!D:D,SUIVI_PDV!E172,SOURCE_EMP_ASV!K:K)=0,"",(SUMIF(SOURCE_EMP_ASV!D:D,SUIVI_PDV!E172,SOURCE_EMP_ASV!L:L))/SUMIF(SOURCE_EMP_ASV!D:D,SUIVI_PDV!E172,SOURCE_EMP_ASV!K:K)) ->  | AG172: 0 € | AH172: =(SUMIF(EMPRUNT_CTO!H:H,SUIVI_PDV!D172,EMPRUNT_CTO!K:K)) -> 0 | AJ172: 0 | AK172: =(SUMIFS(ALIZE!P:P,ALIZE!H:H,D172))-(SUMIFS(ALIZE_2105!P:P,ALIZE_2105!H:H,D172)) -> 0 | AL172: =(SUMIFS(CORALIUM!P:P,CORALIUM!H:H,D172))-(SUMIFS(CORALIUM_2105!P:P,CORALIUM_2105!H:H,D172)) -> 0 | AM172: =(SUMIFS(PARMA_PEA!$N:$N,PARMA_PEA!$H:$H,$D172)) -> 0
A173: 160 | B173: MOSELLE | C173: MOSELLE EST | D173: 531 | E173: 151350000531 | F173: 57250 | G173: =VLOOKUP(F173,Objectifs!G:H,2,FALSE) -> CREUTZWALD | I173: =VLOOKUP(F173,Objectifs!G:L,6,FALSE) -> 94,100 | J173: =(SUMIFS(SOURCE_PARTS_SOC!G:G,SOURCE_PARTS_SOC!E:E,F173))+(SUMIFS(ORCA_CARNET!E:E,ORCA_CARNET!C:C,F173)) -> 68,520 | K173: =(SUMIFS(SOURCE_PARTS_SOC!H:H,SOURCE_PARTS_SOC!E:E,F173))+(SUMIFS(ORCA_CARNET!F:F,ORCA_CARNET!C:C,F173)) -> 3,060 | L173: 73% | M173: 25,580 | N173: =I173*SUIVI_REGION!$I$4 -> 87,655 | O173: -19,135 | P173: =(SUMIFS(SOURCE_PARTS_SOC_0506!$I:$I,SOURCE_PARTS_SOC_0506!$E:$E,F173)) -> 173,380 | Q173: =(SUMIFS(SOURCE_PARTS_SOC!$I:$I,SOURCE_PARTS_SOC!$E:$E,F173))-P173 -> 140 | S173: =VLOOKUP(F173,Objectifs!G:K,5,FALSE) -> 30,600 | T173: =(SUMIFS(PILCOT_ELAN!$P:$P,PILCOT_ELAN!$H:$H,$D173)) -> 0 | U173: 0% | V173: 30,600 | W173: =S173*SUIVI_REGION!$S$4 -> 21,857 | X173: -21,857 | Z173: =VLOOKUP(F173,Objectifs!G:M,7,FALSE) -> 311,500 | AA173: =(SUMIF(SOURCE_EMP_ASV!D:D,SUIVI_PDV!E173,SOURCE_EMP_ASV!J:J)) -> 283,399 | AB173: 91% | AC173: 28,101 | AD173: =Z173*SUIVI_REGION!$Z$4 -> 252,422 | AE173: 30,976 | AF173: =IF(SUMIF(SOURCE_EMP_ASV!D:D,SUIVI_PDV!E173,SOURCE_EMP_ASV!K:K)=0,"",(SUMIF(SOURCE_EMP_ASV!D:D,SUIVI_PDV!E173,SOURCE_EMP_ASV!L:L))/SUMIF(SOURCE_EMP_ASV!D:D,SUIVI_PDV!E173,SOURCE_EMP_ASV!K:K)) -> 0.49% | AG173: 0 € | AH173: =(SUMIF(EMPRUNT_CTO!H:H,SUIVI_PDV!D173,EMPRUNT_CTO!K:K)) -> 0 | AJ173: 0 | AK173: =(SUMIFS(ALIZE!P:P,ALIZE!H:H,D173))-(SUMIFS(ALIZE_2105!P:P,ALIZE_2105!H:H,D173)) -> 0 | AL173: =(SUMIFS(CORALIUM!P:P,CORALIUM!H:H,D173))-(SUMIFS(CORALIUM_2105!P:P,CORALIUM_2105!H:H,D173)) -> 0 | AM173: =(SUMIFS(PARMA_PEA!$N:$N,PARMA_PEA!$H:$H,$D173)) -> 0
A174: 160 | B174: MOSELLE | C174: MOSELLE EST | D174: 586 | E174: 151350000586 | F174: 57435 | G174: =VLOOKUP(F174,Objectifs!G:H,2,FALSE) -> MERLEBACH | I174: =VLOOKUP(F174,Objectifs!G:L,6,FALSE) -> 121,900 | J174: =(SUMIFS(SOURCE_PARTS_SOC!G:G,SOURCE_PARTS_SOC!E:E,F174))+(SUMIFS(ORCA_CARNET!E:E,ORCA_CARNET!C:C,F174)) -> 54,400 | K174: =(SUMIFS(SOURCE_PARTS_SOC!H:H,SOURCE_PARTS_SOC!E:E,F174))+(SUMIFS(ORCA_CARNET!F:F,ORCA_CARNET!C:C,F174)) -> 3,020 | L174: 45% | M174: 67,500 | N174: =I174*SUIVI_REGION!$I$4 -> 113,551 | O174: -59,151 | P174: =(SUMIFS(SOURCE_PARTS_SOC_0506!$I:$I,SOURCE_PARTS_SOC_0506!$E:$E,F174)) -> 147,440 | Q174: =(SUMIFS(SOURCE_PARTS_SOC!$I:$I,SOURCE_PARTS_SOC!$E:$E,F174))-P174 -> 40 | S174: =VLOOKUP(F174,Objectifs!G:K,5,FALSE) -> 39,600 | T174: =(SUMIFS(PILCOT_ELAN!$P:$P,PILCOT_ELAN!$H:$H,$D174)) -> 9,561 | U174: 24% | V174: 30,039 | W174: =S174*SUIVI_REGION!$S$4 -> 28,286 | X174: -18,725 | Z174: =VLOOKUP(F174,Objectifs!G:M,7,FALSE) -> 403,700 | AA174: =(SUMIF(SOURCE_EMP_ASV!D:D,SUIVI_PDV!E174,SOURCE_EMP_ASV!J:J)) -> 178,894 | AB174: 44% | AC174: 224,806 | AD174: =Z174*SUIVI_REGION!$Z$4 -> 327,136 | AE174: -148,242 | AF174: =IF(SUMIF(SOURCE_EMP_ASV!D:D,SUIVI_PDV!E174,SOURCE_EMP_ASV!K:K)=0,"",(SUMIF(SOURCE_EMP_ASV!D:D,SUIVI_PDV!E174,SOURCE_EMP_ASV!L:L))/SUMIF(SOURCE_EMP_ASV!D:D,SUIVI_PDV!E174,SOURCE_EMP_ASV!K:K)) -> 0.68% | AG174: 0 € | AH174: =(SUMIF(EMPRUNT_CTO!H:H,SUIVI_PDV!D174,EMPRUNT_CTO!K:K)) -> 0 | AJ174: 0 | AK174: =(SUMIFS(ALIZE!P:P,ALIZE!H:H,D174))-(SUMIFS(ALIZE_2105!P:P,ALIZE_2105!H:H,D174)) -> 0 | AL174: =(SUMIFS(CORALIUM!P:P,CORALIUM!H:H,D174))-(SUMIFS(CORALIUM_2105!P:P,CORALIUM_2105!H:H,D174)) -> 0 | AM174: =(SUMIFS(PARMA_PEA!$N:$N,PARMA_PEA!$H:$H,$D174)) -> 0
A175: 160 | B175: MOSELLE | C175: MOSELLE EST | D175: 629 | E175: 151350000629 | F175: 57543 | G175: =VLOOKUP(F175,Objectifs!G:H,2,FALSE) -> PUTTELANGE AUX LACS | I175: =VLOOKUP(F175,Objectifs!G:L,6,FALSE) -> 94,100 | J175: =(SUMIFS(SOURCE_PARTS_SOC!G:G,SOURCE_PARTS_SOC!E:E,F175))+(SUMIFS(ORCA_CARNET!E:E,ORCA_CARNET!C:C,F175)) -> 23,000 | K175: =(SUMIFS(SOURCE_PARTS_SOC!H:H,SOURCE_PARTS_SOC!E:E,F175))+(SUMIFS(ORCA_CARNET!F:F,ORCA_CARNET!C:C,F175)) -> 10,100 | L175: 24% | M175: 71,100 | N175: =I175*SUIVI_REGION!$I$4 -> 87,655 | O175: -64,655 | P175: =(SUMIFS(SOURCE_PARTS_SOC_0506!$I:$I,SOURCE_PARTS_SOC_0506!$E:$E,F175)) -> 34,720 | Q175: =(SUMIFS(SOURCE_PARTS_SOC!$I:$I,SOURCE_PARTS_SOC!$E:$E,F175))-P175 -> 40 | S175: =VLOOKUP(F175,Objectifs!G:K,5,FALSE) -> 30,600 | T175: =(SUMIFS(PILCOT_ELAN!$P:$P,PILCOT_ELAN!$H:$H,$D175)) -> 42,806 | U175: 140% | W175: =S175*SUIVI_REGION!$S$4 -> 21,857 | X175: 20,949 | Z175: =VLOOKUP(F175,Objectifs!G:M,7,FALSE) -> 311,500 | AA175: =(SUMIF(SOURCE_EMP_ASV!D:D,SUIVI_PDV!E175,SOURCE_EMP_ASV!J:J)) -> 132,193 | AB175: 42% | AC175: 179,307 | AD175: =Z175*SUIVI_REGION!$Z$4 -> 252,422 | AE175: -120,230 | AF175: =IF(SUMIF(SOURCE_EMP_ASV!D:D,SUIVI_PDV!E175,SOURCE_EMP_ASV!K:K)=0,"",(SUMIF(SOURCE_EMP_ASV!D:D,SUIVI_PDV!E175,SOURCE_EMP_ASV!L:L))/SUMIF(SOURCE_EMP_ASV!D:D,SUIVI_PDV!E175,SOURCE_EMP_ASV!K:K)) -> 0.44% | AG175: 0 € | AH175: =(SUMIF(EMPRUNT_CTO!H:H,SUIVI_PDV!D175,EMPRUNT_CTO!K:K)) -> 0 | AJ175: 0 | AK175: =(SUMIFS(ALIZE!P:P,ALIZE!H:H,D175))-(SUMIFS(ALIZE_2105!P:P,ALIZE_2105!H:H,D175)) -> 0 | AL175: =(SUMIFS(CORALIUM!P:P,CORALIUM!H:H,D175))-(SUMIFS(CORALIUM_2105!P:P,CORALIUM_2105!H:H,D175)) -> 0 | AM175: =(SUMIFS(PARMA_PEA!$N:$N,PARMA_PEA!$H:$H,$D175)) -> 0
A176: 160 | B176: MOSELLE | C176: MOSELLE EST | D176: 637 | E176: 151350000637 | F176: 57583 | G176: =VLOOKUP(F176,Objectifs!G:H,2,FALSE) -> SAINT AVOLD | I176: =VLOOKUP(F176,Objectifs!G:L,6,FALSE) -> 226,500 | J176: =(SUMIFS(SOURCE_PARTS_SOC!G:G,SOURCE_PARTS_SOC!E:E,F176))+(SUMIFS(ORCA_CARNET!E:E,ORCA_CARNET!C:C,F176)) -> 35,280 | K176: =(SUMIFS(SOURCE_PARTS_SOC!H:H,SOURCE_PARTS_SOC!E:E,F176))+(SUMIFS(ORCA_CARNET!F:F,ORCA_CARNET!C:C,F176)) -> 5,540 | L176: 16% | M176: 191,220 | N176: =I176*SUIVI_REGION!$I$4 -> 210,986 | O176: -175,706 | P176: =(SUMIFS(SOURCE_PARTS_SOC_0506!$I:$I,SOURCE_PARTS_SOC_0506!$E:$E,F176)) -> 298,680 | Q176: =(SUMIFS(SOURCE_PARTS_SOC!$I:$I,SOURCE_PARTS_SOC!$E:$E,F176))-P176 -> 320 | S176: =VLOOKUP(F176,Objectifs!G:K,5,FALSE) -> 73,600 | T176: =(SUMIFS(PILCOT_ELAN!$P:$P,PILCOT_ELAN!$H:$H,$D176)) -> 9,993 | U176: 14% | V176: 63,607 | W176: =S176*SUIVI_REGION!$S$4 -> 52,571 | X176: -42,578 | Z176: =VLOOKUP(F176,Objectifs!G:M,7,FALSE) -> 749,800 | AA176: =(SUMIF(SOURCE_EMP_ASV!D:D,SUIVI_PDV!E176,SOURCE_EMP_ASV!J:J)) -> 731,343 | AB176: 98% | AC176: 18,457 | AD176: =Z176*SUIVI_REGION!$Z$4 -> 607,597 | AE176: 123,746 | AF176: =IF(SUMIF(SOURCE_EMP_ASV!D:D,SUIVI_PDV!E176,SOURCE_EMP_ASV!K:K)=0,"",(SUMIF(SOURCE_EMP_ASV!D:D,SUIVI_PDV!E176,SOURCE_EMP_ASV!L:L))/SUMIF(SOURCE_EMP_ASV!D:D,SUIVI_PDV!E176,SOURCE_EMP_ASV!K:K)) -> 0.44% | AG176: 0 € | AH176: =(SUMIF(EMPRUNT_CTO!H:H,SUIVI_PDV!D176,EMPRUNT_CTO!K:K)) -> 0 | AJ176: 47,068 | AK176: =(SUMIFS(ALIZE!P:P,ALIZE!H:H,D176))-(SUMIFS(ALIZE_2105!P:P,ALIZE_2105!H:H,D176)) -> 30,498 | AL176: =(SUMIFS(CORALIUM!P:P,CORALIUM!H:H,D176))-(SUMIFS(CORALIUM_2105!P:P,CORALIUM_2105!H:H,D176)) -> 16,571 | AM176: =(SUMIFS(PARMA_PEA!$N:$N,PARMA_PEA!$H:$H,$D176)) -> 0
